Workbook

Sheet Instructions
B1: GMCU Loan Servicability Calculator
B2: Instructions
B4: Step 1 | C4: Take a copy of this Master Excel file and save with new file name as required
C5: Note: Always begin the process from the Master File.
B7: Step 2 | C7: Tick the Checkboxes below if applicable to applicant(s)
B14: Step 3 | C14: Completed the YELLOW INPUT CELLS on the following worksheets:
D15: Loan Serviceability Calculator
D16: Rental Income (if applicable) - Worksheet will be hidden if not applicable
D17: Business Income (if applicable) - Worksheet will be hidden if not applicable
C18: Insert Comments if required, in the comments columns provided
B21: Step 4 | C21: Check all calculations for reasonableness on the "Loan Serviceability Calculator" worksheet
C22: Where the "Rental Income" worksheet has been used, ensure BLUE Cells on "Rental Income" worksheet equate to 100% when Rental income applies
B24: Step 5 | C24: Save the file for future internal reference, but ensure any new assessment are made using the Master File
B26: ++++++++++++++++++++++++++++++++++++++++++++++++++++++++++++++++++++++++++++++++++++++++++++++
B27: HEAD OFFICE USE ONLY - Master Data Maintenance
B29: To update the file for the latest GMCU loans rates
B30: Use Excel menu ribbon "Data>Refresh All"
B31: (This will import the GMCU load rates as advertised on "https://www.gmcu.com.au/loan-rates")….
B32: Note : If an update of loan-rates is NOT required within this file then do NOT complete Step 2…proceed to Step 3
B34: Update YELLOW CELLS ON:
B35: DROP BOX LIST worksheet:
B36: Unprotect worksheet first
B37: Key Driver Variables:
B38: Buffer % to apply
B39: Credit Card Assessment Rate
B40: Company Tax Rate
B41: GMCU Benchmark Living Expenses
B42: Protect worksheet when completed update
B44: Applicant1_Tax worksheet
B45: Unprotect worksheet first
B46: Taxable income
B47: Tax on this income
B48: Medicare
B49: Protect worksheet when completed update

Sheet Loan Serviceability Calculator
B7: Applicant details | K7: Comments
C9: Loan Product 1 | E9: Select if applicable
C10: Rate | E10: =_xlfn.IFNA(VLOOKUP(E9,'DROP BOX LISTS'!$B$52:$F$68,3,FALSE),"N/A") -> N/A
C11: Comparison Rate | E11: =_xlfn.IFNA(VLOOKUP(E9,'DROP BOX LISTS'!$B$52:$F$68,4,FALSE),"N/A") -> N/A
C12: Assessment Rate | E12: =_xlfn.IFNA(VLOOKUP(E9,'DROP BOX LISTS'!$B$52:$F$68,5,FALSE),"N/A") -> N/A
C14: Loan Product 2 | D14: (if applicable) | E14: Select if applicable
C15: Rate | E15: =_xlfn.IFNA(VLOOKUP(E14,'DROP BOX LISTS'!$B$52:$F$68,3,FALSE),"N/A") -> N/A
C16: Comparison Rate | E16: =_xlfn.IFNA(VLOOKUP(E14,'DROP BOX LISTS'!$B$52:$F$68,4,FALSE),"N/A") -> N/A
C17: Assessment Rate | E17: =_xlfn.IFNA(VLOOKUP(E14,'DROP BOX LISTS'!$B$52:$F$68,5,FALSE),"N/A") -> N/A
C19: Loan Product 3 | D19: (if applicable) | E19: Select if applicable
C20: Rate | E20: =_xlfn.IFNA(VLOOKUP(E19,'DROP BOX LISTS'!$B$52:$F$68,3,FALSE),"N/A") -> N/A
C21: Comparison Rate | E21: =_xlfn.IFNA(VLOOKUP(E19,'DROP BOX LISTS'!$B$52:$F$68,4,FALSE),"N/A") -> N/A
C22: Assessment Rate | E22: =_xlfn.IFNA(VLOOKUP(E19,'DROP BOX LISTS'!$B$52:$F$68,5,FALSE),"N/A") -> N/A
C24: Applicants Names
C25: (example : Mr. John Smith)
D26: Applicant 1 : Name
D27: Applicant 2 : Name
D28: Applicant 3 : Name
D29: Applicant 4 : Name
E31: Applicant 1 | F31: Applicant 2 | G31: Applicant 3 | H31: Applicant 4
E32: =IF(E26="","",E26) ->  | F32: =IF(E27="","",E27) ->  | G32: =IF(E28="","",E28) ->  | H32: =IF(E29="","",E29) -> 
C33: Marital or relationship status | E33: Select… | F33: Select… | G33: Select… | H33: Select…
C34: Couple with other applicant
C35: Number of dependants * | E35: Select… | F35: Select… | G35: Select… | H35: Select…
C36: ( * only include common dependants once)
B39: Loan Details | K39: Comments
E41: Loan Amount $ | F41: Loan Term (mths ) | G41: Carded Interest Rate %
C42: Loan Account 1 | G42: =LEFT(E12,LEN(E12)-3) -> 
C43: Loan Account 2 | D43: (if applicable) | G43: =LEFT(E17,LEN(E17)-3) -> 
C44: Loan Account 3 | D44: (if applicable) | G44: =LEFT(E22,LEN(E22)-3) -> 
C46: Total Loan Amount | E46: =SUM(E42:E44) -> 0
B49: Security details | K49: Comments
D51: Address | E51: Postcode | F51: Investment Y/N | G51: Security Value | H51: Loan Amount per Security
C53: Security 1 | F53: Select…
C54: Security 2
C55: Security 3
C57: Total Security Value | G57: =SUM(G53:G55) -> 0 | H57: =SUM(H53:H55) -> 0
G58: Difference to Total Loan Amount | H58: =E46-H57 -> 0 | I58: =IF(E46=H57,"Loan total agrees to above", "Loan total does not agree to above, please update Security Details") -> Loan total agrees to above
B60: Gross Annual Income | K60: Comments
E62: Applicant 1 | F62: Applicant 2 | G62: Applicant 3 | H62: Applicant 4 | I62: Total (Annually)
E63: =IF(E26="","",E26) ->  | F63: =IF(E27="","",E27) ->  | G63: =IF(E28="","",E28) ->  | H63: =IF(E29="","",E29) -> 
C64: Base Income ( PAYG ) - Gross | I64: =SUM(E64:H64) -> 0
C65: Bonus/Overtime/Commission Income - Gross | I65: =SUM(E65:H65) -> 0
C66: Allowance - Gross | I66: =SUM(E66:H66) -> 0
C67: Other Income ( taxable ) - Gross | I67: =SUM(E67:H67) -> 0
C69: Total Gross Income (pre Rental Income) with Bonus @ 80% | E69: =E64+E65*0.8+E66+E67 -> 0 | F69: =F64+F65*0.8+F66+F67 -> 0 | G69: =G64+G65*0.8+G66+G67 -> 0 | H69: =H64+H65*0.8+H66+H67 -> 0 | I69: =SUM(E69:H69) -> 0
C71: Existing Rental Income - Gross (Assessed at 85%) | E71: ='Rental Income'!G96 -> 0 | F71: ='Rental Income'!G97 -> 0 | G71: ='Rental Income'!G98 -> 0 | H71: ='Rental Income'!G99 -> 0 | I71: =SUM(E71:H71) -> 0
C72: Proposed (New) Rental Income - Gross (Assessed at 85%) | E72: ='Rental Income'!G104 -> 0 | F72: ='Rental Income'!G105 -> 0 | G72: ='Rental Income'!G106 -> 0 | H72: ='Rental Income'!G107 -> 0 | I72: =SUM(E72:H72) -> 0
C74: Total Gross Income (incl. Rental Income, excl. Sole Trader Income) | E74: =E69+E71+E72 -> 0 | F74: =F69+F71+F72 -> 0 | G74: =G69+G71+G72 -> 0 | H74: =H69+H71+H72 -> 0 | I74: =SUM(E74:H74) -> 0
C76: ='Business Income'!D123 -> Total Business Income : Sole Trader - Gross | E76: ='Business Income'!F124 -> 0 | F76: ='Business Income'!F125 -> 0 | G76: ='Business Income'!F126 -> 0 | H76: ='Business Income'!F127 -> 0 | I76: =SUM(E76:H76) -> 0
C78: Total Gross Income (incl. Rental Income, incl. Sole Trader Income) | E78: =E74+E76 -> 0 | F78: =F74+F76 -> 0 | G78: =G74+G76 -> 0 | H78: =H74+H76 -> 0 | I78: =SUM(E78:H78) -> 0
C79: Estimated Tax (per ATO) | E79: =-Applicant1_Tax!$J$20 -> 0 | F79: =-Applicant2_Tax!$J$20 -> 0 | G79: =-Applicant3_Tax!$J$20 -> 0 | H79: =-Applicant4_Tax!$J$20 -> 0 | I79: =SUM(E79:H79) -> 0
C80: Total Net Income (including Rental Income) | E80: =E78+E79 -> 0 | F80: =F78+F79 -> 0 | G80: =G78+G79 -> 0 | H80: =H78+H79 -> 0 | I80: =SUM(E80:H80) -> 0
C82: Non Taxable Income | I82: =SUM(E82:H82) -> 0
C83: Add Backs | E83: =SUM('Business Income'!F15:F19,'Business Income'!F44:F48,'Business Income'!F73:F77,'Business Income'!F102:F106) -> 0
C84: Business Income - Net | E84: ='Business Income'!H133 -> 0 | F84: ='Business Income'!H134 -> 0 | G84: ='Business Income'!H135 -> 0 | H84: ='Business Income'!H136 -> 0 | I84: =SUM(E84:H84) -> 0
C86: Total Net Income | E86: =E80+E82+E84+E83 -> 0 | F86: =F80+F82+F84 -> 0 | G86: =G80+G82+G84 -> 0 | H86: =H80+H82+H84 -> 0 | I86: =SUM(E86:H86) -> 0
B89: Annual Commitments ( Combined ) | K89: Comments
H93: Monthly | I93: Annually
B94: New Loan #1 | G94: Repayments | H94: ='Amortisation Schedule_Loan1'!payment -> 0 | I94: =H94*12 -> 0
G95: Assessment Rate | H95: =G42 -> 
G96: Repayments @ Buffer | H96: ='Amortisation Schedule_Loan1_AR'!payment -> 0 | I96: =H96*12 -> 0
G97: Assessment Rate plus buffer | H97: =IFERROR(G42+BufferRate,"n/a") -> n/a
B99: New Loan #2 | G99: =G94 -> Repayments | H99: ='Amortisation Schedule_Loan2'!payment -> 0 | I99: =H99*12 -> 0
G100: =G95 -> Assessment Rate | H100: =G43 -> 
G101: =G96 -> Repayments @ Buffer | H101: ='Amortisation Schedule_Loan2_AR'!payment -> 0 | I101: =H101*12 -> 0
G102: =G97 -> Assessment Rate plus buffer | H102: =IFERROR(G43+BufferRate,"n/a") -> n/a
B104: New Loan #3 | G104: =G94 -> Repayments | H104: ='Amortisation Schedule_Loan3'!payment -> 0 | I104: =H104*12 -> 0
G105: =G95 -> Assessment Rate | H105: =G44 -> 
G106: =G96 -> Repayments @ Buffer | H106: ='Amortisation Schedule_Loan3_AR'!payment -> 0 | I106: =H106*12 -> 0
G107: =G97 -> Assessment Rate plus buffer | H107: =IFERROR(G44+BufferRate,"n/a") -> n/a
B109: Existing Commitments | D109: Existing Lender Organisation Name | E109: Limit $ | F109: Remaining Term (mths) | G109: Interest Rate % (excl. buffer) | H109: Monthly Repayments $ * | I109: Annual Repayments $ * | K109: ="* incorporates buffer at "&TEXT(BufferRate,"0.00%")&" for Home Loans only" -> * incorporates buffer at 3.00% for Home Loans only
B110: Existing Home Loan 1 | H110: =IFERROR('Amortisation Schedule_Exist HL1'!payment,0) -> 0 | I110: =H110*12 -> 0
B111: Existing Home Loan 2 | H111: =IFERROR('Amortisation Schedule_Exist HL2'!payment,0) -> 0 | I111: =H111*12 -> 0
B112: Existing Home Loan 3 | H112: =IFERROR('Amortisation Schedule_Exist HL3'!payment,0) -> 0 | I112: 0
B113: Existing Home Loan 4 | H113: =IFERROR('Amortisation Schedule_Exist HL4'!payment,0) -> 0 | I113: 0
B114: Existing Personal Loan / Car Loan 1 | H114: =IFERROR('Amortisation Schedule_Exist CL1'!payment,0) -> 0 | I114: 0
B115: Existing Personal Loan / Car Loan 2 | H115: =IFERROR('Amortisation Schedule_Exist CL2'!payment,0) -> 0 | I115: 0
B116: Existing Personal Loan / Car Loan 3 | H116: =IFERROR('Amortisation Schedule_Exist CL3'!payment,0) -> 0 | I116: 0
B117: Existing Personal Loan / Car Loan 4 | H117: =IFERROR('Amortisation Schedule_Exist CL4'!payment,0) -> 0 | I117: 0
B118: ="Total Credit Card Limits (Assessed at "&TEXT(Credit_Card_Assessment_Rate,"0.00%")&")**" -> Total Credit Card Limits (Assessed at 3.80%)** | H118: =E118*(Credit_Card_Assessment_Rate) -> 0 | I118: 0 | K118: ="** Credit Card Limit assessed at "&TEXT(Credit_Card_Assessment_Rate,"0.00%") -> ** Credit Card Limit assessed at 3.80%
B119: Hire Purchase / Car Lease 1 | H119: =IFERROR('Amortisation Schedule_Exist HP1'!payment,0) -> 0 | I119: 0
B120: Hire Purchase / Car Lease 2 | H120: =IFERROR('Amortisation Schedule_Exist HP2'!payment,0) -> 0 | I120: 0
B121: Other Debts (eg : HECS / HELP, Private Debts ) | H121: =IFERROR('Amortisation Schedule_Exist Oth'!payment,0) -> 0 | I121: 0
B122: Ongoing Rent / Board | I122: 0
B123: Other (eg : Child Support ) | H123: 0 | I123: 0
B125: Total Annual Commitments | E125: =SUM(E110:E123) -> 0 | H125: =SUM(H110:H123) -> 0 | I125: =SUM(I110:I123) -> 0
B128: Monthly Living Expenses ( Combined ) | K128: Comments
H129: Monthly $ | I129: Annually $
C130: General Living Expenses | H130: 0 | I130: =H130*12 -> 0
C131: Include : | D131: groceries, clothing and personal care, medical and health, recreation and entertainment, petcare,
D132: telephone, internet, media streaming, transport, childcare, education, insurances,
D133: Utilities & Rates - Owner Occupier Property, Utilities & Rates - Investment Property
C135: Other Living Expenses (anything not listed above) | H135: 0 | I135: =H135*12 -> 0
C137: Total Living Expenses | H137: =H130+H135 -> 0 | I137: =H137*12 -> 0
E138: Family Structure | G138: Total Gross Income
C139: Benchmark Living Expense (First Family) | D139: Select Benchmark type | H139: =IFERROR(INDEX(HEM!$AA$14:$AO$37,MATCH(E139,HEM!$AA$14:$AA$37,0),MATCH(G139,HEM!$AA$14:$AO$14,0)) * HEM!AS16 + INDEX(HEM!$AA$14:$AO$37,MATCH(E139,HEM!$AA$14:$AA$37,0),MATCH(G139,HEM!$AA$14:$AO$14,0)),0) * 4.33 -> 0 | I139: =IF(H139="","",H139*12) -> 0 | K139: N/A
C140: Benchmark Living Expense (Second Family if applicable) | D140: Select Benchmark type | H140: =IFERROR(INDEX(HEM!$AA$14:$AO$37,MATCH(E140,HEM!$AA$14:$AA$37,0),MATCH(G140,HEM!$AA$14:$AO$14,0)) * HEM!AS16 + INDEX(HEM!$AA$14:$AO$37,MATCH(E140,HEM!$AA$14:$AA$37,0),MATCH(G140,HEM!$AA$14:$AO$14,0)),0) * 4.33 -> 0 | I140: =IF(H140="","",H140*12) -> 0 | K140: =HEM!AS16 -> 0
C141: Total Benchmark Living Expenses | H141: =IF(H139="","",IF(AND(H139<>"",H140=""),H139,H139+H140)) -> 0 | I141: =IF(I139="","",IF(AND(I139<>"",I140=""),I139,I139+I140)) -> 0 | K141: =HEM!AS16 -> 0
B143: Serviceability Position | K143: Comments
H145: Monthly $ | I145: Annually $
C146: Total Gross Income | H146: =I146/12 -> 0 | I146: =I78 -> 0
C148: Total Net Useable Income for Servicing Commitments | H148: =I148/12 -> 0 | I148: =I86 -> 0
C149: Less GMCU Commitments | H149: =H96+H101+H106 -> 0 | I149: =H149*12 -> 0
C150: Less External Commitments | H150: =H125 -> 0 | I150: =H150*12 -> 0
C151: Residual Income for Living Expenses | H151: =H148-H149-H150 -> 0 | I151: =I148-I149-I150 -> 0
C153: Declared General Living Expenses | H153: =H137 -> 0 | I153: =H153*12 -> 0
C154: Benchmark Living Expenses | H154: =IFERROR(H139+H140,"") -> 0 | I154: =IF(H154="","",H154*12) -> 0
C155: Surplus Serviceability Position after higher of Declared & Benchmark (Minimum Policy is >$1.00) | H155: =H151-MAX(H153,H154) -> 0 | I155: =H155*12 -> 0
B158: End of Calculator

Sheet Rental Income
B3: Property Rental Income | I3: Comments
C5: Existing / Proposed | D5: Select… | E5: Drop down box existing - new
C7: Address #1 | D7: Address #1
D8: Postcode
E9: Monthly Rental $ | G9: Annual Rental $
G10: =E10*12 -> 0
C12: Total Rental (85% for Proposed, 85% for Existing) | E12: Rental for Servicing | G12: Rental for Servicing p.a.
E13: =_xlfn.IFS(D5="New",E10*0.85,D5="Existing",E10*0.85, D5="Select…",0) -> 0 | G13: =E13*12 -> 0
D15: % Attributable to: | E15: %
C16: =IF('Loan Serviceability Calculator'!E26="","",'Loan Serviceability Calculator'!E26) ->  | D16: Applicant 1 | F16: =IF($D$5="Select…","",$D$5) ->  | G16: =$G$13*E16 -> 0
C17: =IF('Loan Serviceability Calculator'!E27="","",'Loan Serviceability Calculator'!E27) ->  | D17: Applicant 2 | F17: =IF($D$5="Select…","",$D$5) ->  | G17: =$G$13*E17 -> 0
C18: =IF('Loan Serviceability Calculator'!E28="","",'Loan Serviceability Calculator'!E28) ->  | D18: Applicant 3 | G18: =$G$13*E18 -> 0
C19: =IF('Loan Serviceability Calculator'!E29="","",'Loan Serviceability Calculator'!E29) ->  | D19: Applicant 4 | G19: =$G$13*E19 -> 0
D21: Must equate to 100% | E21: =SUM(E16:E19) -> 0 | F21: =IF(E7<>"",IF(E21=100%, "OK, total = 100%","Check : Re-enter , as must total 100%"),"ok") -> ok | G21: =SUM(G16:G19) -> 0
C25: Existing / Proposed | D25: Select… | E25: Drop down box existing - new
C27: Address #2 | D27: Address #2
D28: Postcode
E29: Monthly Rental $ | G29: Annual Rental $
G30: =E30*12 -> 0
C32: Total Rental (85% for Proposed, 85% for Existing) | E32: Rental for Servicing | G32: Rental for Servicing p.a.
E33: =_xlfn.IFS(D25="New",E30*0.85,D25="Existing",E30*0.85, D25="Select…",0) -> 0 | G33: =E33*12 -> 0
D35: % Attributable to:
C36: =IF('Loan Serviceability Calculator'!E26="","",'Loan Serviceability Calculator'!E26) ->  | D36: Applicant 1 | F36: =IF($D$25="Select…","",$D$25) ->  | G36: =$G$33*E36 -> 0
C37: =IF('Loan Serviceability Calculator'!E27="","",'Loan Serviceability Calculator'!E27) ->  | D37: Applicant 2 | F37: =IF($D$25="Select…","",$D$25) ->  | G37: =$G$33*E37 -> 0
C38: =IF('Loan Serviceability Calculator'!E28="","",'Loan Serviceability Calculator'!E28) ->  | D38: Applicant 3 | G38: =$G$33*E38 -> 0
C39: =IF('Loan Serviceability Calculator'!E29="","",'Loan Serviceability Calculator'!E29) ->  | D39: Applicant 4 | G39: =$G$33*E39 -> 0
D41: Must equate to 100% | E41: =SUM(E36:E40) -> 0 | F41: =IF(E27<>"",IF(E41=100%, "OK, total = 100%","Check : Re-enter , as must total 100%"),"ok") -> ok | G41: =SUM(G36:G40) -> 0
C44: Existing / Proposed | D44: Select… | E44: Drop down box existing - new
C46: Address #3 | D46: Address #3
D47: Postcode
E48: Monthly Rental $ | G48: Annual Rental $
G49: =E49*12 -> 0
C51: Total Rental (85% for Proposed, 85% for Existing) | E51: Rental for Servicing | G51: Rental for Servicing p.a.
E52: =_xlfn.IFS(D44="New",E49*0.85,D44="Existing",E49*0.85, D44="Select…",0) -> 0 | G52: =E52*12 -> 0
D54: % Attributable to:
C55: =IF('Loan Serviceability Calculator'!E26="","",'Loan Serviceability Calculator'!E26) ->  | D55: Applicant 1 | F55: =IF($D$44="Select…","",$D$44) ->  | G55: =$G$52*E55 -> 0
C56: =IF('Loan Serviceability Calculator'!E27="","",'Loan Serviceability Calculator'!E27) ->  | D56: Applicant 2 | F56: =IF($D$44="Select…","",$D$44) ->  | G56: =$G$52*E56 -> 0
C57: =IF('Loan Serviceability Calculator'!E28="","",'Loan Serviceability Calculator'!E28) ->  | D57: Applicant 3 | G57: =$G$52*E57 -> 0
C58: =IF('Loan Serviceability Calculator'!E29="","",'Loan Serviceability Calculator'!E29) ->  | D58: Applicant 4 | G58: =$G$52*E58 -> 0
D60: Must equate to 100% | E60: =SUM(E55:E58) -> 0 | F60: =IF(E46<>"",IF(E60=100%, "OK, total = 100%","Check : Re-enter , as must total 100%"),"ok") -> ok | G60: =SUM(G55:G58) -> 0
C64: Existing / Proposed | D64: Select… | E64: Drop down box existing - new
C66: Address #4 | D66: Address #4
D67: Postcode
E68: Monthly Rental $ | G68: Annual Rental $
G69: =E69*12 -> 0
C71: Total Rental (85% for Proposed, 85% for Existing) | E71: Rental for Servicing | G71: Rental for Servicing p.a.
E72: =_xlfn.IFS(D64="New",E69*0.85,D64="Existing",E69*0.85, D64="Select…",0) -> 0 | G72: =E72*12 -> 0
D74: % Attributable to:
C75: =IF('Loan Serviceability Calculator'!E26="","",'Loan Serviceability Calculator'!E26) ->  | D75: Applicant 1 | F75: =IF($D$64="Select…","",$D$64) ->  | G75: =$G$72*E75 -> 0
C76: =IF('Loan Serviceability Calculator'!E27="","",'Loan Serviceability Calculator'!E27) ->  | D76: Applicant 2 | F76: =IF($D$64="Select…","",$D$64) ->  | G76: =$G$72*E76 -> 0
C77: =IF('Loan Serviceability Calculator'!E28="","",'Loan Serviceability Calculator'!E28) ->  | D77: Applicant 3 | G77: =$G$72*E77 -> 0
C78: =IF('Loan Serviceability Calculator'!E29="","",'Loan Serviceability Calculator'!E29) ->  | D78: Applicant 4 | G78: =$G$72*E78 -> 0
D80: Must equate to 100% | E80: =SUM(E75:E78) -> 0 | F80: =IF(E66<>"",IF(E80=100%, "OK, total = 100%","Check : Re-enter , as must total 100%"),"ok") -> ok | G80: =SUM(G75:G78) -> 0
C85: Rental Income Totals | E85: Monthly | G85: Annually
C86: New and Existing | E86: =E10+E30+E49+E69 -> 0 | G86: =E86*12 -> 0
C88: Total Rental (85% for Proposed, 85% for Existing) | E88: Rental for Servicing | G88: Rental for Servicing p.a.
E89: =E86*0.85 -> 0 | G89: =G86*0.85 -> 0
C94: Existing
D95: % Attributable to:
C96: Existing | D96: Applicant 1 | E96: =IF('Loan Serviceability Calculator'!E26="","",'Loan Serviceability Calculator'!E26) ->  | G96: =SUMIFS($G$9:$G$80,$F$9:$F$80,"Existing",$D$9:$D$80,D96) -> 0
C97: Existing | D97: Applicant 2 | E97: =IF('Loan Serviceability Calculator'!E27="","",'Loan Serviceability Calculator'!E27) ->  | G97: =SUMIFS($G$9:$G$80,$F$9:$F$80,"Existing",$D$9:$D$80,D97) -> 0
C98: Existing | D98: Applicant 3 | E98: =IF('Loan Serviceability Calculator'!E28="","",'Loan Serviceability Calculator'!E28) ->  | G98: =SUMIFS($G$9:$G$80,$F$9:$F$80,"Existing",$D$9:$D$80,D98) -> 0
C99: Existing | D99: Applicant 4 | E99: =IF('Loan Serviceability Calculator'!E29="","",'Loan Serviceability Calculator'!E29) ->  | G99: =SUMIFS($G$9:$G$80,$F$9:$F$80,"Existing",$D$9:$D$80,D99) -> 0
F101: Total all applicants, Existing Rentals | G101: =SUM(G96:G99) -> 0
C102: New
D103: % Attributable to:
C104: New | D104: Applicant 1 | E104: =IF('Loan Serviceability Calculator'!E26="","",'Loan Serviceability Calculator'!E26) ->  | G104: =SUMIFS($G$9:$G$80,$F$9:$F$80,"New",$D$9:$D$80,D104) -> 0
C105: New | D105: Applicant 2 | E105: =IF('Loan Serviceability Calculator'!E27="","",'Loan Serviceability Calculator'!E27) ->  | G105: =SUMIFS($G$9:$G$80,$F$9:$F$80,"New",$D$9:$D$80,D105) -> 0
C106: New | D106: Applicant 3 | E106: =IF('Loan Serviceability Calculator'!E28="","",'Loan Serviceability Calculator'!E28) ->  | G106: =SUMIFS($G$9:$G$80,$F$9:$F$80,"New",$D$9:$D$80,D106) -> 0
C107: New | D107: Applicant 4 | E107: =IF('Loan Serviceability Calculator'!E29="","",'Loan Serviceability Calculator'!E29) ->  | G107: =SUMIFS($G$9:$G$80,$F$9:$F$80,"New",$D$9:$D$80,D107) -> 0
F109: Total all applicants, New Rentals | G109: =SUM(G104:G107) -> 0
F111: Total Existing and New, All Applicants | G111: =G101+G109 -> 0
F112: Check : | G112: =IF((G101+G109)=G111,"OK","Check % splits") -> OK

Sheet Business Income
B3: Business Income | I3: Comments
C5: Business Name # 1
C6: Business Entity Type | D6: Select…
F8: Most Recent Financial Year | G8: Previous Financial Year
D9: Tax Year Ended | F9: 2024-06-30 | G9: =DATE(YEAR(F9)-1+(MONTH(F9)>6),6,30) -> 2023-06-30
D12: Net Profit ( Loss ) Before Tax
D14: Add Backs
D15: Depreciation Add Back
D16: Interest
D17: Hire Purchase / Lease Charges
D18: Other
D19: Other
D21: Adjusted Profit (Loss) Before Tax | F21: =F12+SUM(F14:F20) -> 0 | G21: =G12+SUM(G14:G20) -> 0
C24: Business #1 | D24: Gross % Attributable to: | E24: % | F24: =IF(D5="","",D5) -> 
C25: =IF('Loan Serviceability Calculator'!E26="","",'Loan Serviceability Calculator'!E26) ->  | D25: Applicant 1 | F25: =$F$12*E25 -> 0 | G25: =IF(D6="Select…","",D6) -> 
C26: =IF('Loan Serviceability Calculator'!E27="","",'Loan Serviceability Calculator'!E27) ->  | D26: Applicant 2 | F26: =$F$12*E26 -> 0 | G26: =IF(D6="Select…","",D6) -> 
C27: =IF('Loan Serviceability Calculator'!E28="","",'Loan Serviceability Calculator'!E28) ->  | D27: Applicant 3 | F27: =$F$12*E27 -> 0 | G27: =IF(D6="Select…","",D6) -> 
C28: =IF('Loan Serviceability Calculator'!E29="","",'Loan Serviceability Calculator'!E29) ->  | D28: Applicant 4 | F28: =$F$12*E28 -> 0 | G28: =IF(D6="Select…","",D6) -> 
D30: Must equate to 100% | E30: =SUM(E25:E28) -> 0 | F30: =SUM(F25:F29) -> 0
D31: =IF(E30=100%, "OK, total = 100%","Check : Re-enter , as must total 100%") -> Check : Re-enter , as must total 100% | F31: =F12-F30 -> 0 | G31: Difference must equal ZERO
C34: Business Name # 2
C35: =C6 -> Business Entity Type | D35: Select…
F37: Most Recent Financial Year | G37: Previous Financial Year
D38: Tax Year Ended | F38: 2024-06-30 | G38: =DATE(YEAR(F38)-1+(MONTH(F38)>6),6,30) -> 2023-06-30
D41: Net Profit ( Loss ) Before Tax
D43: Add Backs
D44: Depreciation Add Back
D45: Interest
D46: Hire Purchase / Lease Charges
D47: Other
D48: Other
D50: Adjusted Profit (Loss) Before Tax | F50: =F41+SUM(F43:F49) -> 0 | G50: =G41+SUM(G43:G49) -> 0
C53: Business #2 | D53: Gross % Attributable to: | E53: % | F53: =IF(D34="","",D34) -> 
C54: =IF('Loan Serviceability Calculator'!E26="","",'Loan Serviceability Calculator'!E26) ->  | D54: Applicant 1 | F54: =$F$41*E54 -> 0 | G54: =IF(D35="Select…","",D35) -> 
C55: =IF('Loan Serviceability Calculator'!E27="","",'Loan Serviceability Calculator'!E27) ->  | D55: Applicant 2 | F55: =$F$41*E55 -> 0 | G55: =IF(D35="Select…","",D35) -> 
C56: =IF('Loan Serviceability Calculator'!E28="","",'Loan Serviceability Calculator'!E28) ->  | D56: Applicant 3 | F56: =$F$41*E56 -> 0 | G56: =IF(D35="Select…","",D35) -> 
C57: =IF('Loan Serviceability Calculator'!E29="","",'Loan Serviceability Calculator'!E29) ->  | D57: Applicant 4 | F57: =$F$41*E57 -> 0 | G57: =IF(D35="Select…","",D35) -> 
D59: Must equate to 100% | E59: =SUM(E54:E57) -> 0 | F59: =SUM(F54:F58) -> 0
D60: =IF(E59=100%, "OK, total = 100%","Check : Re-enter , as must total 100%") -> Check : Re-enter , as must total 100% | F60: =F50-F59 -> 0 | G60: Difference must equal ZERO
C63: Business Name # 3
C64: =C6 -> Business Entity Type | D64: Partnership
F66: Most Recent Financial Year | G66: Previous Financial Year
D67: Tax Year Ended | F67: 2024-06-30 | G67: =DATE(YEAR(F67)-1+(MONTH(F67)>6),6,30) -> 2023-06-30
D70: Net Profit ( Loss ) Before Tax
D72: Add Backs
D73: Depreciation Add Back
D74: Interest
D75: Hire Purchase / Lease Charges
D76: Other
D77: Other
D79: Adjusted Profit (Loss) Before Tax | F79: =F70+SUM(F72:F78) -> 0 | G79: =G70+SUM(G72:G78) -> 0
C82: Business #3 | D82: Gross % Attributable to: | E82: % | F82: =IF(D63="","",D63) -> 
C83: =IF('Loan Serviceability Calculator'!E26="","",'Loan Serviceability Calculator'!E26) ->  | D83: Applicant 1 | F83: =$F$70*E83 -> 0 | G83: =IF(D64="Select…","",D64) -> Partnership
C84: =IF('Loan Serviceability Calculator'!E27="","",'Loan Serviceability Calculator'!E27) ->  | D84: Applicant 2 | F84: =$F$70*E84 -> 0 | G84: =IF(D64="Select…","",D64) -> Partnership
C85: =IF('Loan Serviceability Calculator'!E28="","",'Loan Serviceability Calculator'!E28) ->  | D85: Applicant 3 | F85: =$F$70*E85 -> 0 | G85: =IF(D64="Select…","",D64) -> Partnership
C86: =IF('Loan Serviceability Calculator'!E29="","",'Loan Serviceability Calculator'!E29) ->  | D86: Applicant 4 | F86: =$F$70*E86 -> 0 | G86: =IF(D64="Select…","",D64) -> Partnership
D88: Must equate to 100% | E88: =SUM(E83:E86) -> 0 | F88: =SUM(F83:F87) -> 0
D89: =IF(E88=100%, "OK, total = 100%","Check : Re-enter , as must total 100%") -> Check : Re-enter , as must total 100% | F89: =F79-F88 -> 0 | G89: Difference must equal ZERO
C92: Business Name # 4
C93: Business Income Type | D93: Select…
F95: Most Recent Financial Year | G95: Previous Financial Year
D96: Tax Year Ended | F96: 2024-06-30 | G96: =DATE(YEAR(F96)-1+(MONTH(F96)>6),6,30) -> 2023-06-30
D99: Net Profit ( Loss ) Before Tax
D101: Add Backs
D102: Depreciation Add Back
D103: Interest
D104: Hire Purchase / Lease Charges
D105: Other
D106: Other
D108: Adjusted Profit (Loss) Before Tax | F108: =F99+SUM(F101:F107) -> 0 | G108: =G99+SUM(G101:G107) -> 0
C111: Business #4 | D111: Gross % Attributable to: | E111: % | F111: =IF(D92="","",D92) -> 
C112: =IF('Loan Serviceability Calculator'!E26="","",'Loan Serviceability Calculator'!E26) ->  | D112: Applicant 1 | F112: =$F$99*E112 -> 0 | G112: =IF(D93="Select…","",D93) -> 
C113: =IF('Loan Serviceability Calculator'!E27="","",'Loan Serviceability Calculator'!E27) ->  | D113: Applicant 2 | F113: =$F$99*E113 -> 0 | G113: =IF(D93="Select…","",D93) -> 
C114: =IF('Loan Serviceability Calculator'!E28="","",'Loan Serviceability Calculator'!E28) ->  | D114: Applicant 3 | F114: =$F$99*E114 -> 0 | G114: =IF(D93="Select…","",D93) -> 
C115: =IF('Loan Serviceability Calculator'!E29="","",'Loan Serviceability Calculator'!E29) ->  | D115: Applicant 4 | F115: =$F$99*E115 -> 0 | G115: =IF(D93="Select…","",D93) -> 
D117: Must equate to 100% | E117: =SUM(E112:E115) -> 0 | F117: =SUM(F112:F116) -> 0
D118: =IF(E117=100%, "OK, total = 100%","Check : Re-enter , as must total 100%") -> Check : Re-enter , as must total 100% | F118: =F108-F117 -> 0 | G118: Difference must equal ZERO
C122: Business Income Summary Totals
D123: Total Business Income : Sole Trader - Gross
C124: =IF('Loan Serviceability Calculator'!E26="","",'Loan Serviceability Calculator'!E26) ->  | D124: Applicant 1 | F124: =SUMIFS($F$3:$F$118,$D$3:$D$118,"Applicant 1",$G$3:$G$118,"Sole Trader") -> 0
C125: =IF('Loan Serviceability Calculator'!E27="","",'Loan Serviceability Calculator'!E27) ->  | D125: Applicant 2 | F125: =SUMIFS($F$3:$F$118,$D$3:$D$118,"Applicant 2",$G$3:$G$118,"Sole Trader") -> 0
C126: =IF('Loan Serviceability Calculator'!E28="","",'Loan Serviceability Calculator'!E28) ->  | D126: Applicant 3 | F126: =SUMIFS($F$3:$F$118,$D$3:$D$118,"Applicant 3",$G$3:$G$118,"Sole Trader") -> 0
C127: =IF('Loan Serviceability Calculator'!E29="","",'Loan Serviceability Calculator'!E29) ->  | D127: Applicant 4 | F127: =SUMIFS($F$3:$F$118,$D$3:$D$118,"Applicant 4",$G$3:$G$118,"Sole Trader") -> 0
F128: =SUM(F124:F127) -> 0
D132: Total Business Income : All Other (Company, Partnership, Trust) - Gross | G132: Tax | H132: Net
C133: =IF('Loan Serviceability Calculator'!E26="","",'Loan Serviceability Calculator'!E26) ->  | D133: Applicant 1 | F133: =SUMIFS($F$3:$F$118,$D$3:$D$118,"Applicant 1",$G$3:$G$118,"<>Sole Trader") -> 0 | G133: =F133*'DROP BOX LISTS'!$C$5 -> 0 | H133: =F133-G133 -> 0
C134: =IF('Loan Serviceability Calculator'!E27="","",'Loan Serviceability Calculator'!E27) ->  | D134: Applicant 2 | F134: =SUMIFS($F$3:$F$118,$D$3:$D$118,"Applicant 2",$G$3:$G$118,"<>Sole Trader") -> 0 | G134: =F134*'DROP BOX LISTS'!$C$5 -> 0 | H134: =F134-G134 -> 0
C135: =IF('Loan Serviceability Calculator'!E28="","",'Loan Serviceability Calculator'!E28) ->  | D135: Applicant 3 | F135: =SUMIFS($F$3:$F$118,$D$3:$D$118,"Applicant 3",$G$3:$G$118,"<>Sole Trader") -> 0 | G135: =F135*'DROP BOX LISTS'!$C$5 -> 0 | H135: 0
C136: =IF('Loan Serviceability Calculator'!E29="","",'Loan Serviceability Calculator'!E29) ->  | D136: Applicant 4 | F136: =SUMIFS($F$3:$F$118,$D$3:$D$118,"Applicant 4",$G$3:$G$118,"<>Sole Trader") -> 0 | G136: =F136*'DROP BOX LISTS'!$C$5 -> 0 | H136: 0
F137: =SUM(F133:F136) -> 0 | G137: =SUM(G133:G136) -> 0 | H137: 0

Sheet ==> SUPPORT WORKSHEETS (hidden)

Sheet DROP BOX LISTS (hidden)
B2: Key Driver Variables | C2: 0 | D2: <== Input Cell | E2: Other Loans (personal, car, lease etc)
B3: Buffer % to apply | C3: 0.03 | D3: <== Input Cell | E3: Home Loans
B4: Credit Card Assessment Rate | C4: 0.038 | D4: <== Input Cell
B5: Company Tax Rate | C5: 0.26 | D5: <== Input Cell
B7: Henderson Benchmark Living Expenses | D7: As at: | E7: March 2023 | F7: <== Input Cell
E9: Per Month
C10: Select… | J10: Orginal Data
A11: Working | B11: Couple | C11: =A11&" - "&B11 -> Working - Couple | E11: 2805 | F11: <== Input Cell | J11: Head in Workforce | K11: Couple | L11: Head in Workforce_Couple | N11: 2805 | O11: <== Input Cell
A12: Working | B12: Couple Plus 1 | C12: =A12&" - "&B12 -> Working - Couple Plus 1 | E12: 3487 | F12: <== Input Cell | J12: Head not in workforce | K12: Couple | L12: Head not in workforce_Couple | N12: 2262 | O12: <== Input Cell
A13: Working | B13: Couple Plus 2 | C13: Working - Couple Plus 2 | E13: 4169 | F13: <== Input Cell | J13: Head in Workforce | K13: Couple plus 1 | L13: Head in Workforce_Couple plus 1 | N13: 3487 | O13: <== Input Cell
A14: Working | B14: Couple Plus 3 | C14: Working - Couple Plus 3 | E14: 4851 | F14: <== Input Cell | J14: Head not in workforce | K14: Couple plus 1 | L14: Head not in workforce_Couple plus 1 | N14: 2945 | O14: <== Input Cell
A15: Working | B15: Couple Plus 4 | C15: Working - Couple Plus 4 | E15: 5525 | F15: <== Input Cell | J15: Head in Workforce | K15: Couple plus2 | L15: Head in Workforce_Couple plus2 | N15: 4169 | O15: <== Input Cell
A16: Working | B16: Couple Plus 5 | C16: Working - Couple Plus 5 | E16: 6199 | F16: <== Input Cell | J16: Head not in workforce | K16: Couple plus 2 | L16: Head not in workforce_Couple plus 2 | N16: 3626 | O16: <== Input Cell
A17: Working | B17: Couple Plus 6 | C17: Working - Couple Plus 6 | E17: 6873 | F17: <== Input Cell | J17: Head in Workforce | K17: Couple plus 3 | L17: Head in Workforce_Couple plus 3 | N17: 4851 | O17: <== Input Cell
A18: Working | B18: Couple Plus 7 | C18: Working - Couple Plus 7 | E18: 7547 | F18: <== Input Cell | J18: Head not in workforce | K18: Couple plus 3 | L18: Head not in workforce_Couple plus 3 | N18: 4308 | O18: <== Input Cell
A19: Working | B19: Single Person | C19: Working - Single Person | E19: 1930 | F19: <== Input Cell | J19: Head in Workforce | K19: Couple plus 4 | L19: Head in Workforce_Couple plus 4 | N19: 5525 | O19: <== Input Cell
A20: Working | B20: Single Parent Plus 1 | C20: Working - Single Parent Plus 1 | E20: 2650 | F20: <== Input Cell | J20: Head not in workforce | K20: Couple plus 4 | L20: Head not in workforce_Couple plus 4 | N20: 4983 | O20: <== Input Cell
A21: Working | B21: Single Parent Plus 2 | C21: Working - Single Parent Plus 2 | E21: 3332 | F21: <== Input Cell | J21: Head in Workforce | K21: Single person | L21: Head in Workforce_Single person | N21: 1930 | O21: <== Input Cell
A22: Working | B22: Single Parent Plus 3 | C22: Working - Single Parent Plus 3 | E22: 4014 | F22: <== Input Cell | J22: Head not in workforce | K22: Single person | L22: Head not in workforce_Single person | N22: 1387 | O22: <== Input Cell
A23: Working | B23: Single Parent Plus 4 | C23: Working - Single Parent Plus 4 | E23: 4696 | F23: <== Input Cell | J23: Head in Workforce | K23: Single parent plus 1 | L23: Head in Workforce_Single parent plus 1 | N23: 2650 | O23: <== Input Cell
A24: Working | B24: Single Parent Plus 5 | C24: Working - Single Parent Plus 5 | E24: 5378 | F24: <== Input Cell | J24: Head not in workforce | K24: Single parent plus 1 | L24: Head not in workforce_Single parent plus 1 | N24: 2108 | O24: <== Input Cell
A25: Working | B25: Single Parent Plus 6 | C25: Working - Single Parent Plus 6 | E25: 6060 | F25: <== Input Cell | J25: Head in Workforce | K25: Single parent plus 2 | L25: Head in Workforce_Single parent plus 2 | N25: 3332 | O25: <== Input Cell
A26: Working | B26: Single Parent Plus 7 | C26: Working - Single Parent Plus 7 | E26: 6742 | F26: <== Input Cell | J26: Head not in workforce | K26: Single parent plus 2 | L26: Head not in workforce_Single parent plus 2 | N26: 2790 | O26: <== Input Cell
J27: Head in Workforce | K27: Single parent plus 3 | L27: Head in Workforce_Single parent plus 3 | N27: 4014 | O27: <== Input Cell
A28: Not Working | B28: Couple | C28: Not Working - Couple | E28: 2262 | F28: <== Input Cell | J28: Head not in workforce | K28: Single parent plus 3 | L28: Head not in workforce_Single parent plus 3 | N28: 3471 | O28: <== Input Cell
A29: Not Working | B29: Couple Plus 1 | C29: Not Working - Couple Plus 1 | E29: 2945 | F29: <== Input Cell | J29: Head in Workforce | K29: Single parent plus 4 | L29: Head in Workforce_Single parent plus 4 | N29: 4696 | O29: <== Input Cell
A30: Not Working | B30: Couple Plus 2 | C30: Not Working - Couple Plus 2 | E30: 3626 | F30: <== Input Cell | J30: Head not in workforce | K30: Single parent plus 4 | L30: Head not in workforce_Single parent plus 4 | N30: 4153 | O30: <== Input Cell
A31: Not Working | B31: Couple Plus 3 | C31: Not Working - Couple Plus 3 | E31: 4308 | F31: <== Input Cell
A32: Not Working | B32: Couple Plus 4 | C32: Not Working - Couple Plus 4 | E32: 4983 | F32: <== Input Cell
A33: Not Working | B33: Couple Plus 5 | C33: Not Working - Couple Plus 5 | E33: 5658 | F33: <== Input Cell
A34: Not Working | B34: Couple Plus 6 | C34: Not Working - Couple Plus 6 | E34: 6333 | F34: <== Input Cell
A35: Not Working | B35: Couple Plus 7 | C35: Not Working - Couple Plus 7 | E35: 7008 | F35: <== Input Cell
A36: Not Working | B36: Single Person | C36: Not Working - Single Person | E36: 1387 | F36: <== Input Cell
A37: Not Working | B37: Single Parent Plus 1 | C37: Not Working - Single Parent Plus 1 | E37: 2108 | F37: <== Input Cell
A38: Not Working | B38: Single Parent Plus 2 | C38: Not Working - Single Parent Plus 2 | E38: 2790 | F38: <== Input Cell
A39: Not Working | B39: Single Parent Plus 3 | C39: Not Working - Single Parent Plus 3 | E39: 3471 | F39: <== Input Cell
A40: Not Working | B40: Single Parent Plus 4 | C40: Not Working - Single Parent Plus 4 | E40: 4153 | F40: <== Input Cell
A41: Not Working | B41: Single Parent Plus 5 | C41: Not Working - Single Parent Plus 5 | E41: 4835 | F41: <== Input Cell
A42: Not Working | B42: Single Parent Plus 6 | C42: Not Working - Single Parent Plus 6 | E42: 5517 | F42: <== Input Cell
A43: Not Working | B43: Single Parent Plus 7 | C43: Not Working - Single Parent Plus 7 | E43: 6199 | F43: <== Input Cell
A45: Source:
A46: References: Henderson poverty Line - Melbourne Institute of Applied Economic Research
A47: VCOS phone 1800 133340
A48: POVERTY LINE : AUSTRALIA MARCH QTR 2023
B50: Loan Products DROP BOX list | C50: Standard Assessment Rates Mapping
B51: Select if applicable | C51: Select if applicable | D51: Interest Rate | E51: Comparison Rate | F51: Assessment Rate
B52: Standard Plus Variable - Owner Occupied <80% LVR | C52: Standard Plus | D52: 5.69% pa | E52: 5.85% pa | F52: 5.69% pa
B53: Standard Plus Variable - Investment < 80% LVR | C53: Standard Plus - Investment | D53: 5.89% pa | E53: 6.05% pa | F53: 5.89% pa
B54: Standard Plus Variable - Owner Occupied > 80% LVR | C54: Standard Plus >80 Rate | D54: 6.09% pa | E54: 6.25% pa | F54: 6.09% pa
B55: Standard Plus Variable - Investment > 80% LVR | C55: Standard Plus - Investment >80 Rate | D55: 6.29% pa | E55: 6.45% pa | F55: 6.29% pa
B56: Fixed Rate - 1 year < 80% LVR | C56: Standard Plus | D56: 5.19% pa | E56: 5.80% pa | F56: 5.69% pa
B57: Fixed Rate - 2 years < 80% LVR | C57: Standard Plus | D57: 4.99% pa | E57: 5.71% pa | F57: 5.69% pa
B58: Fixed Rate - 3 years < 80% LVR | C58: Standard Plus | D58: 5.19% pa | E58: 5.71% pa | F58: 5.69% pa
B59: Fixed Rate - 1 year > 80% LVR | C59: Standard Plus >80 Rate | D59: 5.19% pa | E59: 6.16% pa | F59: 6.09% pa
B60: Fixed Rate - 2 years > 80% LVR | C60: Standard Plus >80 Rate | D60: 4.99% pa | E60: 6.03% pa | F60: 6.09% pa
B61: Fixed Rate - 3 years > 80% LVR | C61: Standard Plus >80 Rate | D61: 5.19% pa | E61: 5.99% pa | F61: 6.09% pa
B62: Fixed Rate - 1 year - Investment < 80% LVR | C62: Standard Plus - Investment | D62: 5.49% pa | E62: 6.01% pa | F62: 5.89% pa
B63: Fixed Rate - 2 years - Investment < 80% LVR | C63: Standard Plus - Investment | D63: 5.29% pa | E63: 5.93% pa | F63: 5.89% pa
B64: Fixed Rate - 3 years - Investment < 80% LVR | C64: Standard Plus - Investment | D64: 5.49% pa | E64: 5.94% pa | F64: 5.89% pa | G64: Note: Formula range has been set to row 68 without any mods required - so busines can add in new products when required (Gino Attana 21/11/2023)
B65: Fixed Rate - 1 year - Investment > 80% LVR | C65: Standard Plus - Investment >80 Rate | D65: 5.49% pa | E65: 6.36% pa | F65: 6.29% pa
B66: Fixed Rate - 2 years - Investment > 80% LVR | C66: Standard Plus - Investment >80 Rate | D66: 5.29% pa | E66: 6.25% pa | F66: 6.29% pa
B67: Fixed Rate - 3 years - Investment > 80% LVR | C67: Standard Plus - Investment >80 Rate | D67: 5.49% pa | E67: 6.22% pa | F67: 6.29% pa
B70: Marital or relationship status
B71: Select…
B72: Married
B73: Single
B74: Defacto
B75: Divorced
B76: Widowed
B77: Other
B80: Number of dependants *
B81: Select…
B82: 0
B83: 1
B84: 2
B85: 3
B86: 4
B87: 5
B88: 6
B89: 7
B90: 8
B91: 9
B92: 10
B94: Number of Loans
B95: Select…
B96: 0
B97: 1
B98: 2
B99: 3
B100: 4
B101: 5
B102: 6
B103: 7
B104: 8
B105: 9
B106: 10
B108: Number of Securities
B109: Select…
B110: 0
B111: 1
B112: 2
B113: 3
B114: 4
B115: 5
B116: 6
B117: 7
B118: 8
B119: 9
B120: 10
B122: Investment
B123: Select…
B124: Yes
B125: No
B128: Property Rental Income
B129: Select…
B130: Existing
B131: New
B134: Frequency
B135: Annual
B136: Semi-Annual
B137: Quarterly
B138: Bi-Monthly
B139: Monthly
B140: Semi-Monthly
B141: Bi-Weekly
B142: Weekly
B145: End of Period
B146: Beginning of Period
B150: Business Income Type
B151: Select…
B152: Sole Trader
B153: Company
B154: Partnership
B155: Trust

Sheet HEM (hidden)
A1: Below is a copy/paste of Table 1 in the HPL publication
A2: The relevant column for the HEM is the last column, the column "Other than Housing in $ per week". This is because the HEM is net of housing expenditure.
A3: In the HPL different poverty lines are computed based on the head of the household's labour force status; This is not the case for the HEM. There is only one HEM.
A4: The 'standard' smoothed HEM by family type is presented to the right of HPL Table 1 and is in bold print; This is the smoothed HEM for Australia as a whole. It is calculated based on within family type expenditure on median absolute basics and the 25th percentile discretionary basics (i.e. based on raw data) | AA4: Note: PASTE only into the Yellow highlighted cells below . . . The rest are calculated fields
A5: The smoothed HEM values are moving averages over the current and the previous three quarters.
A6: Other tables report the HEM numbers by geographic location (State capital and balance of state), 13 different household income groups, and finally by geographic and household income levels. These numbers are obtained by predicting median absolute basic and the 25th percentile of discretionary basics using the estimation results from the quantile regressions. | AC6: "HEM Table 1" equivalent: by Income Level and Residency
A7: Then, these predicted values are added to get the predicted HEM. Finally, these predicted HEMs are averaged by family type. One exception is for single parents with 3 children. Due to the small sample size, the HEM for this group is simply the HEM for single parents with 2 children plus the increase in the HEM going from 1 to 2 children. | AE7: BASED ON PREDICTED VALUES FROM THE QUANTILE REGRESSIONS
A8: The advantage of predicting the HEM is that there simply would not be enough families to get a reliable estimate for single parents with 2 children on more than $100K when trying to use raw data, let alone specifically for less densely populated areas (e.g. Tasmania excl. Hobart) | AG8: Smoothed HEM
A9: All HEMs are expressed in June 2024 dollars; Data used is the 2015-16 Household Expenditure Survey (HES)
AE10: Total current gross HH income from all sources (measured in current dollars)
A11: "HPL Table 1" | E11: "HEM Table 1" equivalent | N11: "HEM Table 1" equivalent: by Geographic Location | AB11: 0 | AC11: 26000 | AD11: 39000 | AE11: 51000 | AF11: 64000 | AG11: 77000 | AH11: 103000 | AI11: 129000 | AJ11: 154000 | AK11: 180000 | AL11: 206000 | AM11: 257000 | AN11: 321000 | AO11: 386000
A12: (Poverty Lines: Australia, March Quarter, 2024) | E12: BASED ON RAW DATA | O12: BASED ON PREDICTED VALUES FROM THE QUANTILE REGRESSIONS | AB12: or less | AC12: to | AD12: to | AE12: to | AF12: to | AG12: to | AH12: to | AI12: to | AJ12: to | AK12: to | AL12: to | AM12: to | AN12: to | AO12: to
E13: Smoothed HEM | Q13: Smoothed HEM | AB13: 26000 | AC13: 39000 | AD13: 51000 | AE13: 64000 | AF13: 77000 | AG13: 103000 | AH13: 129000 | AI13: 154000 | AJ13: 180000 | AK13: 206000 | AL13: 257000 | AM13: 321000 | AN13: 386000 | AO13: 643000
A14: HEAD IN WORKFORCE | B14: Including Housing $ per week | C14: Other than Housing $ per week | E14: WORKFORCE STATUS HEAD NOT USED | F14: Including Housing $ per week | G14: Other than Housing S per week | K14: Australia | M14: Sydney | N14: Balance of NSW | O14: Melbourne | P14: Balance of VIC | Q14: Brisbane | R14: Balance of QLD | S14: Adelaide | T14: Balance of SA | U14: Perth | V14: Balance of WA | W14: Hobart | X14: Balance of TAS | Y14: ACT&NT | AB14: =AV16 -> $0 to $26,000 | AC14: =AV17 -> $26,000 to $39,000 | AD14: =AV18 -> $39,000 to $51,000 | AE14: =AV19 -> $51,000 to $64,000 | AF14: =AV20 -> $64,000 to $77,000 | AG14: =AV21 -> $77,000 to $103,000 | AH14: =AV22 -> $103,000 to $129,000 | AI14: =AV23 -> $129,000 to $154,000 | AJ14: =AV24 -> $154,000 to $180,000 | AK14: =AV25 -> $180,000 to $206,000 | AL14: =AV26 -> $206,000 to $257,000 | AM14: =AV27 -> $257,000 to $321,000 | AN14: =AV28 -> $321,000 to $386,000 | AO14: =AV29 -> $386,000 to $643,000 | AV14: This is a dynamic Picklist for the model (do not alter)
A15: Couple | B15: 819.31 | C15: 599.24 | E15: Couple | F15: - | G15: 777.4855288 | J15: Couple | K15: 793.9946962 | M15: 783.4700218 | N15: 805.052784 | O15: 796.0446165 | P15: 833.6338249 | Q15: 768.2940884 | R15: 827.7148624 | S15: 818.1353898 | T15: 770.7425331 | U15: 749.3469406 | V15: 801.9483043 | W15: 814.2018916 | X15: 803.3826638 | Y15: 818.9693155 | AA15: Couple | AB15: 0 | AC15: 586.7481415 | AD15: 603.3442481 | AE15: 627.4646494 | AF15: 668.9426667 | AG15: 732.4726251 | AH15: 811.6525383 | AI15: 885.3689981 | AJ15: 967.6632789 | AK15: 1010.480881 | AL15: 1073.300208 | AM15: 1196.785138 | AN15: 1343.338327 | AO15: 1380.726345 | AS15: Percentage Applied
A16: Couple with 1 child | B16: 984.85 | C16: 744.88 | E16: Couple with 1 child | F16: - | G16: 1014.68976 | J16: Couple with 1 child | K16: 1033.451713 | M16: 1022.006054 | N16: 1043.695269 | O16: 1034.642711 | P16: 1072.417329 | Q16: 1006.755298 | R16: 1066.469162 | S16: 1056.842461 | T16: 1009.215768 | U16: 987.7146283 | V16: 1040.575509 | W16: 1052.889555 | X16: 1042.016964 | Y16: 1057.680502 | AA16: Couple with 1 child | AB16: 0 | AC16: 0 | AD16: 693.536498 | AE16: 717.7759372 | AF16: 759.4586165 | AG16: 823.3019856 | AH16: 902.8726098 | AI16: 976.9527683 | AJ16: 1059.653145 | AK16: 1102.681935 | AL16: 1165.811306 | AM16: 1289.905511 | AN16: 1437.181682 | AO16: 1474.754285 | AS16: 0 | AV16: =_xlfn.CONCAT(TEXT(AB11,"$0")," to ",TEXT(AB13,"$0,0")) -> $0 to $26,000
A17: Couple with 2 children | B17: 1150.93 | C17: 890.52 | E17: Couple with 2 children | F17: - | G17: 1075.216587 | J17: Couple with 2 children | K17: 1115.447225 | M17: 1104.307253 | N17: 1125.941811 | O17: 1116.912078 | P17: 1154.591395 | Q17: 1089.094962 | R17: 1148.658219 | S17: 1139.055755 | T17: 1091.549315 | U17: 1070.102413 | V17: 1122.829924 | W17: 1135.112897 | X17: 1124.267723 | Y17: 1139.89168 | AA17: Couple with 2 children | AB17: 0 | AC17: 0 | AD17: 765.2476176 | AE17: 789.4258639 | AF17: 831.0033436 | AG17: 894.6856304 | AH17: 974.055468 | AI17: 1047.948676 | AJ17: 1130.440387 | AK17: 1173.360599 | AL17: 1236.330671 | AM17: 1360.11174 | AN17: 1507.016278 | AO17: 1544.494034 | AV17: =_xlfn.CONCAT(TEXT(AC11,"$0,0")," to ",TEXT(AC13,"$0,0")) -> $26,000 to $39,000
A18: Couple with 3 children | B18: 1315.93 | C18: 1036.16 | E18: Couple with 3 children | F18: - | G18: 1168.226058 | J18: Couple with 3 children | K18: 1167.965634 | M18: 1159.929899 | N18: 1181.387694 | O18: 1172.431725 | P18: 1209.803296 | Q18: 1144.841847 | R18: 1203.918595 | S18: 1194.394609 | T18: 1147.276083 | U18: 1126.004355 | V18: 1178.301221 | W18: 1190.483898 | X18: 1179.727278 | Y18: 1195.223689 | AA18: Couple with 3 children | AB18: 0 | AC18: 0 | AD18: 0 | AE18: 848.6494055 | AF18: 889.8873394 | AG18: 953.0495866 | AH18: 1031.771154 | AI18: 1105.060875 | AJ18: 1186.878856 | AK18: 1229.448538 | AL18: 1291.904332 | AM18: 1414.674478 | AN18: 1560.37928 | AO18: 1597.550954 | AS18: Update By: | AT18: Gino Attana | AV18: =_xlfn.CONCAT(TEXT(AD11,"$0,0")," to ",TEXT(AD13,"$0,0")) -> $39,000 to $51,000
A19: Couple with 4 children | B19: 1481.47 | C19: 1180.18 | AA19: Couple with 4 children | AB19: 0 | AC19: 0 | AD19: 0 | AE19: =AE18+(AE18-AE17) -> 907.8729471 | AF19: =AF18+(AF18-AF17) -> 948.7713352 | AG19: 1011.413543 | AH19: 1089.48684 | AI19: 1162.173073 | AJ19: 1243.317324 | AK19: 1285.536476 | AL19: 1347.477992 | AM19: 1469.237215 | AN19: 1613.742282 | AO19: 1650.607874 | AS19: Update Date: | AT19: 2024-09-10 | AV19: =_xlfn.CONCAT(TEXT(AE11,"$0,0")," to ",TEXT(AE13,"$0,0")) -> $51,000 to $64,000
A20: Single person | B20: 612.47 | C20: 412.18 | E20: Single person | F20: - | G20: 363.3210577 | J20: Single person | K20: 385.3136073 | M20: 374.7352267 | N20: 396.1943928 | O20: 387.2378497 | P20: 424.6117395 | Q20: 359.6461963 | R20: 418.7267042 | S20: 409.2020815 | T20: 362.0806126 | U20: 340.8075308 | V20: 393.1077161 | W20: 405.291133 | X20: 394.5338535 | Y20: 410.0312597 | AA20: Couple with 5 children | AB20: 0 | AC20: 0 | AD20: 0 | AE20: =AE19+(AE19-AE18) -> 967.0964887 | AF20: 1007.655331 | AG20: 1069.777499 | AH20: 1147.202526 | AI20: 1219.285272 | AJ20: 1299.755793 | AK20: 1341.624414 | AL20: 1403.051652 | AM20: 1523.799953 | AN20: 1667.105284 | AO20: 1703.664794 | AS20: Update No: | AT20: Q2 2024 | AV20: =_xlfn.CONCAT(TEXT(AF11,"$0,0")," to ",TEXT(AF13,"$0,0")) -> $64,000 to $77,000
A21: Single parent with 1 child | B21: 786.29 | C21: 566.11 | E21: Single parent with 1 child | F21: - | G21: 497.7478846 | J21: Single parent with 1 child | K21: 527.0168485 | M21: 514.9508614 | N21: 536.4501187 | O21: 527.4768348 | P21: 564.9206266 | Q21: 499.8336278 | R21: 559.0245824 | S21: 549.4821294 | T21: 502.2725943 | U21: 480.9597554 | V21: 533.3576819 | W21: 545.5638802 | X21: 534.7865033 | Y21: 550.3128667 | AA21: Couple with 6 children | AB21: 0 | AC21: 0 | AD21: 0 | AE21: 1026.32003 | AF21: 1066.539327 | AG21: 1128.141455 | AH21: 1204.918212 | AI21: 1276.39747 | AJ21: 1356.194262 | AK21: 1397.712353 | AL21: 1458.625313 | AM21: 1578.362691 | AN21: 1720.468285 | AO21: 1756.721714 | AS21: Release No: | AT21: 3.25 | AV21: =_xlfn.CONCAT(TEXT(AG11,"$0,0")," to ",TEXT(AG13,"$0,0")) -> $77,000 to $103,000
A22: Single parent with 2 children | B22: 951.72 | C22: 711.75 | E22: Single parent with 2 children | F22: - | G22: 587.6115865 | J22: Single parent with 2 children | K22: 636.175326 | M22: 623.3842108 | N22: 645.0094937 | O22: 635.9836098 | P22: 673.6468824 | Q22: 608.1783623 | R22: 667.7162487 | S22: 658.117887 | T22: 610.6316256 | U22: 589.1938539 | V22: 641.8989202 | W22: 654.1766695 | X22: 643.3361265 | Y22: 658.953494 | AA22: Couple with 7 children | AB22: 0 | AC22: 0 | AD22: 0 | AE22: 1085.543572 | AF22: 1125.423322 | AG22: 1186.505411 | AH22: 1262.633898 | AI22: 1333.509669 | AJ22: 1412.63273 | AK22: 1453.800291 | AL22: 1514.198973 | AM22: 1632.925428 | AN22: 1773.831287 | AO22: 1809.778635 | AS22: 10% Hem Removed SM | AT22: 2024-01-02 | AV22: =_xlfn.CONCAT(TEXT(AH11,"$0,0")," to ",TEXT(AH13,"$0,0")) -> $103,000 to $129,000
A23: Single parent with 3 children | B23: 1117.26 | C23: 857.38 | E23: Single parent with 3 children | F23: - | G23: 677.4752885 | J23: Single parent with 3 children | K23: 745.3338034 | M23: 731.8175603 | N23: 753.5688688 | O23: 744.4903847 | P23: 782.3731383 | Q23: 716.5230967 | R23: 776.407915 | S23: 766.7536446 | T23: 718.9906569 | U23: 697.4279524 | V23: 750.4401586 | W23: 762.7894589 | X23: 751.8857496 | Y23: 767.5941212 | AA23: Couple with 8 children | AB23: 0 | AC23: 0 | AD23: 0 | AE23: 1144.767114 | AF23: 1184.307318 | AG23: 1244.869367 | AH23: 1320.349584 | AI23: 1390.621867 | AJ23: 1469.071199 | AK23: 1509.888229 | AL23: 1569.772633 | AM23: 1687.488166 | AN23: 1827.194289 | AO23: 1862.835555 | AV23: =_xlfn.CONCAT(TEXT(AI11,"$0,0")," to ",TEXT(AI13,"$0,0")) -> $129,000 to $154,000
A24: Single parent with 4 children | B24: 1282.8 | C24: 1003.02 | AA24: Couple with 9 children | AB24: 0 | AC24: 0 | AD24: 0 | AE24: 1203.990655 | AF24: 1243.191314 | AG24: 1303.233324 | AH24: 1378.06527 | AI24: 1447.734066 | AJ24: 1525.509667 | AK24: 1565.976167 | AL24: 1625.346294 | AM24: 1742.050904 | AN24: 1880.557291 | AO24: 1915.892475 | AV24: =_xlfn.CONCAT(TEXT(AJ11,"$0,0")," to ",TEXT(AJ13,"$0,0")) -> $154,000 to $180,000
AA25: Couple with 10 children | AB25: 0 | AC25: 0 | AD25: 0 | AE25: 1263.214197 | AF25: 1302.07531 | AG25: 1361.59728 | AH25: 1435.780956 | AI25: 1504.846264 | AJ25: 1581.948136 | AK25: 1622.064106 | AL25: 1680.919954 | AM25: 1796.613642 | AN25: 1933.920293 | AO25: 1968.949395 | AV25: =_xlfn.CONCAT(TEXT(AK11,"$0,0")," to ",TEXT(AK13,"$0,0")) -> $180,000 to $206,000
A26: HEAD NOT IN WORKFORCE | J26: Sample Sizes for different family types | AV26: =_xlfn.CONCAT(TEXT(AL11,"$0,0")," to ",TEXT(AL13,"$0,0")) -> $206,000 to $257,000
A27: Couple | B27: 703.46 | C27: 483.28 | AA27: Single person | AB27: 302.3152413 | AC27: 316.9862343 | AD27: 333.4873201 | AE27: 357.4696274 | AF27: 398.7101559 | AG27: 461.876375 | AH27: 540.6028859 | AI27: 613.8972718 | AJ27: 695.7203915 | AK27: 738.2927749 | AL27: 800.7524688 | AM27: 923.5303531 | AN27: 1069.244376 | AO27: 1106.418393 | AV27: =_xlfn.CONCAT(TEXT(AM11,"$0,0")," to ",TEXT(AM13,"$0,0")) -> $257,000 to $321,000
A28: Couple with 1 child | B28: 869 | C28: 629.03 | J28: Couple | K28: 2986 | AA28: Single parent with 1 child | AB28: 0 | AC28: 418.7843569 | AD28: 435.3162851 | AE28: 459.3434043 | AF28: 500.6610114 | AG28: 563.9452771 | AH28: 642.8189827 | AI28: 716.2503182 | AJ28: 798.2264115 | AK28: 840.8783492 | AL28: 903.4547691 | AM28: 1026.462121 | AN28: 1172.448536 | AO28: 1209.691962 | AV28: =_xlfn.CONCAT(TEXT(AN11,"$0,0")," to ",TEXT(AN13,"$0,0")) -> $321,000 to $386,000
A29: Couple with 2 children | B29: 1034.54 | C29: 774.67 | J29: Couple with 1 child | K29: 622 | AA29: Single parent with 2 children | AB29: 0 | AC29: 530.7080037 | AD29: 547.3368351 | AE29: 571.5047978 | AF29: 613.0646028 | AG29: 676.7198317 | AH29: 756.0558745 | AI29: 829.9176909 | AJ29: 912.3742793 | AK29: 955.2762366 | AL29: 1018.219507 | AM29: 1141.947948 | AN29: 1288.790004 | AO29: 1326.251856 | AV29: =_xlfn.CONCAT(TEXT(AO11,"$0,0")," to ",TEXT(AO13,"$0,0")) -> $386,000 to $643,000
A30: Couple with 3 children | B30: 1200.09 | C30: 920.31 | J30: Couple with 2 children | K30: 858 | AA30: Single parent with 3 children | AB30: 0 | AC30: 0 | AD30: 659.357385 | AE30: 683.6661913 | AF30: 725.4681942 | AG30: 789.4943864 | AH30: 869.2927663 | AI30: 943.5850636 | AJ30: 1026.522147 | AK30: 1069.674124 | AL30: 1132.984246 | AM30: 1257.433774 | AN30: 1405.131471 | AO30: 1442.81175
A31: Couple with 4 children | B31: 1365.63 | C31: 1064.34 | J31: Couple with 3 or more children | K31: 409 | AA31: Single Parent with 4 children | AB31: 0 | AC31: 0 | AD31: =AD30+(AD30-AD29) -> 771.377935 | AE31: =AE30+(AE30-AE29) -> 795.8275848 | AF31: =AF30+(AF30-AF29) -> 837.8717856 | AG31: 902.2689411 | AH31: 982.529658 | AI31: 1057.252436 | AJ31: 1140.670015 | AK31: 1184.072011 | AL31: 1247.748984 | AM31: 1372.919601 | AN31: 1521.472938 | AO31: 1559.371643
A32: Single person | B32: 496.62 | C32: 296.34 | AA32: Single Parent with 5 children | AB32: 0 | AC32: 0 | AD32: =AD31+(AD31-AD30) -> 883.398485 | AE32: 907.9889783 | AF32: 950.275377 | AG32: 1015.043496 | AH32: 1095.76655 | AI32: 1170.919809 | AJ32: 1254.817883 | AK32: 1298.469899 | AL32: 1362.513722 | AM32: 1488.405428 | AN32: 1637.814405 | AO32: 1675.931537
A33: Single parent with 1 child | B33: 670.33 | C33: 450.26 | J33: Single person | K33: 2705 | AA33: Single Parent with 6 children | AB33: 0 | AC33: 0 | AD33: 995.419035 | AE33: 1020.150372 | AF33: 1062.678968 | AG33: 1127.81805 | AH33: 1209.003442 | AI33: 1284.587182 | AJ33: 1368.965751 | AK33: 1412.867786 | AL33: 1477.27846 | AM33: 1603.891254 | AN33: 1754.155872 | AO33: 1792.491431
A34: Single parent with 2 children | B34: 835.87 | C34: 595.9 | J34: Single parent with 1 child | K34: 228 | AA34: Single Parent with 7 children | AB34: 0 | AC34: 0 | AD34: 1107.439585 | AE34: 1132.311765 | AF34: 1175.08256 | AG34: 1240.592605 | AH34: 1322.240333 | AI34: 1398.254554 | AJ34: 1483.113618 | AK34: 1527.265673 | AL34: 1592.043199 | AM34: 1719.377081 | AN34: 1870.49734 | AO34: 1909.051325
A35: Single parent with 3 children | B35: 1001.41 | C35: 741.54 | J35: Single parent with 2 children | K35: 188 | AA35: Single Parent with 8 children | AB35: 0 | AC35: 0 | AD35: 1219.460135 | AE35: 1244.473159 | AF35: 1287.486151 | AG35: 1353.36716 | AH35: 1435.477225 | AI35: 1511.921927 | AJ35: 1597.261486 | AK35: 1641.663561 | AL35: 1706.807937 | AM35: 1834.862908 | AN35: 1986.838807 | AO35: 2025.611218
A36: Single parent with 4 children | B36: 1166.95 | C36: 887.18 | J36: Single parent with 3 or more children | K36: 112 | AA36: Single Parent with 9 children | AB36: 0 | AC36: 0 | AD36: 1331.480685 | AE36: 1356.634552 | AF36: 1399.889743 | AG36: 1466.141714 | AH36: 1548.714117 | AI36: 1625.5893 | AJ36: 1711.409354 | AK36: 1756.061448 | AL36: 1821.572675 | AM36: 1950.348734 | AN36: 2103.180274 | AO36: 2142.171112
AA37: Single Parent with 10 children | AB37: 0 | AC37: 0 | AD37: =AD36+(AD36-AD35) -> 1443.501235 | AE37: 1468.795946 | AF37: 1512.293334 | AG37: 1578.916269 | AH37: 1661.951009 | AI37: 1739.256672 | AJ37: 1825.557222 | AK37: 1870.459335 | AL37: 1936.337414 | AM37: 2065.834561 | AN37: 2219.521741 | AO37: 2258.731006
J38: Total | K38: 8108
J40: Sample Sizes for the different income categories (expressed in 2015 dollars)
J41: $20,000 or less | K41: 261
J42: $20,000 to $30,000 | K42: 1352
J43: $30,000 to $40,000 | K43: 1074
J44: $40,000 to $50,000 | K44: 734
J45: $50,000 to $60,000 | K45: 581
J46: $60,000 to $80,000 | K46: 889
J47: $80,000 to $100,000 | K47: 735 | AA47: Sydney
J48: $100,000 to $120,000 | K48: 598 | AA48: Couple | AB48: 0 | AC48: 554.2000042 | AD48: 571.175249 | AE48: 591.439414 | AF48: 629.5275073 | AG48: 686.3969058 | AH48: 767.6673649 | AI48: 837.624962 | AJ48: 926.0043465 | AK48: 970.9385457 | AL48: 1015.247998 | AM48: 1136.80414 | AN48: 1250.392849 | AO48: 1315.863793
J49: $120,000 to $140,000 | K49: 457 | AA49: Couple with 1 child | AB49: 0 | AC49: 0 | AD49: 662.2082673 | AE49: 682.582851 | AF49: 720.8784851 | AG49: 778.0577539 | AH49: 859.771053 | AI49: 930.1098466 | AJ49: 1018.970808 | AK49: 1064.149852 | AL49: 1108.700744 | AM49: 1230.919242 | AN49: 1345.126966 | AO49: 1410.954585
J50: $140,000 to $160,000 | K50: 350 | AA50: Couple with 2 children | AB50: 0 | AC50: 0 | AD50: 734.0316795 | AE50: 754.4577655 | AF50: 792.8502485 | AG50: 850.174044 | AH50: 932.0938213 | AI50: 1002.610434 | AJ50: 1091.69607 | AK50: 1136.989242 | AL50: 1181.652824 | AM50: 1304.180187 | AN50: 1418.676602 | AO50: 1484.670618
J51: $160,000 to $200,000 | K51: 452 | AA51: Couple with 3 children | AB51: 0 | AC51: 0 | AD51: 0 | AE51: 836.6599629 | AF51: 875.4329236 | AG51: 933.324913 | AH51: 1016.056728 | AI51: 1087.27226 | AJ51: 1177.240828 | AK51: 1222.983007 | AL51: 1268.089204 | AM51: 1391.831095 | AN51: 1507.462362 | AO51: 1574.110489
J52: $200,000 to $250,000 | K52: 331
J53: $250,000 to $300,000 | K53: 113 | AA53: Single person | AB53: 279.1910087 | AC53: 291.3663916 | AD53: 308.2425515 | AE53: 328.3884396 | AF53: 366.2542452 | AG53: 422.7917021 | AH53: 503.5877693 | AI53: 573.1370871 | AJ53: 661.000605 | AK53: 705.6724979 | AL53: 749.7233814 | AM53: 870.5699762 | AN53: 983.495733 | AO53: 1048.584576
J54: $300,000 to $500,000 | K54: 181 | AA54: Single parent with 1 child | AB54: 0 | AC54: 397.4701271 | AD54: 414.4513845 | AE54: 434.7226831 | AF54: 472.8241847 | AG54: 529.713594 | AH54: 611.0126722 | AI54: 680.9948967 | AJ54: 769.4053753 | AK54: 814.3553929 | AL54: 858.6804615 | AM54: 980.2793774 | AN54: 1093.908073 | AO54: 1159.402102
AA55: Single parent with 2 children | AB55: 0 | AC55: 505.8518405 | AD55: 522.8176841 | AE55: 543.0706266 | AF55: 581.137663 | AG55: 637.9755206 | AH55: 719.2009712 | AI55: 789.1198249 | AJ55: 877.4502639 | AK55: 922.359578 | AL55: 966.644509 | AM55: 1088.133314 | AN55: 1201.65919 | AO55: 1267.093801
J56: Total | K56: 8108 | AA56: Single parent with 3 children | AB56: 0 | AC56: 0 | AD56: 631.1839837 | AE56: 651.41857 | AF56: 689.4511413 | AG56: 746.2374473 | AH56: 827.3892701 | AI56: 897.244753 | AJ56: 985.4951524 | AK56: 1030.363763 | AL56: 1074.608557 | AM56: 1195.98725 | AN56: 1309.410306 | AO56: 1374.785501
AA59: Balance of NSW
AA60: Couple | AB60: 0 | AC60: 583.5743819 | AD60: 600.5496266 | AE60: 620.8137916 | AF60: 658.9019217 | AG60: 715.7713111 | AH60: 797.0417702 | AI60: 866.9993672 | AJ60: 955.3787518 | AK60: 1000.312951 | AL60: 1044.622421 | AM60: 1166.178527 | AN60: 1279.767236 | AO60: 1345.238216
AA61: Couple with 1 child | AB61: 0 | AC61: 0 | AD61: 691.7427327 | AE61: 712.1173164 | AF61: 750.4129598 | AG61: 807.5922193 | AH61: 889.3055184 | AI61: 959.644312 | AJ61: 1048.505273 | AK61: 1093.684317 | AL61: 1138.235228 | AM61: 1260.453726 | AN61: 1374.661339 | AO61: 1440.489069
AA62: Couple with 2 children | AB62: 0 | AC62: 0 | AD62: 763.6408105 | AE62: 784.0668594 | AF62: 822.4593702 | AG62: 879.7831843 | AH62: 961.7029616 | AI62: 1032.219555 | AJ62: 1121.305192 | AK62: 1166.598364 | AL62: 1211.261964 | AM62: 1333.789328 | AN62: 1448.285743 | AO62: 1514.279758
AA63: Couple with 3 children | AB63: 0 | AC63: 0 | AD63: 0 | AE63: 866.5625607 | AF63: 905.3355215 | AG63: 963.2275108 | AH63: 1045.959326 | AI63: 1117.174857 | AJ63: 1207.143407 | AK63: 1252.885586 | AL63: 1297.991821 | AM63: 1421.733674 | AN63: 1537.364941 | AO63: 1604.013105
AA65: Single person | AB65: 308.3939675 | AC65: 320.5693503 | AD65: 337.4455103 | AE65: 357.5913984 | AF65: 395.4571993 | AG65: 451.9946563 | AH65: 532.7907235 | AI65: 602.3400047 | AJ65: 690.2035775 | AK65: 734.8754521 | AL65: 778.9263356 | AM65: 899.7729487 | AN65: 1012.698705 | AO65: 1077.787512
AA66: Single parent with 1 child | AB66: 0 | AC66: 426.8548777 | AD66: 443.8360937 | AE66: 464.1073923 | AF66: 502.2089399 | AG66: 559.0983492 | AH66: 640.3974182 | AI66: 710.3796427 | AJ66: 798.7901397 | AK66: 843.7401573 | AL66: 888.0652075 | AM66: 1009.664142 | AN66: 1123.292838 | AO66: 1188.78683
AA67: Single parent with 2 children | AB67: 0 | AC67: 535.209987 | AD67: 552.1758306 | AE67: 572.4287731 | AF67: 610.4958096 | AG67: 667.333658 | AH67: 748.5591269 | AI67: 818.4779806 | AJ67: 906.8084012 | AK67: 951.7177153 | AL67: 996.0026464 | AM67: 1117.49147 | AN67: 1231.017309 | AO67: 1296.451957
AA68: Single parent with 3 children | AB68: 0 | AC68: 0 | AD68: 660.5155676 | AE68: 680.7501539 | AF68: 718.7826792 | AG68: 775.5689667 | AH68: 856.7208356 | AI68: 926.5763185 | AJ68: 1014.826663 | AK68: 1059.695273 | AL68: 1103.940085 | AM68: 1225.318797 | AN68: 1338.741779 | AO68: 1404.117085
AA71: Melbourne
AA72: Couple | AB72: 0 | AC72: 574.3798528 | AD72: 591.3550975 | AE72: 611.6192625 | AF72: 649.7073926 | AG72: 706.5767544 | AH72: 787.8472135 | AI72: 857.8048105 | AJ72: 946.1841767 | AK72: 991.1183759 | AL72: 1035.427828 | AM72: 1156.98397 | AN72: 1270.572753 | AO72: 1336.04366
AA73: Couple with 1 child | AB73: 0 | AC73: 0 | AD73: 682.4980659 | AE73: 702.8726497 | AF73: 741.16833 | AG73: 798.3475618 | AH73: 880.0608609 | AI73: 950.3996545 | AJ73: 1039.260615 | AK73: 1084.43966 | AL73: 1128.990571 | AM73: 1251.209031 | AN73: 1365.416756 | AO73: 1431.244411
AA74: Couple with 2 children | AB74: 0 | AC74: 0 | AD74: 754.3727754 | AE74: 774.7988985 | AF74: 813.1913444 | AG74: 870.5151399 | AH74: 952.4349913 | AI74: 1022.951585 | AJ74: 1112.037166 | AK74: 1157.330412 | AL74: 1201.993938 | AM74: 1324.521339 | AN74: 1439.01768 | AO74: 1505.011807
AA75: Couple with 3 children | AB75: 0 | AC75: 0 | AD75: 0 | AE75: 857.2026544 | AF75: 895.9756339 | AG75: 953.8676233 | AH75: 1036.599438 | AI75: 1107.81497 | AJ75: 1197.78352 | AK75: 1243.525698 | AL75: 1288.631896 | AM75: 1412.373786 | AN75: 1528.005053 | AO75: 1594.653218
AA77: Single person | AB77: 299.2530909 | AC77: 311.4284509 | AD77: 328.3046108 | AE77: 348.4504989 | AF77: 386.3163181 | AG77: 442.8537568 | AH77: 523.6498697 | AI77: 593.1991326 | AJ77: 681.0626688 | AK77: 725.7345983 | AL77: 769.7854452 | AM77: 890.6320767 | AN77: 1003.557779 | AO77: 1068.646621
AA78: Single parent with 1 child | AB78: 0 | AC78: 417.6571118 | AD78: 434.6383278 | AE78: 454.9096265 | AF78: 493.0111741 | AG78: 549.9005466 | AH78: 631.1996064 | AI78: 701.1818492 | AJ78: 789.5923279 | AK78: 834.5423454 | AL78: 878.867414 | AM78: 1000.466348 | AN78: 1114.095081 | AO78: 1179.589036
AA79: Single parent with 2 children | AB79: 0 | AC79: 526.0205132 | AD79: 542.9863568 | AE79: 563.2392993 | AF79: 601.3063357 | AG79: 658.1442302 | AH79: 739.3696439 | AI79: 809.2885344 | AJ79: 897.6189366 | AK79: 942.5282507 | AL79: 986.8131818 | AM79: 1108.301968 | AN79: 1221.827844 | AO79: 1287.262492
AA80: Single parent with 3 children | AB80: 0 | AC80: 0 | AD80: 651.3343858 | AE80: 671.5689721 | AF80: 709.6014974 | AG80: 766.3879137 | AH80: 847.5396815 | AI80: 917.3952195 | AJ80: 1005.645545 | AK80: 1050.514156 | AL80: 1094.75895 | AM80: 1216.137588 | AN80: 1329.560607 | AO80: 1394.935949
AA83: Balance of VIC
AA84: Couple | AB84: 0 | AC84: 614.5850373 | AD84: 631.560282 | AE84: 651.824447 | AF84: 689.9125403 | AG84: 746.7819297 | AH84: 828.0523888 | AI84: 898.0099858 | AJ84: 986.3893704 | AK84: 1031.32357 | AL84: 1075.633021 | AM84: 1197.189164 | AN84: 1310.777873 | AO84: 1376.248817
AA85: Couple with 1 child | AB85: 0 | AC85: 0 | AD85: 722.9223271 | AE85: 743.2969109 | AF85: 781.5925542 | AG85: 838.7718137 | AH85: 920.4851128 | AI85: 990.8239065 | AJ85: 1079.684867 | AK85: 1124.863911 | AL85: 1169.414804 | AM85: 1291.633302 | AN85: 1405.841026 | AO85: 1471.668645
AA86: Couple with 2 children | AB86: 0 | AC86: 0 | AD86: 794.8992198 | AE86: 815.3252687 | AF86: 853.7177795 | AG86: 911.0415935 | AH86: 992.9613708 | AI86: 1063.478039 | AJ86: 1152.563601 | AK86: 1197.856773 | AL86: 1242.520392 | AM86: 1365.047718 | AN86: 1479.544133 | AO86: 1545.538186
AA87: Couple with 3 children | AB87: 0 | AC87: 0 | AD87: 0 | AE87: 898.1307933 | AF87: 936.9037541 | AG87: 994.7957434 | AH87: 1077.527558 | AI87: 1148.74309 | AJ87: 1238.711659 | AK87: 1284.453837 | AL87: 1329.560034 | AM87: 1453.301925 | AN87: 1568.933192 | AO87: 1635.581319
AA89: Single person | AB89: 339.2236077 | AC89: 351.3989677 | AD89: 368.2751277 | AE89: 388.4209975 | AF89: 426.2868167 | AG89: 482.8242737 | AH89: 563.6203775 | AI89: 633.1696586 | AJ89: 721.0331949 | AK89: 765.7051061 | AL89: 809.755953 | AM89: 930.6025844 | AN89: 1043.528305 | AO89: 1108.617147
AA90: Single parent with 1 child | AB90: 0 | AC90: 457.8764499 | AD90: 474.8576659 | AE90: 495.1289645 | AF90: 533.2304753 | AG90: 590.1198846 | AH90: 671.4189536 | AI90: 741.4011781 | AJ90: 829.8116751 | AK90: 874.7616927 | AL90: 919.0867429 | AM90: 1040.685659 | AN90: 1154.314355 | AO90: 1219.808383
AA91: Single parent with 2 children | AB91: 0 | AC91: 566.2034316 | AD91: 583.1692752 | AE91: 603.4222177 | AF91: 641.4892541 | AG91: 698.3271393 | AH91: 779.5525715 | AI91: 849.4714251 | AJ91: 937.8018458 | AK91: 982.7111599 | AL91: 1026.996091 | AM91: 1148.484896 | AN91: 1262.010772 | AO91: 1327.44542
AA92: Single parent with 3 children | AB92: 0 | AC92: 0 | AD92: 691.4808845 | AE92: 711.7154708 | AF92: 749.7480329 | AG92: 806.534394 | AH92: 887.6861893 | AI92: 957.5416722 | AJ92: 1045.792016 | AK92: 1090.660627 | AL92: 1134.905439 | AM92: 1256.284133 | AN92: 1369.707188 | AO92: 1435.082457
AA95: Brisbane
AA96: Couple | AB96: 0 | AC96: 542.0118372 | AD96: 558.9870819 | AE96: 579.2512469 | AF96: 617.3393402 | AG96: 674.2087388 | AH96: 755.4791979 | AI96: 825.4367949 | AJ96: 913.8161795 | AK96: 958.7503787 | AL96: 1003.059849 | AM96: 1124.615955 | AN96: 1238.204737 | AO96: 1303.675644
AA97: Couple with 1 child | AB97: 0 | AC97: 0 | AD97: 649.9536873 | AE97: 670.3282711 | AF97: 708.6239422 | AG97: 765.8031739 | AH97: 847.516473 | AI97: 917.8552667 | AJ97: 1006.716228 | AK97: 1051.895272 | AL97: 1096.446183 | AM97: 1218.664644 | AN97: 1332.872368 | AO97: 1398.700023
AA98: Couple with 2 children | AB98: 0 | AC98: 0 | AD98: 721.7461228 | AE98: 742.1722088 | AF98: 780.5646918 | AG98: 837.8884873 | AH98: 919.8083388 | AI98: 990.3249512 | AJ98: 1079.410514 | AK98: 1124.70376 | AL98: 1169.367285 | AM98: 1291.894723 | AN98: 1406.391027 | AO98: 1472.385154
AA99: Couple with 3 children | AB99: 0 | AC99: 0 | AD99: 0 | AE99: 824.2526356 | AF99: 863.0255964 | AG99: 920.9175857 | AH99: 1003.649401 | AI99: 1074.864932 | AJ99: 1164.833501 | AK99: 1210.575661 | AL99: 1255.681896 | AM99: 1379.423749 | AN99: 1495.055016 | AO99: 1561.70318
AA101: Single person | AB101: 267.0739992 | AC101: 279.2493638 | AD101: 296.1255237 | AE101: 316.2714119 | AF101: 354.1372357 | AG101: 410.6746743 | AH101: 491.4707781 | AI101: 561.0200593 | AJ101: 648.8835772 | AK101: 693.5555067 | AL101: 737.6063536 | AM101: 858.452985 | AN101: 971.378687 | AO101: 1036.46753
AA102: Single parent with 1 child | AB102: 0 | AC102: 385.2777062 | AD102: 402.2589268 | AE102: 422.5302254 | AF102: 460.631727 | AG102: 517.5211363 | AH102: 598.8202145 | AI102: 668.802439 | AJ102: 757.2129176 | AK102: 802.1629352 | AL102: 846.4880038 | AM102: 968.0869381 | AN102: 1081.715634 | AO102: 1147.209626
AA103: Single parent with 2 children | AB103: 0 | AC103: 493.6704234 | AD103: 510.636267 | AE103: 530.8892095 | AF103: 568.9562459 | AG103: 625.7941403 | AH103: 707.0195541 | AI103: 776.9384078 | AJ103: 865.2688835 | AK103: 910.1781609 | AL103: 954.4630919 | AM103: 1075.951915 | AN103: 1189.477754 | AO103: 1254.912403
AA104: Single parent with 3 children | AB104: 0 | AC104: 0 | AD104: 619.0136072 | AE104: 639.2481935 | AF104: 677.2807648 | AG104: 734.0671443 | AH104: 815.2188936 | AI104: 885.0743765 | AJ104: 973.3248495 | AK104: 1018.193387 | AL104: 1062.43818 | AM104: 1183.816892 | AN104: 1297.239874 | AO104: 1362.615179
AA107: Balance of QLD
AA108: Couple | AB108: 0 | AC108: 586.753413 | AD108: 603.7286577 | AE108: 623.9928227 | AF108: 662.0809528 | AG108: 718.9503514 | AH108: 800.2208105 | AI108: 870.1783707 | AJ108: 958.5577369 | AK108: 1003.491936 | AL108: 1047.801388 | AM108: 1169.35753 | AN108: 1282.946313 | AO108: 1348.41722
AA109: Couple with 1 child | AB109: 0 | AC109: 0 | AD109: 694.9390862 | AE109: 715.31367 | AF109: 753.6093133 | AG109: 810.788619 | AH109: 892.5018442 | AI109: 962.8406378 | AJ109: 1051.701673 | AK109: 1096.880643 | AL109: 1141.431628 | AM109: 1263.650015 | AN109: 1377.857739 | AO109: 1443.685395
AA110: Couple with 2 children | AB110: 0 | AC110: 0 | AD110: 766.8452066 | AE110: 787.2713297 | AF110: 825.6637756 | AG110: 882.9875711 | AH110: 964.9074226 | AI110: 1035.424016 | AJ110: 1124.509597 | AK110: 1169.802844 | AL110: 1214.466369 | AM110: 1336.99377 | AN110: 1451.490111 | AO110: 1517.484238
AA111: Couple with 3 children | AB111: 0 | AC111: 0 | AD111: 0 | AE111: 869.7987084 | AF111: 908.5717628 | AG111: 966.4637521 | AH111: 1049.195492 | AI111: 1120.411099 | AJ111: 1210.379649 | AK111: 1256.121752 | AL111: 1301.228024 | AM111: 1424.96984 | AN111: 1540.601107 | AO111: 1607.249272
AA113: Single person | AB113: 311.5544479 | AC113: 323.7298079 | AD113: 340.6059679 | AE113: 360.7518743 | AF113: 398.6176752 | AG113: 455.1551322 | AH113: 535.9512085 | AI113: 605.5004714 | AJ113: 693.3640442 | AK113: 738.0359371 | AL113: 782.0868206 | AM113: 902.9334155 | AN113: 1015.859191 | AO113: 1080.94796
AA114: Single parent with 1 child | AB114: 0 | AC114: 430.0350279 | AD114: 447.0162439 | AE114: 467.2875426 | AF114: 505.3890902 | AG114: 562.2784994 | AH114: 643.5775224 | AI114: 713.5598021 | AJ114: 801.9702808 | AK114: 846.9202983 | AL114: 891.2453301 | AM114: 1012.844264 | AN114: 1126.472997 | AO114: 1191.966952
AA115: Single parent with 2 children | AB115: 0 | AC115: 538.3872575 | AD115: 555.3531011 | AE115: 575.6060436 | AF115: 613.6730801 | AG115: 670.5109377 | AH115: 751.7363882 | AI115: 821.6552419 | AJ115: 909.9857177 | AK115: 954.8950318 | AL115: 999.1799628 | AM115: 1120.668676 | AN115: 1234.194552 | AO115: 1299.629274
AA116: Single parent with 3 children | AB116: 0 | AC116: 0 | AD116: 663.6899584 | AE116: 683.9245447 | AF116: 721.95707 | AG116: 778.7433759 | AH116: 859.895254 | AI116: 929.7506817 | AJ116: 1018.001155 | AK116: 1062.869765 | AL116: 1107.114596 | AM116: 1228.493087 | AN116: 1341.916106 | AO116: 1407.291595
AA119: Adelaide
AA120: Couple | AB120: 0 | AC120: 592.0464444 | AD120: 609.0216799 | AE120: 629.2858541 | AF120: 667.3739751 | AG120: 724.2433736 | AH120: 805.5137959 | AI120: 875.4714297 | AJ120: 963.8508143 | AK120: 1008.785014 | AL120: 1053.094465 | AM120: 1174.650608 | AN120: 1288.239317 | AO120: 1353.710261
AA121: Couple with 1 child | AB121: 0 | AC121: 0 | AD121: 700.2609222 | AE121: 720.635506 | AF121: 758.9311863 | AG121: 816.1104458 | AH121: 897.8237449 | AI121: 968.1625386 | AJ121: 1057.023499 | AK121: 1102.202544 | AL121: 1146.753436 | AM121: 1268.971934 | AN121: 1383.179584 | AO121: 1449.007277
AA122: Couple with 2 children | AB122: 0 | AC122: 0 | AD122: 772.1805692 | AE122: 792.6066181 | AF122: 830.9991289 | AG122: 888.3228687 | AH122: 970.2427202 | AI122: 1040.759314 | AJ122: 1129.844876 | AK122: 1175.138123 | AL122: 1219.80163 | AM122: 1342.329068 | AN122: 1456.825483 | AO122: 1522.819536
AA123: Couple with 3 children | AB123: 0 | AC123: 0 | AD123: 0 | AE123: 875.1869627 | AF123: 913.9599235 | AG123: 971.8519128 | AH123: 1054.583728 | AI123: 1125.799259 | AJ123: 1215.767828 | AK123: 1261.510007 | AL123: 1306.616204 | AM123: 1430.358095 | AN123: 1545.989286 | AO123: 1612.637489
AA125: Single person | AB125: 316.8165807 | AC125: 328.9919407 | AD125: 345.8681052 | AE125: 366.0139933 | AF125: 403.8797943 | AG125: 460.417233 | AH125: 541.2133367 | AI125: 610.7626179 | AJ125: 698.6261358 | AK125: 743.2980653 | AL125: 787.3489122 | AM125: 908.1955437 | AN125: 1021.1213 | AO125: 1086.210143
AA126: Single parent with 1 child | AB126: 0 | AC126: 435.3299227 | AD126: 452.3111387 | AE126: 472.5824373 | AF126: 510.683985 | AG126: 567.5733942 | AH126: 648.8724264 | AI126: 718.8546509 | AJ126: 807.2651479 | AK126: 852.2151655 | AL126: 896.5402157 | AM126: 1018.139095 | AN126: 1131.767864 | AO126: 1197.261893
AA127: Single parent with 2 children | AB127: 0 | AC127: 543.6773576 | AD127: 560.6431921 | AE127: 580.8961437 | AF127: 618.9631434 | AG127: 675.8010286 | AH127: 757.0264791 | AI127: 826.9453512 | AJ127: 915.2757718 | AK127: 960.1850859 | AL127: 1004.469999 | AM127: 1125.958822 | AN127: 1239.484624 | AO127: 1304.919309
AA128: Single parent with 3 children | AB128: 0 | AC128: 0 | AD128: 668.9752455 | AE128: 689.2098501 | AF128: 727.2423018 | AG128: 784.028663 | AH128: 865.1805319 | AI128: 935.0360515 | AJ128: 1023.286396 | AK128: 1068.155006 | AL128: 1112.399782 | AM128: 1233.778549 | AN128: 1347.201384 | AO128: 1412.576726
AA131: Balance of SA
AA132: Couple | AB132: 0 | AC132: 550.5551262 | AD132: 567.530371 | AE132: 587.794536 | AF132: 625.8826661 | AG132: 682.7520554 | AH132: 764.0225145 | AI132: 833.9801116 | AJ132: 922.3594961 | AK132: 967.2936953 | AL132: 1011.603166 | AM132: 1133.159271 | AN132: 1246.74798 | AO132: 1312.218961
AA133: Couple with 1 child | AB133: 0 | AC133: 0 | AD133: 658.5435562 | AE133: 678.91814 | AF133: 717.2137833 | AG133: 774.3930428 | AH133: 856.1063419 | AI133: 926.4451356 | AJ133: 1015.306096 | AK133: 1060.485141 | AL133: 1105.036052 | AM133: 1227.254549 | AN133: 1341.462163 | AO133: 1407.289892
AA134: Couple with 2 children | AB134: 0 | AC134: 0 | AD134: 730.3577142 | AE134: 750.7838002 | AF134: 789.1762739 | AG134: 846.5000879 | AH134: 928.4198653 | AI134: 998.9364591 | AJ134: 1088.022096 | AK134: 1133.315268 | AL134: 1177.978867 | AM134: 1300.506231 | AN134: 1415.002646 | AO134: 1480.996662
AA135: Couple with 3 children | AB135: 0 | AC135: 0 | AD135: 0 | AE135: 832.949573 | AF135: 871.7225338 | AG135: 929.6145231 | AH135: 1012.346338 | AI135: 1083.56187 | AJ135: 1173.53042 | AK135: 1219.272598 | AL135: 1264.378833 | AM135: 1388.120686 | AN135: 1503.751953 | AO135: 1570.400118
AA137: Single person | AB137: 275.5674416 | AC137: 287.7428016 | AD137: 304.6189615 | AE137: 324.7648679 | AF137: 362.6306688 | AG137: 419.1681258 | AH137: 499.964193 | AI137: 569.5134742 | AJ137: 657.377047 | AK137: 702.0489216 | AL137: 746.0998051 | AM137: 866.9464182 | AN137: 979.872175 | AO137: 1044.960981
AA138: Single parent with 1 child | AB138: 0 | AC138: 393.8239982 | AD138: 410.8052142 | AE138: 431.0765128 | AF138: 469.1780604 | AG138: 526.0674697 | AH138: 607.3665387 | AI138: 677.3487632 | AJ138: 765.7592602 | AK138: 810.7092777 | AL138: 855.0343279 | AM138: 976.6332623 | AN138: 1090.261958 | AO138: 1155.75595
AA139: Single parent with 2 children | AB139: 0 | AC139: 502.2090178 | AD139: 519.1748615 | AE139: 539.4278039 | AF139: 577.4948404 | AG139: 634.3326888 | AH139: 715.5581577 | AI139: 785.4770114 | AJ139: 873.807432 | AK139: 918.7167461 | AL139: 963.0016772 | AM139: 1084.4905 | AN139: 1198.016339 | AO139: 1263.450988
AA140: Single parent with 3 children | AB140: 0 | AC140: 0 | AD140: 627.5445088 | AE140: 647.779095 | AF140: 685.8116203 | AG140: 742.5979079 | AH140: 823.7497768 | AI140: 893.6052597 | AJ140: 981.8556038 | AK140: 1026.724214 | AL140: 1070.969026 | AM140: 1192.347739 | AN140: 1305.770721 | AO140: 1371.146026
AA143: Perth
AA144: Couple | AB144: 0 | AC144: 516.5063657 | AD144: 533.4816012 | AE144: 553.7457662 | AF144: 591.8339056 | AG144: 648.7032489 | AH144: 729.973708 | AI144: 799.9313234 | AJ144: 888.3106896 | AK144: 933.2448888 | AL144: 977.554359 | AM144: 1099.110483 | AN144: 1212.699266 | AO144: 1278.170136
AA145: Couple with 1 child | AB145: 0 | AC145: 0 | AD145: 624.3092281 | AE145: 644.6838119 | AF145: 682.979483 | AG145: 740.158724 | AH145: 821.8720231 | AI145: 892.2108167 | AJ145: 981.0717591 | AK145: 1026.250803 | AL145: 1070.801733 | AM145: 1193.020194 | AN145: 1307.227918 | AO145: 1373.055574
AA146: Couple with 2 children | AB146: 0 | AC146: 0 | AD146: 696.0368496 | AE146: 716.4629356 | AF146: 754.8554093 | AG146: 812.1792141 | AH146: 894.0990656 | AI146: 964.6156595 | AJ146: 1053.70124 | AK146: 1098.994487 | AL146: 1143.658012 | AM146: 1266.185413 | AN146: 1380.681754 | AO146: 1446.675881
AA147: Couple with 3 children | AB147: 0 | AC147: 0 | AD147: 0 | AE147: 798.2885217 | AF147: 837.0615012 | AG147: 894.9534718 | AH147: 977.6852866 | AI147: 1048.900837 | AJ147: 1138.869387 | AK147: 1184.611566 | AL147: 1229.717763 | AM147: 1353.459654 | AN147: 1469.09092 | AO147: 1535.739085
AA149: Single person | AB149: 241.7173923 | AC149: 253.8927546 | AD149: 270.7689167 | AE149: 290.9148049 | AF149: 328.7806241 | AG149: 385.3180628 | AH149: 466.1141665 | AI149: 535.6634386 | AJ149: 623.5269748 | AK149: 668.1989043 | AL149: 712.2497512 | AM149: 833.0963826 | AN149: 946.0220845 | AO149: 1011.110927
AA150: Single parent with 1 child | AB150: 0 | AC150: 359.7632513 | AD150: 376.7444673 | AE150: 397.015766 | AF150: 435.1173044 | AG150: 492.0066861 | AH150: 573.3057551 | AI150: 643.2879887 | AJ150: 731.6984674 | AK150: 776.6484849 | AL150: 820.9735535 | AM150: 942.5724878 | AN150: 1056.201221 | AO150: 1121.695176
AA151: Single parent with 2 children | AB151: 0 | AC151: 468.1790771 | AD151: 485.1449116 | AE151: 505.397854 | AF151: 543.4648997 | AG151: 600.3027941 | AH151: 681.5282079 | AI151: 751.4470983 | AJ151: 839.7775373 | AK151: 884.6868146 | AL151: 928.9717273 | AM151: 1050.460532 | AN151: 1163.986408 | AO151: 1229.421056
AA152: Single parent with 3 children | AB152: 0 | AC152: 0 | AD152: 593.5453558 | AE152: 613.7799421 | AF152: 651.812495 | AG152: 708.5989021 | AH152: 789.7506606 | AI152: 859.6062079 | AJ152: 947.8566072 | AK152: 992.7251443 | AL152: 1036.969901 | AM152: 1158.348577 | AN152: 1271.771595 | AO152: 1337.146937
AA155: Balance of WA
AA156: Couple | AB156: 0 | AC156: 571.1370278 | AD156: 588.1122726 | AE156: 608.3764376 | AF156: 646.4645677 | AG156: 703.3339295 | AH156: 784.6043885 | AI156: 854.5620224 | AJ156: 942.9413886 | AK156: 987.8755877 | AL156: 1032.185058 | AM156: 1153.7412 | AN156: 1267.32991 | AO156: 1332.800853
AA157: Couple with 1 child | AB157: 0 | AC157: 0 | AD157: 679.2375709 | AE157: 699.6121547 | AF157: 737.9078258 | AG157: 795.0871038 | AH157: 876.8004029 | AI157: 947.1391965 | AJ157: 1036.000157 | AK157: 1081.179202 | AL157: 1125.730094 | AM157: 1247.948592 | AN157: 1362.156242 | AO157: 1427.983935
AA158: Couple with 2 children | AB158: 0 | AC158: 0 | AD158: 751.1040386 | AE158: 771.5301246 | AF158: 809.9226447 | AG158: 867.246366 | AH158: 949.1662175 | AI158: 1019.682811 | AJ158: 1108.768392 | AK158: 1154.061639 | AL158: 1198.725146 | AM158: 1321.252584 | AN158: 1435.748999 | AO158: 1501.743014
AA159: Couple with 3 children | AB159: 0 | AC159: 0 | AD159: 0 | AE159: 853.9015564 | AF159: 892.6745359 | AG159: 950.5665253 | AH159: 1033.29834 | AI159: 1104.513872 | AJ159: 1194.482441 | AK159: 1240.224619 | AL159: 1285.330816 | AM159: 1409.072707 | AN159: 1524.703899 | AO159: 1591.352101
AA161: Single person | AB161: 296.0291935 | AC161: 308.2045718 | AD161: 325.0807317 | AE161: 345.2266244 | AF161: 383.0924299 | AG161: 439.6298686 | AH161: 520.4259723 | AI161: 589.9752535 | AJ161: 677.8387714 | AK161: 722.5107009 | AL161: 766.5615478 | AM161: 887.4081793 | AN161: 1000.333936 | AO161: 1065.422669
AA162: Single parent with 1 child | AB162: 0 | AC162: 414.4131499 | AD162: 431.3943705 | AE162: 451.6656692 | AF162: 489.7672076 | AG162: 546.65658 | AH162: 627.9556398 | AI162: 697.9378827 | AJ162: 786.3483613 | AK162: 831.2983789 | AL162: 875.6234475 | AM162: 997.2223266 | AN162: 1110.851096 | AO162: 1176.345125
AA163: Single parent with 2 children | AB163: 0 | AC163: 522.7795209 | AD163: 539.7453646 | AE163: 559.998307 | AF163: 598.0653067 | AG163: 654.9032011 | AH163: 736.1286516 | AI163: 806.0475053 | AJ163: 894.3779443 | AK163: 939.2872584 | AL163: 983.5721711 | AM163: 1105.060994 | AN163: 1218.586797 | AO163: 1284.021482
AA164: Single parent with 3 children | AB164: 0 | AC164: 0 | AD164: 648.0963586 | AE164: 668.3309449 | AF164: 706.3634059 | AG164: 763.1498222 | AH164: 844.3016635 | AI164: 914.157128 | AJ164: 1002.407527 | AK164: 1047.276138 | AL164: 1091.520895 | AM164: 1212.899662 | AN164: 1326.322497 | AO164: 1391.697839
AA167: Hobart
AA168: Couple | AB168: 0 | AC168: 593.8636539 | AD168: 610.8388986 | AE168: 631.1030636 | AF168: 669.1911661 | AG168: 726.0605463 | AH168: 807.3310054 | AI168: 877.2886024 | AJ168: 965.667987 | AK168: 1010.602186 | AL168: 1054.911638 | AM168: 1176.46778 | AN168: 1290.056563 | AO168: 1355.527433
AA169: Couple with 1 child | AB169: 0 | AC169: 0 | AD169: 702.0880336 | AE169: 722.4626174 | AF169: 760.7582977 | AG169: 817.9375202 | AH169: 899.6508193 | AI169: 969.9896314 | AJ169: 1058.850574 | AK169: 1104.029618 | AL169: 1148.58051 | AM169: 1270.799008 | AN169: 1385.006732 | AO169: 1450.834351
AA170: Couple with 2 children | AB170: 0 | AC170: 0 | AD170: 774.0122527 | AE170: 794.4383943 | AF170: 832.8308217 | AG170: 890.1546357 | AH170: 972.0744872 | AI170: 1042.591081 | AJ170: 1131.676643 | AK170: 1176.96989 | AL170: 1221.633434 | AM170: 1344.160761 | AN170: 1458.657176 | AO170: 1524.651303
AA171: Couple with 3 children | AB171: 0 | AC171: 0 | AD171: 0 | AE171: 877.0368107 | AF171: 915.8097902 | AG171: 973.7017608 | AH171: 1056.433576 | AI171: 1127.649107 | AJ171: 1217.617676 | AK171: 1263.359855 | AL171: 1308.466052 | AM171: 1432.207943 | AN171: 1547.839209 | AO171: 1614.487337
AA173: Single person | AB173: 318.6231699 | AC173: 330.7985299 | AD173: 347.6746898 | AE173: 367.8205779 | AF173: 405.6864063 | AG173: 462.223845 | AH173: 543.0199487 | AI173: 612.5692208 | AJ173: 700.432757 | AK173: 745.1046865 | AL173: 789.1555151 | AM173: 910.0021465 | AN173: 1022.927867 | AO173: 1088.01671
AA174: Single parent with 1 child | AB174: 0 | AC174: 437.1477765 | AD174: 454.1289971 | AE174: 474.4002957 | AF174: 512.5017973 | AG174: 569.3912066 | AH174: 650.6902756 | AI174: 720.6725 | AJ174: 809.0829971 | AK174: 854.0330146 | AL174: 898.3580648 | AM174: 1019.956981 | AN174: 1133.585677 | AO174: 1199.079705
AA175: Single parent with 2 children | AB175: 0 | AC175: 545.4935239 | AD175: 562.4593676 | AE175: 582.71231 | AF175: 620.7793465 | AG175: 677.6172501 | AH175: 758.8426638 | AI175: 828.7615175 | AJ175: 917.0919381 | AK175: 962.0012522 | AL175: 1006.286202 | AM175: 1127.774988 | AN175: 1241.300864 | AO175: 1306.735512
AA176: Single parent with 3 children | AB176: 0 | AC176: 0 | AD176: 670.789738 | AE176: 691.0243243 | AF176: 729.0568956 | AG176: 785.8432935 | AH176: 866.995052 | AI176: 936.850535 | AJ176: 1025.100879 | AK176: 1069.96949 | AL176: 1114.214339 | AM176: 1235.592996 | AN176: 1349.016051 | AO176: 1414.391319
AA179: Balance of TAS
AA180: Couple | AB180: 0 | AC180: 582.6275192 | AD180: 599.6027639 | AE180: 619.8669289 | AF180: 657.9550591 | AG180: 714.8244208 | AH180: 796.0948799 | AI180: 866.0525137 | AJ180: 954.4318799 | AK180: 999.3660055 | AL180: 1043.675568 | AM180: 1165.2316 | AN180: 1278.820382 | AO180: 1344.291289
AA181: Couple with 1 child | AB181: 0 | AC181: 0 | AD181: 690.7906736 | AE181: 711.1652574 | AF181: 749.4609284 | AG181: 806.6402064 | AH181: 888.3535056 | AI181: 958.6922992 | AJ181: 1047.55326 | AK181: 1092.732304 | AL181: 1137.283215 | AM181: 1259.501676 | AN181: 1373.709326 | AO181: 1439.537056
AA182: Couple with 2 children | AB182: 0 | AC182: 0 | AD182: 762.6863449 | AE182: 783.1124309 | AF182: 821.5048768 | AG182: 878.8286722 | AH182: 960.7485237 | AI182: 1031.265118 | AJ182: 1120.350699 | AK182: 1165.643926 | AL182: 1210.30747 | AM182: 1332.834871 | AN182: 1447.331286 | AO182: 1513.325339
AA183: Couple with 3 children | AB183: 0 | AC183: 0 | AD183: 0 | AE183: 865.5986628 | AF183: 904.3716423 | AG183: 962.2636316 | AH183: 1044.995446 | AI183: 1116.210978 | AJ183: 1206.179528 | AK183: 1251.921707 | AL183: 1297.027941 | AM183: 1420.769795 | AN183: 1536.400987 | AO183: 1603.049226
AA185: Single person | AB185: 307.4526177 | AC185: 319.6279777 | AD185: 336.5041376 | AE185: 356.6500258 | AF185: 394.515845 | AG185: 451.0532928 | AH185: 531.8493966 | AI185: 601.3986778 | AJ185: 689.2621957 | AK185: 733.9341252 | AL185: 777.9849721 | AM185: 898.8316218 | AN185: 1011.757342 | AO185: 1076.846112
AA186: Single parent with 1 child | AB186: 0 | AC186: 425.9076863 | AD186: 442.8888977 | AE186: 463.1601964 | AF186: 501.261744 | AG186: 558.1511164 | AH186: 639.4501762 | AI186: 709.4324191 | AJ186: 797.8428978 | AK186: 842.7929153 | AL186: 887.1179839 | AM186: 1008.716881 | AN186: 1122.345614 | AO186: 1187.839569
AA187: Single parent with 2 children | AB187: 0 | AC187: 534.263612 | AD187: 551.2294556 | AE187: 571.4823981 | AF187: 609.5494345 | AG187: 666.3873289 | AH187: 747.6127427 | AI187: 817.5316331 | AJ187: 905.8620721 | AK187: 950.7713862 | AL187: 995.0563173 | AM187: 1116.545104 | AN187: 1230.070906 | AO187: 1295.505628
AA188: Single parent with 3 children | AB188: 0 | AC188: 0 | AD188: 659.5700135 | AE188: 679.8045998 | AF188: 717.8371251 | AG188: 774.6235414 | AH188: 855.7753091 | AI188: 925.6308472 | AJ188: 1013.881247 | AK188: 1058.749857 | AL188: 1102.994651 | AM188: 1224.373326 | AN188: 1337.796198 | AO188: 1403.171687
AA191: ACT & NT
AA192: Couple | AB192: 0 | AC192: 589.0478943 | AD192: 606.023139 | AE192: 626.287304 | AF192: 664.3754341 | AG192: 721.2448327 | AH192: 802.515255 | AI192: 872.4728888 | AJ192: 960.852255 | AK192: 1005.786454 | AL192: 1050.095906 | AM192: 1171.652048 | AN192: 1285.240758 | AO192: 1350.711738
AA193: Couple with 1 child | AB193: 0 | AC193: 0 | AD193: 697.2460331 | AE193: 717.6206168 | AF193: 755.9162879 | AG193: 813.0955659 | AH193: 894.808865 | AI193: 965.1476586 | AJ193: 1054.00862 | AK193: 1099.187645 | AL193: 1143.738575 | AM193: 1265.957036 | AN193: 1380.164686 | AO193: 1445.992415
AA194: Couple with 2 children | AB194: 0 | AC194: 0 | AD194: 769.1580591 | AE194: 789.584108 | AF194: 827.976628 | AG194: 885.3003494 | AH194: 967.2202008 | AI194: 1037.736795 | AJ194: 1126.822357 | AK194: 1172.115603 | AL194: 1216.779147 | AM194: 1339.306548 | AN194: 1453.802963 | AO194: 1519.797016
AA195: Couple with 3 children | AB195: 0 | AC195: 0 | AD195: 0 | AE195: 872.1344851 | AF195: 910.9074646 | AG195: 968.7994539 | AH195: 1051.53125 | AI195: 1122.746801 | AJ195: 1212.71535 | AK195: 1258.457529 | AL195: 1303.563726 | AM195: 1427.305617 | AN195: 1542.936809 | AO195: 1609.585049
AA197: Single person | AB197: 313.8355324 | AC197: 326.0108969 | AD197: 342.8870568 | AE197: 363.032945 | AF197: 400.8987642 | AG197: 457.4361846 | AH197: 538.2322883 | AI197: 607.7815604 | AJ197: 695.6450966 | AK197: 740.3170261 | AL197: 784.367873 | AM197: 905.2145227 | AN197: 1018.140243 | AO197: 1083.229086
AA198: Single parent with 1 child | AB198: 0 | AC198: 432.3303215 | AD198: 449.3115329 | AE198: 469.5828316 | AF198: 507.6843792 | AG198: 564.5737885 | AH198: 645.8728115 | AI198: 715.8550543 | AJ198: 804.2655698 | AK198: 849.2155505 | AL198: 893.5406559 | AM198: 1015.13959 | AN198: 1128.76825 | AO198: 1194.262278
AA199: Single parent with 2 children | AB199: 0 | AC199: 540.6804681 | AD199: 557.6463117 | AE199: 577.8992542 | AF199: 615.9662447 | AG199: 672.8041483 | AH199: 754.0295988 | AI199: 823.9484525 | AJ199: 912.2788915 | AK199: 957.1882056 | AL199: 1001.473137 | AM199: 1122.961923 | AN199: 1236.487799 | AO199: 1301.922447
AA200: Single parent with 3 children | AB200: 0 | AC200: 0 | AD200: 665.9810905 | AE200: 686.2156768 | AF200: 724.2481102 | AG200: 781.0345081 | AH200: 862.1863862 | AI200: 932.0418507 | AJ200: 1020.292213 | AK200: 1065.160861 | AL200: 1109.405617 | AM200: 1230.784256 | AN200: 1344.207348 | AO200: 1409.582617

Sheet Amortisation Schedule_Loan1 (hidden)
A1: Loan Amortisation Schedule
A4: Loan Information | F4: Summary | K4: Frequency
C5: Loan Amount | D5: ='Loan Serviceability Calculator'!E42 -> 0 | G5: Rate (per period) | H5: =IF(D9=D10,D6/D14,((1+D6/D14)^(D14/D13))-1) ->  | K5: Annual
C6: Annual Interest Rate | D6: =IFERROR('Loan Serviceability Calculator'!H95,0) ->  | G6: Total Payments | H6: =SUM(F60:F839)+SUM(G60:G839) -> 0 | K6: Semi-Annual
C7: Term of Loan in Years | D7: ='Loan Serviceability Calculator'!F42/12 -> 0 | G7: Total Interest | H7: =SUM(F59:F839) -> 0 | K7: Quarterly
C8: First Payment Date | D8: =NOW() -> 2025-06-06T10:00:07.580 | G8: Est. Interest Savings | H8: =IF(AND(SUM(D60:D839)=0,roundOpt)," - ",(nper*(-PMT(rate,nper,loan_amount,,pmtType))-loan_amount)-H7) -> - | K8: Bi-Monthly
C9: Payment Frequency | D9: Monthly | H9: =IF(AND(NOT(H839=""),H839>0.004),"ERROR: Limit is "&OFFSET(A840,-1,0,1,1)&" payments",".") -> . | K9: Monthly
C10: Compound Period | D10: =D9 -> Monthly | H10: =IF(D14>D13,"Warning: negative amortization",".") -> . | K10: Semi-Monthly
C11: Payment Type | D11: End of Period | K11: Bi-Weekly
C12: Rounding | D12: On | K12: Weekly
C13: Periods Per Year | D13: =INDEX({1;2;4;6;12;24;26;52},MATCH('Amortisation Schedule_Loan1'!$D$9,$K$5:$K$12,0)) -> 12
C14: Compound Period | D14: =INDEX({1;2;4;6;12;24;26;52},MATCH('Amortisation Schedule_Loan1'!$D$10,$K$5:$K$12,0)) -> 12
C15: Payment Type | D15: =IF('Amortisation Schedule_Loan1'!$D$11="End of Period",0,1) -> 0
C16: Months Per Period | D16: =12/$D$13 -> 1
C17: Number of Periods | D17: =$D$7*$D$13 -> 0
C18: Rounding Option | D18: =(D12="On") -> TRUE
H19: [42]
C20: =D9&" Payment" -> Monthly Payment | D20: =IFERROR(IF(roundOpt,ROUND(-PMT(rate,nper,$D$5,,pmtType),2),-PMT(rate,nper,$D$5,,pmtType)),0) -> 0
A22: Yearly Summary
B23: Year | C23: Payments | D23: Additional Payments | F23: Interest Paid | G23: Principal Paid | H23: Year-End Balance
H24: =loan_amount -> 0
B25: =YEAR(fpdate) -> 2025 | C25: =SUMIF($B$59:$B$840,"<="&DATE($B25,12,31),$C$59:$C$840)-SUM(C$24:C24) -> 0 | D25: =SUMIF($B$59:$B$840,"<="&DATE($B25,12,31),$D$59:$D$840)-SUM(D$24:D24) -> 0 | F25: =SUMIF($B$59:$B$840,"<="&DATE($B25,12,31),$F$59:$F$840)-SUM(F$24:F24) -> 0 | G25: =SUMIF($B$59:$B$840,"<="&DATE($B25,12,31),$G$59:$G$840)-SUM(G$24:G24) -> 0 | H25: =H24-G25 -> 0
B26: =B25+1 -> 2026 | C26: =SUMIF($B$59:$B$840,"<="&DATE($B26,12,31),$C$59:$C$840)-SUM(C$24:C25) -> 0 | D26: =SUMIF($B$59:$B$840,"<="&DATE($B26,12,31),$D$59:$D$840)-SUM(D$24:D25) -> 0 | F26: =SUMIF($B$59:$B$840,"<="&DATE($B26,12,31),$F$59:$F$840)-SUM(F$24:F25) -> 0 | G26: =SUMIF($B$59:$B$840,"<="&DATE($B26,12,31),$G$59:$G$840)-SUM(G$24:G25) -> 0 | H26: =H25-G26 -> 0
B27: =B26+1 -> 2027 | C27: =SUMIF($B$59:$B$840,"<="&DATE($B27,12,31),$C$59:$C$840)-SUM(C$24:C26) -> 0 | D27: =SUMIF($B$59:$B$840,"<="&DATE($B27,12,31),$D$59:$D$840)-SUM(D$24:D26) -> 0 | F27: =SUMIF($B$59:$B$840,"<="&DATE($B27,12,31),$F$59:$F$840)-SUM(F$24:F26) -> 0 | G27: =SUMIF($B$59:$B$840,"<="&DATE($B27,12,31),$G$59:$G$840)-SUM(G$24:G26) -> 0 | H27: =H26-G27 -> 0
B28: =B27+1 -> 2028 | C28: =SUMIF($B$59:$B$840,"<="&DATE($B28,12,31),$C$59:$C$840)-SUM(C$24:C27) -> 0 | D28: =SUMIF($B$59:$B$840,"<="&DATE($B28,12,31),$D$59:$D$840)-SUM(D$24:D27) -> 0 | F28: =SUMIF($B$59:$B$840,"<="&DATE($B28,12,31),$F$59:$F$840)-SUM(F$24:F27) -> 0 | G28: =SUMIF($B$59:$B$840,"<="&DATE($B28,12,31),$G$59:$G$840)-SUM(G$24:G27) -> 0 | H28: =H27-G28 -> 0
B29: =B28+1 -> 2029 | C29: =SUMIF($B$59:$B$840,"<="&DATE($B29,12,31),$C$59:$C$840)-SUM(C$24:C28) -> 0 | D29: =SUMIF($B$59:$B$840,"<="&DATE($B29,12,31),$D$59:$D$840)-SUM(D$24:D28) -> 0 | F29: =SUMIF($B$59:$B$840,"<="&DATE($B29,12,31),$F$59:$F$840)-SUM(F$24:F28) -> 0 | G29: =SUMIF($B$59:$B$840,"<="&DATE($B29,12,31),$G$59:$G$840)-SUM(G$24:G28) -> 0 | H29: =H28-G29 -> 0
B30: 2030 | C30: =SUMIF($B$59:$B$840,"<="&DATE($B30,12,31),$C$59:$C$840)-SUM(C$24:C29) -> 0 | D30: =SUMIF($B$59:$B$840,"<="&DATE($B30,12,31),$D$59:$D$840)-SUM(D$24:D29) -> 0 | F30: =SUMIF($B$59:$B$840,"<="&DATE($B30,12,31),$F$59:$F$840)-SUM(F$24:F29) -> 0 | G30: =SUMIF($B$59:$B$840,"<="&DATE($B30,12,31),$G$59:$G$840)-SUM(G$24:G29) -> 0 | H30: 0
B31: 2031 | C31: =SUMIF($B$59:$B$840,"<="&DATE($B31,12,31),$C$59:$C$840)-SUM(C$24:C30) -> 0 | D31: =SUMIF($B$59:$B$840,"<="&DATE($B31,12,31),$D$59:$D$840)-SUM(D$24:D30) -> 0 | F31: =SUMIF($B$59:$B$840,"<="&DATE($B31,12,31),$F$59:$F$840)-SUM(F$24:F30) -> 0 | G31: =SUMIF($B$59:$B$840,"<="&DATE($B31,12,31),$G$59:$G$840)-SUM(G$24:G30) -> 0 | H31: 0
B32: 2032 | C32: =SUMIF($B$59:$B$840,"<="&DATE($B32,12,31),$C$59:$C$840)-SUM(C$24:C31) -> 0 | D32: =SUMIF($B$59:$B$840,"<="&DATE($B32,12,31),$D$59:$D$840)-SUM(D$24:D31) -> 0 | F32: =SUMIF($B$59:$B$840,"<="&DATE($B32,12,31),$F$59:$F$840)-SUM(F$24:F31) -> 0 | G32: =SUMIF($B$59:$B$840,"<="&DATE($B32,12,31),$G$59:$G$840)-SUM(G$24:G31) -> 0 | H32: 0
B33: 2033 | C33: =SUMIF($B$59:$B$840,"<="&DATE($B33,12,31),$C$59:$C$840)-SUM(C$24:C32) -> 0 | D33: =SUMIF($B$59:$B$840,"<="&DATE($B33,12,31),$D$59:$D$840)-SUM(D$24:D32) -> 0 | F33: =SUMIF($B$59:$B$840,"<="&DATE($B33,12,31),$F$59:$F$840)-SUM(F$24:F32) -> 0 | G33: =SUMIF($B$59:$B$840,"<="&DATE($B33,12,31),$G$59:$G$840)-SUM(G$24:G32) -> 0 | H33: 0
B34: 2034 | C34: =SUMIF($B$59:$B$840,"<="&DATE($B34,12,31),$C$59:$C$840)-SUM(C$24:C33) -> 0 | D34: =SUMIF($B$59:$B$840,"<="&DATE($B34,12,31),$D$59:$D$840)-SUM(D$24:D33) -> 0 | F34: =SUMIF($B$59:$B$840,"<="&DATE($B34,12,31),$F$59:$F$840)-SUM(F$24:F33) -> 0 | G34: =SUMIF($B$59:$B$840,"<="&DATE($B34,12,31),$G$59:$G$840)-SUM(G$24:G33) -> 0 | H34: 0
B35: 2035 | C35: =SUMIF($B$59:$B$840,"<="&DATE($B35,12,31),$C$59:$C$840)-SUM(C$24:C34) -> 0 | D35: =SUMIF($B$59:$B$840,"<="&DATE($B35,12,31),$D$59:$D$840)-SUM(D$24:D34) -> 0 | F35: =SUMIF($B$59:$B$840,"<="&DATE($B35,12,31),$F$59:$F$840)-SUM(F$24:F34) -> 0 | G35: =SUMIF($B$59:$B$840,"<="&DATE($B35,12,31),$G$59:$G$840)-SUM(G$24:G34) -> 0 | H35: 0
B36: 2036 | C36: =SUMIF($B$59:$B$840,"<="&DATE($B36,12,31),$C$59:$C$840)-SUM(C$24:C35) -> 0 | D36: =SUMIF($B$59:$B$840,"<="&DATE($B36,12,31),$D$59:$D$840)-SUM(D$24:D35) -> 0 | F36: =SUMIF($B$59:$B$840,"<="&DATE($B36,12,31),$F$59:$F$840)-SUM(F$24:F35) -> 0 | G36: =SUMIF($B$59:$B$840,"<="&DATE($B36,12,31),$G$59:$G$840)-SUM(G$24:G35) -> 0 | H36: 0
B37: 2037 | C37: =SUMIF($B$59:$B$840,"<="&DATE($B37,12,31),$C$59:$C$840)-SUM(C$24:C36) -> 0 | D37: =SUMIF($B$59:$B$840,"<="&DATE($B37,12,31),$D$59:$D$840)-SUM(D$24:D36) -> 0 | F37: =SUMIF($B$59:$B$840,"<="&DATE($B37,12,31),$F$59:$F$840)-SUM(F$24:F36) -> 0 | G37: =SUMIF($B$59:$B$840,"<="&DATE($B37,12,31),$G$59:$G$840)-SUM(G$24:G36) -> 0 | H37: 0
B38: 2038 | C38: =SUMIF($B$59:$B$840,"<="&DATE($B38,12,31),$C$59:$C$840)-SUM(C$24:C37) -> 0 | D38: =SUMIF($B$59:$B$840,"<="&DATE($B38,12,31),$D$59:$D$840)-SUM(D$24:D37) -> 0 | F38: =SUMIF($B$59:$B$840,"<="&DATE($B38,12,31),$F$59:$F$840)-SUM(F$24:F37) -> 0 | G38: =SUMIF($B$59:$B$840,"<="&DATE($B38,12,31),$G$59:$G$840)-SUM(G$24:G37) -> 0 | H38: 0
B39: 2039 | C39: =SUMIF($B$59:$B$840,"<="&DATE($B39,12,31),$C$59:$C$840)-SUM(C$24:C38) -> 0 | D39: =SUMIF($B$59:$B$840,"<="&DATE($B39,12,31),$D$59:$D$840)-SUM(D$24:D38) -> 0 | F39: =SUMIF($B$59:$B$840,"<="&DATE($B39,12,31),$F$59:$F$840)-SUM(F$24:F38) -> 0 | G39: =SUMIF($B$59:$B$840,"<="&DATE($B39,12,31),$G$59:$G$840)-SUM(G$24:G38) -> 0 | H39: 0
B40: 2040 | C40: =SUMIF($B$59:$B$840,"<="&DATE($B40,12,31),$C$59:$C$840)-SUM(C$24:C39) -> 0 | D40: =SUMIF($B$59:$B$840,"<="&DATE($B40,12,31),$D$59:$D$840)-SUM(D$24:D39) -> 0 | F40: =SUMIF($B$59:$B$840,"<="&DATE($B40,12,31),$F$59:$F$840)-SUM(F$24:F39) -> 0 | G40: =SUMIF($B$59:$B$840,"<="&DATE($B40,12,31),$G$59:$G$840)-SUM(G$24:G39) -> 0 | H40: 0
B41: 2041 | C41: =SUMIF($B$59:$B$840,"<="&DATE($B41,12,31),$C$59:$C$840)-SUM(C$24:C40) -> 0 | D41: =SUMIF($B$59:$B$840,"<="&DATE($B41,12,31),$D$59:$D$840)-SUM(D$24:D40) -> 0 | F41: =SUMIF($B$59:$B$840,"<="&DATE($B41,12,31),$F$59:$F$840)-SUM(F$24:F40) -> 0 | G41: =SUMIF($B$59:$B$840,"<="&DATE($B41,12,31),$G$59:$G$840)-SUM(G$24:G40) -> 0 | H41: 0
B42: 2042 | C42: =SUMIF($B$59:$B$840,"<="&DATE($B42,12,31),$C$59:$C$840)-SUM(C$24:C41) -> 0 | D42: =SUMIF($B$59:$B$840,"<="&DATE($B42,12,31),$D$59:$D$840)-SUM(D$24:D41) -> 0 | F42: =SUMIF($B$59:$B$840,"<="&DATE($B42,12,31),$F$59:$F$840)-SUM(F$24:F41) -> 0 | G42: =SUMIF($B$59:$B$840,"<="&DATE($B42,12,31),$G$59:$G$840)-SUM(G$24:G41) -> 0 | H42: 0
B43: 2043 | C43: =SUMIF($B$59:$B$840,"<="&DATE($B43,12,31),$C$59:$C$840)-SUM(C$24:C42) -> 0 | D43: =SUMIF($B$59:$B$840,"<="&DATE($B43,12,31),$D$59:$D$840)-SUM(D$24:D42) -> 0 | F43: =SUMIF($B$59:$B$840,"<="&DATE($B43,12,31),$F$59:$F$840)-SUM(F$24:F42) -> 0 | G43: =SUMIF($B$59:$B$840,"<="&DATE($B43,12,31),$G$59:$G$840)-SUM(G$24:G42) -> 0 | H43: 0
B44: 2044 | C44: =SUMIF($B$59:$B$840,"<="&DATE($B44,12,31),$C$59:$C$840)-SUM(C$24:C43) -> 0 | D44: =SUMIF($B$59:$B$840,"<="&DATE($B44,12,31),$D$59:$D$840)-SUM(D$24:D43) -> 0 | F44: =SUMIF($B$59:$B$840,"<="&DATE($B44,12,31),$F$59:$F$840)-SUM(F$24:F43) -> 0 | G44: =SUMIF($B$59:$B$840,"<="&DATE($B44,12,31),$G$59:$G$840)-SUM(G$24:G43) -> 0 | H44: 0
B45: 2045 | C45: =SUMIF($B$59:$B$840,"<="&DATE($B45,12,31),$C$59:$C$840)-SUM(C$24:C44) -> 0 | D45: =SUMIF($B$59:$B$840,"<="&DATE($B45,12,31),$D$59:$D$840)-SUM(D$24:D44) -> 0 | F45: =SUMIF($B$59:$B$840,"<="&DATE($B45,12,31),$F$59:$F$840)-SUM(F$24:F44) -> 0 | G45: =SUMIF($B$59:$B$840,"<="&DATE($B45,12,31),$G$59:$G$840)-SUM(G$24:G44) -> 0 | H45: 0
B46: 2046 | C46: =SUMIF($B$59:$B$840,"<="&DATE($B46,12,31),$C$59:$C$840)-SUM(C$24:C45) -> 0 | D46: =SUMIF($B$59:$B$840,"<="&DATE($B46,12,31),$D$59:$D$840)-SUM(D$24:D45) -> 0 | F46: =SUMIF($B$59:$B$840,"<="&DATE($B46,12,31),$F$59:$F$840)-SUM(F$24:F45) -> 0 | G46: =SUMIF($B$59:$B$840,"<="&DATE($B46,12,31),$G$59:$G$840)-SUM(G$24:G45) -> 0 | H46: 0
B47: 2047 | C47: =SUMIF($B$59:$B$840,"<="&DATE($B47,12,31),$C$59:$C$840)-SUM(C$24:C46) -> 0 | D47: =SUMIF($B$59:$B$840,"<="&DATE($B47,12,31),$D$59:$D$840)-SUM(D$24:D46) -> 0 | F47: =SUMIF($B$59:$B$840,"<="&DATE($B47,12,31),$F$59:$F$840)-SUM(F$24:F46) -> 0 | G47: =SUMIF($B$59:$B$840,"<="&DATE($B47,12,31),$G$59:$G$840)-SUM(G$24:G46) -> 0 | H47: 0
B48: 2048 | C48: =SUMIF($B$59:$B$840,"<="&DATE($B48,12,31),$C$59:$C$840)-SUM(C$24:C47) -> 0 | D48: =SUMIF($B$59:$B$840,"<="&DATE($B48,12,31),$D$59:$D$840)-SUM(D$24:D47) -> 0 | F48: =SUMIF($B$59:$B$840,"<="&DATE($B48,12,31),$F$59:$F$840)-SUM(F$24:F47) -> 0 | G48: =SUMIF($B$59:$B$840,"<="&DATE($B48,12,31),$G$59:$G$840)-SUM(G$24:G47) -> 0 | H48: 0
B49: 2049 | C49: =SUMIF($B$59:$B$840,"<="&DATE($B49,12,31),$C$59:$C$840)-SUM(C$24:C48) -> 0 | D49: =SUMIF($B$59:$B$840,"<="&DATE($B49,12,31),$D$59:$D$840)-SUM(D$24:D48) -> 0 | F49: =SUMIF($B$59:$B$840,"<="&DATE($B49,12,31),$F$59:$F$840)-SUM(F$24:F48) -> 0 | G49: =SUMIF($B$59:$B$840,"<="&DATE($B49,12,31),$G$59:$G$840)-SUM(G$24:G48) -> 0 | H49: 0
B50: 2050 | C50: =SUMIF($B$59:$B$840,"<="&DATE($B50,12,31),$C$59:$C$840)-SUM(C$24:C49) -> 0 | D50: =SUMIF($B$59:$B$840,"<="&DATE($B50,12,31),$D$59:$D$840)-SUM(D$24:D49) -> 0 | F50: =SUMIF($B$59:$B$840,"<="&DATE($B50,12,31),$F$59:$F$840)-SUM(F$24:F49) -> 0 | G50: =SUMIF($B$59:$B$840,"<="&DATE($B50,12,31),$G$59:$G$840)-SUM(G$24:G49) -> 0 | H50: 0
B51: 2051 | C51: =SUMIF($B$59:$B$840,"<="&DATE($B51,12,31),$C$59:$C$840)-SUM(C$24:C50) -> 0 | D51: =SUMIF($B$59:$B$840,"<="&DATE($B51,12,31),$D$59:$D$840)-SUM(D$24:D50) -> 0 | F51: =SUMIF($B$59:$B$840,"<="&DATE($B51,12,31),$F$59:$F$840)-SUM(F$24:F50) -> 0 | G51: =SUMIF($B$59:$B$840,"<="&DATE($B51,12,31),$G$59:$G$840)-SUM(G$24:G50) -> 0 | H51: 0
B52: 2052 | C52: =SUMIF($B$59:$B$840,"<="&DATE($B52,12,31),$C$59:$C$840)-SUM(C$24:C51) -> 0 | D52: =SUMIF($B$59:$B$840,"<="&DATE($B52,12,31),$D$59:$D$840)-SUM(D$24:D51) -> 0 | F52: =SUMIF($B$59:$B$840,"<="&DATE($B52,12,31),$F$59:$F$840)-SUM(F$24:F51) -> 0 | G52: =SUMIF($B$59:$B$840,"<="&DATE($B52,12,31),$G$59:$G$840)-SUM(G$24:G51) -> 0 | H52: 0
B53: 2053 | C53: =SUMIF($B$59:$B$840,"<="&DATE($B53,12,31),$C$59:$C$840)-SUM(C$24:C52) -> 0 | D53: =SUMIF($B$59:$B$840,"<="&DATE($B53,12,31),$D$59:$D$840)-SUM(D$24:D52) -> 0 | F53: =SUMIF($B$59:$B$840,"<="&DATE($B53,12,31),$F$59:$F$840)-SUM(F$24:F52) -> 0 | G53: =SUMIF($B$59:$B$840,"<="&DATE($B53,12,31),$G$59:$G$840)-SUM(G$24:G52) -> 0 | H53: 0
B54: 2054 | C54: =SUMIF($B$59:$B$840,"<="&DATE($B54,12,31),$C$59:$C$840)-SUM(C$24:C53) -> 0 | D54: =SUMIF($B$59:$B$840,"<="&DATE($B54,12,31),$D$59:$D$840)-SUM(D$24:D53) -> 0 | F54: =SUMIF($B$59:$B$840,"<="&DATE($B54,12,31),$F$59:$F$840)-SUM(F$24:F53) -> 0 | G54: =SUMIF($B$59:$B$840,"<="&DATE($B54,12,31),$G$59:$G$840)-SUM(G$24:G53) -> 0 | H54: 0
B55: 2055 | C55: =SUMIF($B$59:$B$840,"<="&DATE($B55,12,31),$C$59:$C$840)-SUM(C$24:C54) -> 0 | D55: =SUMIF($B$59:$B$840,"<="&DATE($B55,12,31),$D$59:$D$840)-SUM(D$24:D54) -> 0 | F55: =SUMIF($B$59:$B$840,"<="&DATE($B55,12,31),$F$59:$F$840)-SUM(F$24:F54) -> 0 | G55: =SUMIF($B$59:$B$840,"<="&DATE($B55,12,31),$G$59:$G$840)-SUM(G$24:G54) -> 0 | H55: 0
A57: Amortisation Schedule
A58: No. | B58: Due Date | C58: Payment Due | D58: Additional Payment | F58: Interest | G58: Principal | H58: Balance
H59: =$D$5 -> 0
A60: =IF(H59="","",IF(roundOpt,IF(OR(A59>=nper,ROUND(H59,2)<=0),"",A59+1),IF(OR(A59>=nper,H59<=0),"",A59+1))) ->  | B60: =IF(A60="","",IF(OR(periods_per_year=26,periods_per_year=52),IF(periods_per_year=26,IF(A60=1,fpdate,B59+14),IF(periods_per_year=52,IF(A60=1,fpdate,B59+7),"n/a")),IF(periods_per_year=24,DATE(YEAR(fpdate),MONTH(fpdate)+(A60-1)/2+IF(AND(DAY(fpdate)>=15,MOD(A60,2)=0),1,0),IF(MOD(A60,2)=0,IF(DAY(fpdate)>=15,DAY(fpdate)-14,DAY(fpdate)+14),DAY(fpdate))),IF(DAY(DATE(YEAR(fpdate),MONTH(fpdate)+(A60-1)*months_per_period,DAY(fpdate)))<>DAY(fpdate),DATE(YEAR(fpdate),MONTH(fpdate)+(A60-1)*months_per_period+1,0),DATE(YEAR(fpdate),MONTH(fpdate)+(A60-1)*months_per_period,DAY(fpdate)))))) ->  | C60: =IF(A60="","",IF(roundOpt,IF(OR(A60=nper,payment>ROUND((1+rate)*H59,2)),ROUND((1+rate)*H59,2),payment),IF(OR(A60=nper,payment>(1+rate)*H59),(1+rate)*H59,payment))) ->  | F60: =IF(A60="","",IF(AND(A60=1,pmtType=1),0,IF(roundOpt,ROUND(rate*H59,2),rate*H59))) ->  | G60: =IF(A60="","",C60-F60+D60) ->  | H60: =IF(A60="","",H59-G60) -> 
A124: =IF(H123="","",IF(roundOpt,IF(OR(A123>=nper,ROUND(H123,2)<=0),"",A123+1),IF(OR(A123>=nper,H123<=0),"",A123+1))) ->  | B124: =IF(A124="","",IF(OR(periods_per_year=26,periods_per_year=52),IF(periods_per_year=26,IF(A124=1,fpdate,B123+14),IF(periods_per_year=52,IF(A124=1,fpdate,B123+7),"n/a")),IF(periods_per_year=24,DATE(YEAR(fpdate),MONTH(fpdate)+(A124-1)/2+IF(AND(DAY(fpdate)>=15,MOD(A124,2)=0),1,0),IF(MOD(A124,2)=0,IF(DAY(fpdate)>=15,DAY(fpdate)-14,DAY(fpdate)+14),DAY(fpdate))),IF(DAY(DATE(YEAR(fpdate),MONTH(fpdate)+(A124-1)*months_per_period,DAY(fpdate)))<>DAY(fpdate),DATE(YEAR(fpdate),MONTH(fpdate)+(A124-1)*months_per_period+1,0),DATE(YEAR(fpdate),MONTH(fpdate)+(A124-1)*months_per_period,DAY(fpdate)))))) ->  | C124: =IF(A124="","",IF(roundOpt,IF(OR(A124=nper,payment>ROUND((1+rate)*H123,2)),ROUND((1+rate)*H123,2),payment),IF(OR(A124=nper,payment>(1+rate)*H123),(1+rate)*H123,payment))) ->  | F124: =IF(A124="","",IF(AND(A124=1,pmtType=1),0,IF(roundOpt,ROUND(rate*H123,2),rate*H123))) ->  | G124: =IF(A124="","",C124-F124+D124) ->  | H124: =IF(A124="","",H123-G124) -> 
A188: =IF(H187="","",IF(roundOpt,IF(OR(A187>=nper,ROUND(H187,2)<=0),"",A187+1),IF(OR(A187>=nper,H187<=0),"",A187+1))) ->  | B188: =IF(A188="","",IF(OR(periods_per_year=26,periods_per_year=52),IF(periods_per_year=26,IF(A188=1,fpdate,B187+14),IF(periods_per_year=52,IF(A188=1,fpdate,B187+7),"n/a")),IF(periods_per_year=24,DATE(YEAR(fpdate),MONTH(fpdate)+(A188-1)/2+IF(AND(DAY(fpdate)>=15,MOD(A188,2)=0),1,0),IF(MOD(A188,2)=0,IF(DAY(fpdate)>=15,DAY(fpdate)-14,DAY(fpdate)+14),DAY(fpdate))),IF(DAY(DATE(YEAR(fpdate),MONTH(fpdate)+(A188-1)*months_per_period,DAY(fpdate)))<>DAY(fpdate),DATE(YEAR(fpdate),MONTH(fpdate)+(A188-1)*months_per_period+1,0),DATE(YEAR(fpdate),MONTH(fpdate)+(A188-1)*months_per_period,DAY(fpdate)))))) ->  | C188: =IF(A188="","",IF(roundOpt,IF(OR(A188=nper,payment>ROUND((1+rate)*H187,2)),ROUND((1+rate)*H187,2),payment),IF(OR(A188=nper,payment>(1+rate)*H187),(1+rate)*H187,payment))) ->  | F188: =IF(A188="","",IF(AND(A188=1,pmtType=1),0,IF(roundOpt,ROUND(rate*H187,2),rate*H187))) ->  | G188: =IF(A188="","",C188-F188+D188) ->  | H188: =IF(A188="","",H187-G188) -> 
A252: =IF(H251="","",IF(roundOpt,IF(OR(A251>=nper,ROUND(H251,2)<=0),"",A251+1),IF(OR(A251>=nper,H251<=0),"",A251+1))) ->  | B252: =IF(A252="","",IF(OR(periods_per_year=26,periods_per_year=52),IF(periods_per_year=26,IF(A252=1,fpdate,B251+14),IF(periods_per_year=52,IF(A252=1,fpdate,B251+7),"n/a")),IF(periods_per_year=24,DATE(YEAR(fpdate),MONTH(fpdate)+(A252-1)/2+IF(AND(DAY(fpdate)>=15,MOD(A252,2)=0),1,0),IF(MOD(A252,2)=0,IF(DAY(fpdate)>=15,DAY(fpdate)-14,DAY(fpdate)+14),DAY(fpdate))),IF(DAY(DATE(YEAR(fpdate),MONTH(fpdate)+(A252-1)*months_per_period,DAY(fpdate)))<>DAY(fpdate),DATE(YEAR(fpdate),MONTH(fpdate)+(A252-1)*months_per_period+1,0),DATE(YEAR(fpdate),MONTH(fpdate)+(A252-1)*months_per_period,DAY(fpdate)))))) ->  | C252: =IF(A252="","",IF(roundOpt,IF(OR(A252=nper,payment>ROUND((1+rate)*H251,2)),ROUND((1+rate)*H251,2),payment),IF(OR(A252=nper,payment>(1+rate)*H251),(1+rate)*H251,payment))) ->  | F252: =IF(A252="","",IF(AND(A252=1,pmtType=1),0,IF(roundOpt,ROUND(rate*H251,2),rate*H251))) ->  | G252: =IF(A252="","",C252-F252+D252) ->  | H252: =IF(A252="","",H251-G252) -> 
A316: =IF(H315="","",IF(roundOpt,IF(OR(A315>=nper,ROUND(H315,2)<=0),"",A315+1),IF(OR(A315>=nper,H315<=0),"",A315+1))) ->  | B316: =IF(A316="","",IF(OR(periods_per_year=26,periods_per_year=52),IF(periods_per_year=26,IF(A316=1,fpdate,B315+14),IF(periods_per_year=52,IF(A316=1,fpdate,B315+7),"n/a")),IF(periods_per_year=24,DATE(YEAR(fpdate),MONTH(fpdate)+(A316-1)/2+IF(AND(DAY(fpdate)>=15,MOD(A316,2)=0),1,0),IF(MOD(A316,2)=0,IF(DAY(fpdate)>=15,DAY(fpdate)-14,DAY(fpdate)+14),DAY(fpdate))),IF(DAY(DATE(YEAR(fpdate),MONTH(fpdate)+(A316-1)*months_per_period,DAY(fpdate)))<>DAY(fpdate),DATE(YEAR(fpdate),MONTH(fpdate)+(A316-1)*months_per_period+1,0),DATE(YEAR(fpdate),MONTH(fpdate)+(A316-1)*months_per_period,DAY(fpdate)))))) ->  | C316: =IF(A316="","",IF(roundOpt,IF(OR(A316=nper,payment>ROUND((1+rate)*H315,2)),ROUND((1+rate)*H315,2),payment),IF(OR(A316=nper,payment>(1+rate)*H315),(1+rate)*H315,payment))) ->  | F316: =IF(A316="","",IF(AND(A316=1,pmtType=1),0,IF(roundOpt,ROUND(rate*H315,2),rate*H315))) ->  | G316: =IF(A316="","",C316-F316+D316) ->  | H316: =IF(A316="","",H315-G316) -> 
A380: =IF(H379="","",IF(roundOpt,IF(OR(A379>=nper,ROUND(H379,2)<=0),"",A379+1),IF(OR(A379>=nper,H379<=0),"",A379+1))) ->  | B380: =IF(A380="","",IF(OR(periods_per_year=26,periods_per_year=52),IF(periods_per_year=26,IF(A380=1,fpdate,B379+14),IF(periods_per_year=52,IF(A380=1,fpdate,B379+7),"n/a")),IF(periods_per_year=24,DATE(YEAR(fpdate),MONTH(fpdate)+(A380-1)/2+IF(AND(DAY(fpdate)>=15,MOD(A380,2)=0),1,0),IF(MOD(A380,2)=0,IF(DAY(fpdate)>=15,DAY(fpdate)-14,DAY(fpdate)+14),DAY(fpdate))),IF(DAY(DATE(YEAR(fpdate),MONTH(fpdate)+(A380-1)*months_per_period,DAY(fpdate)))<>DAY(fpdate),DATE(YEAR(fpdate),MONTH(fpdate)+(A380-1)*months_per_period+1,0),DATE(YEAR(fpdate),MONTH(fpdate)+(A380-1)*months_per_period,DAY(fpdate)))))) ->  | C380: =IF(A380="","",IF(roundOpt,IF(OR(A380=nper,payment>ROUND((1+rate)*H379,2)),ROUND((1+rate)*H379,2),payment),IF(OR(A380=nper,payment>(1+rate)*H379),(1+rate)*H379,payment))) ->  | F380: =IF(A380="","",IF(AND(A380=1,pmtType=1),0,IF(roundOpt,ROUND(rate*H379,2),rate*H379))) ->  | G380: =IF(A380="","",C380-F380+D380) ->  | H380: =IF(A380="","",H379-G380) -> 
A444: =IF(H443="","",IF(roundOpt,IF(OR(A443>=nper,ROUND(H443,2)<=0),"",A443+1),IF(OR(A443>=nper,H443<=0),"",A443+1))) ->  | B444: =IF(A444="","",IF(OR(periods_per_year=26,periods_per_year=52),IF(periods_per_year=26,IF(A444=1,fpdate,B443+14),IF(periods_per_year=52,IF(A444=1,fpdate,B443+7),"n/a")),IF(periods_per_year=24,DATE(YEAR(fpdate),MONTH(fpdate)+(A444-1)/2+IF(AND(DAY(fpdate)>=15,MOD(A444,2)=0),1,0),IF(MOD(A444,2)=0,IF(DAY(fpdate)>=15,DAY(fpdate)-14,DAY(fpdate)+14),DAY(fpdate))),IF(DAY(DATE(YEAR(fpdate),MONTH(fpdate)+(A444-1)*months_per_period,DAY(fpdate)))<>DAY(fpdate),DATE(YEAR(fpdate),MONTH(fpdate)+(A444-1)*months_per_period+1,0),DATE(YEAR(fpdate),MONTH(fpdate)+(A444-1)*months_per_period,DAY(fpdate)))))) ->  | C444: =IF(A444="","",IF(roundOpt,IF(OR(A444=nper,payment>ROUND((1+rate)*H443,2)),ROUND((1+rate)*H443,2),payment),IF(OR(A444=nper,payment>(1+rate)*H443),(1+rate)*H443,payment))) ->  | F444: =IF(A444="","",IF(AND(A444=1,pmtType=1),0,IF(roundOpt,ROUND(rate*H443,2),rate*H443))) ->  | G444: =IF(A444="","",C444-F444+D444) ->  | H444: =IF(A444="","",H443-G444) -> 
A508: =IF(H507="","",IF(roundOpt,IF(OR(A507>=nper,ROUND(H507,2)<=0),"",A507+1),IF(OR(A507>=nper,H507<=0),"",A507+1))) ->  | B508: =IF(A508="","",IF(OR(periods_per_year=26,periods_per_year=52),IF(periods_per_year=26,IF(A508=1,fpdate,B507+14),IF(periods_per_year=52,IF(A508=1,fpdate,B507+7),"n/a")),IF(periods_per_year=24,DATE(YEAR(fpdate),MONTH(fpdate)+(A508-1)/2+IF(AND(DAY(fpdate)>=15,MOD(A508,2)=0),1,0),IF(MOD(A508,2)=0,IF(DAY(fpdate)>=15,DAY(fpdate)-14,DAY(fpdate)+14),DAY(fpdate))),IF(DAY(DATE(YEAR(fpdate),MONTH(fpdate)+(A508-1)*months_per_period,DAY(fpdate)))<>DAY(fpdate),DATE(YEAR(fpdate),MONTH(fpdate)+(A508-1)*months_per_period+1,0),DATE(YEAR(fpdate),MONTH(fpdate)+(A508-1)*months_per_period,DAY(fpdate)))))) ->  | C508: =IF(A508="","",IF(roundOpt,IF(OR(A508=nper,payment>ROUND((1+rate)*H507,2)),ROUND((1+rate)*H507,2),payment),IF(OR(A508=nper,payment>(1+rate)*H507),(1+rate)*H507,payment))) ->  | F508: =IF(A508="","",IF(AND(A508=1,pmtType=1),0,IF(roundOpt,ROUND(rate*H507,2),rate*H507))) ->  | G508: =IF(A508="","",C508-F508+D508) ->  | H508: =IF(A508="","",H507-G508) -> 
A572: =IF(H571="","",IF(roundOpt,IF(OR(A571>=nper,ROUND(H571,2)<=0),"",A571+1),IF(OR(A571>=nper,H571<=0),"",A571+1))) ->  | B572: =IF(A572="","",IF(OR(periods_per_year=26,periods_per_year=52),IF(periods_per_year=26,IF(A572=1,fpdate,B571+14),IF(periods_per_year=52,IF(A572=1,fpdate,B571+7),"n/a")),IF(periods_per_year=24,DATE(YEAR(fpdate),MONTH(fpdate)+(A572-1)/2+IF(AND(DAY(fpdate)>=15,MOD(A572,2)=0),1,0),IF(MOD(A572,2)=0,IF(DAY(fpdate)>=15,DAY(fpdate)-14,DAY(fpdate)+14),DAY(fpdate))),IF(DAY(DATE(YEAR(fpdate),MONTH(fpdate)+(A572-1)*months_per_period,DAY(fpdate)))<>DAY(fpdate),DATE(YEAR(fpdate),MONTH(fpdate)+(A572-1)*months_per_period+1,0),DATE(YEAR(fpdate),MONTH(fpdate)+(A572-1)*months_per_period,DAY(fpdate)))))) ->  | C572: =IF(A572="","",IF(roundOpt,IF(OR(A572=nper,payment>ROUND((1+rate)*H571,2)),ROUND((1+rate)*H571,2),payment),IF(OR(A572=nper,payment>(1+rate)*H571),(1+rate)*H571,payment))) ->  | F572: =IF(A572="","",IF(AND(A572=1,pmtType=1),0,IF(roundOpt,ROUND(rate*H571,2),rate*H571))) ->  | G572: =IF(A572="","",C572-F572+D572) ->  | H572: =IF(A572="","",H571-G572) -> 
A636: =IF(H635="","",IF(roundOpt,IF(OR(A635>=nper,ROUND(H635,2)<=0),"",A635+1),IF(OR(A635>=nper,H635<=0),"",A635+1))) ->  | B636: =IF(A636="","",IF(OR(periods_per_year=26,periods_per_year=52),IF(periods_per_year=26,IF(A636=1,fpdate,B635+14),IF(periods_per_year=52,IF(A636=1,fpdate,B635+7),"n/a")),IF(periods_per_year=24,DATE(YEAR(fpdate),MONTH(fpdate)+(A636-1)/2+IF(AND(DAY(fpdate)>=15,MOD(A636,2)=0),1,0),IF(MOD(A636,2)=0,IF(DAY(fpdate)>=15,DAY(fpdate)-14,DAY(fpdate)+14),DAY(fpdate))),IF(DAY(DATE(YEAR(fpdate),MONTH(fpdate)+(A636-1)*months_per_period,DAY(fpdate)))<>DAY(fpdate),DATE(YEAR(fpdate),MONTH(fpdate)+(A636-1)*months_per_period+1,0),DATE(YEAR(fpdate),MONTH(fpdate)+(A636-1)*months_per_period,DAY(fpdate)))))) ->  | C636: =IF(A636="","",IF(roundOpt,IF(OR(A636=nper,payment>ROUND((1+rate)*H635,2)),ROUND((1+rate)*H635,2),payment),IF(OR(A636=nper,payment>(1+rate)*H635),(1+rate)*H635,payment))) ->  | F636: =IF(A636="","",IF(AND(A636=1,pmtType=1),0,IF(roundOpt,ROUND(rate*H635,2),rate*H635))) ->  | G636: =IF(A636="","",C636-F636+D636) ->  | H636: =IF(A636="","",H635-G636) -> 
A700: =IF(H699="","",IF(roundOpt,IF(OR(A699>=nper,ROUND(H699,2)<=0),"",A699+1),IF(OR(A699>=nper,H699<=0),"",A699+1))) ->  | B700: =IF(A700="","",IF(OR(periods_per_year=26,periods_per_year=52),IF(periods_per_year=26,IF(A700=1,fpdate,B699+14),IF(periods_per_year=52,IF(A700=1,fpdate,B699+7),"n/a")),IF(periods_per_year=24,DATE(YEAR(fpdate),MONTH(fpdate)+(A700-1)/2+IF(AND(DAY(fpdate)>=15,MOD(A700,2)=0),1,0),IF(MOD(A700,2)=0,IF(DAY(fpdate)>=15,DAY(fpdate)-14,DAY(fpdate)+14),DAY(fpdate))),IF(DAY(DATE(YEAR(fpdate),MONTH(fpdate)+(A700-1)*months_per_period,DAY(fpdate)))<>DAY(fpdate),DATE(YEAR(fpdate),MONTH(fpdate)+(A700-1)*months_per_period+1,0),DATE(YEAR(fpdate),MONTH(fpdate)+(A700-1)*months_per_period,DAY(fpdate)))))) ->  | C700: =IF(A700="","",IF(roundOpt,IF(OR(A700=nper,payment>ROUND((1+rate)*H699,2)),ROUND((1+rate)*H699,2),payment),IF(OR(A700=nper,payment>(1+rate)*H699),(1+rate)*H699,payment))) ->  | F700: =IF(A700="","",IF(AND(A700=1,pmtType=1),0,IF(roundOpt,ROUND(rate*H699,2),rate*H699))) ->  | G700: =IF(A700="","",C700-F700+D700) ->  | H700: =IF(A700="","",H699-G700) -> 
A764: =IF(H763="","",IF(roundOpt,IF(OR(A763>=nper,ROUND(H763,2)<=0),"",A763+1),IF(OR(A763>=nper,H763<=0),"",A763+1))) ->  | B764: =IF(A764="","",IF(OR(periods_per_year=26,periods_per_year=52),IF(periods_per_year=26,IF(A764=1,fpdate,B763+14),IF(periods_per_year=52,IF(A764=1,fpdate,B763+7),"n/a")),IF(periods_per_year=24,DATE(YEAR(fpdate),MONTH(fpdate)+(A764-1)/2+IF(AND(DAY(fpdate)>=15,MOD(A764,2)=0),1,0),IF(MOD(A764,2)=0,IF(DAY(fpdate)>=15,DAY(fpdate)-14,DAY(fpdate)+14),DAY(fpdate))),IF(DAY(DATE(YEAR(fpdate),MONTH(fpdate)+(A764-1)*months_per_period,DAY(fpdate)))<>DAY(fpdate),DATE(YEAR(fpdate),MONTH(fpdate)+(A764-1)*months_per_period+1,0),DATE(YEAR(fpdate),MONTH(fpdate)+(A764-1)*months_per_period,DAY(fpdate)))))) ->  | C764: =IF(A764="","",IF(roundOpt,IF(OR(A764=nper,payment>ROUND((1+rate)*H763,2)),ROUND((1+rate)*H763,2),payment),IF(OR(A764=nper,payment>(1+rate)*H763),(1+rate)*H763,payment))) ->  | F764: =IF(A764="","",IF(AND(A764=1,pmtType=1),0,IF(roundOpt,ROUND(rate*H763,2),rate*H763))) ->  | G764: =IF(A764="","",C764-F764+D764) ->  | H764: =IF(A764="","",H763-G764) -> 
A828: =IF(H827="","",IF(roundOpt,IF(OR(A827>=nper,ROUND(H827,2)<=0),"",A827+1),IF(OR(A827>=nper,H827<=0),"",A827+1))) ->  | B828: =IF(A828="","",IF(OR(periods_per_year=26,periods_per_year=52),IF(periods_per_year=26,IF(A828=1,fpdate,B827+14),IF(periods_per_year=52,IF(A828=1,fpdate,B827+7),"n/a")),IF(periods_per_year=24,DATE(YEAR(fpdate),MONTH(fpdate)+(A828-1)/2+IF(AND(DAY(fpdate)>=15,MOD(A828,2)=0),1,0),IF(MOD(A828,2)=0,IF(DAY(fpdate)>=15,DAY(fpdate)-14,DAY(fpdate)+14),DAY(fpdate))),IF(DAY(DATE(YEAR(fpdate),MONTH(fpdate)+(A828-1)*months_per_period,DAY(fpdate)))<>DAY(fpdate),DATE(YEAR(fpdate),MONTH(fpdate)+(A828-1)*months_per_period+1,0),DATE(YEAR(fpdate),MONTH(fpdate)+(A828-1)*months_per_period,DAY(fpdate)))))) ->  | C828: =IF(A828="","",IF(roundOpt,IF(OR(A828=nper,payment>ROUND((1+rate)*H827,2)),ROUND((1+rate)*H827,2),payment),IF(OR(A828=nper,payment>(1+rate)*H827),(1+rate)*H827,payment))) ->  | F828: =IF(A828="","",IF(AND(A828=1,pmtType=1),0,IF(roundOpt,ROUND(rate*H827,2),rate*H827))) ->  | G828: =IF(A828="","",C828-F828+D828) ->  | H828: =IF(A828="","",H827-G828) -> 
D840: End

Sheet Amortisation Schedule_Loan2 (hidden)
A1: Loan Amortisation Schedule
A4: Loan Information | F4: Summary | K4: Frequency
C5: Loan Amount | D5: ='Loan Serviceability Calculator'!E43 -> 0 | G5: Rate (per period) | H5: =IF(D9=D10,D6/D14,((1+D6/D14)^(D14/D13))-1) ->  | K5: Annual
C6: Annual Interest Rate | D6: =IFERROR('Loan Serviceability Calculator'!H100,0) ->  | G6: Total Payments | H6: =SUM(F60:F839)+SUM(G60:G839) -> 0 | K6: Semi-Annual
C7: Term of Loan in Years | D7: ='Loan Serviceability Calculator'!F43/12 -> 0 | G7: Total Interest | H7: =SUM(F59:F839) -> 0 | K7: Quarterly
C8: First Payment Date | D8: =NOW() -> 2025-06-06T10:00:07.580 | G8: Est. Interest Savings | H8: =IF(AND(SUM(D60:D839)=0,roundOpt)," - ",(nper*(-PMT(rate,nper,loan_amount,,pmtType))-loan_amount)-H7) -> - | K8: Bi-Monthly
C9: Payment Frequency | D9: Monthly | H9: =IF(AND(NOT(H839=""),H839>0.004),"ERROR: Limit is "&OFFSET(A840,-1,0,1,1)&" payments",".") -> . | K9: Monthly
C10: Compound Period | D10: =D9 -> Monthly | H10: =IF(D14>D13,"Warning: negative amortization",".") -> . | K10: Semi-Monthly
C11: Payment Type | D11: End of Period | K11: Bi-Weekly
C12: Rounding | D12: On | K12: Weekly
C13: Periods Per Year | D13: =INDEX({1;2;4;6;12;24;26;52},MATCH('Amortisation Schedule_Loan2'!$D$9,$K$5:$K$12,0)) -> 12
C14: Compound Period | D14: =INDEX({1;2;4;6;12;24;26;52},MATCH('Amortisation Schedule_Loan2'!$D$10,$K$5:$K$12,0)) -> 12
C15: Payment Type | D15: =IF('Amortisation Schedule_Loan2'!$D$11="End of Period",0,1) -> 0
C16: Months Per Period | D16: =12/$D$13 -> 1
C17: Number of Periods | D17: =$D$7*$D$13 -> 0
C18: Rounding Option | D18: =(D12="On") -> TRUE
H19: [42]
C20: =D9&" Payment" -> Monthly Payment | D20: =IFERROR(IF(roundOpt,ROUND(-PMT(rate,nper,$D$5,,pmtType),2),-PMT(rate,nper,$D$5,,pmtType)),0) -> 0
A22: Yearly Summary
B23: Year | C23: Payments | D23: Additional Payments | F23: Interest Paid | G23: Principal Paid | H23: Year-End Balance
H24: =loan_amount -> 0
B25: =YEAR(fpdate) -> 2025 | C25: =SUMIF($B$59:$B$840,"<="&DATE($B25,12,31),$C$59:$C$840)-SUM(C$24:C24) -> 0 | D25: =SUMIF($B$59:$B$840,"<="&DATE($B25,12,31),$D$59:$D$840)-SUM(D$24:D24) -> 0 | F25: =SUMIF($B$59:$B$840,"<="&DATE($B25,12,31),$F$59:$F$840)-SUM(F$24:F24) -> 0 | G25: =SUMIF($B$59:$B$840,"<="&DATE($B25,12,31),$G$59:$G$840)-SUM(G$24:G24) -> 0 | H25: =H24-G25 -> 0
B26: =B25+1 -> 2026 | C26: =SUMIF($B$59:$B$840,"<="&DATE($B26,12,31),$C$59:$C$840)-SUM(C$24:C25) -> 0 | D26: =SUMIF($B$59:$B$840,"<="&DATE($B26,12,31),$D$59:$D$840)-SUM(D$24:D25) -> 0 | F26: =SUMIF($B$59:$B$840,"<="&DATE($B26,12,31),$F$59:$F$840)-SUM(F$24:F25) -> 0 | G26: =SUMIF($B$59:$B$840,"<="&DATE($B26,12,31),$G$59:$G$840)-SUM(G$24:G25) -> 0 | H26: =H25-G26 -> 0
B27: =B26+1 -> 2027 | C27: =SUMIF($B$59:$B$840,"<="&DATE($B27,12,31),$C$59:$C$840)-SUM(C$24:C26) -> 0 | D27: =SUMIF($B$59:$B$840,"<="&DATE($B27,12,31),$D$59:$D$840)-SUM(D$24:D26) -> 0 | F27: =SUMIF($B$59:$B$840,"<="&DATE($B27,12,31),$F$59:$F$840)-SUM(F$24:F26) -> 0 | G27: =SUMIF($B$59:$B$840,"<="&DATE($B27,12,31),$G$59:$G$840)-SUM(G$24:G26) -> 0 | H27: =H26-G27 -> 0
B28: =B27+1 -> 2028 | C28: =SUMIF($B$59:$B$840,"<="&DATE($B28,12,31),$C$59:$C$840)-SUM(C$24:C27) -> 0 | D28: =SUMIF($B$59:$B$840,"<="&DATE($B28,12,31),$D$59:$D$840)-SUM(D$24:D27) -> 0 | F28: =SUMIF($B$59:$B$840,"<="&DATE($B28,12,31),$F$59:$F$840)-SUM(F$24:F27) -> 0 | G28: =SUMIF($B$59:$B$840,"<="&DATE($B28,12,31),$G$59:$G$840)-SUM(G$24:G27) -> 0 | H28: =H27-G28 -> 0
B29: =B28+1 -> 2029 | C29: =SUMIF($B$59:$B$840,"<="&DATE($B29,12,31),$C$59:$C$840)-SUM(C$24:C28) -> 0 | D29: =SUMIF($B$59:$B$840,"<="&DATE($B29,12,31),$D$59:$D$840)-SUM(D$24:D28) -> 0 | F29: =SUMIF($B$59:$B$840,"<="&DATE($B29,12,31),$F$59:$F$840)-SUM(F$24:F28) -> 0 | G29: =SUMIF($B$59:$B$840,"<="&DATE($B29,12,31),$G$59:$G$840)-SUM(G$24:G28) -> 0 | H29: =H28-G29 -> 0
B30: 2030 | C30: =SUMIF($B$59:$B$840,"<="&DATE($B30,12,31),$C$59:$C$840)-SUM(C$24:C29) -> 0 | D30: =SUMIF($B$59:$B$840,"<="&DATE($B30,12,31),$D$59:$D$840)-SUM(D$24:D29) -> 0 | F30: =SUMIF($B$59:$B$840,"<="&DATE($B30,12,31),$F$59:$F$840)-SUM(F$24:F29) -> 0 | G30: =SUMIF($B$59:$B$840,"<="&DATE($B30,12,31),$G$59:$G$840)-SUM(G$24:G29) -> 0 | H30: 0
B31: 2031 | C31: =SUMIF($B$59:$B$840,"<="&DATE($B31,12,31),$C$59:$C$840)-SUM(C$24:C30) -> 0 | D31: =SUMIF($B$59:$B$840,"<="&DATE($B31,12,31),$D$59:$D$840)-SUM(D$24:D30) -> 0 | F31: =SUMIF($B$59:$B$840,"<="&DATE($B31,12,31),$F$59:$F$840)-SUM(F$24:F30) -> 0 | G31: =SUMIF($B$59:$B$840,"<="&DATE($B31,12,31),$G$59:$G$840)-SUM(G$24:G30) -> 0 | H31: 0
B32: 2032 | C32: =SUMIF($B$59:$B$840,"<="&DATE($B32,12,31),$C$59:$C$840)-SUM(C$24:C31) -> 0 | D32: =SUMIF($B$59:$B$840,"<="&DATE($B32,12,31),$D$59:$D$840)-SUM(D$24:D31) -> 0 | F32: =SUMIF($B$59:$B$840,"<="&DATE($B32,12,31),$F$59:$F$840)-SUM(F$24:F31) -> 0 | G32: =SUMIF($B$59:$B$840,"<="&DATE($B32,12,31),$G$59:$G$840)-SUM(G$24:G31) -> 0 | H32: 0
B33: 2033 | C33: =SUMIF($B$59:$B$840,"<="&DATE($B33,12,31),$C$59:$C$840)-SUM(C$24:C32) -> 0 | D33: =SUMIF($B$59:$B$840,"<="&DATE($B33,12,31),$D$59:$D$840)-SUM(D$24:D32) -> 0 | F33: =SUMIF($B$59:$B$840,"<="&DATE($B33,12,31),$F$59:$F$840)-SUM(F$24:F32) -> 0 | G33: =SUMIF($B$59:$B$840,"<="&DATE($B33,12,31),$G$59:$G$840)-SUM(G$24:G32) -> 0 | H33: 0
B34: 2034 | C34: =SUMIF($B$59:$B$840,"<="&DATE($B34,12,31),$C$59:$C$840)-SUM(C$24:C33) -> 0 | D34: =SUMIF($B$59:$B$840,"<="&DATE($B34,12,31),$D$59:$D$840)-SUM(D$24:D33) -> 0 | F34: =SUMIF($B$59:$B$840,"<="&DATE($B34,12,31),$F$59:$F$840)-SUM(F$24:F33) -> 0 | G34: =SUMIF($B$59:$B$840,"<="&DATE($B34,12,31),$G$59:$G$840)-SUM(G$24:G33) -> 0 | H34: 0
B35: 2035 | C35: =SUMIF($B$59:$B$840,"<="&DATE($B35,12,31),$C$59:$C$840)-SUM(C$24:C34) -> 0 | D35: =SUMIF($B$59:$B$840,"<="&DATE($B35,12,31),$D$59:$D$840)-SUM(D$24:D34) -> 0 | F35: =SUMIF($B$59:$B$840,"<="&DATE($B35,12,31),$F$59:$F$840)-SUM(F$24:F34) -> 0 | G35: =SUMIF($B$59:$B$840,"<="&DATE($B35,12,31),$G$59:$G$840)-SUM(G$24:G34) -> 0 | H35: 0
B36: 2036 | C36: =SUMIF($B$59:$B$840,"<="&DATE($B36,12,31),$C$59:$C$840)-SUM(C$24:C35) -> 0 | D36: =SUMIF($B$59:$B$840,"<="&DATE($B36,12,31),$D$59:$D$840)-SUM(D$24:D35) -> 0 | F36: =SUMIF($B$59:$B$840,"<="&DATE($B36,12,31),$F$59:$F$840)-SUM(F$24:F35) -> 0 | G36: =SUMIF($B$59:$B$840,"<="&DATE($B36,12,31),$G$59:$G$840)-SUM(G$24:G35) -> 0 | H36: 0
B37: 2037 | C37: =SUMIF($B$59:$B$840,"<="&DATE($B37,12,31),$C$59:$C$840)-SUM(C$24:C36) -> 0 | D37: =SUMIF($B$59:$B$840,"<="&DATE($B37,12,31),$D$59:$D$840)-SUM(D$24:D36) -> 0 | F37: =SUMIF($B$59:$B$840,"<="&DATE($B37,12,31),$F$59:$F$840)-SUM(F$24:F36) -> 0 | G37: =SUMIF($B$59:$B$840,"<="&DATE($B37,12,31),$G$59:$G$840)-SUM(G$24:G36) -> 0 | H37: 0
B38: 2038 | C38: =SUMIF($B$59:$B$840,"<="&DATE($B38,12,31),$C$59:$C$840)-SUM(C$24:C37) -> 0 | D38: =SUMIF($B$59:$B$840,"<="&DATE($B38,12,31),$D$59:$D$840)-SUM(D$24:D37) -> 0 | F38: =SUMIF($B$59:$B$840,"<="&DATE($B38,12,31),$F$59:$F$840)-SUM(F$24:F37) -> 0 | G38: =SUMIF($B$59:$B$840,"<="&DATE($B38,12,31),$G$59:$G$840)-SUM(G$24:G37) -> 0 | H38: 0
B39: 2039 | C39: =SUMIF($B$59:$B$840,"<="&DATE($B39,12,31),$C$59:$C$840)-SUM(C$24:C38) -> 0 | D39: =SUMIF($B$59:$B$840,"<="&DATE($B39,12,31),$D$59:$D$840)-SUM(D$24:D38) -> 0 | F39: =SUMIF($B$59:$B$840,"<="&DATE($B39,12,31),$F$59:$F$840)-SUM(F$24:F38) -> 0 | G39: =SUMIF($B$59:$B$840,"<="&DATE($B39,12,31),$G$59:$G$840)-SUM(G$24:G38) -> 0 | H39: 0
B40: 2040 | C40: =SUMIF($B$59:$B$840,"<="&DATE($B40,12,31),$C$59:$C$840)-SUM(C$24:C39) -> 0 | D40: =SUMIF($B$59:$B$840,"<="&DATE($B40,12,31),$D$59:$D$840)-SUM(D$24:D39) -> 0 | F40: =SUMIF($B$59:$B$840,"<="&DATE($B40,12,31),$F$59:$F$840)-SUM(F$24:F39) -> 0 | G40: =SUMIF($B$59:$B$840,"<="&DATE($B40,12,31),$G$59:$G$840)-SUM(G$24:G39) -> 0 | H40: 0
B41: 2041 | C41: =SUMIF($B$59:$B$840,"<="&DATE($B41,12,31),$C$59:$C$840)-SUM(C$24:C40) -> 0 | D41: =SUMIF($B$59:$B$840,"<="&DATE($B41,12,31),$D$59:$D$840)-SUM(D$24:D40) -> 0 | F41: =SUMIF($B$59:$B$840,"<="&DATE($B41,12,31),$F$59:$F$840)-SUM(F$24:F40) -> 0 | G41: =SUMIF($B$59:$B$840,"<="&DATE($B41,12,31),$G$59:$G$840)-SUM(G$24:G40) -> 0 | H41: 0
B42: 2042 | C42: =SUMIF($B$59:$B$840,"<="&DATE($B42,12,31),$C$59:$C$840)-SUM(C$24:C41) -> 0 | D42: =SUMIF($B$59:$B$840,"<="&DATE($B42,12,31),$D$59:$D$840)-SUM(D$24:D41) -> 0 | F42: =SUMIF($B$59:$B$840,"<="&DATE($B42,12,31),$F$59:$F$840)-SUM(F$24:F41) -> 0 | G42: =SUMIF($B$59:$B$840,"<="&DATE($B42,12,31),$G$59:$G$840)-SUM(G$24:G41) -> 0 | H42: 0
B43: 2043 | C43: =SUMIF($B$59:$B$840,"<="&DATE($B43,12,31),$C$59:$C$840)-SUM(C$24:C42) -> 0 | D43: =SUMIF($B$59:$B$840,"<="&DATE($B43,12,31),$D$59:$D$840)-SUM(D$24:D42) -> 0 | F43: =SUMIF($B$59:$B$840,"<="&DATE($B43,12,31),$F$59:$F$840)-SUM(F$24:F42) -> 0 | G43: =SUMIF($B$59:$B$840,"<="&DATE($B43,12,31),$G$59:$G$840)-SUM(G$24:G42) -> 0 | H43: 0
B44: 2044 | C44: =SUMIF($B$59:$B$840,"<="&DATE($B44,12,31),$C$59:$C$840)-SUM(C$24:C43) -> 0 | D44: =SUMIF($B$59:$B$840,"<="&DATE($B44,12,31),$D$59:$D$840)-SUM(D$24:D43) -> 0 | F44: =SUMIF($B$59:$B$840,"<="&DATE($B44,12,31),$F$59:$F$840)-SUM(F$24:F43) -> 0 | G44: =SUMIF($B$59:$B$840,"<="&DATE($B44,12,31),$G$59:$G$840)-SUM(G$24:G43) -> 0 | H44: 0
B45: 2045 | C45: =SUMIF($B$59:$B$840,"<="&DATE($B45,12,31),$C$59:$C$840)-SUM(C$24:C44) -> 0 | D45: =SUMIF($B$59:$B$840,"<="&DATE($B45,12,31),$D$59:$D$840)-SUM(D$24:D44) -> 0 | F45: =SUMIF($B$59:$B$840,"<="&DATE($B45,12,31),$F$59:$F$840)-SUM(F$24:F44) -> 0 | G45: =SUMIF($B$59:$B$840,"<="&DATE($B45,12,31),$G$59:$G$840)-SUM(G$24:G44) -> 0 | H45: 0
B46: 2046 | C46: =SUMIF($B$59:$B$840,"<="&DATE($B46,12,31),$C$59:$C$840)-SUM(C$24:C45) -> 0 | D46: =SUMIF($B$59:$B$840,"<="&DATE($B46,12,31),$D$59:$D$840)-SUM(D$24:D45) -> 0 | F46: =SUMIF($B$59:$B$840,"<="&DATE($B46,12,31),$F$59:$F$840)-SUM(F$24:F45) -> 0 | G46: =SUMIF($B$59:$B$840,"<="&DATE($B46,12,31),$G$59:$G$840)-SUM(G$24:G45) -> 0 | H46: 0
B47: 2047 | C47: =SUMIF($B$59:$B$840,"<="&DATE($B47,12,31),$C$59:$C$840)-SUM(C$24:C46) -> 0 | D47: =SUMIF($B$59:$B$840,"<="&DATE($B47,12,31),$D$59:$D$840)-SUM(D$24:D46) -> 0 | F47: =SUMIF($B$59:$B$840,"<="&DATE($B47,12,31),$F$59:$F$840)-SUM(F$24:F46) -> 0 | G47: =SUMIF($B$59:$B$840,"<="&DATE($B47,12,31),$G$59:$G$840)-SUM(G$24:G46) -> 0 | H47: 0
B48: 2048 | C48: =SUMIF($B$59:$B$840,"<="&DATE($B48,12,31),$C$59:$C$840)-SUM(C$24:C47) -> 0 | D48: =SUMIF($B$59:$B$840,"<="&DATE($B48,12,31),$D$59:$D$840)-SUM(D$24:D47) -> 0 | F48: =SUMIF($B$59:$B$840,"<="&DATE($B48,12,31),$F$59:$F$840)-SUM(F$24:F47) -> 0 | G48: =SUMIF($B$59:$B$840,"<="&DATE($B48,12,31),$G$59:$G$840)-SUM(G$24:G47) -> 0 | H48: 0
B49: 2049 | C49: =SUMIF($B$59:$B$840,"<="&DATE($B49,12,31),$C$59:$C$840)-SUM(C$24:C48) -> 0 | D49: =SUMIF($B$59:$B$840,"<="&DATE($B49,12,31),$D$59:$D$840)-SUM(D$24:D48) -> 0 | F49: =SUMIF($B$59:$B$840,"<="&DATE($B49,12,31),$F$59:$F$840)-SUM(F$24:F48) -> 0 | G49: =SUMIF($B$59:$B$840,"<="&DATE($B49,12,31),$G$59:$G$840)-SUM(G$24:G48) -> 0 | H49: 0
B50: 2050 | C50: =SUMIF($B$59:$B$840,"<="&DATE($B50,12,31),$C$59:$C$840)-SUM(C$24:C49) -> 0 | D50: =SUMIF($B$59:$B$840,"<="&DATE($B50,12,31),$D$59:$D$840)-SUM(D$24:D49) -> 0 | F50: =SUMIF($B$59:$B$840,"<="&DATE($B50,12,31),$F$59:$F$840)-SUM(F$24:F49) -> 0 | G50: =SUMIF($B$59:$B$840,"<="&DATE($B50,12,31),$G$59:$G$840)-SUM(G$24:G49) -> 0 | H50: 0
B51: 2051 | C51: =SUMIF($B$59:$B$840,"<="&DATE($B51,12,31),$C$59:$C$840)-SUM(C$24:C50) -> 0 | D51: =SUMIF($B$59:$B$840,"<="&DATE($B51,12,31),$D$59:$D$840)-SUM(D$24:D50) -> 0 | F51: =SUMIF($B$59:$B$840,"<="&DATE($B51,12,31),$F$59:$F$840)-SUM(F$24:F50) -> 0 | G51: =SUMIF($B$59:$B$840,"<="&DATE($B51,12,31),$G$59:$G$840)-SUM(G$24:G50) -> 0 | H51: 0
B52: 2052 | C52: =SUMIF($B$59:$B$840,"<="&DATE($B52,12,31),$C$59:$C$840)-SUM(C$24:C51) -> 0 | D52: =SUMIF($B$59:$B$840,"<="&DATE($B52,12,31),$D$59:$D$840)-SUM(D$24:D51) -> 0 | F52: =SUMIF($B$59:$B$840,"<="&DATE($B52,12,31),$F$59:$F$840)-SUM(F$24:F51) -> 0 | G52: =SUMIF($B$59:$B$840,"<="&DATE($B52,12,31),$G$59:$G$840)-SUM(G$24:G51) -> 0 | H52: 0
B53: 2053 | C53: =SUMIF($B$59:$B$840,"<="&DATE($B53,12,31),$C$59:$C$840)-SUM(C$24:C52) -> 0 | D53: =SUMIF($B$59:$B$840,"<="&DATE($B53,12,31),$D$59:$D$840)-SUM(D$24:D52) -> 0 | F53: =SUMIF($B$59:$B$840,"<="&DATE($B53,12,31),$F$59:$F$840)-SUM(F$24:F52) -> 0 | G53: =SUMIF($B$59:$B$840,"<="&DATE($B53,12,31),$G$59:$G$840)-SUM(G$24:G52) -> 0 | H53: 0
B54: 2054 | C54: =SUMIF($B$59:$B$840,"<="&DATE($B54,12,31),$C$59:$C$840)-SUM(C$24:C53) -> 0 | D54: =SUMIF($B$59:$B$840,"<="&DATE($B54,12,31),$D$59:$D$840)-SUM(D$24:D53) -> 0 | F54: =SUMIF($B$59:$B$840,"<="&DATE($B54,12,31),$F$59:$F$840)-SUM(F$24:F53) -> 0 | G54: =SUMIF($B$59:$B$840,"<="&DATE($B54,12,31),$G$59:$G$840)-SUM(G$24:G53) -> 0 | H54: 0
B55: 2055 | C55: =SUMIF($B$59:$B$840,"<="&DATE($B55,12,31),$C$59:$C$840)-SUM(C$24:C54) -> 0 | D55: =SUMIF($B$59:$B$840,"<="&DATE($B55,12,31),$D$59:$D$840)-SUM(D$24:D54) -> 0 | F55: =SUMIF($B$59:$B$840,"<="&DATE($B55,12,31),$F$59:$F$840)-SUM(F$24:F54) -> 0 | G55: =SUMIF($B$59:$B$840,"<="&DATE($B55,12,31),$G$59:$G$840)-SUM(G$24:G54) -> 0 | H55: 0
A57: Amortisation Schedule
A58: No. | B58: Due Date | C58: Payment Due | D58: Additional Payment | F58: Interest | G58: Principal | H58: Balance
H59: =$D$5 -> 0
A60: =IF(H59="","",IF(roundOpt,IF(OR(A59>=nper,ROUND(H59,2)<=0),"",A59+1),IF(OR(A59>=nper,H59<=0),"",A59+1))) ->  | B60: =IF(A60="","",IF(OR(periods_per_year=26,periods_per_year=52),IF(periods_per_year=26,IF(A60=1,fpdate,B59+14),IF(periods_per_year=52,IF(A60=1,fpdate,B59+7),"n/a")),IF(periods_per_year=24,DATE(YEAR(fpdate),MONTH(fpdate)+(A60-1)/2+IF(AND(DAY(fpdate)>=15,MOD(A60,2)=0),1,0),IF(MOD(A60,2)=0,IF(DAY(fpdate)>=15,DAY(fpdate)-14,DAY(fpdate)+14),DAY(fpdate))),IF(DAY(DATE(YEAR(fpdate),MONTH(fpdate)+(A60-1)*months_per_period,DAY(fpdate)))<>DAY(fpdate),DATE(YEAR(fpdate),MONTH(fpdate)+(A60-1)*months_per_period+1,0),DATE(YEAR(fpdate),MONTH(fpdate)+(A60-1)*months_per_period,DAY(fpdate)))))) ->  | C60: =IF(A60="","",IF(roundOpt,IF(OR(A60=nper,payment>ROUND((1+rate)*H59,2)),ROUND((1+rate)*H59,2),payment),IF(OR(A60=nper,payment>(1+rate)*H59),(1+rate)*H59,payment))) ->  | F60: =IF(A60="","",IF(AND(A60=1,pmtType=1),0,IF(roundOpt,ROUND(rate*H59,2),rate*H59))) ->  | G60: =IF(A60="","",C60-F60+D60) ->  | H60: =IF(A60="","",H59-G60) -> 
A124: =IF(H123="","",IF(roundOpt,IF(OR(A123>=nper,ROUND(H123,2)<=0),"",A123+1),IF(OR(A123>=nper,H123<=0),"",A123+1))) ->  | B124: =IF(A124="","",IF(OR(periods_per_year=26,periods_per_year=52),IF(periods_per_year=26,IF(A124=1,fpdate,B123+14),IF(periods_per_year=52,IF(A124=1,fpdate,B123+7),"n/a")),IF(periods_per_year=24,DATE(YEAR(fpdate),MONTH(fpdate)+(A124-1)/2+IF(AND(DAY(fpdate)>=15,MOD(A124,2)=0),1,0),IF(MOD(A124,2)=0,IF(DAY(fpdate)>=15,DAY(fpdate)-14,DAY(fpdate)+14),DAY(fpdate))),IF(DAY(DATE(YEAR(fpdate),MONTH(fpdate)+(A124-1)*months_per_period,DAY(fpdate)))<>DAY(fpdate),DATE(YEAR(fpdate),MONTH(fpdate)+(A124-1)*months_per_period+1,0),DATE(YEAR(fpdate),MONTH(fpdate)+(A124-1)*months_per_period,DAY(fpdate)))))) ->  | C124: =IF(A124="","",IF(roundOpt,IF(OR(A124=nper,payment>ROUND((1+rate)*H123,2)),ROUND((1+rate)*H123,2),payment),IF(OR(A124=nper,payment>(1+rate)*H123),(1+rate)*H123,payment))) ->  | F124: =IF(A124="","",IF(AND(A124=1,pmtType=1),0,IF(roundOpt,ROUND(rate*H123,2),rate*H123))) ->  | G124: =IF(A124="","",C124-F124+D124) ->  | H124: =IF(A124="","",H123-G124) -> 
A188: =IF(H187="","",IF(roundOpt,IF(OR(A187>=nper,ROUND(H187,2)<=0),"",A187+1),IF(OR(A187>=nper,H187<=0),"",A187+1))) ->  | B188: =IF(A188="","",IF(OR(periods_per_year=26,periods_per_year=52),IF(periods_per_year=26,IF(A188=1,fpdate,B187+14),IF(periods_per_year=52,IF(A188=1,fpdate,B187+7),"n/a")),IF(periods_per_year=24,DATE(YEAR(fpdate),MONTH(fpdate)+(A188-1)/2+IF(AND(DAY(fpdate)>=15,MOD(A188,2)=0),1,0),IF(MOD(A188,2)=0,IF(DAY(fpdate)>=15,DAY(fpdate)-14,DAY(fpdate)+14),DAY(fpdate))),IF(DAY(DATE(YEAR(fpdate),MONTH(fpdate)+(A188-1)*months_per_period,DAY(fpdate)))<>DAY(fpdate),DATE(YEAR(fpdate),MONTH(fpdate)+(A188-1)*months_per_period+1,0),DATE(YEAR(fpdate),MONTH(fpdate)+(A188-1)*months_per_period,DAY(fpdate)))))) ->  | C188: =IF(A188="","",IF(roundOpt,IF(OR(A188=nper,payment>ROUND((1+rate)*H187,2)),ROUND((1+rate)*H187,2),payment),IF(OR(A188=nper,payment>(1+rate)*H187),(1+rate)*H187,payment))) ->  | F188: =IF(A188="","",IF(AND(A188=1,pmtType=1),0,IF(roundOpt,ROUND(rate*H187,2),rate*H187))) ->  | G188: =IF(A188="","",C188-F188+D188) ->  | H188: =IF(A188="","",H187-G188) -> 
A252: =IF(H251="","",IF(roundOpt,IF(OR(A251>=nper,ROUND(H251,2)<=0),"",A251+1),IF(OR(A251>=nper,H251<=0),"",A251+1))) ->  | B252: =IF(A252="","",IF(OR(periods_per_year=26,periods_per_year=52),IF(periods_per_year=26,IF(A252=1,fpdate,B251+14),IF(periods_per_year=52,IF(A252=1,fpdate,B251+7),"n/a")),IF(periods_per_year=24,DATE(YEAR(fpdate),MONTH(fpdate)+(A252-1)/2+IF(AND(DAY(fpdate)>=15,MOD(A252,2)=0),1,0),IF(MOD(A252,2)=0,IF(DAY(fpdate)>=15,DAY(fpdate)-14,DAY(fpdate)+14),DAY(fpdate))),IF(DAY(DATE(YEAR(fpdate),MONTH(fpdate)+(A252-1)*months_per_period,DAY(fpdate)))<>DAY(fpdate),DATE(YEAR(fpdate),MONTH(fpdate)+(A252-1)*months_per_period+1,0),DATE(YEAR(fpdate),MONTH(fpdate)+(A252-1)*months_per_period,DAY(fpdate)))))) ->  | C252: =IF(A252="","",IF(roundOpt,IF(OR(A252=nper,payment>ROUND((1+rate)*H251,2)),ROUND((1+rate)*H251,2),payment),IF(OR(A252=nper,payment>(1+rate)*H251),(1+rate)*H251,payment))) ->  | F252: =IF(A252="","",IF(AND(A252=1,pmtType=1),0,IF(roundOpt,ROUND(rate*H251,2),rate*H251))) ->  | G252: =IF(A252="","",C252-F252+D252) ->  | H252: =IF(A252="","",H251-G252) -> 
A316: =IF(H315="","",IF(roundOpt,IF(OR(A315>=nper,ROUND(H315,2)<=0),"",A315+1),IF(OR(A315>=nper,H315<=0),"",A315+1))) ->  | B316: =IF(A316="","",IF(OR(periods_per_year=26,periods_per_year=52),IF(periods_per_year=26,IF(A316=1,fpdate,B315+14),IF(periods_per_year=52,IF(A316=1,fpdate,B315+7),"n/a")),IF(periods_per_year=24,DATE(YEAR(fpdate),MONTH(fpdate)+(A316-1)/2+IF(AND(DAY(fpdate)>=15,MOD(A316,2)=0),1,0),IF(MOD(A316,2)=0,IF(DAY(fpdate)>=15,DAY(fpdate)-14,DAY(fpdate)+14),DAY(fpdate))),IF(DAY(DATE(YEAR(fpdate),MONTH(fpdate)+(A316-1)*months_per_period,DAY(fpdate)))<>DAY(fpdate),DATE(YEAR(fpdate),MONTH(fpdate)+(A316-1)*months_per_period+1,0),DATE(YEAR(fpdate),MONTH(fpdate)+(A316-1)*months_per_period,DAY(fpdate)))))) ->  | C316: =IF(A316="","",IF(roundOpt,IF(OR(A316=nper,payment>ROUND((1+rate)*H315,2)),ROUND((1+rate)*H315,2),payment),IF(OR(A316=nper,payment>(1+rate)*H315),(1+rate)*H315,payment))) ->  | F316: =IF(A316="","",IF(AND(A316=1,pmtType=1),0,IF(roundOpt,ROUND(rate*H315,2),rate*H315))) ->  | G316: =IF(A316="","",C316-F316+D316) ->  | H316: =IF(A316="","",H315-G316) -> 
A380: =IF(H379="","",IF(roundOpt,IF(OR(A379>=nper,ROUND(H379,2)<=0),"",A379+1),IF(OR(A379>=nper,H379<=0),"",A379+1))) ->  | B380: =IF(A380="","",IF(OR(periods_per_year=26,periods_per_year=52),IF(periods_per_year=26,IF(A380=1,fpdate,B379+14),IF(periods_per_year=52,IF(A380=1,fpdate,B379+7),"n/a")),IF(periods_per_year=24,DATE(YEAR(fpdate),MONTH(fpdate)+(A380-1)/2+IF(AND(DAY(fpdate)>=15,MOD(A380,2)=0),1,0),IF(MOD(A380,2)=0,IF(DAY(fpdate)>=15,DAY(fpdate)-14,DAY(fpdate)+14),DAY(fpdate))),IF(DAY(DATE(YEAR(fpdate),MONTH(fpdate)+(A380-1)*months_per_period,DAY(fpdate)))<>DAY(fpdate),DATE(YEAR(fpdate),MONTH(fpdate)+(A380-1)*months_per_period+1,0),DATE(YEAR(fpdate),MONTH(fpdate)+(A380-1)*months_per_period,DAY(fpdate)))))) ->  | C380: =IF(A380="","",IF(roundOpt,IF(OR(A380=nper,payment>ROUND((1+rate)*H379,2)),ROUND((1+rate)*H379,2),payment),IF(OR(A380=nper,payment>(1+rate)*H379),(1+rate)*H379,payment))) ->  | F380: =IF(A380="","",IF(AND(A380=1,pmtType=1),0,IF(roundOpt,ROUND(rate*H379,2),rate*H379))) ->  | G380: =IF(A380="","",C380-F380+D380) ->  | H380: =IF(A380="","",H379-G380) -> 
A444: =IF(H443="","",IF(roundOpt,IF(OR(A443>=nper,ROUND(H443,2)<=0),"",A443+1),IF(OR(A443>=nper,H443<=0),"",A443+1))) ->  | B444: =IF(A444="","",IF(OR(periods_per_year=26,periods_per_year=52),IF(periods_per_year=26,IF(A444=1,fpdate,B443+14),IF(periods_per_year=52,IF(A444=1,fpdate,B443+7),"n/a")),IF(periods_per_year=24,DATE(YEAR(fpdate),MONTH(fpdate)+(A444-1)/2+IF(AND(DAY(fpdate)>=15,MOD(A444,2)=0),1,0),IF(MOD(A444,2)=0,IF(DAY(fpdate)>=15,DAY(fpdate)-14,DAY(fpdate)+14),DAY(fpdate))),IF(DAY(DATE(YEAR(fpdate),MONTH(fpdate)+(A444-1)*months_per_period,DAY(fpdate)))<>DAY(fpdate),DATE(YEAR(fpdate),MONTH(fpdate)+(A444-1)*months_per_period+1,0),DATE(YEAR(fpdate),MONTH(fpdate)+(A444-1)*months_per_period,DAY(fpdate)))))) ->  | C444: =IF(A444="","",IF(roundOpt,IF(OR(A444=nper,payment>ROUND((1+rate)*H443,2)),ROUND((1+rate)*H443,2),payment),IF(OR(A444=nper,payment>(1+rate)*H443),(1+rate)*H443,payment))) ->  | F444: =IF(A444="","",IF(AND(A444=1,pmtType=1),0,IF(roundOpt,ROUND(rate*H443,2),rate*H443))) ->  | G444: =IF(A444="","",C444-F444+D444) ->  | H444: =IF(A444="","",H443-G444) -> 
A508: =IF(H507="","",IF(roundOpt,IF(OR(A507>=nper,ROUND(H507,2)<=0),"",A507+1),IF(OR(A507>=nper,H507<=0),"",A507+1))) ->  | B508: =IF(A508="","",IF(OR(periods_per_year=26,periods_per_year=52),IF(periods_per_year=26,IF(A508=1,fpdate,B507+14),IF(periods_per_year=52,IF(A508=1,fpdate,B507+7),"n/a")),IF(periods_per_year=24,DATE(YEAR(fpdate),MONTH(fpdate)+(A508-1)/2+IF(AND(DAY(fpdate)>=15,MOD(A508,2)=0),1,0),IF(MOD(A508,2)=0,IF(DAY(fpdate)>=15,DAY(fpdate)-14,DAY(fpdate)+14),DAY(fpdate))),IF(DAY(DATE(YEAR(fpdate),MONTH(fpdate)+(A508-1)*months_per_period,DAY(fpdate)))<>DAY(fpdate),DATE(YEAR(fpdate),MONTH(fpdate)+(A508-1)*months_per_period+1,0),DATE(YEAR(fpdate),MONTH(fpdate)+(A508-1)*months_per_period,DAY(fpdate)))))) ->  | C508: =IF(A508="","",IF(roundOpt,IF(OR(A508=nper,payment>ROUND((1+rate)*H507,2)),ROUND((1+rate)*H507,2),payment),IF(OR(A508=nper,payment>(1+rate)*H507),(1+rate)*H507,payment))) ->  | F508: =IF(A508="","",IF(AND(A508=1,pmtType=1),0,IF(roundOpt,ROUND(rate*H507,2),rate*H507))) ->  | G508: =IF(A508="","",C508-F508+D508) ->  | H508: =IF(A508="","",H507-G508) -> 
A572: =IF(H571="","",IF(roundOpt,IF(OR(A571>=nper,ROUND(H571,2)<=0),"",A571+1),IF(OR(A571>=nper,H571<=0),"",A571+1))) ->  | B572: =IF(A572="","",IF(OR(periods_per_year=26,periods_per_year=52),IF(periods_per_year=26,IF(A572=1,fpdate,B571+14),IF(periods_per_year=52,IF(A572=1,fpdate,B571+7),"n/a")),IF(periods_per_year=24,DATE(YEAR(fpdate),MONTH(fpdate)+(A572-1)/2+IF(AND(DAY(fpdate)>=15,MOD(A572,2)=0),1,0),IF(MOD(A572,2)=0,IF(DAY(fpdate)>=15,DAY(fpdate)-14,DAY(fpdate)+14),DAY(fpdate))),IF(DAY(DATE(YEAR(fpdate),MONTH(fpdate)+(A572-1)*months_per_period,DAY(fpdate)))<>DAY(fpdate),DATE(YEAR(fpdate),MONTH(fpdate)+(A572-1)*months_per_period+1,0),DATE(YEAR(fpdate),MONTH(fpdate)+(A572-1)*months_per_period,DAY(fpdate)))))) ->  | C572: =IF(A572="","",IF(roundOpt,IF(OR(A572=nper,payment>ROUND((1+rate)*H571,2)),ROUND((1+rate)*H571,2),payment),IF(OR(A572=nper,payment>(1+rate)*H571),(1+rate)*H571,payment))) ->  | F572: =IF(A572="","",IF(AND(A572=1,pmtType=1),0,IF(roundOpt,ROUND(rate*H571,2),rate*H571))) ->  | G572: =IF(A572="","",C572-F572+D572) ->  | H572: =IF(A572="","",H571-G572) -> 
A636: =IF(H635="","",IF(roundOpt,IF(OR(A635>=nper,ROUND(H635,2)<=0),"",A635+1),IF(OR(A635>=nper,H635<=0),"",A635+1))) ->  | B636: =IF(A636="","",IF(OR(periods_per_year=26,periods_per_year=52),IF(periods_per_year=26,IF(A636=1,fpdate,B635+14),IF(periods_per_year=52,IF(A636=1,fpdate,B635+7),"n/a")),IF(periods_per_year=24,DATE(YEAR(fpdate),MONTH(fpdate)+(A636-1)/2+IF(AND(DAY(fpdate)>=15,MOD(A636,2)=0),1,0),IF(MOD(A636,2)=0,IF(DAY(fpdate)>=15,DAY(fpdate)-14,DAY(fpdate)+14),DAY(fpdate))),IF(DAY(DATE(YEAR(fpdate),MONTH(fpdate)+(A636-1)*months_per_period,DAY(fpdate)))<>DAY(fpdate),DATE(YEAR(fpdate),MONTH(fpdate)+(A636-1)*months_per_period+1,0),DATE(YEAR(fpdate),MONTH(fpdate)+(A636-1)*months_per_period,DAY(fpdate)))))) ->  | C636: =IF(A636="","",IF(roundOpt,IF(OR(A636=nper,payment>ROUND((1+rate)*H635,2)),ROUND((1+rate)*H635,2),payment),IF(OR(A636=nper,payment>(1+rate)*H635),(1+rate)*H635,payment))) ->  | F636: =IF(A636="","",IF(AND(A636=1,pmtType=1),0,IF(roundOpt,ROUND(rate*H635,2),rate*H635))) ->  | G636: =IF(A636="","",C636-F636+D636) ->  | H636: =IF(A636="","",H635-G636) -> 
A700: =IF(H699="","",IF(roundOpt,IF(OR(A699>=nper,ROUND(H699,2)<=0),"",A699+1),IF(OR(A699>=nper,H699<=0),"",A699+1))) ->  | B700: =IF(A700="","",IF(OR(periods_per_year=26,periods_per_year=52),IF(periods_per_year=26,IF(A700=1,fpdate,B699+14),IF(periods_per_year=52,IF(A700=1,fpdate,B699+7),"n/a")),IF(periods_per_year=24,DATE(YEAR(fpdate),MONTH(fpdate)+(A700-1)/2+IF(AND(DAY(fpdate)>=15,MOD(A700,2)=0),1,0),IF(MOD(A700,2)=0,IF(DAY(fpdate)>=15,DAY(fpdate)-14,DAY(fpdate)+14),DAY(fpdate))),IF(DAY(DATE(YEAR(fpdate),MONTH(fpdate)+(A700-1)*months_per_period,DAY(fpdate)))<>DAY(fpdate),DATE(YEAR(fpdate),MONTH(fpdate)+(A700-1)*months_per_period+1,0),DATE(YEAR(fpdate),MONTH(fpdate)+(A700-1)*months_per_period,DAY(fpdate)))))) ->  | C700: =IF(A700="","",IF(roundOpt,IF(OR(A700=nper,payment>ROUND((1+rate)*H699,2)),ROUND((1+rate)*H699,2),payment),IF(OR(A700=nper,payment>(1+rate)*H699),(1+rate)*H699,payment))) ->  | F700: =IF(A700="","",IF(AND(A700=1,pmtType=1),0,IF(roundOpt,ROUND(rate*H699,2),rate*H699))) ->  | G700: =IF(A700="","",C700-F700+D700) ->  | H700: =IF(A700="","",H699-G700) -> 
A764: =IF(H763="","",IF(roundOpt,IF(OR(A763>=nper,ROUND(H763,2)<=0),"",A763+1),IF(OR(A763>=nper,H763<=0),"",A763+1))) ->  | B764: =IF(A764="","",IF(OR(periods_per_year=26,periods_per_year=52),IF(periods_per_year=26,IF(A764=1,fpdate,B763+14),IF(periods_per_year=52,IF(A764=1,fpdate,B763+7),"n/a")),IF(periods_per_year=24,DATE(YEAR(fpdate),MONTH(fpdate)+(A764-1)/2+IF(AND(DAY(fpdate)>=15,MOD(A764,2)=0),1,0),IF(MOD(A764,2)=0,IF(DAY(fpdate)>=15,DAY(fpdate)-14,DAY(fpdate)+14),DAY(fpdate))),IF(DAY(DATE(YEAR(fpdate),MONTH(fpdate)+(A764-1)*months_per_period,DAY(fpdate)))<>DAY(fpdate),DATE(YEAR(fpdate),MONTH(fpdate)+(A764-1)*months_per_period+1,0),DATE(YEAR(fpdate),MONTH(fpdate)+(A764-1)*months_per_period,DAY(fpdate)))))) ->  | C764: =IF(A764="","",IF(roundOpt,IF(OR(A764=nper,payment>ROUND((1+rate)*H763,2)),ROUND((1+rate)*H763,2),payment),IF(OR(A764=nper,payment>(1+rate)*H763),(1+rate)*H763,payment))) ->  | F764: =IF(A764="","",IF(AND(A764=1,pmtType=1),0,IF(roundOpt,ROUND(rate*H763,2),rate*H763))) ->  | G764: =IF(A764="","",C764-F764+D764) ->  | H764: =IF(A764="","",H763-G764) -> 
A828: =IF(H827="","",IF(roundOpt,IF(OR(A827>=nper,ROUND(H827,2)<=0),"",A827+1),IF(OR(A827>=nper,H827<=0),"",A827+1))) ->  | B828: =IF(A828="","",IF(OR(periods_per_year=26,periods_per_year=52),IF(periods_per_year=26,IF(A828=1,fpdate,B827+14),IF(periods_per_year=52,IF(A828=1,fpdate,B827+7),"n/a")),IF(periods_per_year=24,DATE(YEAR(fpdate),MONTH(fpdate)+(A828-1)/2+IF(AND(DAY(fpdate)>=15,MOD(A828,2)=0),1,0),IF(MOD(A828,2)=0,IF(DAY(fpdate)>=15,DAY(fpdate)-14,DAY(fpdate)+14),DAY(fpdate))),IF(DAY(DATE(YEAR(fpdate),MONTH(fpdate)+(A828-1)*months_per_period,DAY(fpdate)))<>DAY(fpdate),DATE(YEAR(fpdate),MONTH(fpdate)+(A828-1)*months_per_period+1,0),DATE(YEAR(fpdate),MONTH(fpdate)+(A828-1)*months_per_period,DAY(fpdate)))))) ->  | C828: =IF(A828="","",IF(roundOpt,IF(OR(A828=nper,payment>ROUND((1+rate)*H827,2)),ROUND((1+rate)*H827,2),payment),IF(OR(A828=nper,payment>(1+rate)*H827),(1+rate)*H827,payment))) ->  | F828: =IF(A828="","",IF(AND(A828=1,pmtType=1),0,IF(roundOpt,ROUND(rate*H827,2),rate*H827))) ->  | G828: =IF(A828="","",C828-F828+D828) ->  | H828: =IF(A828="","",H827-G828) -> 
D840: End

Sheet Amortisation Schedule_Loan3 (hidden)
A1: Loan Amortisation Schedule
A4: Loan Information | F4: Summary | K4: Frequency
C5: Loan Amount | D5: ='Loan Serviceability Calculator'!E44 -> 0 | G5: Rate (per period) | H5: =IF(D9=D10,D6/D14,((1+D6/D14)^(D14/D13))-1) ->  | K5: Annual
C6: Annual Interest Rate | D6: =IFERROR('Loan Serviceability Calculator'!H105,0) ->  | G6: Total Payments | H6: =SUM(F60:F839)+SUM(G60:G839) -> 0 | K6: Semi-Annual
C7: Term of Loan in Years | D7: ='Loan Serviceability Calculator'!F44/12 -> 0 | G7: Total Interest | H7: =SUM(F59:F839) -> 0 | K7: Quarterly
C8: First Payment Date | D8: =NOW() -> 2025-06-06T10:00:07.580 | G8: Est. Interest Savings | H8: =IF(AND(SUM(D60:D839)=0,roundOpt)," - ",(nper*(-PMT(rate,nper,loan_amount,,pmtType))-loan_amount)-H7) -> - | K8: Bi-Monthly
C9: Payment Frequency | D9: Monthly | H9: =IF(AND(NOT(H839=""),H839>0.004),"ERROR: Limit is "&OFFSET(A840,-1,0,1,1)&" payments",".") -> . | K9: Monthly
C10: Compound Period | D10: =D9 -> Monthly | H10: =IF(D14>D13,"Warning: negative amortization",".") -> . | K10: Semi-Monthly
C11: Payment Type | D11: End of Period | K11: Bi-Weekly
C12: Rounding | D12: On | K12: Weekly
C13: Periods Per Year | D13: =INDEX({1;2;4;6;12;24;26;52},MATCH('Amortisation Schedule_Loan3'!$D$9,$K$5:$K$12,0)) -> 12
C14: Compound Period | D14: =INDEX({1;2;4;6;12;24;26;52},MATCH('Amortisation Schedule_Loan3'!$D$10,$K$5:$K$12,0)) -> 12
C15: Payment Type | D15: =IF('Amortisation Schedule_Loan3'!$D$11="End of Period",0,1) -> 0
C16: Months Per Period | D16: =12/$D$13 -> 1
C17: Number of Periods | D17: =$D$7*$D$13 -> 0
C18: Rounding Option | D18: =(D12="On") -> TRUE
H19: [42]
C20: =D9&" Payment" -> Monthly Payment | D20: =IFERROR(IF(roundOpt,ROUND(-PMT(rate,nper,$D$5,,pmtType),2),-PMT(rate,nper,$D$5,,pmtType)),0) -> 0
A22: Yearly Summary
B23: Year | C23: Payments | D23: Additional Payments | F23: Interest Paid | G23: Principal Paid | H23: Year-End Balance
H24: =loan_amount -> 0
B25: =YEAR(fpdate) -> 2025 | C25: =SUMIF($B$59:$B$840,"<="&DATE($B25,12,31),$C$59:$C$840)-SUM(C$24:C24) -> 0 | D25: =SUMIF($B$59:$B$840,"<="&DATE($B25,12,31),$D$59:$D$840)-SUM(D$24:D24) -> 0 | F25: =SUMIF($B$59:$B$840,"<="&DATE($B25,12,31),$F$59:$F$840)-SUM(F$24:F24) -> 0 | G25: =SUMIF($B$59:$B$840,"<="&DATE($B25,12,31),$G$59:$G$840)-SUM(G$24:G24) -> 0 | H25: =H24-G25 -> 0
B26: =B25+1 -> 2026 | C26: =SUMIF($B$59:$B$840,"<="&DATE($B26,12,31),$C$59:$C$840)-SUM(C$24:C25) -> 0 | D26: =SUMIF($B$59:$B$840,"<="&DATE($B26,12,31),$D$59:$D$840)-SUM(D$24:D25) -> 0 | F26: =SUMIF($B$59:$B$840,"<="&DATE($B26,12,31),$F$59:$F$840)-SUM(F$24:F25) -> 0 | G26: =SUMIF($B$59:$B$840,"<="&DATE($B26,12,31),$G$59:$G$840)-SUM(G$24:G25) -> 0 | H26: =H25-G26 -> 0
B27: =B26+1 -> 2027 | C27: =SUMIF($B$59:$B$840,"<="&DATE($B27,12,31),$C$59:$C$840)-SUM(C$24:C26) -> 0 | D27: =SUMIF($B$59:$B$840,"<="&DATE($B27,12,31),$D$59:$D$840)-SUM(D$24:D26) -> 0 | F27: =SUMIF($B$59:$B$840,"<="&DATE($B27,12,31),$F$59:$F$840)-SUM(F$24:F26) -> 0 | G27: =SUMIF($B$59:$B$840,"<="&DATE($B27,12,31),$G$59:$G$840)-SUM(G$24:G26) -> 0 | H27: =H26-G27 -> 0
B28: =B27+1 -> 2028 | C28: =SUMIF($B$59:$B$840,"<="&DATE($B28,12,31),$C$59:$C$840)-SUM(C$24:C27) -> 0 | D28: =SUMIF($B$59:$B$840,"<="&DATE($B28,12,31),$D$59:$D$840)-SUM(D$24:D27) -> 0 | F28: =SUMIF($B$59:$B$840,"<="&DATE($B28,12,31),$F$59:$F$840)-SUM(F$24:F27) -> 0 | G28: =SUMIF($B$59:$B$840,"<="&DATE($B28,12,31),$G$59:$G$840)-SUM(G$24:G27) -> 0 | H28: =H27-G28 -> 0
B29: =B28+1 -> 2029 | C29: =SUMIF($B$59:$B$840,"<="&DATE($B29,12,31),$C$59:$C$840)-SUM(C$24:C28) -> 0 | D29: =SUMIF($B$59:$B$840,"<="&DATE($B29,12,31),$D$59:$D$840)-SUM(D$24:D28) -> 0 | F29: =SUMIF($B$59:$B$840,"<="&DATE($B29,12,31),$F$59:$F$840)-SUM(F$24:F28) -> 0 | G29: =SUMIF($B$59:$B$840,"<="&DATE($B29,12,31),$G$59:$G$840)-SUM(G$24:G28) -> 0 | H29: =H28-G29 -> 0
B30: 2030 | C30: =SUMIF($B$59:$B$840,"<="&DATE($B30,12,31),$C$59:$C$840)-SUM(C$24:C29) -> 0 | D30: =SUMIF($B$59:$B$840,"<="&DATE($B30,12,31),$D$59:$D$840)-SUM(D$24:D29) -> 0 | F30: =SUMIF($B$59:$B$840,"<="&DATE($B30,12,31),$F$59:$F$840)-SUM(F$24:F29) -> 0 | G30: =SUMIF($B$59:$B$840,"<="&DATE($B30,12,31),$G$59:$G$840)-SUM(G$24:G29) -> 0 | H30: 0
B31: 2031 | C31: =SUMIF($B$59:$B$840,"<="&DATE($B31,12,31),$C$59:$C$840)-SUM(C$24:C30) -> 0 | D31: =SUMIF($B$59:$B$840,"<="&DATE($B31,12,31),$D$59:$D$840)-SUM(D$24:D30) -> 0 | F31: =SUMIF($B$59:$B$840,"<="&DATE($B31,12,31),$F$59:$F$840)-SUM(F$24:F30) -> 0 | G31: =SUMIF($B$59:$B$840,"<="&DATE($B31,12,31),$G$59:$G$840)-SUM(G$24:G30) -> 0 | H31: 0
B32: 2032 | C32: =SUMIF($B$59:$B$840,"<="&DATE($B32,12,31),$C$59:$C$840)-SUM(C$24:C31) -> 0 | D32: =SUMIF($B$59:$B$840,"<="&DATE($B32,12,31),$D$59:$D$840)-SUM(D$24:D31) -> 0 | F32: =SUMIF($B$59:$B$840,"<="&DATE($B32,12,31),$F$59:$F$840)-SUM(F$24:F31) -> 0 | G32: =SUMIF($B$59:$B$840,"<="&DATE($B32,12,31),$G$59:$G$840)-SUM(G$24:G31) -> 0 | H32: 0
B33: 2033 | C33: =SUMIF($B$59:$B$840,"<="&DATE($B33,12,31),$C$59:$C$840)-SUM(C$24:C32) -> 0 | D33: =SUMIF($B$59:$B$840,"<="&DATE($B33,12,31),$D$59:$D$840)-SUM(D$24:D32) -> 0 | F33: =SUMIF($B$59:$B$840,"<="&DATE($B33,12,31),$F$59:$F$840)-SUM(F$24:F32) -> 0 | G33: =SUMIF($B$59:$B$840,"<="&DATE($B33,12,31),$G$59:$G$840)-SUM(G$24:G32) -> 0 | H33: 0
B34: 2034 | C34: =SUMIF($B$59:$B$840,"<="&DATE($B34,12,31),$C$59:$C$840)-SUM(C$24:C33) -> 0 | D34: =SUMIF($B$59:$B$840,"<="&DATE($B34,12,31),$D$59:$D$840)-SUM(D$24:D33) -> 0 | F34: =SUMIF($B$59:$B$840,"<="&DATE($B34,12,31),$F$59:$F$840)-SUM(F$24:F33) -> 0 | G34: =SUMIF($B$59:$B$840,"<="&DATE($B34,12,31),$G$59:$G$840)-SUM(G$24:G33) -> 0 | H34: 0
B35: 2035 | C35: =SUMIF($B$59:$B$840,"<="&DATE($B35,12,31),$C$59:$C$840)-SUM(C$24:C34) -> 0 | D35: =SUMIF($B$59:$B$840,"<="&DATE($B35,12,31),$D$59:$D$840)-SUM(D$24:D34) -> 0 | F35: =SUMIF($B$59:$B$840,"<="&DATE($B35,12,31),$F$59:$F$840)-SUM(F$24:F34) -> 0 | G35: =SUMIF($B$59:$B$840,"<="&DATE($B35,12,31),$G$59:$G$840)-SUM(G$24:G34) -> 0 | H35: 0
B36: 2036 | C36: =SUMIF($B$59:$B$840,"<="&DATE($B36,12,31),$C$59:$C$840)-SUM(C$24:C35) -> 0 | D36: =SUMIF($B$59:$B$840,"<="&DATE($B36,12,31),$D$59:$D$840)-SUM(D$24:D35) -> 0 | F36: =SUMIF($B$59:$B$840,"<="&DATE($B36,12,31),$F$59:$F$840)-SUM(F$24:F35) -> 0 | G36: =SUMIF($B$59:$B$840,"<="&DATE($B36,12,31),$G$59:$G$840)-SUM(G$24:G35) -> 0 | H36: 0
B37: 2037 | C37: =SUMIF($B$59:$B$840,"<="&DATE($B37,12,31),$C$59:$C$840)-SUM(C$24:C36) -> 0 | D37: =SUMIF($B$59:$B$840,"<="&DATE($B37,12,31),$D$59:$D$840)-SUM(D$24:D36) -> 0 | F37: =SUMIF($B$59:$B$840,"<="&DATE($B37,12,31),$F$59:$F$840)-SUM(F$24:F36) -> 0 | G37: =SUMIF($B$59:$B$840,"<="&DATE($B37,12,31),$G$59:$G$840)-SUM(G$24:G36) -> 0 | H37: 0
B38: 2038 | C38: =SUMIF($B$59:$B$840,"<="&DATE($B38,12,31),$C$59:$C$840)-SUM(C$24:C37) -> 0 | D38: =SUMIF($B$59:$B$840,"<="&DATE($B38,12,31),$D$59:$D$840)-SUM(D$24:D37) -> 0 | F38: =SUMIF($B$59:$B$840,"<="&DATE($B38,12,31),$F$59:$F$840)-SUM(F$24:F37) -> 0 | G38: =SUMIF($B$59:$B$840,"<="&DATE($B38,12,31),$G$59:$G$840)-SUM(G$24:G37) -> 0 | H38: 0
B39: 2039 | C39: =SUMIF($B$59:$B$840,"<="&DATE($B39,12,31),$C$59:$C$840)-SUM(C$24:C38) -> 0 | D39: =SUMIF($B$59:$B$840,"<="&DATE($B39,12,31),$D$59:$D$840)-SUM(D$24:D38) -> 0 | F39: =SUMIF($B$59:$B$840,"<="&DATE($B39,12,31),$F$59:$F$840)-SUM(F$24:F38) -> 0 | G39: =SUMIF($B$59:$B$840,"<="&DATE($B39,12,31),$G$59:$G$840)-SUM(G$24:G38) -> 0 | H39: 0
B40: 2040 | C40: =SUMIF($B$59:$B$840,"<="&DATE($B40,12,31),$C$59:$C$840)-SUM(C$24:C39) -> 0 | D40: =SUMIF($B$59:$B$840,"<="&DATE($B40,12,31),$D$59:$D$840)-SUM(D$24:D39) -> 0 | F40: =SUMIF($B$59:$B$840,"<="&DATE($B40,12,31),$F$59:$F$840)-SUM(F$24:F39) -> 0 | G40: =SUMIF($B$59:$B$840,"<="&DATE($B40,12,31),$G$59:$G$840)-SUM(G$24:G39) -> 0 | H40: 0
B41: 2041 | C41: =SUMIF($B$59:$B$840,"<="&DATE($B41,12,31),$C$59:$C$840)-SUM(C$24:C40) -> 0 | D41: =SUMIF($B$59:$B$840,"<="&DATE($B41,12,31),$D$59:$D$840)-SUM(D$24:D40) -> 0 | F41: =SUMIF($B$59:$B$840,"<="&DATE($B41,12,31),$F$59:$F$840)-SUM(F$24:F40) -> 0 | G41: =SUMIF($B$59:$B$840,"<="&DATE($B41,12,31),$G$59:$G$840)-SUM(G$24:G40) -> 0 | H41: 0
B42: 2042 | C42: =SUMIF($B$59:$B$840,"<="&DATE($B42,12,31),$C$59:$C$840)-SUM(C$24:C41) -> 0 | D42: =SUMIF($B$59:$B$840,"<="&DATE($B42,12,31),$D$59:$D$840)-SUM(D$24:D41) -> 0 | F42: =SUMIF($B$59:$B$840,"<="&DATE($B42,12,31),$F$59:$F$840)-SUM(F$24:F41) -> 0 | G42: =SUMIF($B$59:$B$840,"<="&DATE($B42,12,31),$G$59:$G$840)-SUM(G$24:G41) -> 0 | H42: 0
B43: 2043 | C43: =SUMIF($B$59:$B$840,"<="&DATE($B43,12,31),$C$59:$C$840)-SUM(C$24:C42) -> 0 | D43: =SUMIF($B$59:$B$840,"<="&DATE($B43,12,31),$D$59:$D$840)-SUM(D$24:D42) -> 0 | F43: =SUMIF($B$59:$B$840,"<="&DATE($B43,12,31),$F$59:$F$840)-SUM(F$24:F42) -> 0 | G43: =SUMIF($B$59:$B$840,"<="&DATE($B43,12,31),$G$59:$G$840)-SUM(G$24:G42) -> 0 | H43: 0
B44: 2044 | C44: =SUMIF($B$59:$B$840,"<="&DATE($B44,12,31),$C$59:$C$840)-SUM(C$24:C43) -> 0 | D44: =SUMIF($B$59:$B$840,"<="&DATE($B44,12,31),$D$59:$D$840)-SUM(D$24:D43) -> 0 | F44: =SUMIF($B$59:$B$840,"<="&DATE($B44,12,31),$F$59:$F$840)-SUM(F$24:F43) -> 0 | G44: =SUMIF($B$59:$B$840,"<="&DATE($B44,12,31),$G$59:$G$840)-SUM(G$24:G43) -> 0 | H44: 0
B45: 2045 | C45: =SUMIF($B$59:$B$840,"<="&DATE($B45,12,31),$C$59:$C$840)-SUM(C$24:C44) -> 0 | D45: =SUMIF($B$59:$B$840,"<="&DATE($B45,12,31),$D$59:$D$840)-SUM(D$24:D44) -> 0 | F45: =SUMIF($B$59:$B$840,"<="&DATE($B45,12,31),$F$59:$F$840)-SUM(F$24:F44) -> 0 | G45: =SUMIF($B$59:$B$840,"<="&DATE($B45,12,31),$G$59:$G$840)-SUM(G$24:G44) -> 0 | H45: 0
B46: 2046 | C46: =SUMIF($B$59:$B$840,"<="&DATE($B46,12,31),$C$59:$C$840)-SUM(C$24:C45) -> 0 | D46: =SUMIF($B$59:$B$840,"<="&DATE($B46,12,31),$D$59:$D$840)-SUM(D$24:D45) -> 0 | F46: =SUMIF($B$59:$B$840,"<="&DATE($B46,12,31),$F$59:$F$840)-SUM(F$24:F45) -> 0 | G46: =SUMIF($B$59:$B$840,"<="&DATE($B46,12,31),$G$59:$G$840)-SUM(G$24:G45) -> 0 | H46: 0
B47: 2047 | C47: =SUMIF($B$59:$B$840,"<="&DATE($B47,12,31),$C$59:$C$840)-SUM(C$24:C46) -> 0 | D47: =SUMIF($B$59:$B$840,"<="&DATE($B47,12,31),$D$59:$D$840)-SUM(D$24:D46) -> 0 | F47: =SUMIF($B$59:$B$840,"<="&DATE($B47,12,31),$F$59:$F$840)-SUM(F$24:F46) -> 0 | G47: =SUMIF($B$59:$B$840,"<="&DATE($B47,12,31),$G$59:$G$840)-SUM(G$24:G46) -> 0 | H47: 0
B48: 2048 | C48: =SUMIF($B$59:$B$840,"<="&DATE($B48,12,31),$C$59:$C$840)-SUM(C$24:C47) -> 0 | D48: =SUMIF($B$59:$B$840,"<="&DATE($B48,12,31),$D$59:$D$840)-SUM(D$24:D47) -> 0 | F48: =SUMIF($B$59:$B$840,"<="&DATE($B48,12,31),$F$59:$F$840)-SUM(F$24:F47) -> 0 | G48: =SUMIF($B$59:$B$840,"<="&DATE($B48,12,31),$G$59:$G$840)-SUM(G$24:G47) -> 0 | H48: 0
B49: 2049 | C49: =SUMIF($B$59:$B$840,"<="&DATE($B49,12,31),$C$59:$C$840)-SUM(C$24:C48) -> 0 | D49: =SUMIF($B$59:$B$840,"<="&DATE($B49,12,31),$D$59:$D$840)-SUM(D$24:D48) -> 0 | F49: =SUMIF($B$59:$B$840,"<="&DATE($B49,12,31),$F$59:$F$840)-SUM(F$24:F48) -> 0 | G49: =SUMIF($B$59:$B$840,"<="&DATE($B49,12,31),$G$59:$G$840)-SUM(G$24:G48) -> 0 | H49: 0
B50: 2050 | C50: =SUMIF($B$59:$B$840,"<="&DATE($B50,12,31),$C$59:$C$840)-SUM(C$24:C49) -> 0 | D50: =SUMIF($B$59:$B$840,"<="&DATE($B50,12,31),$D$59:$D$840)-SUM(D$24:D49) -> 0 | F50: =SUMIF($B$59:$B$840,"<="&DATE($B50,12,31),$F$59:$F$840)-SUM(F$24:F49) -> 0 | G50: =SUMIF($B$59:$B$840,"<="&DATE($B50,12,31),$G$59:$G$840)-SUM(G$24:G49) -> 0 | H50: 0
B51: 2051 | C51: =SUMIF($B$59:$B$840,"<="&DATE($B51,12,31),$C$59:$C$840)-SUM(C$24:C50) -> 0 | D51: =SUMIF($B$59:$B$840,"<="&DATE($B51,12,31),$D$59:$D$840)-SUM(D$24:D50) -> 0 | F51: =SUMIF($B$59:$B$840,"<="&DATE($B51,12,31),$F$59:$F$840)-SUM(F$24:F50) -> 0 | G51: =SUMIF($B$59:$B$840,"<="&DATE($B51,12,31),$G$59:$G$840)-SUM(G$24:G50) -> 0 | H51: 0
B52: 2052 | C52: =SUMIF($B$59:$B$840,"<="&DATE($B52,12,31),$C$59:$C$840)-SUM(C$24:C51) -> 0 | D52: =SUMIF($B$59:$B$840,"<="&DATE($B52,12,31),$D$59:$D$840)-SUM(D$24:D51) -> 0 | F52: =SUMIF($B$59:$B$840,"<="&DATE($B52,12,31),$F$59:$F$840)-SUM(F$24:F51) -> 0 | G52: =SUMIF($B$59:$B$840,"<="&DATE($B52,12,31),$G$59:$G$840)-SUM(G$24:G51) -> 0 | H52: 0
B53: 2053 | C53: =SUMIF($B$59:$B$840,"<="&DATE($B53,12,31),$C$59:$C$840)-SUM(C$24:C52) -> 0 | D53: =SUMIF($B$59:$B$840,"<="&DATE($B53,12,31),$D$59:$D$840)-SUM(D$24:D52) -> 0 | F53: =SUMIF($B$59:$B$840,"<="&DATE($B53,12,31),$F$59:$F$840)-SUM(F$24:F52) -> 0 | G53: =SUMIF($B$59:$B$840,"<="&DATE($B53,12,31),$G$59:$G$840)-SUM(G$24:G52) -> 0 | H53: 0
B54: 2054 | C54: =SUMIF($B$59:$B$840,"<="&DATE($B54,12,31),$C$59:$C$840)-SUM(C$24:C53) -> 0 | D54: =SUMIF($B$59:$B$840,"<="&DATE($B54,12,31),$D$59:$D$840)-SUM(D$24:D53) -> 0 | F54: =SUMIF($B$59:$B$840,"<="&DATE($B54,12,31),$F$59:$F$840)-SUM(F$24:F53) -> 0 | G54: =SUMIF($B$59:$B$840,"<="&DATE($B54,12,31),$G$59:$G$840)-SUM(G$24:G53) -> 0 | H54: 0
B55: 2055 | C55: =SUMIF($B$59:$B$840,"<="&DATE($B55,12,31),$C$59:$C$840)-SUM(C$24:C54) -> 0 | D55: =SUMIF($B$59:$B$840,"<="&DATE($B55,12,31),$D$59:$D$840)-SUM(D$24:D54) -> 0 | F55: =SUMIF($B$59:$B$840,"<="&DATE($B55,12,31),$F$59:$F$840)-SUM(F$24:F54) -> 0 | G55: =SUMIF($B$59:$B$840,"<="&DATE($B55,12,31),$G$59:$G$840)-SUM(G$24:G54) -> 0 | H55: 0
A57: Amortisation Schedule
A58: No. | B58: Due Date | C58: Payment Due | D58: Additional Payment | F58: Interest | G58: Principal | H58: Balance
H59: =$D$5 -> 0
A60: =IF(H59="","",IF(roundOpt,IF(OR(A59>=nper,ROUND(H59,2)<=0),"",A59+1),IF(OR(A59>=nper,H59<=0),"",A59+1))) ->  | B60: =IF(A60="","",IF(OR(periods_per_year=26,periods_per_year=52),IF(periods_per_year=26,IF(A60=1,fpdate,B59+14),IF(periods_per_year=52,IF(A60=1,fpdate,B59+7),"n/a")),IF(periods_per_year=24,DATE(YEAR(fpdate),MONTH(fpdate)+(A60-1)/2+IF(AND(DAY(fpdate)>=15,MOD(A60,2)=0),1,0),IF(MOD(A60,2)=0,IF(DAY(fpdate)>=15,DAY(fpdate)-14,DAY(fpdate)+14),DAY(fpdate))),IF(DAY(DATE(YEAR(fpdate),MONTH(fpdate)+(A60-1)*months_per_period,DAY(fpdate)))<>DAY(fpdate),DATE(YEAR(fpdate),MONTH(fpdate)+(A60-1)*months_per_period+1,0),DATE(YEAR(fpdate),MONTH(fpdate)+(A60-1)*months_per_period,DAY(fpdate)))))) ->  | C60: =IF(A60="","",IF(roundOpt,IF(OR(A60=nper,payment>ROUND((1+rate)*H59,2)),ROUND((1+rate)*H59,2),payment),IF(OR(A60=nper,payment>(1+rate)*H59),(1+rate)*H59,payment))) ->  | F60: =IF(A60="","",IF(AND(A60=1,pmtType=1),0,IF(roundOpt,ROUND(rate*H59,2),rate*H59))) ->  | G60: =IF(A60="","",C60-F60+D60) ->  | H60: =IF(A60="","",H59-G60) -> 
A124: =IF(H123="","",IF(roundOpt,IF(OR(A123>=nper,ROUND(H123,2)<=0),"",A123+1),IF(OR(A123>=nper,H123<=0),"",A123+1))) ->  | B124: =IF(A124="","",IF(OR(periods_per_year=26,periods_per_year=52),IF(periods_per_year=26,IF(A124=1,fpdate,B123+14),IF(periods_per_year=52,IF(A124=1,fpdate,B123+7),"n/a")),IF(periods_per_year=24,DATE(YEAR(fpdate),MONTH(fpdate)+(A124-1)/2+IF(AND(DAY(fpdate)>=15,MOD(A124,2)=0),1,0),IF(MOD(A124,2)=0,IF(DAY(fpdate)>=15,DAY(fpdate)-14,DAY(fpdate)+14),DAY(fpdate))),IF(DAY(DATE(YEAR(fpdate),MONTH(fpdate)+(A124-1)*months_per_period,DAY(fpdate)))<>DAY(fpdate),DATE(YEAR(fpdate),MONTH(fpdate)+(A124-1)*months_per_period+1,0),DATE(YEAR(fpdate),MONTH(fpdate)+(A124-1)*months_per_period,DAY(fpdate)))))) ->  | C124: =IF(A124="","",IF(roundOpt,IF(OR(A124=nper,payment>ROUND((1+rate)*H123,2)),ROUND((1+rate)*H123,2),payment),IF(OR(A124=nper,payment>(1+rate)*H123),(1+rate)*H123,payment))) ->  | F124: =IF(A124="","",IF(AND(A124=1,pmtType=1),0,IF(roundOpt,ROUND(rate*H123,2),rate*H123))) ->  | G124: =IF(A124="","",C124-F124+D124) ->  | H124: =IF(A124="","",H123-G124) -> 
A188: =IF(H187="","",IF(roundOpt,IF(OR(A187>=nper,ROUND(H187,2)<=0),"",A187+1),IF(OR(A187>=nper,H187<=0),"",A187+1))) ->  | B188: =IF(A188="","",IF(OR(periods_per_year=26,periods_per_year=52),IF(periods_per_year=26,IF(A188=1,fpdate,B187+14),IF(periods_per_year=52,IF(A188=1,fpdate,B187+7),"n/a")),IF(periods_per_year=24,DATE(YEAR(fpdate),MONTH(fpdate)+(A188-1)/2+IF(AND(DAY(fpdate)>=15,MOD(A188,2)=0),1,0),IF(MOD(A188,2)=0,IF(DAY(fpdate)>=15,DAY(fpdate)-14,DAY(fpdate)+14),DAY(fpdate))),IF(DAY(DATE(YEAR(fpdate),MONTH(fpdate)+(A188-1)*months_per_period,DAY(fpdate)))<>DAY(fpdate),DATE(YEAR(fpdate),MONTH(fpdate)+(A188-1)*months_per_period+1,0),DATE(YEAR(fpdate),MONTH(fpdate)+(A188-1)*months_per_period,DAY(fpdate)))))) ->  | C188: =IF(A188="","",IF(roundOpt,IF(OR(A188=nper,payment>ROUND((1+rate)*H187,2)),ROUND((1+rate)*H187,2),payment),IF(OR(A188=nper,payment>(1+rate)*H187),(1+rate)*H187,payment))) ->  | F188: =IF(A188="","",IF(AND(A188=1,pmtType=1),0,IF(roundOpt,ROUND(rate*H187,2),rate*H187))) ->  | G188: =IF(A188="","",C188-F188+D188) ->  | H188: =IF(A188="","",H187-G188) -> 
A252: =IF(H251="","",IF(roundOpt,IF(OR(A251>=nper,ROUND(H251,2)<=0),"",A251+1),IF(OR(A251>=nper,H251<=0),"",A251+1))) ->  | B252: =IF(A252="","",IF(OR(periods_per_year=26,periods_per_year=52),IF(periods_per_year=26,IF(A252=1,fpdate,B251+14),IF(periods_per_year=52,IF(A252=1,fpdate,B251+7),"n/a")),IF(periods_per_year=24,DATE(YEAR(fpdate),MONTH(fpdate)+(A252-1)/2+IF(AND(DAY(fpdate)>=15,MOD(A252,2)=0),1,0),IF(MOD(A252,2)=0,IF(DAY(fpdate)>=15,DAY(fpdate)-14,DAY(fpdate)+14),DAY(fpdate))),IF(DAY(DATE(YEAR(fpdate),MONTH(fpdate)+(A252-1)*months_per_period,DAY(fpdate)))<>DAY(fpdate),DATE(YEAR(fpdate),MONTH(fpdate)+(A252-1)*months_per_period+1,0),DATE(YEAR(fpdate),MONTH(fpdate)+(A252-1)*months_per_period,DAY(fpdate)))))) ->  | C252: =IF(A252="","",IF(roundOpt,IF(OR(A252=nper,payment>ROUND((1+rate)*H251,2)),ROUND((1+rate)*H251,2),payment),IF(OR(A252=nper,payment>(1+rate)*H251),(1+rate)*H251,payment))) ->  | F252: =IF(A252="","",IF(AND(A252=1,pmtType=1),0,IF(roundOpt,ROUND(rate*H251,2),rate*H251))) ->  | G252: =IF(A252="","",C252-F252+D252) ->  | H252: =IF(A252="","",H251-G252) -> 
A316: =IF(H315="","",IF(roundOpt,IF(OR(A315>=nper,ROUND(H315,2)<=0),"",A315+1),IF(OR(A315>=nper,H315<=0),"",A315+1))) ->  | B316: =IF(A316="","",IF(OR(periods_per_year=26,periods_per_year=52),IF(periods_per_year=26,IF(A316=1,fpdate,B315+14),IF(periods_per_year=52,IF(A316=1,fpdate,B315+7),"n/a")),IF(periods_per_year=24,DATE(YEAR(fpdate),MONTH(fpdate)+(A316-1)/2+IF(AND(DAY(fpdate)>=15,MOD(A316,2)=0),1,0),IF(MOD(A316,2)=0,IF(DAY(fpdate)>=15,DAY(fpdate)-14,DAY(fpdate)+14),DAY(fpdate))),IF(DAY(DATE(YEAR(fpdate),MONTH(fpdate)+(A316-1)*months_per_period,DAY(fpdate)))<>DAY(fpdate),DATE(YEAR(fpdate),MONTH(fpdate)+(A316-1)*months_per_period+1,0),DATE(YEAR(fpdate),MONTH(fpdate)+(A316-1)*months_per_period,DAY(fpdate)))))) ->  | C316: =IF(A316="","",IF(roundOpt,IF(OR(A316=nper,payment>ROUND((1+rate)*H315,2)),ROUND((1+rate)*H315,2),payment),IF(OR(A316=nper,payment>(1+rate)*H315),(1+rate)*H315,payment))) ->  | F316: =IF(A316="","",IF(AND(A316=1,pmtType=1),0,IF(roundOpt,ROUND(rate*H315,2),rate*H315))) ->  | G316: =IF(A316="","",C316-F316+D316) ->  | H316: =IF(A316="","",H315-G316) -> 
A380: =IF(H379="","",IF(roundOpt,IF(OR(A379>=nper,ROUND(H379,2)<=0),"",A379+1),IF(OR(A379>=nper,H379<=0),"",A379+1))) ->  | B380: =IF(A380="","",IF(OR(periods_per_year=26,periods_per_year=52),IF(periods_per_year=26,IF(A380=1,fpdate,B379+14),IF(periods_per_year=52,IF(A380=1,fpdate,B379+7),"n/a")),IF(periods_per_year=24,DATE(YEAR(fpdate),MONTH(fpdate)+(A380-1)/2+IF(AND(DAY(fpdate)>=15,MOD(A380,2)=0),1,0),IF(MOD(A380,2)=0,IF(DAY(fpdate)>=15,DAY(fpdate)-14,DAY(fpdate)+14),DAY(fpdate))),IF(DAY(DATE(YEAR(fpdate),MONTH(fpdate)+(A380-1)*months_per_period,DAY(fpdate)))<>DAY(fpdate),DATE(YEAR(fpdate),MONTH(fpdate)+(A380-1)*months_per_period+1,0),DATE(YEAR(fpdate),MONTH(fpdate)+(A380-1)*months_per_period,DAY(fpdate)))))) ->  | C380: =IF(A380="","",IF(roundOpt,IF(OR(A380=nper,payment>ROUND((1+rate)*H379,2)),ROUND((1+rate)*H379,2),payment),IF(OR(A380=nper,payment>(1+rate)*H379),(1+rate)*H379,payment))) ->  | F380: =IF(A380="","",IF(AND(A380=1,pmtType=1),0,IF(roundOpt,ROUND(rate*H379,2),rate*H379))) ->  | G380: =IF(A380="","",C380-F380+D380) ->  | H380: =IF(A380="","",H379-G380) -> 
A444: =IF(H443="","",IF(roundOpt,IF(OR(A443>=nper,ROUND(H443,2)<=0),"",A443+1),IF(OR(A443>=nper,H443<=0),"",A443+1))) ->  | B444: =IF(A444="","",IF(OR(periods_per_year=26,periods_per_year=52),IF(periods_per_year=26,IF(A444=1,fpdate,B443+14),IF(periods_per_year=52,IF(A444=1,fpdate,B443+7),"n/a")),IF(periods_per_year=24,DATE(YEAR(fpdate),MONTH(fpdate)+(A444-1)/2+IF(AND(DAY(fpdate)>=15,MOD(A444,2)=0),1,0),IF(MOD(A444,2)=0,IF(DAY(fpdate)>=15,DAY(fpdate)-14,DAY(fpdate)+14),DAY(fpdate))),IF(DAY(DATE(YEAR(fpdate),MONTH(fpdate)+(A444-1)*months_per_period,DAY(fpdate)))<>DAY(fpdate),DATE(YEAR(fpdate),MONTH(fpdate)+(A444-1)*months_per_period+1,0),DATE(YEAR(fpdate),MONTH(fpdate)+(A444-1)*months_per_period,DAY(fpdate)))))) ->  | C444: =IF(A444="","",IF(roundOpt,IF(OR(A444=nper,payment>ROUND((1+rate)*H443,2)),ROUND((1+rate)*H443,2),payment),IF(OR(A444=nper,payment>(1+rate)*H443),(1+rate)*H443,payment))) ->  | F444: =IF(A444="","",IF(AND(A444=1,pmtType=1),0,IF(roundOpt,ROUND(rate*H443,2),rate*H443))) ->  | G444: =IF(A444="","",C444-F444+D444) ->  | H444: =IF(A444="","",H443-G444) -> 
A508: =IF(H507="","",IF(roundOpt,IF(OR(A507>=nper,ROUND(H507,2)<=0),"",A507+1),IF(OR(A507>=nper,H507<=0),"",A507+1))) ->  | B508: =IF(A508="","",IF(OR(periods_per_year=26,periods_per_year=52),IF(periods_per_year=26,IF(A508=1,fpdate,B507+14),IF(periods_per_year=52,IF(A508=1,fpdate,B507+7),"n/a")),IF(periods_per_year=24,DATE(YEAR(fpdate),MONTH(fpdate)+(A508-1)/2+IF(AND(DAY(fpdate)>=15,MOD(A508,2)=0),1,0),IF(MOD(A508,2)=0,IF(DAY(fpdate)>=15,DAY(fpdate)-14,DAY(fpdate)+14),DAY(fpdate))),IF(DAY(DATE(YEAR(fpdate),MONTH(fpdate)+(A508-1)*months_per_period,DAY(fpdate)))<>DAY(fpdate),DATE(YEAR(fpdate),MONTH(fpdate)+(A508-1)*months_per_period+1,0),DATE(YEAR(fpdate),MONTH(fpdate)+(A508-1)*months_per_period,DAY(fpdate)))))) ->  | C508: =IF(A508="","",IF(roundOpt,IF(OR(A508=nper,payment>ROUND((1+rate)*H507,2)),ROUND((1+rate)*H507,2),payment),IF(OR(A508=nper,payment>(1+rate)*H507),(1+rate)*H507,payment))) ->  | F508: =IF(A508="","",IF(AND(A508=1,pmtType=1),0,IF(roundOpt,ROUND(rate*H507,2),rate*H507))) ->  | G508: =IF(A508="","",C508-F508+D508) ->  | H508: =IF(A508="","",H507-G508) -> 
A572: =IF(H571="","",IF(roundOpt,IF(OR(A571>=nper,ROUND(H571,2)<=0),"",A571+1),IF(OR(A571>=nper,H571<=0),"",A571+1))) ->  | B572: =IF(A572="","",IF(OR(periods_per_year=26,periods_per_year=52),IF(periods_per_year=26,IF(A572=1,fpdate,B571+14),IF(periods_per_year=52,IF(A572=1,fpdate,B571+7),"n/a")),IF(periods_per_year=24,DATE(YEAR(fpdate),MONTH(fpdate)+(A572-1)/2+IF(AND(DAY(fpdate)>=15,MOD(A572,2)=0),1,0),IF(MOD(A572,2)=0,IF(DAY(fpdate)>=15,DAY(fpdate)-14,DAY(fpdate)+14),DAY(fpdate))),IF(DAY(DATE(YEAR(fpdate),MONTH(fpdate)+(A572-1)*months_per_period,DAY(fpdate)))<>DAY(fpdate),DATE(YEAR(fpdate),MONTH(fpdate)+(A572-1)*months_per_period+1,0),DATE(YEAR(fpdate),MONTH(fpdate)+(A572-1)*months_per_period,DAY(fpdate)))))) ->  | C572: =IF(A572="","",IF(roundOpt,IF(OR(A572=nper,payment>ROUND((1+rate)*H571,2)),ROUND((1+rate)*H571,2),payment),IF(OR(A572=nper,payment>(1+rate)*H571),(1+rate)*H571,payment))) ->  | F572: =IF(A572="","",IF(AND(A572=1,pmtType=1),0,IF(roundOpt,ROUND(rate*H571,2),rate*H571))) ->  | G572: =IF(A572="","",C572-F572+D572) ->  | H572: =IF(A572="","",H571-G572) -> 
A636: =IF(H635="","",IF(roundOpt,IF(OR(A635>=nper,ROUND(H635,2)<=0),"",A635+1),IF(OR(A635>=nper,H635<=0),"",A635+1))) ->  | B636: =IF(A636="","",IF(OR(periods_per_year=26,periods_per_year=52),IF(periods_per_year=26,IF(A636=1,fpdate,B635+14),IF(periods_per_year=52,IF(A636=1,fpdate,B635+7),"n/a")),IF(periods_per_year=24,DATE(YEAR(fpdate),MONTH(fpdate)+(A636-1)/2+IF(AND(DAY(fpdate)>=15,MOD(A636,2)=0),1,0),IF(MOD(A636,2)=0,IF(DAY(fpdate)>=15,DAY(fpdate)-14,DAY(fpdate)+14),DAY(fpdate))),IF(DAY(DATE(YEAR(fpdate),MONTH(fpdate)+(A636-1)*months_per_period,DAY(fpdate)))<>DAY(fpdate),DATE(YEAR(fpdate),MONTH(fpdate)+(A636-1)*months_per_period+1,0),DATE(YEAR(fpdate),MONTH(fpdate)+(A636-1)*months_per_period,DAY(fpdate)))))) ->  | C636: =IF(A636="","",IF(roundOpt,IF(OR(A636=nper,payment>ROUND((1+rate)*H635,2)),ROUND((1+rate)*H635,2),payment),IF(OR(A636=nper,payment>(1+rate)*H635),(1+rate)*H635,payment))) ->  | F636: =IF(A636="","",IF(AND(A636=1,pmtType=1),0,IF(roundOpt,ROUND(rate*H635,2),rate*H635))) ->  | G636: =IF(A636="","",C636-F636+D636) ->  | H636: =IF(A636="","",H635-G636) -> 
A700: =IF(H699="","",IF(roundOpt,IF(OR(A699>=nper,ROUND(H699,2)<=0),"",A699+1),IF(OR(A699>=nper,H699<=0),"",A699+1))) ->  | B700: =IF(A700="","",IF(OR(periods_per_year=26,periods_per_year=52),IF(periods_per_year=26,IF(A700=1,fpdate,B699+14),IF(periods_per_year=52,IF(A700=1,fpdate,B699+7),"n/a")),IF(periods_per_year=24,DATE(YEAR(fpdate),MONTH(fpdate)+(A700-1)/2+IF(AND(DAY(fpdate)>=15,MOD(A700,2)=0),1,0),IF(MOD(A700,2)=0,IF(DAY(fpdate)>=15,DAY(fpdate)-14,DAY(fpdate)+14),DAY(fpdate))),IF(DAY(DATE(YEAR(fpdate),MONTH(fpdate)+(A700-1)*months_per_period,DAY(fpdate)))<>DAY(fpdate),DATE(YEAR(fpdate),MONTH(fpdate)+(A700-1)*months_per_period+1,0),DATE(YEAR(fpdate),MONTH(fpdate)+(A700-1)*months_per_period,DAY(fpdate)))))) ->  | C700: =IF(A700="","",IF(roundOpt,IF(OR(A700=nper,payment>ROUND((1+rate)*H699,2)),ROUND((1+rate)*H699,2),payment),IF(OR(A700=nper,payment>(1+rate)*H699),(1+rate)*H699,payment))) ->  | F700: =IF(A700="","",IF(AND(A700=1,pmtType=1),0,IF(roundOpt,ROUND(rate*H699,2),rate*H699))) ->  | G700: =IF(A700="","",C700-F700+D700) ->  | H700: =IF(A700="","",H699-G700) -> 
A764: =IF(H763="","",IF(roundOpt,IF(OR(A763>=nper,ROUND(H763,2)<=0),"",A763+1),IF(OR(A763>=nper,H763<=0),"",A763+1))) ->  | B764: =IF(A764="","",IF(OR(periods_per_year=26,periods_per_year=52),IF(periods_per_year=26,IF(A764=1,fpdate,B763+14),IF(periods_per_year=52,IF(A764=1,fpdate,B763+7),"n/a")),IF(periods_per_year=24,DATE(YEAR(fpdate),MONTH(fpdate)+(A764-1)/2+IF(AND(DAY(fpdate)>=15,MOD(A764,2)=0),1,0),IF(MOD(A764,2)=0,IF(DAY(fpdate)>=15,DAY(fpdate)-14,DAY(fpdate)+14),DAY(fpdate))),IF(DAY(DATE(YEAR(fpdate),MONTH(fpdate)+(A764-1)*months_per_period,DAY(fpdate)))<>DAY(fpdate),DATE(YEAR(fpdate),MONTH(fpdate)+(A764-1)*months_per_period+1,0),DATE(YEAR(fpdate),MONTH(fpdate)+(A764-1)*months_per_period,DAY(fpdate)))))) ->  | C764: =IF(A764="","",IF(roundOpt,IF(OR(A764=nper,payment>ROUND((1+rate)*H763,2)),ROUND((1+rate)*H763,2),payment),IF(OR(A764=nper,payment>(1+rate)*H763),(1+rate)*H763,payment))) ->  | F764: =IF(A764="","",IF(AND(A764=1,pmtType=1),0,IF(roundOpt,ROUND(rate*H763,2),rate*H763))) ->  | G764: =IF(A764="","",C764-F764+D764) ->  | H764: =IF(A764="","",H763-G764) -> 
A828: =IF(H827="","",IF(roundOpt,IF(OR(A827>=nper,ROUND(H827,2)<=0),"",A827+1),IF(OR(A827>=nper,H827<=0),"",A827+1))) ->  | B828: =IF(A828="","",IF(OR(periods_per_year=26,periods_per_year=52),IF(periods_per_year=26,IF(A828=1,fpdate,B827+14),IF(periods_per_year=52,IF(A828=1,fpdate,B827+7),"n/a")),IF(periods_per_year=24,DATE(YEAR(fpdate),MONTH(fpdate)+(A828-1)/2+IF(AND(DAY(fpdate)>=15,MOD(A828,2)=0),1,0),IF(MOD(A828,2)=0,IF(DAY(fpdate)>=15,DAY(fpdate)-14,DAY(fpdate)+14),DAY(fpdate))),IF(DAY(DATE(YEAR(fpdate),MONTH(fpdate)+(A828-1)*months_per_period,DAY(fpdate)))<>DAY(fpdate),DATE(YEAR(fpdate),MONTH(fpdate)+(A828-1)*months_per_period+1,0),DATE(YEAR(fpdate),MONTH(fpdate)+(A828-1)*months_per_period,DAY(fpdate)))))) ->  | C828: =IF(A828="","",IF(roundOpt,IF(OR(A828=nper,payment>ROUND((1+rate)*H827,2)),ROUND((1+rate)*H827,2),payment),IF(OR(A828=nper,payment>(1+rate)*H827),(1+rate)*H827,payment))) ->  | F828: =IF(A828="","",IF(AND(A828=1,pmtType=1),0,IF(roundOpt,ROUND(rate*H827,2),rate*H827))) ->  | G828: =IF(A828="","",C828-F828+D828) ->  | H828: =IF(A828="","",H827-G828) -> 
D840: End

Sheet Amortisation Schedule_Loan1_AR (hidden)
A1: Loan Amortisation Schedule
A4: Loan Information | F4: Summary | K4: Frequency
C5: Loan Amount | D5: ='Loan Serviceability Calculator'!E42 -> 0 | G5: Rate (per period) | H5: =IF(D9=D10,D6/D14,((1+D6/D14)^(D14/D13))-1) ->  | K5: Annual
C6: Annual Interest Rate | D6: =IFERROR('Loan Serviceability Calculator'!H97,0) -> n/a | G6: Total Payments | H6: =SUM(F60:F839)+SUM(G60:G839) -> 0 | K6: Semi-Annual
C7: Term of Loan in Years | D7: ='Loan Serviceability Calculator'!F42/12 -> 0 | G7: Total Interest | H7: =SUM(F59:F839) -> 0 | K7: Quarterly
C8: First Payment Date | D8: =NOW() -> 2025-06-06T10:00:07.580 | G8: Est. Interest Savings | H8: =IF(AND(SUM(D60:D839)=0,roundOpt)," - ",(nper*(-PMT(rate,nper,loan_amount,,pmtType))-loan_amount)-H7) -> - | K8: Bi-Monthly
C9: Payment Frequency | D9: Monthly | H9: =IF(AND(NOT(H839=""),H839>0.004),"ERROR: Limit is "&OFFSET(A840,-1,0,1,1)&" payments",".") -> . | K9: Monthly
C10: Compound Period | D10: =D9 -> Monthly | H10: =IF(D14>D13,"Warning: negative amortization",".") -> . | K10: Semi-Monthly
C11: Payment Type | D11: End of Period | K11: Bi-Weekly
C12: Rounding | D12: On | K12: Weekly
C13: Periods Per Year | D13: =INDEX({1;2;4;6;12;24;26;52},MATCH('Amortisation Schedule_Loan1_AR'!$D$9,$K$5:$K$12,0)) -> 12
C14: Compound Period | D14: =INDEX({1;2;4;6;12;24;26;52},MATCH('Amortisation Schedule_Loan1_AR'!$D$10,$K$5:$K$12,0)) -> 12
C15: Payment Type | D15: =IF('Amortisation Schedule_Loan1_AR'!$D$11="End of Period",0,1) -> 0
C16: Months Per Period | D16: =12/$D$13 -> 1
C17: Number of Periods | D17: =$D$7*$D$13 -> 0
C18: Rounding Option | D18: =(D12="On") -> TRUE
H19: [42]
C20: =D9&" Payment" -> Monthly Payment | D20: =IFERROR(IF(roundOpt,ROUND(-PMT(rate,nper,$D$5,,pmtType),2),-PMT(rate,nper,$D$5,,pmtType)),0) -> 0
A22: Yearly Summary
B23: Year | C23: Payments | D23: Additional Payments | F23: Interest Paid | G23: Principal Paid | H23: Year-End Balance
H24: =loan_amount -> 0
B25: =YEAR(fpdate) -> 2025 | C25: =SUMIF($B$59:$B$840,"<="&DATE($B25,12,31),$C$59:$C$840)-SUM(C$24:C24) -> 0 | D25: =SUMIF($B$59:$B$840,"<="&DATE($B25,12,31),$D$59:$D$840)-SUM(D$24:D24) -> 0 | F25: =SUMIF($B$59:$B$840,"<="&DATE($B25,12,31),$F$59:$F$840)-SUM(F$24:F24) -> 0 | G25: =SUMIF($B$59:$B$840,"<="&DATE($B25,12,31),$G$59:$G$840)-SUM(G$24:G24) -> 0 | H25: =H24-G25 -> 0
B26: =B25+1 -> 2026 | C26: =SUMIF($B$59:$B$840,"<="&DATE($B26,12,31),$C$59:$C$840)-SUM(C$24:C25) -> 0 | D26: =SUMIF($B$59:$B$840,"<="&DATE($B26,12,31),$D$59:$D$840)-SUM(D$24:D25) -> 0 | F26: =SUMIF($B$59:$B$840,"<="&DATE($B26,12,31),$F$59:$F$840)-SUM(F$24:F25) -> 0 | G26: =SUMIF($B$59:$B$840,"<="&DATE($B26,12,31),$G$59:$G$840)-SUM(G$24:G25) -> 0 | H26: =H25-G26 -> 0
B27: =B26+1 -> 2027 | C27: =SUMIF($B$59:$B$840,"<="&DATE($B27,12,31),$C$59:$C$840)-SUM(C$24:C26) -> 0 | D27: =SUMIF($B$59:$B$840,"<="&DATE($B27,12,31),$D$59:$D$840)-SUM(D$24:D26) -> 0 | F27: =SUMIF($B$59:$B$840,"<="&DATE($B27,12,31),$F$59:$F$840)-SUM(F$24:F26) -> 0 | G27: =SUMIF($B$59:$B$840,"<="&DATE($B27,12,31),$G$59:$G$840)-SUM(G$24:G26) -> 0 | H27: =H26-G27 -> 0
B28: =B27+1 -> 2028 | C28: =SUMIF($B$59:$B$840,"<="&DATE($B28,12,31),$C$59:$C$840)-SUM(C$24:C27) -> 0 | D28: =SUMIF($B$59:$B$840,"<="&DATE($B28,12,31),$D$59:$D$840)-SUM(D$24:D27) -> 0 | F28: =SUMIF($B$59:$B$840,"<="&DATE($B28,12,31),$F$59:$F$840)-SUM(F$24:F27) -> 0 | G28: =SUMIF($B$59:$B$840,"<="&DATE($B28,12,31),$G$59:$G$840)-SUM(G$24:G27) -> 0 | H28: =H27-G28 -> 0
B29: =B28+1 -> 2029 | C29: =SUMIF($B$59:$B$840,"<="&DATE($B29,12,31),$C$59:$C$840)-SUM(C$24:C28) -> 0 | D29: =SUMIF($B$59:$B$840,"<="&DATE($B29,12,31),$D$59:$D$840)-SUM(D$24:D28) -> 0 | F29: =SUMIF($B$59:$B$840,"<="&DATE($B29,12,31),$F$59:$F$840)-SUM(F$24:F28) -> 0 | G29: =SUMIF($B$59:$B$840,"<="&DATE($B29,12,31),$G$59:$G$840)-SUM(G$24:G28) -> 0 | H29: =H28-G29 -> 0
B30: 2030 | C30: =SUMIF($B$59:$B$840,"<="&DATE($B30,12,31),$C$59:$C$840)-SUM(C$24:C29) -> 0 | D30: =SUMIF($B$59:$B$840,"<="&DATE($B30,12,31),$D$59:$D$840)-SUM(D$24:D29) -> 0 | F30: =SUMIF($B$59:$B$840,"<="&DATE($B30,12,31),$F$59:$F$840)-SUM(F$24:F29) -> 0 | G30: =SUMIF($B$59:$B$840,"<="&DATE($B30,12,31),$G$59:$G$840)-SUM(G$24:G29) -> 0 | H30: 0
B31: 2031 | C31: =SUMIF($B$59:$B$840,"<="&DATE($B31,12,31),$C$59:$C$840)-SUM(C$24:C30) -> 0 | D31: =SUMIF($B$59:$B$840,"<="&DATE($B31,12,31),$D$59:$D$840)-SUM(D$24:D30) -> 0 | F31: =SUMIF($B$59:$B$840,"<="&DATE($B31,12,31),$F$59:$F$840)-SUM(F$24:F30) -> 0 | G31: =SUMIF($B$59:$B$840,"<="&DATE($B31,12,31),$G$59:$G$840)-SUM(G$24:G30) -> 0 | H31: 0
B32: 2032 | C32: =SUMIF($B$59:$B$840,"<="&DATE($B32,12,31),$C$59:$C$840)-SUM(C$24:C31) -> 0 | D32: =SUMIF($B$59:$B$840,"<="&DATE($B32,12,31),$D$59:$D$840)-SUM(D$24:D31) -> 0 | F32: =SUMIF($B$59:$B$840,"<="&DATE($B32,12,31),$F$59:$F$840)-SUM(F$24:F31) -> 0 | G32: =SUMIF($B$59:$B$840,"<="&DATE($B32,12,31),$G$59:$G$840)-SUM(G$24:G31) -> 0 | H32: 0
B33: 2033 | C33: =SUMIF($B$59:$B$840,"<="&DATE($B33,12,31),$C$59:$C$840)-SUM(C$24:C32) -> 0 | D33: =SUMIF($B$59:$B$840,"<="&DATE($B33,12,31),$D$59:$D$840)-SUM(D$24:D32) -> 0 | F33: =SUMIF($B$59:$B$840,"<="&DATE($B33,12,31),$F$59:$F$840)-SUM(F$24:F32) -> 0 | G33: =SUMIF($B$59:$B$840,"<="&DATE($B33,12,31),$G$59:$G$840)-SUM(G$24:G32) -> 0 | H33: 0
B34: 2034 | C34: =SUMIF($B$59:$B$840,"<="&DATE($B34,12,31),$C$59:$C$840)-SUM(C$24:C33) -> 0 | D34: =SUMIF($B$59:$B$840,"<="&DATE($B34,12,31),$D$59:$D$840)-SUM(D$24:D33) -> 0 | F34: =SUMIF($B$59:$B$840,"<="&DATE($B34,12,31),$F$59:$F$840)-SUM(F$24:F33) -> 0 | G34: =SUMIF($B$59:$B$840,"<="&DATE($B34,12,31),$G$59:$G$840)-SUM(G$24:G33) -> 0 | H34: 0
B35: 2035 | C35: =SUMIF($B$59:$B$840,"<="&DATE($B35,12,31),$C$59:$C$840)-SUM(C$24:C34) -> 0 | D35: =SUMIF($B$59:$B$840,"<="&DATE($B35,12,31),$D$59:$D$840)-SUM(D$24:D34) -> 0 | F35: =SUMIF($B$59:$B$840,"<="&DATE($B35,12,31),$F$59:$F$840)-SUM(F$24:F34) -> 0 | G35: =SUMIF($B$59:$B$840,"<="&DATE($B35,12,31),$G$59:$G$840)-SUM(G$24:G34) -> 0 | H35: 0
B36: 2036 | C36: =SUMIF($B$59:$B$840,"<="&DATE($B36,12,31),$C$59:$C$840)-SUM(C$24:C35) -> 0 | D36: =SUMIF($B$59:$B$840,"<="&DATE($B36,12,31),$D$59:$D$840)-SUM(D$24:D35) -> 0 | F36: =SUMIF($B$59:$B$840,"<="&DATE($B36,12,31),$F$59:$F$840)-SUM(F$24:F35) -> 0 | G36: =SUMIF($B$59:$B$840,"<="&DATE($B36,12,31),$G$59:$G$840)-SUM(G$24:G35) -> 0 | H36: 0
B37: 2037 | C37: =SUMIF($B$59:$B$840,"<="&DATE($B37,12,31),$C$59:$C$840)-SUM(C$24:C36) -> 0 | D37: =SUMIF($B$59:$B$840,"<="&DATE($B37,12,31),$D$59:$D$840)-SUM(D$24:D36) -> 0 | F37: =SUMIF($B$59:$B$840,"<="&DATE($B37,12,31),$F$59:$F$840)-SUM(F$24:F36) -> 0 | G37: =SUMIF($B$59:$B$840,"<="&DATE($B37,12,31),$G$59:$G$840)-SUM(G$24:G36) -> 0 | H37: 0
B38: 2038 | C38: =SUMIF($B$59:$B$840,"<="&DATE($B38,12,31),$C$59:$C$840)-SUM(C$24:C37) -> 0 | D38: =SUMIF($B$59:$B$840,"<="&DATE($B38,12,31),$D$59:$D$840)-SUM(D$24:D37) -> 0 | F38: =SUMIF($B$59:$B$840,"<="&DATE($B38,12,31),$F$59:$F$840)-SUM(F$24:F37) -> 0 | G38: =SUMIF($B$59:$B$840,"<="&DATE($B38,12,31),$G$59:$G$840)-SUM(G$24:G37) -> 0 | H38: 0
B39: 2039 | C39: =SUMIF($B$59:$B$840,"<="&DATE($B39,12,31),$C$59:$C$840)-SUM(C$24:C38) -> 0 | D39: =SUMIF($B$59:$B$840,"<="&DATE($B39,12,31),$D$59:$D$840)-SUM(D$24:D38) -> 0 | F39: =SUMIF($B$59:$B$840,"<="&DATE($B39,12,31),$F$59:$F$840)-SUM(F$24:F38) -> 0 | G39: =SUMIF($B$59:$B$840,"<="&DATE($B39,12,31),$G$59:$G$840)-SUM(G$24:G38) -> 0 | H39: 0
B40: 2040 | C40: =SUMIF($B$59:$B$840,"<="&DATE($B40,12,31),$C$59:$C$840)-SUM(C$24:C39) -> 0 | D40: =SUMIF($B$59:$B$840,"<="&DATE($B40,12,31),$D$59:$D$840)-SUM(D$24:D39) -> 0 | F40: =SUMIF($B$59:$B$840,"<="&DATE($B40,12,31),$F$59:$F$840)-SUM(F$24:F39) -> 0 | G40: =SUMIF($B$59:$B$840,"<="&DATE($B40,12,31),$G$59:$G$840)-SUM(G$24:G39) -> 0 | H40: 0
B41: 2041 | C41: =SUMIF($B$59:$B$840,"<="&DATE($B41,12,31),$C$59:$C$840)-SUM(C$24:C40) -> 0 | D41: =SUMIF($B$59:$B$840,"<="&DATE($B41,12,31),$D$59:$D$840)-SUM(D$24:D40) -> 0 | F41: =SUMIF($B$59:$B$840,"<="&DATE($B41,12,31),$F$59:$F$840)-SUM(F$24:F40) -> 0 | G41: =SUMIF($B$59:$B$840,"<="&DATE($B41,12,31),$G$59:$G$840)-SUM(G$24:G40) -> 0 | H41: 0
B42: 2042 | C42: =SUMIF($B$59:$B$840,"<="&DATE($B42,12,31),$C$59:$C$840)-SUM(C$24:C41) -> 0 | D42: =SUMIF($B$59:$B$840,"<="&DATE($B42,12,31),$D$59:$D$840)-SUM(D$24:D41) -> 0 | F42: =SUMIF($B$59:$B$840,"<="&DATE($B42,12,31),$F$59:$F$840)-SUM(F$24:F41) -> 0 | G42: =SUMIF($B$59:$B$840,"<="&DATE($B42,12,31),$G$59:$G$840)-SUM(G$24:G41) -> 0 | H42: 0
B43: 2043 | C43: =SUMIF($B$59:$B$840,"<="&DATE($B43,12,31),$C$59:$C$840)-SUM(C$24:C42) -> 0 | D43: =SUMIF($B$59:$B$840,"<="&DATE($B43,12,31),$D$59:$D$840)-SUM(D$24:D42) -> 0 | F43: =SUMIF($B$59:$B$840,"<="&DATE($B43,12,31),$F$59:$F$840)-SUM(F$24:F42) -> 0 | G43: =SUMIF($B$59:$B$840,"<="&DATE($B43,12,31),$G$59:$G$840)-SUM(G$24:G42) -> 0 | H43: 0
B44: 2044 | C44: =SUMIF($B$59:$B$840,"<="&DATE($B44,12,31),$C$59:$C$840)-SUM(C$24:C43) -> 0 | D44: =SUMIF($B$59:$B$840,"<="&DATE($B44,12,31),$D$59:$D$840)-SUM(D$24:D43) -> 0 | F44: =SUMIF($B$59:$B$840,"<="&DATE($B44,12,31),$F$59:$F$840)-SUM(F$24:F43) -> 0 | G44: =SUMIF($B$59:$B$840,"<="&DATE($B44,12,31),$G$59:$G$840)-SUM(G$24:G43) -> 0 | H44: 0
B45: 2045 | C45: =SUMIF($B$59:$B$840,"<="&DATE($B45,12,31),$C$59:$C$840)-SUM(C$24:C44) -> 0 | D45: =SUMIF($B$59:$B$840,"<="&DATE($B45,12,31),$D$59:$D$840)-SUM(D$24:D44) -> 0 | F45: =SUMIF($B$59:$B$840,"<="&DATE($B45,12,31),$F$59:$F$840)-SUM(F$24:F44) -> 0 | G45: =SUMIF($B$59:$B$840,"<="&DATE($B45,12,31),$G$59:$G$840)-SUM(G$24:G44) -> 0 | H45: 0
B46: 2046 | C46: =SUMIF($B$59:$B$840,"<="&DATE($B46,12,31),$C$59:$C$840)-SUM(C$24:C45) -> 0 | D46: =SUMIF($B$59:$B$840,"<="&DATE($B46,12,31),$D$59:$D$840)-SUM(D$24:D45) -> 0 | F46: =SUMIF($B$59:$B$840,"<="&DATE($B46,12,31),$F$59:$F$840)-SUM(F$24:F45) -> 0 | G46: =SUMIF($B$59:$B$840,"<="&DATE($B46,12,31),$G$59:$G$840)-SUM(G$24:G45) -> 0 | H46: 0
B47: 2047 | C47: =SUMIF($B$59:$B$840,"<="&DATE($B47,12,31),$C$59:$C$840)-SUM(C$24:C46) -> 0 | D47: =SUMIF($B$59:$B$840,"<="&DATE($B47,12,31),$D$59:$D$840)-SUM(D$24:D46) -> 0 | F47: =SUMIF($B$59:$B$840,"<="&DATE($B47,12,31),$F$59:$F$840)-SUM(F$24:F46) -> 0 | G47: =SUMIF($B$59:$B$840,"<="&DATE($B47,12,31),$G$59:$G$840)-SUM(G$24:G46) -> 0 | H47: 0
B48: 2048 | C48: =SUMIF($B$59:$B$840,"<="&DATE($B48,12,31),$C$59:$C$840)-SUM(C$24:C47) -> 0 | D48: =SUMIF($B$59:$B$840,"<="&DATE($B48,12,31),$D$59:$D$840)-SUM(D$24:D47) -> 0 | F48: =SUMIF($B$59:$B$840,"<="&DATE($B48,12,31),$F$59:$F$840)-SUM(F$24:F47) -> 0 | G48: =SUMIF($B$59:$B$840,"<="&DATE($B48,12,31),$G$59:$G$840)-SUM(G$24:G47) -> 0 | H48: 0
B49: 2049 | C49: =SUMIF($B$59:$B$840,"<="&DATE($B49,12,31),$C$59:$C$840)-SUM(C$24:C48) -> 0 | D49: =SUMIF($B$59:$B$840,"<="&DATE($B49,12,31),$D$59:$D$840)-SUM(D$24:D48) -> 0 | F49: =SUMIF($B$59:$B$840,"<="&DATE($B49,12,31),$F$59:$F$840)-SUM(F$24:F48) -> 0 | G49: =SUMIF($B$59:$B$840,"<="&DATE($B49,12,31),$G$59:$G$840)-SUM(G$24:G48) -> 0 | H49: 0
B50: 2050 | C50: =SUMIF($B$59:$B$840,"<="&DATE($B50,12,31),$C$59:$C$840)-SUM(C$24:C49) -> 0 | D50: =SUMIF($B$59:$B$840,"<="&DATE($B50,12,31),$D$59:$D$840)-SUM(D$24:D49) -> 0 | F50: =SUMIF($B$59:$B$840,"<="&DATE($B50,12,31),$F$59:$F$840)-SUM(F$24:F49) -> 0 | G50: =SUMIF($B$59:$B$840,"<="&DATE($B50,12,31),$G$59:$G$840)-SUM(G$24:G49) -> 0 | H50: 0
B51: 2051 | C51: =SUMIF($B$59:$B$840,"<="&DATE($B51,12,31),$C$59:$C$840)-SUM(C$24:C50) -> 0 | D51: =SUMIF($B$59:$B$840,"<="&DATE($B51,12,31),$D$59:$D$840)-SUM(D$24:D50) -> 0 | F51: =SUMIF($B$59:$B$840,"<="&DATE($B51,12,31),$F$59:$F$840)-SUM(F$24:F50) -> 0 | G51: =SUMIF($B$59:$B$840,"<="&DATE($B51,12,31),$G$59:$G$840)-SUM(G$24:G50) -> 0 | H51: 0
B52: 2052 | C52: =SUMIF($B$59:$B$840,"<="&DATE($B52,12,31),$C$59:$C$840)-SUM(C$24:C51) -> 0 | D52: =SUMIF($B$59:$B$840,"<="&DATE($B52,12,31),$D$59:$D$840)-SUM(D$24:D51) -> 0 | F52: =SUMIF($B$59:$B$840,"<="&DATE($B52,12,31),$F$59:$F$840)-SUM(F$24:F51) -> 0 | G52: =SUMIF($B$59:$B$840,"<="&DATE($B52,12,31),$G$59:$G$840)-SUM(G$24:G51) -> 0 | H52: 0
B53: 2053 | C53: =SUMIF($B$59:$B$840,"<="&DATE($B53,12,31),$C$59:$C$840)-SUM(C$24:C52) -> 0 | D53: =SUMIF($B$59:$B$840,"<="&DATE($B53,12,31),$D$59:$D$840)-SUM(D$24:D52) -> 0 | F53: =SUMIF($B$59:$B$840,"<="&DATE($B53,12,31),$F$59:$F$840)-SUM(F$24:F52) -> 0 | G53: =SUMIF($B$59:$B$840,"<="&DATE($B53,12,31),$G$59:$G$840)-SUM(G$24:G52) -> 0 | H53: 0
B54: 2054 | C54: =SUMIF($B$59:$B$840,"<="&DATE($B54,12,31),$C$59:$C$840)-SUM(C$24:C53) -> 0 | D54: =SUMIF($B$59:$B$840,"<="&DATE($B54,12,31),$D$59:$D$840)-SUM(D$24:D53) -> 0 | F54: =SUMIF($B$59:$B$840,"<="&DATE($B54,12,31),$F$59:$F$840)-SUM(F$24:F53) -> 0 | G54: =SUMIF($B$59:$B$840,"<="&DATE($B54,12,31),$G$59:$G$840)-SUM(G$24:G53) -> 0 | H54: 0
B55: 2055 | C55: =SUMIF($B$59:$B$840,"<="&DATE($B55,12,31),$C$59:$C$840)-SUM(C$24:C54) -> 0 | D55: =SUMIF($B$59:$B$840,"<="&DATE($B55,12,31),$D$59:$D$840)-SUM(D$24:D54) -> 0 | F55: =SUMIF($B$59:$B$840,"<="&DATE($B55,12,31),$F$59:$F$840)-SUM(F$24:F54) -> 0 | G55: =SUMIF($B$59:$B$840,"<="&DATE($B55,12,31),$G$59:$G$840)-SUM(G$24:G54) -> 0 | H55: 0
A57: Amortisation Schedule
A58: No. | B58: Due Date | C58: Payment Due | D58: Additional Payment | F58: Interest | G58: Principal | H58: Balance
H59: =$D$5 -> 0
A60: =IF(H59="","",IF(roundOpt,IF(OR(A59>=nper,ROUND(H59,2)<=0),"",A59+1),IF(OR(A59>=nper,H59<=0),"",A59+1))) ->  | B60: =IF(A60="","",IF(OR(periods_per_year=26,periods_per_year=52),IF(periods_per_year=26,IF(A60=1,fpdate,B59+14),IF(periods_per_year=52,IF(A60=1,fpdate,B59+7),"n/a")),IF(periods_per_year=24,DATE(YEAR(fpdate),MONTH(fpdate)+(A60-1)/2+IF(AND(DAY(fpdate)>=15,MOD(A60,2)=0),1,0),IF(MOD(A60,2)=0,IF(DAY(fpdate)>=15,DAY(fpdate)-14,DAY(fpdate)+14),DAY(fpdate))),IF(DAY(DATE(YEAR(fpdate),MONTH(fpdate)+(A60-1)*months_per_period,DAY(fpdate)))<>DAY(fpdate),DATE(YEAR(fpdate),MONTH(fpdate)+(A60-1)*months_per_period+1,0),DATE(YEAR(fpdate),MONTH(fpdate)+(A60-1)*months_per_period,DAY(fpdate)))))) ->  | C60: =IF(A60="","",IF(roundOpt,IF(OR(A60=nper,payment>ROUND((1+rate)*H59,2)),ROUND((1+rate)*H59,2),payment),IF(OR(A60=nper,payment>(1+rate)*H59),(1+rate)*H59,payment))) ->  | F60: =IF(A60="","",IF(AND(A60=1,pmtType=1),0,IF(roundOpt,ROUND(rate*H59,2),rate*H59))) ->  | G60: =IF(A60="","",C60-F60+D60) ->  | H60: =IF(A60="","",H59-G60) -> 
A124: =IF(H123="","",IF(roundOpt,IF(OR(A123>=nper,ROUND(H123,2)<=0),"",A123+1),IF(OR(A123>=nper,H123<=0),"",A123+1))) ->  | B124: =IF(A124="","",IF(OR(periods_per_year=26,periods_per_year=52),IF(periods_per_year=26,IF(A124=1,fpdate,B123+14),IF(periods_per_year=52,IF(A124=1,fpdate,B123+7),"n/a")),IF(periods_per_year=24,DATE(YEAR(fpdate),MONTH(fpdate)+(A124-1)/2+IF(AND(DAY(fpdate)>=15,MOD(A124,2)=0),1,0),IF(MOD(A124,2)=0,IF(DAY(fpdate)>=15,DAY(fpdate)-14,DAY(fpdate)+14),DAY(fpdate))),IF(DAY(DATE(YEAR(fpdate),MONTH(fpdate)+(A124-1)*months_per_period,DAY(fpdate)))<>DAY(fpdate),DATE(YEAR(fpdate),MONTH(fpdate)+(A124-1)*months_per_period+1,0),DATE(YEAR(fpdate),MONTH(fpdate)+(A124-1)*months_per_period,DAY(fpdate)))))) ->  | C124: =IF(A124="","",IF(roundOpt,IF(OR(A124=nper,payment>ROUND((1+rate)*H123,2)),ROUND((1+rate)*H123,2),payment),IF(OR(A124=nper,payment>(1+rate)*H123),(1+rate)*H123,payment))) ->  | F124: =IF(A124="","",IF(AND(A124=1,pmtType=1),0,IF(roundOpt,ROUND(rate*H123,2),rate*H123))) ->  | G124: =IF(A124="","",C124-F124+D124) ->  | H124: =IF(A124="","",H123-G124) -> 
A188: =IF(H187="","",IF(roundOpt,IF(OR(A187>=nper,ROUND(H187,2)<=0),"",A187+1),IF(OR(A187>=nper,H187<=0),"",A187+1))) ->  | B188: =IF(A188="","",IF(OR(periods_per_year=26,periods_per_year=52),IF(periods_per_year=26,IF(A188=1,fpdate,B187+14),IF(periods_per_year=52,IF(A188=1,fpdate,B187+7),"n/a")),IF(periods_per_year=24,DATE(YEAR(fpdate),MONTH(fpdate)+(A188-1)/2+IF(AND(DAY(fpdate)>=15,MOD(A188,2)=0),1,0),IF(MOD(A188,2)=0,IF(DAY(fpdate)>=15,DAY(fpdate)-14,DAY(fpdate)+14),DAY(fpdate))),IF(DAY(DATE(YEAR(fpdate),MONTH(fpdate)+(A188-1)*months_per_period,DAY(fpdate)))<>DAY(fpdate),DATE(YEAR(fpdate),MONTH(fpdate)+(A188-1)*months_per_period+1,0),DATE(YEAR(fpdate),MONTH(fpdate)+(A188-1)*months_per_period,DAY(fpdate)))))) ->  | C188: =IF(A188="","",IF(roundOpt,IF(OR(A188=nper,payment>ROUND((1+rate)*H187,2)),ROUND((1+rate)*H187,2),payment),IF(OR(A188=nper,payment>(1+rate)*H187),(1+rate)*H187,payment))) ->  | F188: =IF(A188="","",IF(AND(A188=1,pmtType=1),0,IF(roundOpt,ROUND(rate*H187,2),rate*H187))) ->  | G188: =IF(A188="","",C188-F188+D188) ->  | H188: =IF(A188="","",H187-G188) -> 
A252: =IF(H251="","",IF(roundOpt,IF(OR(A251>=nper,ROUND(H251,2)<=0),"",A251+1),IF(OR(A251>=nper,H251<=0),"",A251+1))) ->  | B252: =IF(A252="","",IF(OR(periods_per_year=26,periods_per_year=52),IF(periods_per_year=26,IF(A252=1,fpdate,B251+14),IF(periods_per_year=52,IF(A252=1,fpdate,B251+7),"n/a")),IF(periods_per_year=24,DATE(YEAR(fpdate),MONTH(fpdate)+(A252-1)/2+IF(AND(DAY(fpdate)>=15,MOD(A252,2)=0),1,0),IF(MOD(A252,2)=0,IF(DAY(fpdate)>=15,DAY(fpdate)-14,DAY(fpdate)+14),DAY(fpdate))),IF(DAY(DATE(YEAR(fpdate),MONTH(fpdate)+(A252-1)*months_per_period,DAY(fpdate)))<>DAY(fpdate),DATE(YEAR(fpdate),MONTH(fpdate)+(A252-1)*months_per_period+1,0),DATE(YEAR(fpdate),MONTH(fpdate)+(A252-1)*months_per_period,DAY(fpdate)))))) ->  | C252: =IF(A252="","",IF(roundOpt,IF(OR(A252=nper,payment>ROUND((1+rate)*H251,2)),ROUND((1+rate)*H251,2),payment),IF(OR(A252=nper,payment>(1+rate)*H251),(1+rate)*H251,payment))) ->  | F252: =IF(A252="","",IF(AND(A252=1,pmtType=1),0,IF(roundOpt,ROUND(rate*H251,2),rate*H251))) ->  | G252: =IF(A252="","",C252-F252+D252) ->  | H252: =IF(A252="","",H251-G252) -> 
A316: =IF(H315="","",IF(roundOpt,IF(OR(A315>=nper,ROUND(H315,2)<=0),"",A315+1),IF(OR(A315>=nper,H315<=0),"",A315+1))) ->  | B316: =IF(A316="","",IF(OR(periods_per_year=26,periods_per_year=52),IF(periods_per_year=26,IF(A316=1,fpdate,B315+14),IF(periods_per_year=52,IF(A316=1,fpdate,B315+7),"n/a")),IF(periods_per_year=24,DATE(YEAR(fpdate),MONTH(fpdate)+(A316-1)/2+IF(AND(DAY(fpdate)>=15,MOD(A316,2)=0),1,0),IF(MOD(A316,2)=0,IF(DAY(fpdate)>=15,DAY(fpdate)-14,DAY(fpdate)+14),DAY(fpdate))),IF(DAY(DATE(YEAR(fpdate),MONTH(fpdate)+(A316-1)*months_per_period,DAY(fpdate)))<>DAY(fpdate),DATE(YEAR(fpdate),MONTH(fpdate)+(A316-1)*months_per_period+1,0),DATE(YEAR(fpdate),MONTH(fpdate)+(A316-1)*months_per_period,DAY(fpdate)))))) ->  | C316: =IF(A316="","",IF(roundOpt,IF(OR(A316=nper,payment>ROUND((1+rate)*H315,2)),ROUND((1+rate)*H315,2),payment),IF(OR(A316=nper,payment>(1+rate)*H315),(1+rate)*H315,payment))) ->  | F316: =IF(A316="","",IF(AND(A316=1,pmtType=1),0,IF(roundOpt,ROUND(rate*H315,2),rate*H315))) ->  | G316: =IF(A316="","",C316-F316+D316) ->  | H316: =IF(A316="","",H315-G316) -> 
A380: =IF(H379="","",IF(roundOpt,IF(OR(A379>=nper,ROUND(H379,2)<=0),"",A379+1),IF(OR(A379>=nper,H379<=0),"",A379+1))) ->  | B380: =IF(A380="","",IF(OR(periods_per_year=26,periods_per_year=52),IF(periods_per_year=26,IF(A380=1,fpdate,B379+14),IF(periods_per_year=52,IF(A380=1,fpdate,B379+7),"n/a")),IF(periods_per_year=24,DATE(YEAR(fpdate),MONTH(fpdate)+(A380-1)/2+IF(AND(DAY(fpdate)>=15,MOD(A380,2)=0),1,0),IF(MOD(A380,2)=0,IF(DAY(fpdate)>=15,DAY(fpdate)-14,DAY(fpdate)+14),DAY(fpdate))),IF(DAY(DATE(YEAR(fpdate),MONTH(fpdate)+(A380-1)*months_per_period,DAY(fpdate)))<>DAY(fpdate),DATE(YEAR(fpdate),MONTH(fpdate)+(A380-1)*months_per_period+1,0),DATE(YEAR(fpdate),MONTH(fpdate)+(A380-1)*months_per_period,DAY(fpdate)))))) ->  | C380: =IF(A380="","",IF(roundOpt,IF(OR(A380=nper,payment>ROUND((1+rate)*H379,2)),ROUND((1+rate)*H379,2),payment),IF(OR(A380=nper,payment>(1+rate)*H379),(1+rate)*H379,payment))) ->  | F380: =IF(A380="","",IF(AND(A380=1,pmtType=1),0,IF(roundOpt,ROUND(rate*H379,2),rate*H379))) ->  | G380: =IF(A380="","",C380-F380+D380) ->  | H380: =IF(A380="","",H379-G380) -> 
A444: =IF(H443="","",IF(roundOpt,IF(OR(A443>=nper,ROUND(H443,2)<=0),"",A443+1),IF(OR(A443>=nper,H443<=0),"",A443+1))) ->  | B444: =IF(A444="","",IF(OR(periods_per_year=26,periods_per_year=52),IF(periods_per_year=26,IF(A444=1,fpdate,B443+14),IF(periods_per_year=52,IF(A444=1,fpdate,B443+7),"n/a")),IF(periods_per_year=24,DATE(YEAR(fpdate),MONTH(fpdate)+(A444-1)/2+IF(AND(DAY(fpdate)>=15,MOD(A444,2)=0),1,0),IF(MOD(A444,2)=0,IF(DAY(fpdate)>=15,DAY(fpdate)-14,DAY(fpdate)+14),DAY(fpdate))),IF(DAY(DATE(YEAR(fpdate),MONTH(fpdate)+(A444-1)*months_per_period,DAY(fpdate)))<>DAY(fpdate),DATE(YEAR(fpdate),MONTH(fpdate)+(A444-1)*months_per_period+1,0),DATE(YEAR(fpdate),MONTH(fpdate)+(A444-1)*months_per_period,DAY(fpdate)))))) ->  | C444: =IF(A444="","",IF(roundOpt,IF(OR(A444=nper,payment>ROUND((1+rate)*H443,2)),ROUND((1+rate)*H443,2),payment),IF(OR(A444=nper,payment>(1+rate)*H443),(1+rate)*H443,payment))) ->  | F444: =IF(A444="","",IF(AND(A444=1,pmtType=1),0,IF(roundOpt,ROUND(rate*H443,2),rate*H443))) ->  | G444: =IF(A444="","",C444-F444+D444) ->  | H444: =IF(A444="","",H443-G444) -> 
A508: =IF(H507="","",IF(roundOpt,IF(OR(A507>=nper,ROUND(H507,2)<=0),"",A507+1),IF(OR(A507>=nper,H507<=0),"",A507+1))) ->  | B508: =IF(A508="","",IF(OR(periods_per_year=26,periods_per_year=52),IF(periods_per_year=26,IF(A508=1,fpdate,B507+14),IF(periods_per_year=52,IF(A508=1,fpdate,B507+7),"n/a")),IF(periods_per_year=24,DATE(YEAR(fpdate),MONTH(fpdate)+(A508-1)/2+IF(AND(DAY(fpdate)>=15,MOD(A508,2)=0),1,0),IF(MOD(A508,2)=0,IF(DAY(fpdate)>=15,DAY(fpdate)-14,DAY(fpdate)+14),DAY(fpdate))),IF(DAY(DATE(YEAR(fpdate),MONTH(fpdate)+(A508-1)*months_per_period,DAY(fpdate)))<>DAY(fpdate),DATE(YEAR(fpdate),MONTH(fpdate)+(A508-1)*months_per_period+1,0),DATE(YEAR(fpdate),MONTH(fpdate)+(A508-1)*months_per_period,DAY(fpdate)))))) ->  | C508: =IF(A508="","",IF(roundOpt,IF(OR(A508=nper,payment>ROUND((1+rate)*H507,2)),ROUND((1+rate)*H507,2),payment),IF(OR(A508=nper,payment>(1+rate)*H507),(1+rate)*H507,payment))) ->  | F508: =IF(A508="","",IF(AND(A508=1,pmtType=1),0,IF(roundOpt,ROUND(rate*H507,2),rate*H507))) ->  | G508: =IF(A508="","",C508-F508+D508) ->  | H508: =IF(A508="","",H507-G508) -> 
A572: =IF(H571="","",IF(roundOpt,IF(OR(A571>=nper,ROUND(H571,2)<=0),"",A571+1),IF(OR(A571>=nper,H571<=0),"",A571+1))) ->  | B572: =IF(A572="","",IF(OR(periods_per_year=26,periods_per_year=52),IF(periods_per_year=26,IF(A572=1,fpdate,B571+14),IF(periods_per_year=52,IF(A572=1,fpdate,B571+7),"n/a")),IF(periods_per_year=24,DATE(YEAR(fpdate),MONTH(fpdate)+(A572-1)/2+IF(AND(DAY(fpdate)>=15,MOD(A572,2)=0),1,0),IF(MOD(A572,2)=0,IF(DAY(fpdate)>=15,DAY(fpdate)-14,DAY(fpdate)+14),DAY(fpdate))),IF(DAY(DATE(YEAR(fpdate),MONTH(fpdate)+(A572-1)*months_per_period,DAY(fpdate)))<>DAY(fpdate),DATE(YEAR(fpdate),MONTH(fpdate)+(A572-1)*months_per_period+1,0),DATE(YEAR(fpdate),MONTH(fpdate)+(A572-1)*months_per_period,DAY(fpdate)))))) ->  | C572: =IF(A572="","",IF(roundOpt,IF(OR(A572=nper,payment>ROUND((1+rate)*H571,2)),ROUND((1+rate)*H571,2),payment),IF(OR(A572=nper,payment>(1+rate)*H571),(1+rate)*H571,payment))) ->  | F572: =IF(A572="","",IF(AND(A572=1,pmtType=1),0,IF(roundOpt,ROUND(rate*H571,2),rate*H571))) ->  | G572: =IF(A572="","",C572-F572+D572) ->  | H572: =IF(A572="","",H571-G572) -> 
A636: =IF(H635="","",IF(roundOpt,IF(OR(A635>=nper,ROUND(H635,2)<=0),"",A635+1),IF(OR(A635>=nper,H635<=0),"",A635+1))) ->  | B636: =IF(A636="","",IF(OR(periods_per_year=26,periods_per_year=52),IF(periods_per_year=26,IF(A636=1,fpdate,B635+14),IF(periods_per_year=52,IF(A636=1,fpdate,B635+7),"n/a")),IF(periods_per_year=24,DATE(YEAR(fpdate),MONTH(fpdate)+(A636-1)/2+IF(AND(DAY(fpdate)>=15,MOD(A636,2)=0),1,0),IF(MOD(A636,2)=0,IF(DAY(fpdate)>=15,DAY(fpdate)-14,DAY(fpdate)+14),DAY(fpdate))),IF(DAY(DATE(YEAR(fpdate),MONTH(fpdate)+(A636-1)*months_per_period,DAY(fpdate)))<>DAY(fpdate),DATE(YEAR(fpdate),MONTH(fpdate)+(A636-1)*months_per_period+1,0),DATE(YEAR(fpdate),MONTH(fpdate)+(A636-1)*months_per_period,DAY(fpdate)))))) ->  | C636: =IF(A636="","",IF(roundOpt,IF(OR(A636=nper,payment>ROUND((1+rate)*H635,2)),ROUND((1+rate)*H635,2),payment),IF(OR(A636=nper,payment>(1+rate)*H635),(1+rate)*H635,payment))) ->  | F636: =IF(A636="","",IF(AND(A636=1,pmtType=1),0,IF(roundOpt,ROUND(rate*H635,2),rate*H635))) ->  | G636: =IF(A636="","",C636-F636+D636) ->  | H636: =IF(A636="","",H635-G636) -> 
A700: =IF(H699="","",IF(roundOpt,IF(OR(A699>=nper,ROUND(H699,2)<=0),"",A699+1),IF(OR(A699>=nper,H699<=0),"",A699+1))) ->  | B700: =IF(A700="","",IF(OR(periods_per_year=26,periods_per_year=52),IF(periods_per_year=26,IF(A700=1,fpdate,B699+14),IF(periods_per_year=52,IF(A700=1,fpdate,B699+7),"n/a")),IF(periods_per_year=24,DATE(YEAR(fpdate),MONTH(fpdate)+(A700-1)/2+IF(AND(DAY(fpdate)>=15,MOD(A700,2)=0),1,0),IF(MOD(A700,2)=0,IF(DAY(fpdate)>=15,DAY(fpdate)-14,DAY(fpdate)+14),DAY(fpdate))),IF(DAY(DATE(YEAR(fpdate),MONTH(fpdate)+(A700-1)*months_per_period,DAY(fpdate)))<>DAY(fpdate),DATE(YEAR(fpdate),MONTH(fpdate)+(A700-1)*months_per_period+1,0),DATE(YEAR(fpdate),MONTH(fpdate)+(A700-1)*months_per_period,DAY(fpdate)))))) ->  | C700: =IF(A700="","",IF(roundOpt,IF(OR(A700=nper,payment>ROUND((1+rate)*H699,2)),ROUND((1+rate)*H699,2),payment),IF(OR(A700=nper,payment>(1+rate)*H699),(1+rate)*H699,payment))) ->  | F700: =IF(A700="","",IF(AND(A700=1,pmtType=1),0,IF(roundOpt,ROUND(rate*H699,2),rate*H699))) ->  | G700: =IF(A700="","",C700-F700+D700) ->  | H700: =IF(A700="","",H699-G700) -> 
A764: =IF(H763="","",IF(roundOpt,IF(OR(A763>=nper,ROUND(H763,2)<=0),"",A763+1),IF(OR(A763>=nper,H763<=0),"",A763+1))) ->  | B764: =IF(A764="","",IF(OR(periods_per_year=26,periods_per_year=52),IF(periods_per_year=26,IF(A764=1,fpdate,B763+14),IF(periods_per_year=52,IF(A764=1,fpdate,B763+7),"n/a")),IF(periods_per_year=24,DATE(YEAR(fpdate),MONTH(fpdate)+(A764-1)/2+IF(AND(DAY(fpdate)>=15,MOD(A764,2)=0),1,0),IF(MOD(A764,2)=0,IF(DAY(fpdate)>=15,DAY(fpdate)-14,DAY(fpdate)+14),DAY(fpdate))),IF(DAY(DATE(YEAR(fpdate),MONTH(fpdate)+(A764-1)*months_per_period,DAY(fpdate)))<>DAY(fpdate),DATE(YEAR(fpdate),MONTH(fpdate)+(A764-1)*months_per_period+1,0),DATE(YEAR(fpdate),MONTH(fpdate)+(A764-1)*months_per_period,DAY(fpdate)))))) ->  | C764: =IF(A764="","",IF(roundOpt,IF(OR(A764=nper,payment>ROUND((1+rate)*H763,2)),ROUND((1+rate)*H763,2),payment),IF(OR(A764=nper,payment>(1+rate)*H763),(1+rate)*H763,payment))) ->  | F764: =IF(A764="","",IF(AND(A764=1,pmtType=1),0,IF(roundOpt,ROUND(rate*H763,2),rate*H763))) ->  | G764: =IF(A764="","",C764-F764+D764) ->  | H764: =IF(A764="","",H763-G764) -> 
A828: =IF(H827="","",IF(roundOpt,IF(OR(A827>=nper,ROUND(H827,2)<=0),"",A827+1),IF(OR(A827>=nper,H827<=0),"",A827+1))) ->  | B828: =IF(A828="","",IF(OR(periods_per_year=26,periods_per_year=52),IF(periods_per_year=26,IF(A828=1,fpdate,B827+14),IF(periods_per_year=52,IF(A828=1,fpdate,B827+7),"n/a")),IF(periods_per_year=24,DATE(YEAR(fpdate),MONTH(fpdate)+(A828-1)/2+IF(AND(DAY(fpdate)>=15,MOD(A828,2)=0),1,0),IF(MOD(A828,2)=0,IF(DAY(fpdate)>=15,DAY(fpdate)-14,DAY(fpdate)+14),DAY(fpdate))),IF(DAY(DATE(YEAR(fpdate),MONTH(fpdate)+(A828-1)*months_per_period,DAY(fpdate)))<>DAY(fpdate),DATE(YEAR(fpdate),MONTH(fpdate)+(A828-1)*months_per_period+1,0),DATE(YEAR(fpdate),MONTH(fpdate)+(A828-1)*months_per_period,DAY(fpdate)))))) ->  | C828: =IF(A828="","",IF(roundOpt,IF(OR(A828=nper,payment>ROUND((1+rate)*H827,2)),ROUND((1+rate)*H827,2),payment),IF(OR(A828=nper,payment>(1+rate)*H827),(1+rate)*H827,payment))) ->  | F828: =IF(A828="","",IF(AND(A828=1,pmtType=1),0,IF(roundOpt,ROUND(rate*H827,2),rate*H827))) ->  | G828: =IF(A828="","",C828-F828+D828) ->  | H828: =IF(A828="","",H827-G828) -> 
D840: End

Sheet Amortisation Schedule_Loan2_AR (hidden)
A1: Loan Amortisation Schedule
A4: Loan Information | F4: Summary | K4: Frequency
C5: Loan Amount | D5: ='Loan Serviceability Calculator'!E43 -> 0 | G5: Rate (per period) | H5: =IF(D9=D10,D6/D14,((1+D6/D14)^(D14/D13))-1) ->  | K5: Annual
C6: Annual Interest Rate | D6: =IFERROR('Loan Serviceability Calculator'!H102,0) -> n/a | G6: Total Payments | H6: =SUM(F60:F839)+SUM(G60:G839) -> 0 | K6: Semi-Annual
C7: Term of Loan in Years | D7: ='Loan Serviceability Calculator'!F43/12 -> 0 | G7: Total Interest | H7: =SUM(F59:F839) -> 0 | K7: Quarterly
C8: First Payment Date | D8: =NOW() -> 2025-06-06T10:00:07.580 | G8: Est. Interest Savings | H8: =IF(AND(SUM(D60:D839)=0,roundOpt)," - ",(nper*(-PMT(rate,nper,loan_amount,,pmtType))-loan_amount)-H7) -> - | K8: Bi-Monthly
C9: Payment Frequency | D9: Monthly | H9: =IF(AND(NOT(H839=""),H839>0.004),"ERROR: Limit is "&OFFSET(A840,-1,0,1,1)&" payments",".") -> . | K9: Monthly
C10: Compound Period | D10: =D9 -> Monthly | H10: =IF(D14>D13,"Warning: negative amortization",".") -> . | K10: Semi-Monthly
C11: Payment Type | D11: End of Period | K11: Bi-Weekly
C12: Rounding | D12: On | K12: Weekly
C13: Periods Per Year | D13: =INDEX({1;2;4;6;12;24;26;52},MATCH('Amortisation Schedule_Loan2_AR'!$D$9,$K$5:$K$12,0)) -> 12
C14: Compound Period | D14: =INDEX({1;2;4;6;12;24;26;52},MATCH('Amortisation Schedule_Loan2_AR'!$D$10,$K$5:$K$12,0)) -> 12
C15: Payment Type | D15: =IF('Amortisation Schedule_Loan2_AR'!$D$11="End of Period",0,1) -> 0
C16: Months Per Period | D16: =12/$D$13 -> 1
C17: Number of Periods | D17: =$D$7*$D$13 -> 0
C18: Rounding Option | D18: =(D12="On") -> TRUE
H19: [42]
C20: =D9&" Payment" -> Monthly Payment | D20: =IFERROR(IF(roundOpt,ROUND(-PMT(rate,nper,$D$5,,pmtType),2),-PMT(rate,nper,$D$5,,pmtType)),0) -> 0
A22: Yearly Summary
B23: Year | C23: Payments | D23: Additional Payments | F23: Interest Paid | G23: Principal Paid | H23: Year-End Balance
H24: =loan_amount -> 0
B25: =YEAR(fpdate) -> 2025 | C25: =SUMIF($B$59:$B$840,"<="&DATE($B25,12,31),$C$59:$C$840)-SUM(C$24:C24) -> 0 | D25: =SUMIF($B$59:$B$840,"<="&DATE($B25,12,31),$D$59:$D$840)-SUM(D$24:D24) -> 0 | F25: =SUMIF($B$59:$B$840,"<="&DATE($B25,12,31),$F$59:$F$840)-SUM(F$24:F24) -> 0 | G25: =SUMIF($B$59:$B$840,"<="&DATE($B25,12,31),$G$59:$G$840)-SUM(G$24:G24) -> 0 | H25: =H24-G25 -> 0
B26: =B25+1 -> 2026 | C26: =SUMIF($B$59:$B$840,"<="&DATE($B26,12,31),$C$59:$C$840)-SUM(C$24:C25) -> 0 | D26: =SUMIF($B$59:$B$840,"<="&DATE($B26,12,31),$D$59:$D$840)-SUM(D$24:D25) -> 0 | F26: =SUMIF($B$59:$B$840,"<="&DATE($B26,12,31),$F$59:$F$840)-SUM(F$24:F25) -> 0 | G26: =SUMIF($B$59:$B$840,"<="&DATE($B26,12,31),$G$59:$G$840)-SUM(G$24:G25) -> 0 | H26: =H25-G26 -> 0
B27: =B26+1 -> 2027 | C27: =SUMIF($B$59:$B$840,"<="&DATE($B27,12,31),$C$59:$C$840)-SUM(C$24:C26) -> 0 | D27: =SUMIF($B$59:$B$840,"<="&DATE($B27,12,31),$D$59:$D$840)-SUM(D$24:D26) -> 0 | F27: =SUMIF($B$59:$B$840,"<="&DATE($B27,12,31),$F$59:$F$840)-SUM(F$24:F26) -> 0 | G27: =SUMIF($B$59:$B$840,"<="&DATE($B27,12,31),$G$59:$G$840)-SUM(G$24:G26) -> 0 | H27: =H26-G27 -> 0
B28: =B27+1 -> 2028 | C28: =SUMIF($B$59:$B$840,"<="&DATE($B28,12,31),$C$59:$C$840)-SUM(C$24:C27) -> 0 | D28: =SUMIF($B$59:$B$840,"<="&DATE($B28,12,31),$D$59:$D$840)-SUM(D$24:D27) -> 0 | F28: =SUMIF($B$59:$B$840,"<="&DATE($B28,12,31),$F$59:$F$840)-SUM(F$24:F27) -> 0 | G28: =SUMIF($B$59:$B$840,"<="&DATE($B28,12,31),$G$59:$G$840)-SUM(G$24:G27) -> 0 | H28: =H27-G28 -> 0
B29: =B28+1 -> 2029 | C29: =SUMIF($B$59:$B$840,"<="&DATE($B29,12,31),$C$59:$C$840)-SUM(C$24:C28) -> 0 | D29: =SUMIF($B$59:$B$840,"<="&DATE($B29,12,31),$D$59:$D$840)-SUM(D$24:D28) -> 0 | F29: =SUMIF($B$59:$B$840,"<="&DATE($B29,12,31),$F$59:$F$840)-SUM(F$24:F28) -> 0 | G29: =SUMIF($B$59:$B$840,"<="&DATE($B29,12,31),$G$59:$G$840)-SUM(G$24:G28) -> 0 | H29: =H28-G29 -> 0
B30: 2030 | C30: =SUMIF($B$59:$B$840,"<="&DATE($B30,12,31),$C$59:$C$840)-SUM(C$24:C29) -> 0 | D30: =SUMIF($B$59:$B$840,"<="&DATE($B30,12,31),$D$59:$D$840)-SUM(D$24:D29) -> 0 | F30: =SUMIF($B$59:$B$840,"<="&DATE($B30,12,31),$F$59:$F$840)-SUM(F$24:F29) -> 0 | G30: =SUMIF($B$59:$B$840,"<="&DATE($B30,12,31),$G$59:$G$840)-SUM(G$24:G29) -> 0 | H30: 0
B31: 2031 | C31: =SUMIF($B$59:$B$840,"<="&DATE($B31,12,31),$C$59:$C$840)-SUM(C$24:C30) -> 0 | D31: =SUMIF($B$59:$B$840,"<="&DATE($B31,12,31),$D$59:$D$840)-SUM(D$24:D30) -> 0 | F31: =SUMIF($B$59:$B$840,"<="&DATE($B31,12,31),$F$59:$F$840)-SUM(F$24:F30) -> 0 | G31: =SUMIF($B$59:$B$840,"<="&DATE($B31,12,31),$G$59:$G$840)-SUM(G$24:G30) -> 0 | H31: 0
B32: 2032 | C32: =SUMIF($B$59:$B$840,"<="&DATE($B32,12,31),$C$59:$C$840)-SUM(C$24:C31) -> 0 | D32: =SUMIF($B$59:$B$840,"<="&DATE($B32,12,31),$D$59:$D$840)-SUM(D$24:D31) -> 0 | F32: =SUMIF($B$59:$B$840,"<="&DATE($B32,12,31),$F$59:$F$840)-SUM(F$24:F31) -> 0 | G32: =SUMIF($B$59:$B$840,"<="&DATE($B32,12,31),$G$59:$G$840)-SUM(G$24:G31) -> 0 | H32: 0
B33: 2033 | C33: =SUMIF($B$59:$B$840,"<="&DATE($B33,12,31),$C$59:$C$840)-SUM(C$24:C32) -> 0 | D33: =SUMIF($B$59:$B$840,"<="&DATE($B33,12,31),$D$59:$D$840)-SUM(D$24:D32) -> 0 | F33: =SUMIF($B$59:$B$840,"<="&DATE($B33,12,31),$F$59:$F$840)-SUM(F$24:F32) -> 0 | G33: =SUMIF($B$59:$B$840,"<="&DATE($B33,12,31),$G$59:$G$840)-SUM(G$24:G32) -> 0 | H33: 0
B34: 2034 | C34: =SUMIF($B$59:$B$840,"<="&DATE($B34,12,31),$C$59:$C$840)-SUM(C$24:C33) -> 0 | D34: =SUMIF($B$59:$B$840,"<="&DATE($B34,12,31),$D$59:$D$840)-SUM(D$24:D33) -> 0 | F34: =SUMIF($B$59:$B$840,"<="&DATE($B34,12,31),$F$59:$F$840)-SUM(F$24:F33) -> 0 | G34: =SUMIF($B$59:$B$840,"<="&DATE($B34,12,31),$G$59:$G$840)-SUM(G$24:G33) -> 0 | H34: 0
B35: 2035 | C35: =SUMIF($B$59:$B$840,"<="&DATE($B35,12,31),$C$59:$C$840)-SUM(C$24:C34) -> 0 | D35: =SUMIF($B$59:$B$840,"<="&DATE($B35,12,31),$D$59:$D$840)-SUM(D$24:D34) -> 0 | F35: =SUMIF($B$59:$B$840,"<="&DATE($B35,12,31),$F$59:$F$840)-SUM(F$24:F34) -> 0 | G35: =SUMIF($B$59:$B$840,"<="&DATE($B35,12,31),$G$59:$G$840)-SUM(G$24:G34) -> 0 | H35: 0
B36: 2036 | C36: =SUMIF($B$59:$B$840,"<="&DATE($B36,12,31),$C$59:$C$840)-SUM(C$24:C35) -> 0 | D36: =SUMIF($B$59:$B$840,"<="&DATE($B36,12,31),$D$59:$D$840)-SUM(D$24:D35) -> 0 | F36: =SUMIF($B$59:$B$840,"<="&DATE($B36,12,31),$F$59:$F$840)-SUM(F$24:F35) -> 0 | G36: =SUMIF($B$59:$B$840,"<="&DATE($B36,12,31),$G$59:$G$840)-SUM(G$24:G35) -> 0 | H36: 0
B37: 2037 | C37: =SUMIF($B$59:$B$840,"<="&DATE($B37,12,31),$C$59:$C$840)-SUM(C$24:C36) -> 0 | D37: =SUMIF($B$59:$B$840,"<="&DATE($B37,12,31),$D$59:$D$840)-SUM(D$24:D36) -> 0 | F37: =SUMIF($B$59:$B$840,"<="&DATE($B37,12,31),$F$59:$F$840)-SUM(F$24:F36) -> 0 | G37: =SUMIF($B$59:$B$840,"<="&DATE($B37,12,31),$G$59:$G$840)-SUM(G$24:G36) -> 0 | H37: 0
B38: 2038 | C38: =SUMIF($B$59:$B$840,"<="&DATE($B38,12,31),$C$59:$C$840)-SUM(C$24:C37) -> 0 | D38: =SUMIF($B$59:$B$840,"<="&DATE($B38,12,31),$D$59:$D$840)-SUM(D$24:D37) -> 0 | F38: =SUMIF($B$59:$B$840,"<="&DATE($B38,12,31),$F$59:$F$840)-SUM(F$24:F37) -> 0 | G38: =SUMIF($B$59:$B$840,"<="&DATE($B38,12,31),$G$59:$G$840)-SUM(G$24:G37) -> 0 | H38: 0
B39: 2039 | C39: =SUMIF($B$59:$B$840,"<="&DATE($B39,12,31),$C$59:$C$840)-SUM(C$24:C38) -> 0 | D39: =SUMIF($B$59:$B$840,"<="&DATE($B39,12,31),$D$59:$D$840)-SUM(D$24:D38) -> 0 | F39: =SUMIF($B$59:$B$840,"<="&DATE($B39,12,31),$F$59:$F$840)-SUM(F$24:F38) -> 0 | G39: =SUMIF($B$59:$B$840,"<="&DATE($B39,12,31),$G$59:$G$840)-SUM(G$24:G38) -> 0 | H39: 0
B40: 2040 | C40: =SUMIF($B$59:$B$840,"<="&DATE($B40,12,31),$C$59:$C$840)-SUM(C$24:C39) -> 0 | D40: =SUMIF($B$59:$B$840,"<="&DATE($B40,12,31),$D$59:$D$840)-SUM(D$24:D39) -> 0 | F40: =SUMIF($B$59:$B$840,"<="&DATE($B40,12,31),$F$59:$F$840)-SUM(F$24:F39) -> 0 | G40: =SUMIF($B$59:$B$840,"<="&DATE($B40,12,31),$G$59:$G$840)-SUM(G$24:G39) -> 0 | H40: 0
B41: 2041 | C41: =SUMIF($B$59:$B$840,"<="&DATE($B41,12,31),$C$59:$C$840)-SUM(C$24:C40) -> 0 | D41: =SUMIF($B$59:$B$840,"<="&DATE($B41,12,31),$D$59:$D$840)-SUM(D$24:D40) -> 0 | F41: =SUMIF($B$59:$B$840,"<="&DATE($B41,12,31),$F$59:$F$840)-SUM(F$24:F40) -> 0 | G41: =SUMIF($B$59:$B$840,"<="&DATE($B41,12,31),$G$59:$G$840)-SUM(G$24:G40) -> 0 | H41: 0
B42: 2042 | C42: =SUMIF($B$59:$B$840,"<="&DATE($B42,12,31),$C$59:$C$840)-SUM(C$24:C41) -> 0 | D42: =SUMIF($B$59:$B$840,"<="&DATE($B42,12,31),$D$59:$D$840)-SUM(D$24:D41) -> 0 | F42: =SUMIF($B$59:$B$840,"<="&DATE($B42,12,31),$F$59:$F$840)-SUM(F$24:F41) -> 0 | G42: =SUMIF($B$59:$B$840,"<="&DATE($B42,12,31),$G$59:$G$840)-SUM(G$24:G41) -> 0 | H42: 0
B43: 2043 | C43: =SUMIF($B$59:$B$840,"<="&DATE($B43,12,31),$C$59:$C$840)-SUM(C$24:C42) -> 0 | D43: =SUMIF($B$59:$B$840,"<="&DATE($B43,12,31),$D$59:$D$840)-SUM(D$24:D42) -> 0 | F43: =SUMIF($B$59:$B$840,"<="&DATE($B43,12,31),$F$59:$F$840)-SUM(F$24:F42) -> 0 | G43: =SUMIF($B$59:$B$840,"<="&DATE($B43,12,31),$G$59:$G$840)-SUM(G$24:G42) -> 0 | H43: 0
B44: 2044 | C44: =SUMIF($B$59:$B$840,"<="&DATE($B44,12,31),$C$59:$C$840)-SUM(C$24:C43) -> 0 | D44: =SUMIF($B$59:$B$840,"<="&DATE($B44,12,31),$D$59:$D$840)-SUM(D$24:D43) -> 0 | F44: =SUMIF($B$59:$B$840,"<="&DATE($B44,12,31),$F$59:$F$840)-SUM(F$24:F43) -> 0 | G44: =SUMIF($B$59:$B$840,"<="&DATE($B44,12,31),$G$59:$G$840)-SUM(G$24:G43) -> 0 | H44: 0
B45: 2045 | C45: =SUMIF($B$59:$B$840,"<="&DATE($B45,12,31),$C$59:$C$840)-SUM(C$24:C44) -> 0 | D45: =SUMIF($B$59:$B$840,"<="&DATE($B45,12,31),$D$59:$D$840)-SUM(D$24:D44) -> 0 | F45: =SUMIF($B$59:$B$840,"<="&DATE($B45,12,31),$F$59:$F$840)-SUM(F$24:F44) -> 0 | G45: =SUMIF($B$59:$B$840,"<="&DATE($B45,12,31),$G$59:$G$840)-SUM(G$24:G44) -> 0 | H45: 0
B46: 2046 | C46: =SUMIF($B$59:$B$840,"<="&DATE($B46,12,31),$C$59:$C$840)-SUM(C$24:C45) -> 0 | D46: =SUMIF($B$59:$B$840,"<="&DATE($B46,12,31),$D$59:$D$840)-SUM(D$24:D45) -> 0 | F46: =SUMIF($B$59:$B$840,"<="&DATE($B46,12,31),$F$59:$F$840)-SUM(F$24:F45) -> 0 | G46: =SUMIF($B$59:$B$840,"<="&DATE($B46,12,31),$G$59:$G$840)-SUM(G$24:G45) -> 0 | H46: 0
B47: 2047 | C47: =SUMIF($B$59:$B$840,"<="&DATE($B47,12,31),$C$59:$C$840)-SUM(C$24:C46) -> 0 | D47: =SUMIF($B$59:$B$840,"<="&DATE($B47,12,31),$D$59:$D$840)-SUM(D$24:D46) -> 0 | F47: =SUMIF($B$59:$B$840,"<="&DATE($B47,12,31),$F$59:$F$840)-SUM(F$24:F46) -> 0 | G47: =SUMIF($B$59:$B$840,"<="&DATE($B47,12,31),$G$59:$G$840)-SUM(G$24:G46) -> 0 | H47: 0
B48: 2048 | C48: =SUMIF($B$59:$B$840,"<="&DATE($B48,12,31),$C$59:$C$840)-SUM(C$24:C47) -> 0 | D48: =SUMIF($B$59:$B$840,"<="&DATE($B48,12,31),$D$59:$D$840)-SUM(D$24:D47) -> 0 | F48: =SUMIF($B$59:$B$840,"<="&DATE($B48,12,31),$F$59:$F$840)-SUM(F$24:F47) -> 0 | G48: =SUMIF($B$59:$B$840,"<="&DATE($B48,12,31),$G$59:$G$840)-SUM(G$24:G47) -> 0 | H48: 0
B49: 2049 | C49: =SUMIF($B$59:$B$840,"<="&DATE($B49,12,31),$C$59:$C$840)-SUM(C$24:C48) -> 0 | D49: =SUMIF($B$59:$B$840,"<="&DATE($B49,12,31),$D$59:$D$840)-SUM(D$24:D48) -> 0 | F49: =SUMIF($B$59:$B$840,"<="&DATE($B49,12,31),$F$59:$F$840)-SUM(F$24:F48) -> 0 | G49: =SUMIF($B$59:$B$840,"<="&DATE($B49,12,31),$G$59:$G$840)-SUM(G$24:G48) -> 0 | H49: 0
B50: 2050 | C50: =SUMIF($B$59:$B$840,"<="&DATE($B50,12,31),$C$59:$C$840)-SUM(C$24:C49) -> 0 | D50: =SUMIF($B$59:$B$840,"<="&DATE($B50,12,31),$D$59:$D$840)-SUM(D$24:D49) -> 0 | F50: =SUMIF($B$59:$B$840,"<="&DATE($B50,12,31),$F$59:$F$840)-SUM(F$24:F49) -> 0 | G50: =SUMIF($B$59:$B$840,"<="&DATE($B50,12,31),$G$59:$G$840)-SUM(G$24:G49) -> 0 | H50: 0
B51: 2051 | C51: =SUMIF($B$59:$B$840,"<="&DATE($B51,12,31),$C$59:$C$840)-SUM(C$24:C50) -> 0 | D51: =SUMIF($B$59:$B$840,"<="&DATE($B51,12,31),$D$59:$D$840)-SUM(D$24:D50) -> 0 | F51: =SUMIF($B$59:$B$840,"<="&DATE($B51,12,31),$F$59:$F$840)-SUM(F$24:F50) -> 0 | G51: =SUMIF($B$59:$B$840,"<="&DATE($B51,12,31),$G$59:$G$840)-SUM(G$24:G50) -> 0 | H51: 0
B52: 2052 | C52: =SUMIF($B$59:$B$840,"<="&DATE($B52,12,31),$C$59:$C$840)-SUM(C$24:C51) -> 0 | D52: =SUMIF($B$59:$B$840,"<="&DATE($B52,12,31),$D$59:$D$840)-SUM(D$24:D51) -> 0 | F52: =SUMIF($B$59:$B$840,"<="&DATE($B52,12,31),$F$59:$F$840)-SUM(F$24:F51) -> 0 | G52: =SUMIF($B$59:$B$840,"<="&DATE($B52,12,31),$G$59:$G$840)-SUM(G$24:G51) -> 0 | H52: 0
B53: 2053 | C53: =SUMIF($B$59:$B$840,"<="&DATE($B53,12,31),$C$59:$C$840)-SUM(C$24:C52) -> 0 | D53: =SUMIF($B$59:$B$840,"<="&DATE($B53,12,31),$D$59:$D$840)-SUM(D$24:D52) -> 0 | F53: =SUMIF($B$59:$B$840,"<="&DATE($B53,12,31),$F$59:$F$840)-SUM(F$24:F52) -> 0 | G53: =SUMIF($B$59:$B$840,"<="&DATE($B53,12,31),$G$59:$G$840)-SUM(G$24:G52) -> 0 | H53: 0
B54: 2054 | C54: =SUMIF($B$59:$B$840,"<="&DATE($B54,12,31),$C$59:$C$840)-SUM(C$24:C53) -> 0 | D54: =SUMIF($B$59:$B$840,"<="&DATE($B54,12,31),$D$59:$D$840)-SUM(D$24:D53) -> 0 | F54: =SUMIF($B$59:$B$840,"<="&DATE($B54,12,31),$F$59:$F$840)-SUM(F$24:F53) -> 0 | G54: =SUMIF($B$59:$B$840,"<="&DATE($B54,12,31),$G$59:$G$840)-SUM(G$24:G53) -> 0 | H54: 0
B55: 2055 | C55: =SUMIF($B$59:$B$840,"<="&DATE($B55,12,31),$C$59:$C$840)-SUM(C$24:C54) -> 0 | D55: =SUMIF($B$59:$B$840,"<="&DATE($B55,12,31),$D$59:$D$840)-SUM(D$24:D54) -> 0 | F55: =SUMIF($B$59:$B$840,"<="&DATE($B55,12,31),$F$59:$F$840)-SUM(F$24:F54) -> 0 | G55: =SUMIF($B$59:$B$840,"<="&DATE($B55,12,31),$G$59:$G$840)-SUM(G$24:G54) -> 0 | H55: 0
A57: Amortisation Schedule
A58: No. | B58: Due Date | C58: Payment Due | D58: Additional Payment | F58: Interest | G58: Principal | H58: Balance
H59: =$D$5 -> 0
A60: =IF(H59="","",IF(roundOpt,IF(OR(A59>=nper,ROUND(H59,2)<=0),"",A59+1),IF(OR(A59>=nper,H59<=0),"",A59+1))) ->  | B60: =IF(A60="","",IF(OR(periods_per_year=26,periods_per_year=52),IF(periods_per_year=26,IF(A60=1,fpdate,B59+14),IF(periods_per_year=52,IF(A60=1,fpdate,B59+7),"n/a")),IF(periods_per_year=24,DATE(YEAR(fpdate),MONTH(fpdate)+(A60-1)/2+IF(AND(DAY(fpdate)>=15,MOD(A60,2)=0),1,0),IF(MOD(A60,2)=0,IF(DAY(fpdate)>=15,DAY(fpdate)-14,DAY(fpdate)+14),DAY(fpdate))),IF(DAY(DATE(YEAR(fpdate),MONTH(fpdate)+(A60-1)*months_per_period,DAY(fpdate)))<>DAY(fpdate),DATE(YEAR(fpdate),MONTH(fpdate)+(A60-1)*months_per_period+1,0),DATE(YEAR(fpdate),MONTH(fpdate)+(A60-1)*months_per_period,DAY(fpdate)))))) ->  | C60: =IF(A60="","",IF(roundOpt,IF(OR(A60=nper,payment>ROUND((1+rate)*H59,2)),ROUND((1+rate)*H59,2),payment),IF(OR(A60=nper,payment>(1+rate)*H59),(1+rate)*H59,payment))) ->  | F60: =IF(A60="","",IF(AND(A60=1,pmtType=1),0,IF(roundOpt,ROUND(rate*H59,2),rate*H59))) ->  | G60: =IF(A60="","",C60-F60+D60) ->  | H60: =IF(A60="","",H59-G60) -> 
A124: =IF(H123="","",IF(roundOpt,IF(OR(A123>=nper,ROUND(H123,2)<=0),"",A123+1),IF(OR(A123>=nper,H123<=0),"",A123+1))) ->  | B124: =IF(A124="","",IF(OR(periods_per_year=26,periods_per_year=52),IF(periods_per_year=26,IF(A124=1,fpdate,B123+14),IF(periods_per_year=52,IF(A124=1,fpdate,B123+7),"n/a")),IF(periods_per_year=24,DATE(YEAR(fpdate),MONTH(fpdate)+(A124-1)/2+IF(AND(DAY(fpdate)>=15,MOD(A124,2)=0),1,0),IF(MOD(A124,2)=0,IF(DAY(fpdate)>=15,DAY(fpdate)-14,DAY(fpdate)+14),DAY(fpdate))),IF(DAY(DATE(YEAR(fpdate),MONTH(fpdate)+(A124-1)*months_per_period,DAY(fpdate)))<>DAY(fpdate),DATE(YEAR(fpdate),MONTH(fpdate)+(A124-1)*months_per_period+1,0),DATE(YEAR(fpdate),MONTH(fpdate)+(A124-1)*months_per_period,DAY(fpdate)))))) ->  | C124: =IF(A124="","",IF(roundOpt,IF(OR(A124=nper,payment>ROUND((1+rate)*H123,2)),ROUND((1+rate)*H123,2),payment),IF(OR(A124=nper,payment>(1+rate)*H123),(1+rate)*H123,payment))) ->  | F124: =IF(A124="","",IF(AND(A124=1,pmtType=1),0,IF(roundOpt,ROUND(rate*H123,2),rate*H123))) ->  | G124: =IF(A124="","",C124-F124+D124) ->  | H124: =IF(A124="","",H123-G124) -> 
A188: =IF(H187="","",IF(roundOpt,IF(OR(A187>=nper,ROUND(H187,2)<=0),"",A187+1),IF(OR(A187>=nper,H187<=0),"",A187+1))) ->  | B188: =IF(A188="","",IF(OR(periods_per_year=26,periods_per_year=52),IF(periods_per_year=26,IF(A188=1,fpdate,B187+14),IF(periods_per_year=52,IF(A188=1,fpdate,B187+7),"n/a")),IF(periods_per_year=24,DATE(YEAR(fpdate),MONTH(fpdate)+(A188-1)/2+IF(AND(DAY(fpdate)>=15,MOD(A188,2)=0),1,0),IF(MOD(A188,2)=0,IF(DAY(fpdate)>=15,DAY(fpdate)-14,DAY(fpdate)+14),DAY(fpdate))),IF(DAY(DATE(YEAR(fpdate),MONTH(fpdate)+(A188-1)*months_per_period,DAY(fpdate)))<>DAY(fpdate),DATE(YEAR(fpdate),MONTH(fpdate)+(A188-1)*months_per_period+1,0),DATE(YEAR(fpdate),MONTH(fpdate)+(A188-1)*months_per_period,DAY(fpdate)))))) ->  | C188: =IF(A188="","",IF(roundOpt,IF(OR(A188=nper,payment>ROUND((1+rate)*H187,2)),ROUND((1+rate)*H187,2),payment),IF(OR(A188=nper,payment>(1+rate)*H187),(1+rate)*H187,payment))) ->  | F188: =IF(A188="","",IF(AND(A188=1,pmtType=1),0,IF(roundOpt,ROUND(rate*H187,2),rate*H187))) ->  | G188: =IF(A188="","",C188-F188+D188) ->  | H188: =IF(A188="","",H187-G188) -> 
A252: =IF(H251="","",IF(roundOpt,IF(OR(A251>=nper,ROUND(H251,2)<=0),"",A251+1),IF(OR(A251>=nper,H251<=0),"",A251+1))) ->  | B252: =IF(A252="","",IF(OR(periods_per_year=26,periods_per_year=52),IF(periods_per_year=26,IF(A252=1,fpdate,B251+14),IF(periods_per_year=52,IF(A252=1,fpdate,B251+7),"n/a")),IF(periods_per_year=24,DATE(YEAR(fpdate),MONTH(fpdate)+(A252-1)/2+IF(AND(DAY(fpdate)>=15,MOD(A252,2)=0),1,0),IF(MOD(A252,2)=0,IF(DAY(fpdate)>=15,DAY(fpdate)-14,DAY(fpdate)+14),DAY(fpdate))),IF(DAY(DATE(YEAR(fpdate),MONTH(fpdate)+(A252-1)*months_per_period,DAY(fpdate)))<>DAY(fpdate),DATE(YEAR(fpdate),MONTH(fpdate)+(A252-1)*months_per_period+1,0),DATE(YEAR(fpdate),MONTH(fpdate)+(A252-1)*months_per_period,DAY(fpdate)))))) ->  | C252: =IF(A252="","",IF(roundOpt,IF(OR(A252=nper,payment>ROUND((1+rate)*H251,2)),ROUND((1+rate)*H251,2),payment),IF(OR(A252=nper,payment>(1+rate)*H251),(1+rate)*H251,payment))) ->  | F252: =IF(A252="","",IF(AND(A252=1,pmtType=1),0,IF(roundOpt,ROUND(rate*H251,2),rate*H251))) ->  | G252: =IF(A252="","",C252-F252+D252) ->  | H252: =IF(A252="","",H251-G252) -> 
A316: =IF(H315="","",IF(roundOpt,IF(OR(A315>=nper,ROUND(H315,2)<=0),"",A315+1),IF(OR(A315>=nper,H315<=0),"",A315+1))) ->  | B316: =IF(A316="","",IF(OR(periods_per_year=26,periods_per_year=52),IF(periods_per_year=26,IF(A316=1,fpdate,B315+14),IF(periods_per_year=52,IF(A316=1,fpdate,B315+7),"n/a")),IF(periods_per_year=24,DATE(YEAR(fpdate),MONTH(fpdate)+(A316-1)/2+IF(AND(DAY(fpdate)>=15,MOD(A316,2)=0),1,0),IF(MOD(A316,2)=0,IF(DAY(fpdate)>=15,DAY(fpdate)-14,DAY(fpdate)+14),DAY(fpdate))),IF(DAY(DATE(YEAR(fpdate),MONTH(fpdate)+(A316-1)*months_per_period,DAY(fpdate)))<>DAY(fpdate),DATE(YEAR(fpdate),MONTH(fpdate)+(A316-1)*months_per_period+1,0),DATE(YEAR(fpdate),MONTH(fpdate)+(A316-1)*months_per_period,DAY(fpdate)))))) ->  | C316: =IF(A316="","",IF(roundOpt,IF(OR(A316=nper,payment>ROUND((1+rate)*H315,2)),ROUND((1+rate)*H315,2),payment),IF(OR(A316=nper,payment>(1+rate)*H315),(1+rate)*H315,payment))) ->  | F316: =IF(A316="","",IF(AND(A316=1,pmtType=1),0,IF(roundOpt,ROUND(rate*H315,2),rate*H315))) ->  | G316: =IF(A316="","",C316-F316+D316) ->  | H316: =IF(A316="","",H315-G316) -> 
A380: =IF(H379="","",IF(roundOpt,IF(OR(A379>=nper,ROUND(H379,2)<=0),"",A379+1),IF(OR(A379>=nper,H379<=0),"",A379+1))) ->  | B380: =IF(A380="","",IF(OR(periods_per_year=26,periods_per_year=52),IF(periods_per_year=26,IF(A380=1,fpdate,B379+14),IF(periods_per_year=52,IF(A380=1,fpdate,B379+7),"n/a")),IF(periods_per_year=24,DATE(YEAR(fpdate),MONTH(fpdate)+(A380-1)/2+IF(AND(DAY(fpdate)>=15,MOD(A380,2)=0),1,0),IF(MOD(A380,2)=0,IF(DAY(fpdate)>=15,DAY(fpdate)-14,DAY(fpdate)+14),DAY(fpdate))),IF(DAY(DATE(YEAR(fpdate),MONTH(fpdate)+(A380-1)*months_per_period,DAY(fpdate)))<>DAY(fpdate),DATE(YEAR(fpdate),MONTH(fpdate)+(A380-1)*months_per_period+1,0),DATE(YEAR(fpdate),MONTH(fpdate)+(A380-1)*months_per_period,DAY(fpdate)))))) ->  | C380: =IF(A380="","",IF(roundOpt,IF(OR(A380=nper,payment>ROUND((1+rate)*H379,2)),ROUND((1+rate)*H379,2),payment),IF(OR(A380=nper,payment>(1+rate)*H379),(1+rate)*H379,payment))) ->  | F380: =IF(A380="","",IF(AND(A380=1,pmtType=1),0,IF(roundOpt,ROUND(rate*H379,2),rate*H379))) ->  | G380: =IF(A380="","",C380-F380+D380) ->  | H380: =IF(A380="","",H379-G380) -> 
A444: =IF(H443="","",IF(roundOpt,IF(OR(A443>=nper,ROUND(H443,2)<=0),"",A443+1),IF(OR(A443>=nper,H443<=0),"",A443+1))) ->  | B444: =IF(A444="","",IF(OR(periods_per_year=26,periods_per_year=52),IF(periods_per_year=26,IF(A444=1,fpdate,B443+14),IF(periods_per_year=52,IF(A444=1,fpdate,B443+7),"n/a")),IF(periods_per_year=24,DATE(YEAR(fpdate),MONTH(fpdate)+(A444-1)/2+IF(AND(DAY(fpdate)>=15,MOD(A444,2)=0),1,0),IF(MOD(A444,2)=0,IF(DAY(fpdate)>=15,DAY(fpdate)-14,DAY(fpdate)+14),DAY(fpdate))),IF(DAY(DATE(YEAR(fpdate),MONTH(fpdate)+(A444-1)*months_per_period,DAY(fpdate)))<>DAY(fpdate),DATE(YEAR(fpdate),MONTH(fpdate)+(A444-1)*months_per_period+1,0),DATE(YEAR(fpdate),MONTH(fpdate)+(A444-1)*months_per_period,DAY(fpdate)))))) ->  | C444: =IF(A444="","",IF(roundOpt,IF(OR(A444=nper,payment>ROUND((1+rate)*H443,2)),ROUND((1+rate)*H443,2),payment),IF(OR(A444=nper,payment>(1+rate)*H443),(1+rate)*H443,payment))) ->  | F444: =IF(A444="","",IF(AND(A444=1,pmtType=1),0,IF(roundOpt,ROUND(rate*H443,2),rate*H443))) ->  | G444: =IF(A444="","",C444-F444+D444) ->  | H444: =IF(A444="","",H443-G444) -> 
A508: =IF(H507="","",IF(roundOpt,IF(OR(A507>=nper,ROUND(H507,2)<=0),"",A507+1),IF(OR(A507>=nper,H507<=0),"",A507+1))) ->  | B508: =IF(A508="","",IF(OR(periods_per_year=26,periods_per_year=52),IF(periods_per_year=26,IF(A508=1,fpdate,B507+14),IF(periods_per_year=52,IF(A508=1,fpdate,B507+7),"n/a")),IF(periods_per_year=24,DATE(YEAR(fpdate),MONTH(fpdate)+(A508-1)/2+IF(AND(DAY(fpdate)>=15,MOD(A508,2)=0),1,0),IF(MOD(A508,2)=0,IF(DAY(fpdate)>=15,DAY(fpdate)-14,DAY(fpdate)+14),DAY(fpdate))),IF(DAY(DATE(YEAR(fpdate),MONTH(fpdate)+(A508-1)*months_per_period,DAY(fpdate)))<>DAY(fpdate),DATE(YEAR(fpdate),MONTH(fpdate)+(A508-1)*months_per_period+1,0),DATE(YEAR(fpdate),MONTH(fpdate)+(A508-1)*months_per_period,DAY(fpdate)))))) ->  | C508: =IF(A508="","",IF(roundOpt,IF(OR(A508=nper,payment>ROUND((1+rate)*H507,2)),ROUND((1+rate)*H507,2),payment),IF(OR(A508=nper,payment>(1+rate)*H507),(1+rate)*H507,payment))) ->  | F508: =IF(A508="","",IF(AND(A508=1,pmtType=1),0,IF(roundOpt,ROUND(rate*H507,2),rate*H507))) ->  | G508: =IF(A508="","",C508-F508+D508) ->  | H508: =IF(A508="","",H507-G508) -> 
A572: =IF(H571="","",IF(roundOpt,IF(OR(A571>=nper,ROUND(H571,2)<=0),"",A571+1),IF(OR(A571>=nper,H571<=0),"",A571+1))) ->  | B572: =IF(A572="","",IF(OR(periods_per_year=26,periods_per_year=52),IF(periods_per_year=26,IF(A572=1,fpdate,B571+14),IF(periods_per_year=52,IF(A572=1,fpdate,B571+7),"n/a")),IF(periods_per_year=24,DATE(YEAR(fpdate),MONTH(fpdate)+(A572-1)/2+IF(AND(DAY(fpdate)>=15,MOD(A572,2)=0),1,0),IF(MOD(A572,2)=0,IF(DAY(fpdate)>=15,DAY(fpdate)-14,DAY(fpdate)+14),DAY(fpdate))),IF(DAY(DATE(YEAR(fpdate),MONTH(fpdate)+(A572-1)*months_per_period,DAY(fpdate)))<>DAY(fpdate),DATE(YEAR(fpdate),MONTH(fpdate)+(A572-1)*months_per_period+1,0),DATE(YEAR(fpdate),MONTH(fpdate)+(A572-1)*months_per_period,DAY(fpdate)))))) ->  | C572: =IF(A572="","",IF(roundOpt,IF(OR(A572=nper,payment>ROUND((1+rate)*H571,2)),ROUND((1+rate)*H571,2),payment),IF(OR(A572=nper,payment>(1+rate)*H571),(1+rate)*H571,payment))) ->  | F572: =IF(A572="","",IF(AND(A572=1,pmtType=1),0,IF(roundOpt,ROUND(rate*H571,2),rate*H571))) ->  | G572: =IF(A572="","",C572-F572+D572) ->  | H572: =IF(A572="","",H571-G572) -> 
A636: =IF(H635="","",IF(roundOpt,IF(OR(A635>=nper,ROUND(H635,2)<=0),"",A635+1),IF(OR(A635>=nper,H635<=0),"",A635+1))) ->  | B636: =IF(A636="","",IF(OR(periods_per_year=26,periods_per_year=52),IF(periods_per_year=26,IF(A636=1,fpdate,B635+14),IF(periods_per_year=52,IF(A636=1,fpdate,B635+7),"n/a")),IF(periods_per_year=24,DATE(YEAR(fpdate),MONTH(fpdate)+(A636-1)/2+IF(AND(DAY(fpdate)>=15,MOD(A636,2)=0),1,0),IF(MOD(A636,2)=0,IF(DAY(fpdate)>=15,DAY(fpdate)-14,DAY(fpdate)+14),DAY(fpdate))),IF(DAY(DATE(YEAR(fpdate),MONTH(fpdate)+(A636-1)*months_per_period,DAY(fpdate)))<>DAY(fpdate),DATE(YEAR(fpdate),MONTH(fpdate)+(A636-1)*months_per_period+1,0),DATE(YEAR(fpdate),MONTH(fpdate)+(A636-1)*months_per_period,DAY(fpdate)))))) ->  | C636: =IF(A636="","",IF(roundOpt,IF(OR(A636=nper,payment>ROUND((1+rate)*H635,2)),ROUND((1+rate)*H635,2),payment),IF(OR(A636=nper,payment>(1+rate)*H635),(1+rate)*H635,payment))) ->  | F636: =IF(A636="","",IF(AND(A636=1,pmtType=1),0,IF(roundOpt,ROUND(rate*H635,2),rate*H635))) ->  | G636: =IF(A636="","",C636-F636+D636) ->  | H636: =IF(A636="","",H635-G636) -> 
A700: =IF(H699="","",IF(roundOpt,IF(OR(A699>=nper,ROUND(H699,2)<=0),"",A699+1),IF(OR(A699>=nper,H699<=0),"",A699+1))) ->  | B700: =IF(A700="","",IF(OR(periods_per_year=26,periods_per_year=52),IF(periods_per_year=26,IF(A700=1,fpdate,B699+14),IF(periods_per_year=52,IF(A700=1,fpdate,B699+7),"n/a")),IF(periods_per_year=24,DATE(YEAR(fpdate),MONTH(fpdate)+(A700-1)/2+IF(AND(DAY(fpdate)>=15,MOD(A700,2)=0),1,0),IF(MOD(A700,2)=0,IF(DAY(fpdate)>=15,DAY(fpdate)-14,DAY(fpdate)+14),DAY(fpdate))),IF(DAY(DATE(YEAR(fpdate),MONTH(fpdate)+(A700-1)*months_per_period,DAY(fpdate)))<>DAY(fpdate),DATE(YEAR(fpdate),MONTH(fpdate)+(A700-1)*months_per_period+1,0),DATE(YEAR(fpdate),MONTH(fpdate)+(A700-1)*months_per_period,DAY(fpdate)))))) ->  | C700: =IF(A700="","",IF(roundOpt,IF(OR(A700=nper,payment>ROUND((1+rate)*H699,2)),ROUND((1+rate)*H699,2),payment),IF(OR(A700=nper,payment>(1+rate)*H699),(1+rate)*H699,payment))) ->  | F700: =IF(A700="","",IF(AND(A700=1,pmtType=1),0,IF(roundOpt,ROUND(rate*H699,2),rate*H699))) ->  | G700: =IF(A700="","",C700-F700+D700) ->  | H700: =IF(A700="","",H699-G700) -> 
A764: =IF(H763="","",IF(roundOpt,IF(OR(A763>=nper,ROUND(H763,2)<=0),"",A763+1),IF(OR(A763>=nper,H763<=0),"",A763+1))) ->  | B764: =IF(A764="","",IF(OR(periods_per_year=26,periods_per_year=52),IF(periods_per_year=26,IF(A764=1,fpdate,B763+14),IF(periods_per_year=52,IF(A764=1,fpdate,B763+7),"n/a")),IF(periods_per_year=24,DATE(YEAR(fpdate),MONTH(fpdate)+(A764-1)/2+IF(AND(DAY(fpdate)>=15,MOD(A764,2)=0),1,0),IF(MOD(A764,2)=0,IF(DAY(fpdate)>=15,DAY(fpdate)-14,DAY(fpdate)+14),DAY(fpdate))),IF(DAY(DATE(YEAR(fpdate),MONTH(fpdate)+(A764-1)*months_per_period,DAY(fpdate)))<>DAY(fpdate),DATE(YEAR(fpdate),MONTH(fpdate)+(A764-1)*months_per_period+1,0),DATE(YEAR(fpdate),MONTH(fpdate)+(A764-1)*months_per_period,DAY(fpdate)))))) ->  | C764: =IF(A764="","",IF(roundOpt,IF(OR(A764=nper,payment>ROUND((1+rate)*H763,2)),ROUND((1+rate)*H763,2),payment),IF(OR(A764=nper,payment>(1+rate)*H763),(1+rate)*H763,payment))) ->  | F764: =IF(A764="","",IF(AND(A764=1,pmtType=1),0,IF(roundOpt,ROUND(rate*H763,2),rate*H763))) ->  | G764: =IF(A764="","",C764-F764+D764) ->  | H764: =IF(A764="","",H763-G764) -> 
A828: =IF(H827="","",IF(roundOpt,IF(OR(A827>=nper,ROUND(H827,2)<=0),"",A827+1),IF(OR(A827>=nper,H827<=0),"",A827+1))) ->  | B828: =IF(A828="","",IF(OR(periods_per_year=26,periods_per_year=52),IF(periods_per_year=26,IF(A828=1,fpdate,B827+14),IF(periods_per_year=52,IF(A828=1,fpdate,B827+7),"n/a")),IF(periods_per_year=24,DATE(YEAR(fpdate),MONTH(fpdate)+(A828-1)/2+IF(AND(DAY(fpdate)>=15,MOD(A828,2)=0),1,0),IF(MOD(A828,2)=0,IF(DAY(fpdate)>=15,DAY(fpdate)-14,DAY(fpdate)+14),DAY(fpdate))),IF(DAY(DATE(YEAR(fpdate),MONTH(fpdate)+(A828-1)*months_per_period,DAY(fpdate)))<>DAY(fpdate),DATE(YEAR(fpdate),MONTH(fpdate)+(A828-1)*months_per_period+1,0),DATE(YEAR(fpdate),MONTH(fpdate)+(A828-1)*months_per_period,DAY(fpdate)))))) ->  | C828: =IF(A828="","",IF(roundOpt,IF(OR(A828=nper,payment>ROUND((1+rate)*H827,2)),ROUND((1+rate)*H827,2),payment),IF(OR(A828=nper,payment>(1+rate)*H827),(1+rate)*H827,payment))) ->  | F828: =IF(A828="","",IF(AND(A828=1,pmtType=1),0,IF(roundOpt,ROUND(rate*H827,2),rate*H827))) ->  | G828: =IF(A828="","",C828-F828+D828) ->  | H828: =IF(A828="","",H827-G828) -> 
D840: End

Sheet Amortisation Schedule_Loan3_AR (hidden)
A1: Loan Amortisation Schedule
A4: Loan Information | F4: Summary | K4: Frequency
C5: Loan Amount | D5: ='Loan Serviceability Calculator'!E44 -> 0 | G5: Rate (per period) | H5: =IF(D9=D10,D6/D14,((1+D6/D14)^(D14/D13))-1) ->  | K5: Annual
C6: Annual Interest Rate | D6: =IFERROR('Loan Serviceability Calculator'!H107,0) -> n/a | G6: Total Payments | H6: =SUM(F60:F839)+SUM(G60:G839) -> 0 | K6: Semi-Annual
C7: Term of Loan in Years | D7: ='Loan Serviceability Calculator'!F44/12 -> 0 | G7: Total Interest | H7: =SUM(F59:F839) -> 0 | K7: Quarterly
C8: First Payment Date | D8: =NOW() -> 2025-06-06T10:00:07.580 | G8: Est. Interest Savings | H8: =IF(AND(SUM(D60:D839)=0,roundOpt)," - ",(nper*(-PMT(rate,nper,loan_amount,,pmtType))-loan_amount)-H7) -> - | K8: Bi-Monthly
C9: Payment Frequency | D9: Monthly | H9: =IF(AND(NOT(H839=""),H839>0.004),"ERROR: Limit is "&OFFSET(A840,-1,0,1,1)&" payments",".") -> . | K9: Monthly
C10: Compound Period | D10: =D9 -> Monthly | H10: =IF(D14>D13,"Warning: negative amortization",".") -> . | K10: Semi-Monthly
C11: Payment Type | D11: End of Period | K11: Bi-Weekly
C12: Rounding | D12: On | K12: Weekly
C13: Periods Per Year | D13: =INDEX({1;2;4;6;12;24;26;52},MATCH('Amortisation Schedule_Loan3_AR'!$D$9,$K$5:$K$12,0)) -> 12
C14: Compound Period | D14: =INDEX({1;2;4;6;12;24;26;52},MATCH('Amortisation Schedule_Loan3_AR'!$D$10,$K$5:$K$12,0)) -> 12
C15: Payment Type | D15: =IF('Amortisation Schedule_Loan3_AR'!$D$11="End of Period",0,1) -> 0
C16: Months Per Period | D16: =12/$D$13 -> 1
C17: Number of Periods | D17: =$D$7*$D$13 -> 0
C18: Rounding Option | D18: =(D12="On") -> TRUE
H19: [42]
C20: =D9&" Payment" -> Monthly Payment | D20: =IFERROR(IF(roundOpt,ROUND(-PMT(rate,nper,$D$5,,pmtType),2),-PMT(rate,nper,$D$5,,pmtType)),0) -> 0
A22: Yearly Summary
B23: Year | C23: Payments | D23: Additional Payments | F23: Interest Paid | G23: Principal Paid | H23: Year-End Balance
H24: =loan_amount -> 0
B25: =YEAR(fpdate) -> 2025 | C25: =SUMIF($B$59:$B$840,"<="&DATE($B25,12,31),$C$59:$C$840)-SUM(C$24:C24) -> 0 | D25: =SUMIF($B$59:$B$840,"<="&DATE($B25,12,31),$D$59:$D$840)-SUM(D$24:D24) -> 0 | F25: =SUMIF($B$59:$B$840,"<="&DATE($B25,12,31),$F$59:$F$840)-SUM(F$24:F24) -> 0 | G25: =SUMIF($B$59:$B$840,"<="&DATE($B25,12,31),$G$59:$G$840)-SUM(G$24:G24) -> 0 | H25: =H24-G25 -> 0
B26: =B25+1 -> 2026 | C26: =SUMIF($B$59:$B$840,"<="&DATE($B26,12,31),$C$59:$C$840)-SUM(C$24:C25) -> 0 | D26: =SUMIF($B$59:$B$840,"<="&DATE($B26,12,31),$D$59:$D$840)-SUM(D$24:D25) -> 0 | F26: =SUMIF($B$59:$B$840,"<="&DATE($B26,12,31),$F$59:$F$840)-SUM(F$24:F25) -> 0 | G26: =SUMIF($B$59:$B$840,"<="&DATE($B26,12,31),$G$59:$G$840)-SUM(G$24:G25) -> 0 | H26: =H25-G26 -> 0
B27: =B26+1 -> 2027 | C27: =SUMIF($B$59:$B$840,"<="&DATE($B27,12,31),$C$59:$C$840)-SUM(C$24:C26) -> 0 | D27: =SUMIF($B$59:$B$840,"<="&DATE($B27,12,31),$D$59:$D$840)-SUM(D$24:D26) -> 0 | F27: =SUMIF($B$59:$B$840,"<="&DATE($B27,12,31),$F$59:$F$840)-SUM(F$24:F26) -> 0 | G27: =SUMIF($B$59:$B$840,"<="&DATE($B27,12,31),$G$59:$G$840)-SUM(G$24:G26) -> 0 | H27: =H26-G27 -> 0
B28: =B27+1 -> 2028 | C28: =SUMIF($B$59:$B$840,"<="&DATE($B28,12,31),$C$59:$C$840)-SUM(C$24:C27) -> 0 | D28: =SUMIF($B$59:$B$840,"<="&DATE($B28,12,31),$D$59:$D$840)-SUM(D$24:D27) -> 0 | F28: =SUMIF($B$59:$B$840,"<="&DATE($B28,12,31),$F$59:$F$840)-SUM(F$24:F27) -> 0 | G28: =SUMIF($B$59:$B$840,"<="&DATE($B28,12,31),$G$59:$G$840)-SUM(G$24:G27) -> 0 | H28: =H27-G28 -> 0
B29: =B28+1 -> 2029 | C29: =SUMIF($B$59:$B$840,"<="&DATE($B29,12,31),$C$59:$C$840)-SUM(C$24:C28) -> 0 | D29: =SUMIF($B$59:$B$840,"<="&DATE($B29,12,31),$D$59:$D$840)-SUM(D$24:D28) -> 0 | F29: =SUMIF($B$59:$B$840,"<="&DATE($B29,12,31),$F$59:$F$840)-SUM(F$24:F28) -> 0 | G29: =SUMIF($B$59:$B$840,"<="&DATE($B29,12,31),$G$59:$G$840)-SUM(G$24:G28) -> 0 | H29: =H28-G29 -> 0
B30: 2030 | C30: =SUMIF($B$59:$B$840,"<="&DATE($B30,12,31),$C$59:$C$840)-SUM(C$24:C29) -> 0 | D30: =SUMIF($B$59:$B$840,"<="&DATE($B30,12,31),$D$59:$D$840)-SUM(D$24:D29) -> 0 | F30: =SUMIF($B$59:$B$840,"<="&DATE($B30,12,31),$F$59:$F$840)-SUM(F$24:F29) -> 0 | G30: =SUMIF($B$59:$B$840,"<="&DATE($B30,12,31),$G$59:$G$840)-SUM(G$24:G29) -> 0 | H30: 0
B31: 2031 | C31: =SUMIF($B$59:$B$840,"<="&DATE($B31,12,31),$C$59:$C$840)-SUM(C$24:C30) -> 0 | D31: =SUMIF($B$59:$B$840,"<="&DATE($B31,12,31),$D$59:$D$840)-SUM(D$24:D30) -> 0 | F31: =SUMIF($B$59:$B$840,"<="&DATE($B31,12,31),$F$59:$F$840)-SUM(F$24:F30) -> 0 | G31: =SUMIF($B$59:$B$840,"<="&DATE($B31,12,31),$G$59:$G$840)-SUM(G$24:G30) -> 0 | H31: 0
B32: 2032 | C32: =SUMIF($B$59:$B$840,"<="&DATE($B32,12,31),$C$59:$C$840)-SUM(C$24:C31) -> 0 | D32: =SUMIF($B$59:$B$840,"<="&DATE($B32,12,31),$D$59:$D$840)-SUM(D$24:D31) -> 0 | F32: =SUMIF($B$59:$B$840,"<="&DATE($B32,12,31),$F$59:$F$840)-SUM(F$24:F31) -> 0 | G32: =SUMIF($B$59:$B$840,"<="&DATE($B32,12,31),$G$59:$G$840)-SUM(G$24:G31) -> 0 | H32: 0
B33: 2033 | C33: =SUMIF($B$59:$B$840,"<="&DATE($B33,12,31),$C$59:$C$840)-SUM(C$24:C32) -> 0 | D33: =SUMIF($B$59:$B$840,"<="&DATE($B33,12,31),$D$59:$D$840)-SUM(D$24:D32) -> 0 | F33: =SUMIF($B$59:$B$840,"<="&DATE($B33,12,31),$F$59:$F$840)-SUM(F$24:F32) -> 0 | G33: =SUMIF($B$59:$B$840,"<="&DATE($B33,12,31),$G$59:$G$840)-SUM(G$24:G32) -> 0 | H33: 0
B34: 2034 | C34: =SUMIF($B$59:$B$840,"<="&DATE($B34,12,31),$C$59:$C$840)-SUM(C$24:C33) -> 0 | D34: =SUMIF($B$59:$B$840,"<="&DATE($B34,12,31),$D$59:$D$840)-SUM(D$24:D33) -> 0 | F34: =SUMIF($B$59:$B$840,"<="&DATE($B34,12,31),$F$59:$F$840)-SUM(F$24:F33) -> 0 | G34: =SUMIF($B$59:$B$840,"<="&DATE($B34,12,31),$G$59:$G$840)-SUM(G$24:G33) -> 0 | H34: 0
B35: 2035 | C35: =SUMIF($B$59:$B$840,"<="&DATE($B35,12,31),$C$59:$C$840)-SUM(C$24:C34) -> 0 | D35: =SUMIF($B$59:$B$840,"<="&DATE($B35,12,31),$D$59:$D$840)-SUM(D$24:D34) -> 0 | F35: =SUMIF($B$59:$B$840,"<="&DATE($B35,12,31),$F$59:$F$840)-SUM(F$24:F34) -> 0 | G35: =SUMIF($B$59:$B$840,"<="&DATE($B35,12,31),$G$59:$G$840)-SUM(G$24:G34) -> 0 | H35: 0
B36: 2036 | C36: =SUMIF($B$59:$B$840,"<="&DATE($B36,12,31),$C$59:$C$840)-SUM(C$24:C35) -> 0 | D36: =SUMIF($B$59:$B$840,"<="&DATE($B36,12,31),$D$59:$D$840)-SUM(D$24:D35) -> 0 | F36: =SUMIF($B$59:$B$840,"<="&DATE($B36,12,31),$F$59:$F$840)-SUM(F$24:F35) -> 0 | G36: =SUMIF($B$59:$B$840,"<="&DATE($B36,12,31),$G$59:$G$840)-SUM(G$24:G35) -> 0 | H36: 0
B37: 2037 | C37: =SUMIF($B$59:$B$840,"<="&DATE($B37,12,31),$C$59:$C$840)-SUM(C$24:C36) -> 0 | D37: =SUMIF($B$59:$B$840,"<="&DATE($B37,12,31),$D$59:$D$840)-SUM(D$24:D36) -> 0 | F37: =SUMIF($B$59:$B$840,"<="&DATE($B37,12,31),$F$59:$F$840)-SUM(F$24:F36) -> 0 | G37: =SUMIF($B$59:$B$840,"<="&DATE($B37,12,31),$G$59:$G$840)-SUM(G$24:G36) -> 0 | H37: 0
B38: 2038 | C38: =SUMIF($B$59:$B$840,"<="&DATE($B38,12,31),$C$59:$C$840)-SUM(C$24:C37) -> 0 | D38: =SUMIF($B$59:$B$840,"<="&DATE($B38,12,31),$D$59:$D$840)-SUM(D$24:D37) -> 0 | F38: =SUMIF($B$59:$B$840,"<="&DATE($B38,12,31),$F$59:$F$840)-SUM(F$24:F37) -> 0 | G38: =SUMIF($B$59:$B$840,"<="&DATE($B38,12,31),$G$59:$G$840)-SUM(G$24:G37) -> 0 | H38: 0
B39: 2039 | C39: =SUMIF($B$59:$B$840,"<="&DATE($B39,12,31),$C$59:$C$840)-SUM(C$24:C38) -> 0 | D39: =SUMIF($B$59:$B$840,"<="&DATE($B39,12,31),$D$59:$D$840)-SUM(D$24:D38) -> 0 | F39: =SUMIF($B$59:$B$840,"<="&DATE($B39,12,31),$F$59:$F$840)-SUM(F$24:F38) -> 0 | G39: =SUMIF($B$59:$B$840,"<="&DATE($B39,12,31),$G$59:$G$840)-SUM(G$24:G38) -> 0 | H39: 0
B40: 2040 | C40: =SUMIF($B$59:$B$840,"<="&DATE($B40,12,31),$C$59:$C$840)-SUM(C$24:C39) -> 0 | D40: =SUMIF($B$59:$B$840,"<="&DATE($B40,12,31),$D$59:$D$840)-SUM(D$24:D39) -> 0 | F40: =SUMIF($B$59:$B$840,"<="&DATE($B40,12,31),$F$59:$F$840)-SUM(F$24:F39) -> 0 | G40: =SUMIF($B$59:$B$840,"<="&DATE($B40,12,31),$G$59:$G$840)-SUM(G$24:G39) -> 0 | H40: 0
B41: 2041 | C41: =SUMIF($B$59:$B$840,"<="&DATE($B41,12,31),$C$59:$C$840)-SUM(C$24:C40) -> 0 | D41: =SUMIF($B$59:$B$840,"<="&DATE($B41,12,31),$D$59:$D$840)-SUM(D$24:D40) -> 0 | F41: =SUMIF($B$59:$B$840,"<="&DATE($B41,12,31),$F$59:$F$840)-SUM(F$24:F40) -> 0 | G41: =SUMIF($B$59:$B$840,"<="&DATE($B41,12,31),$G$59:$G$840)-SUM(G$24:G40) -> 0 | H41: 0
B42: 2042 | C42: =SUMIF($B$59:$B$840,"<="&DATE($B42,12,31),$C$59:$C$840)-SUM(C$24:C41) -> 0 | D42: =SUMIF($B$59:$B$840,"<="&DATE($B42,12,31),$D$59:$D$840)-SUM(D$24:D41) -> 0 | F42: =SUMIF($B$59:$B$840,"<="&DATE($B42,12,31),$F$59:$F$840)-SUM(F$24:F41) -> 0 | G42: =SUMIF($B$59:$B$840,"<="&DATE($B42,12,31),$G$59:$G$840)-SUM(G$24:G41) -> 0 | H42: 0
B43: 2043 | C43: =SUMIF($B$59:$B$840,"<="&DATE($B43,12,31),$C$59:$C$840)-SUM(C$24:C42) -> 0 | D43: =SUMIF($B$59:$B$840,"<="&DATE($B43,12,31),$D$59:$D$840)-SUM(D$24:D42) -> 0 | F43: =SUMIF($B$59:$B$840,"<="&DATE($B43,12,31),$F$59:$F$840)-SUM(F$24:F42) -> 0 | G43: =SUMIF($B$59:$B$840,"<="&DATE($B43,12,31),$G$59:$G$840)-SUM(G$24:G42) -> 0 | H43: 0
B44: 2044 | C44: =SUMIF($B$59:$B$840,"<="&DATE($B44,12,31),$C$59:$C$840)-SUM(C$24:C43) -> 0 | D44: =SUMIF($B$59:$B$840,"<="&DATE($B44,12,31),$D$59:$D$840)-SUM(D$24:D43) -> 0 | F44: =SUMIF($B$59:$B$840,"<="&DATE($B44,12,31),$F$59:$F$840)-SUM(F$24:F43) -> 0 | G44: =SUMIF($B$59:$B$840,"<="&DATE($B44,12,31),$G$59:$G$840)-SUM(G$24:G43) -> 0 | H44: 0
B45: 2045 | C45: =SUMIF($B$59:$B$840,"<="&DATE($B45,12,31),$C$59:$C$840)-SUM(C$24:C44) -> 0 | D45: =SUMIF($B$59:$B$840,"<="&DATE($B45,12,31),$D$59:$D$840)-SUM(D$24:D44) -> 0 | F45: =SUMIF($B$59:$B$840,"<="&DATE($B45,12,31),$F$59:$F$840)-SUM(F$24:F44) -> 0 | G45: =SUMIF($B$59:$B$840,"<="&DATE($B45,12,31),$G$59:$G$840)-SUM(G$24:G44) -> 0 | H45: 0
B46: 2046 | C46: =SUMIF($B$59:$B$840,"<="&DATE($B46,12,31),$C$59:$C$840)-SUM(C$24:C45) -> 0 | D46: =SUMIF($B$59:$B$840,"<="&DATE($B46,12,31),$D$59:$D$840)-SUM(D$24:D45) -> 0 | F46: =SUMIF($B$59:$B$840,"<="&DATE($B46,12,31),$F$59:$F$840)-SUM(F$24:F45) -> 0 | G46: =SUMIF($B$59:$B$840,"<="&DATE($B46,12,31),$G$59:$G$840)-SUM(G$24:G45) -> 0 | H46: 0
B47: 2047 | C47: =SUMIF($B$59:$B$840,"<="&DATE($B47,12,31),$C$59:$C$840)-SUM(C$24:C46) -> 0 | D47: =SUMIF($B$59:$B$840,"<="&DATE($B47,12,31),$D$59:$D$840)-SUM(D$24:D46) -> 0 | F47: =SUMIF($B$59:$B$840,"<="&DATE($B47,12,31),$F$59:$F$840)-SUM(F$24:F46) -> 0 | G47: =SUMIF($B$59:$B$840,"<="&DATE($B47,12,31),$G$59:$G$840)-SUM(G$24:G46) -> 0 | H47: 0
B48: 2048 | C48: =SUMIF($B$59:$B$840,"<="&DATE($B48,12,31),$C$59:$C$840)-SUM(C$24:C47) -> 0 | D48: =SUMIF($B$59:$B$840,"<="&DATE($B48,12,31),$D$59:$D$840)-SUM(D$24:D47) -> 0 | F48: =SUMIF($B$59:$B$840,"<="&DATE($B48,12,31),$F$59:$F$840)-SUM(F$24:F47) -> 0 | G48: =SUMIF($B$59:$B$840,"<="&DATE($B48,12,31),$G$59:$G$840)-SUM(G$24:G47) -> 0 | H48: 0
B49: 2049 | C49: =SUMIF($B$59:$B$840,"<="&DATE($B49,12,31),$C$59:$C$840)-SUM(C$24:C48) -> 0 | D49: =SUMIF($B$59:$B$840,"<="&DATE($B49,12,31),$D$59:$D$840)-SUM(D$24:D48) -> 0 | F49: =SUMIF($B$59:$B$840,"<="&DATE($B49,12,31),$F$59:$F$840)-SUM(F$24:F48) -> 0 | G49: =SUMIF($B$59:$B$840,"<="&DATE($B49,12,31),$G$59:$G$840)-SUM(G$24:G48) -> 0 | H49: 0
B50: 2050 | C50: =SUMIF($B$59:$B$840,"<="&DATE($B50,12,31),$C$59:$C$840)-SUM(C$24:C49) -> 0 | D50: =SUMIF($B$59:$B$840,"<="&DATE($B50,12,31),$D$59:$D$840)-SUM(D$24:D49) -> 0 | F50: =SUMIF($B$59:$B$840,"<="&DATE($B50,12,31),$F$59:$F$840)-SUM(F$24:F49) -> 0 | G50: =SUMIF($B$59:$B$840,"<="&DATE($B50,12,31),$G$59:$G$840)-SUM(G$24:G49) -> 0 | H50: 0
B51: 2051 | C51: =SUMIF($B$59:$B$840,"<="&DATE($B51,12,31),$C$59:$C$840)-SUM(C$24:C50) -> 0 | D51: =SUMIF($B$59:$B$840,"<="&DATE($B51,12,31),$D$59:$D$840)-SUM(D$24:D50) -> 0 | F51: =SUMIF($B$59:$B$840,"<="&DATE($B51,12,31),$F$59:$F$840)-SUM(F$24:F50) -> 0 | G51: =SUMIF($B$59:$B$840,"<="&DATE($B51,12,31),$G$59:$G$840)-SUM(G$24:G50) -> 0 | H51: 0
B52: 2052 | C52: =SUMIF($B$59:$B$840,"<="&DATE($B52,12,31),$C$59:$C$840)-SUM(C$24:C51) -> 0 | D52: =SUMIF($B$59:$B$840,"<="&DATE($B52,12,31),$D$59:$D$840)-SUM(D$24:D51) -> 0 | F52: =SUMIF($B$59:$B$840,"<="&DATE($B52,12,31),$F$59:$F$840)-SUM(F$24:F51) -> 0 | G52: =SUMIF($B$59:$B$840,"<="&DATE($B52,12,31),$G$59:$G$840)-SUM(G$24:G51) -> 0 | H52: 0
B53: 2053 | C53: =SUMIF($B$59:$B$840,"<="&DATE($B53,12,31),$C$59:$C$840)-SUM(C$24:C52) -> 0 | D53: =SUMIF($B$59:$B$840,"<="&DATE($B53,12,31),$D$59:$D$840)-SUM(D$24:D52) -> 0 | F53: =SUMIF($B$59:$B$840,"<="&DATE($B53,12,31),$F$59:$F$840)-SUM(F$24:F52) -> 0 | G53: =SUMIF($B$59:$B$840,"<="&DATE($B53,12,31),$G$59:$G$840)-SUM(G$24:G52) -> 0 | H53: 0
B54: 2054 | C54: =SUMIF($B$59:$B$840,"<="&DATE($B54,12,31),$C$59:$C$840)-SUM(C$24:C53) -> 0 | D54: =SUMIF($B$59:$B$840,"<="&DATE($B54,12,31),$D$59:$D$840)-SUM(D$24:D53) -> 0 | F54: =SUMIF($B$59:$B$840,"<="&DATE($B54,12,31),$F$59:$F$840)-SUM(F$24:F53) -> 0 | G54: =SUMIF($B$59:$B$840,"<="&DATE($B54,12,31),$G$59:$G$840)-SUM(G$24:G53) -> 0 | H54: 0
B55: 2055 | C55: =SUMIF($B$59:$B$840,"<="&DATE($B55,12,31),$C$59:$C$840)-SUM(C$24:C54) -> 0 | D55: =SUMIF($B$59:$B$840,"<="&DATE($B55,12,31),$D$59:$D$840)-SUM(D$24:D54) -> 0 | F55: =SUMIF($B$59:$B$840,"<="&DATE($B55,12,31),$F$59:$F$840)-SUM(F$24:F54) -> 0 | G55: =SUMIF($B$59:$B$840,"<="&DATE($B55,12,31),$G$59:$G$840)-SUM(G$24:G54) -> 0 | H55: 0
A57: Amortisation Schedule
A58: No. | B58: Due Date | C58: Payment Due | D58: Additional Payment | F58: Interest | G58: Principal | H58: Balance
H59: =$D$5 -> 0
A60: =IF(H59="","",IF(roundOpt,IF(OR(A59>=nper,ROUND(H59,2)<=0),"",A59+1),IF(OR(A59>=nper,H59<=0),"",A59+1))) ->  | B60: =IF(A60="","",IF(OR(periods_per_year=26,periods_per_year=52),IF(periods_per_year=26,IF(A60=1,fpdate,B59+14),IF(periods_per_year=52,IF(A60=1,fpdate,B59+7),"n/a")),IF(periods_per_year=24,DATE(YEAR(fpdate),MONTH(fpdate)+(A60-1)/2+IF(AND(DAY(fpdate)>=15,MOD(A60,2)=0),1,0),IF(MOD(A60,2)=0,IF(DAY(fpdate)>=15,DAY(fpdate)-14,DAY(fpdate)+14),DAY(fpdate))),IF(DAY(DATE(YEAR(fpdate),MONTH(fpdate)+(A60-1)*months_per_period,DAY(fpdate)))<>DAY(fpdate),DATE(YEAR(fpdate),MONTH(fpdate)+(A60-1)*months_per_period+1,0),DATE(YEAR(fpdate),MONTH(fpdate)+(A60-1)*months_per_period,DAY(fpdate)))))) ->  | C60: =IF(A60="","",IF(roundOpt,IF(OR(A60=nper,payment>ROUND((1+rate)*H59,2)),ROUND((1+rate)*H59,2),payment),IF(OR(A60=nper,payment>(1+rate)*H59),(1+rate)*H59,payment))) ->  | F60: =IF(A60="","",IF(AND(A60=1,pmtType=1),0,IF(roundOpt,ROUND(rate*H59,2),rate*H59))) ->  | G60: =IF(A60="","",C60-F60+D60) ->  | H60: =IF(A60="","",H59-G60) -> 
A124: =IF(H123="","",IF(roundOpt,IF(OR(A123>=nper,ROUND(H123,2)<=0),"",A123+1),IF(OR(A123>=nper,H123<=0),"",A123+1))) ->  | B124: =IF(A124="","",IF(OR(periods_per_year=26,periods_per_year=52),IF(periods_per_year=26,IF(A124=1,fpdate,B123+14),IF(periods_per_year=52,IF(A124=1,fpdate,B123+7),"n/a")),IF(periods_per_year=24,DATE(YEAR(fpdate),MONTH(fpdate)+(A124-1)/2+IF(AND(DAY(fpdate)>=15,MOD(A124,2)=0),1,0),IF(MOD(A124,2)=0,IF(DAY(fpdate)>=15,DAY(fpdate)-14,DAY(fpdate)+14),DAY(fpdate))),IF(DAY(DATE(YEAR(fpdate),MONTH(fpdate)+(A124-1)*months_per_period,DAY(fpdate)))<>DAY(fpdate),DATE(YEAR(fpdate),MONTH(fpdate)+(A124-1)*months_per_period+1,0),DATE(YEAR(fpdate),MONTH(fpdate)+(A124-1)*months_per_period,DAY(fpdate)))))) ->  | C124: =IF(A124="","",IF(roundOpt,IF(OR(A124=nper,payment>ROUND((1+rate)*H123,2)),ROUND((1+rate)*H123,2),payment),IF(OR(A124=nper,payment>(1+rate)*H123),(1+rate)*H123,payment))) ->  | F124: =IF(A124="","",IF(AND(A124=1,pmtType=1),0,IF(roundOpt,ROUND(rate*H123,2),rate*H123))) ->  | G124: =IF(A124="","",C124-F124+D124) ->  | H124: =IF(A124="","",H123-G124) -> 
A188: =IF(H187="","",IF(roundOpt,IF(OR(A187>=nper,ROUND(H187,2)<=0),"",A187+1),IF(OR(A187>=nper,H187<=0),"",A187+1))) ->  | B188: =IF(A188="","",IF(OR(periods_per_year=26,periods_per_year=52),IF(periods_per_year=26,IF(A188=1,fpdate,B187+14),IF(periods_per_year=52,IF(A188=1,fpdate,B187+7),"n/a")),IF(periods_per_year=24,DATE(YEAR(fpdate),MONTH(fpdate)+(A188-1)/2+IF(AND(DAY(fpdate)>=15,MOD(A188,2)=0),1,0),IF(MOD(A188,2)=0,IF(DAY(fpdate)>=15,DAY(fpdate)-14,DAY(fpdate)+14),DAY(fpdate))),IF(DAY(DATE(YEAR(fpdate),MONTH(fpdate)+(A188-1)*months_per_period,DAY(fpdate)))<>DAY(fpdate),DATE(YEAR(fpdate),MONTH(fpdate)+(A188-1)*months_per_period+1,0),DATE(YEAR(fpdate),MONTH(fpdate)+(A188-1)*months_per_period,DAY(fpdate)))))) ->  | C188: =IF(A188="","",IF(roundOpt,IF(OR(A188=nper,payment>ROUND((1+rate)*H187,2)),ROUND((1+rate)*H187,2),payment),IF(OR(A188=nper,payment>(1+rate)*H187),(1+rate)*H187,payment))) ->  | F188: =IF(A188="","",IF(AND(A188=1,pmtType=1),0,IF(roundOpt,ROUND(rate*H187,2),rate*H187))) ->  | G188: =IF(A188="","",C188-F188+D188) ->  | H188: =IF(A188="","",H187-G188) -> 
A252: =IF(H251="","",IF(roundOpt,IF(OR(A251>=nper,ROUND(H251,2)<=0),"",A251+1),IF(OR(A251>=nper,H251<=0),"",A251+1))) ->  | B252: =IF(A252="","",IF(OR(periods_per_year=26,periods_per_year=52),IF(periods_per_year=26,IF(A252=1,fpdate,B251+14),IF(periods_per_year=52,IF(A252=1,fpdate,B251+7),"n/a")),IF(periods_per_year=24,DATE(YEAR(fpdate),MONTH(fpdate)+(A252-1)/2+IF(AND(DAY(fpdate)>=15,MOD(A252,2)=0),1,0),IF(MOD(A252,2)=0,IF(DAY(fpdate)>=15,DAY(fpdate)-14,DAY(fpdate)+14),DAY(fpdate))),IF(DAY(DATE(YEAR(fpdate),MONTH(fpdate)+(A252-1)*months_per_period,DAY(fpdate)))<>DAY(fpdate),DATE(YEAR(fpdate),MONTH(fpdate)+(A252-1)*months_per_period+1,0),DATE(YEAR(fpdate),MONTH(fpdate)+(A252-1)*months_per_period,DAY(fpdate)))))) ->  | C252: =IF(A252="","",IF(roundOpt,IF(OR(A252=nper,payment>ROUND((1+rate)*H251,2)),ROUND((1+rate)*H251,2),payment),IF(OR(A252=nper,payment>(1+rate)*H251),(1+rate)*H251,payment))) ->  | F252: =IF(A252="","",IF(AND(A252=1,pmtType=1),0,IF(roundOpt,ROUND(rate*H251,2),rate*H251))) ->  | G252: =IF(A252="","",C252-F252+D252) ->  | H252: =IF(A252="","",H251-G252) -> 
A316: =IF(H315="","",IF(roundOpt,IF(OR(A315>=nper,ROUND(H315,2)<=0),"",A315+1),IF(OR(A315>=nper,H315<=0),"",A315+1))) ->  | B316: =IF(A316="","",IF(OR(periods_per_year=26,periods_per_year=52),IF(periods_per_year=26,IF(A316=1,fpdate,B315+14),IF(periods_per_year=52,IF(A316=1,fpdate,B315+7),"n/a")),IF(periods_per_year=24,DATE(YEAR(fpdate),MONTH(fpdate)+(A316-1)/2+IF(AND(DAY(fpdate)>=15,MOD(A316,2)=0),1,0),IF(MOD(A316,2)=0,IF(DAY(fpdate)>=15,DAY(fpdate)-14,DAY(fpdate)+14),DAY(fpdate))),IF(DAY(DATE(YEAR(fpdate),MONTH(fpdate)+(A316-1)*months_per_period,DAY(fpdate)))<>DAY(fpdate),DATE(YEAR(fpdate),MONTH(fpdate)+(A316-1)*months_per_period+1,0),DATE(YEAR(fpdate),MONTH(fpdate)+(A316-1)*months_per_period,DAY(fpdate)))))) ->  | C316: =IF(A316="","",IF(roundOpt,IF(OR(A316=nper,payment>ROUND((1+rate)*H315,2)),ROUND((1+rate)*H315,2),payment),IF(OR(A316=nper,payment>(1+rate)*H315),(1+rate)*H315,payment))) ->  | F316: =IF(A316="","",IF(AND(A316=1,pmtType=1),0,IF(roundOpt,ROUND(rate*H315,2),rate*H315))) ->  | G316: =IF(A316="","",C316-F316+D316) ->  | H316: =IF(A316="","",H315-G316) -> 
A380: =IF(H379="","",IF(roundOpt,IF(OR(A379>=nper,ROUND(H379,2)<=0),"",A379+1),IF(OR(A379>=nper,H379<=0),"",A379+1))) ->  | B380: =IF(A380="","",IF(OR(periods_per_year=26,periods_per_year=52),IF(periods_per_year=26,IF(A380=1,fpdate,B379+14),IF(periods_per_year=52,IF(A380=1,fpdate,B379+7),"n/a")),IF(periods_per_year=24,DATE(YEAR(fpdate),MONTH(fpdate)+(A380-1)/2+IF(AND(DAY(fpdate)>=15,MOD(A380,2)=0),1,0),IF(MOD(A380,2)=0,IF(DAY(fpdate)>=15,DAY(fpdate)-14,DAY(fpdate)+14),DAY(fpdate))),IF(DAY(DATE(YEAR(fpdate),MONTH(fpdate)+(A380-1)*months_per_period,DAY(fpdate)))<>DAY(fpdate),DATE(YEAR(fpdate),MONTH(fpdate)+(A380-1)*months_per_period+1,0),DATE(YEAR(fpdate),MONTH(fpdate)+(A380-1)*months_per_period,DAY(fpdate)))))) ->  | C380: =IF(A380="","",IF(roundOpt,IF(OR(A380=nper,payment>ROUND((1+rate)*H379,2)),ROUND((1+rate)*H379,2),payment),IF(OR(A380=nper,payment>(1+rate)*H379),(1+rate)*H379,payment))) ->  | F380: =IF(A380="","",IF(AND(A380=1,pmtType=1),0,IF(roundOpt,ROUND(rate*H379,2),rate*H379))) ->  | G380: =IF(A380="","",C380-F380+D380) ->  | H380: =IF(A380="","",H379-G380) -> 
A444: =IF(H443="","",IF(roundOpt,IF(OR(A443>=nper,ROUND(H443,2)<=0),"",A443+1),IF(OR(A443>=nper,H443<=0),"",A443+1))) ->  | B444: =IF(A444="","",IF(OR(periods_per_year=26,periods_per_year=52),IF(periods_per_year=26,IF(A444=1,fpdate,B443+14),IF(periods_per_year=52,IF(A444=1,fpdate,B443+7),"n/a")),IF(periods_per_year=24,DATE(YEAR(fpdate),MONTH(fpdate)+(A444-1)/2+IF(AND(DAY(fpdate)>=15,MOD(A444,2)=0),1,0),IF(MOD(A444,2)=0,IF(DAY(fpdate)>=15,DAY(fpdate)-14,DAY(fpdate)+14),DAY(fpdate))),IF(DAY(DATE(YEAR(fpdate),MONTH(fpdate)+(A444-1)*months_per_period,DAY(fpdate)))<>DAY(fpdate),DATE(YEAR(fpdate),MONTH(fpdate)+(A444-1)*months_per_period+1,0),DATE(YEAR(fpdate),MONTH(fpdate)+(A444-1)*months_per_period,DAY(fpdate)))))) ->  | C444: =IF(A444="","",IF(roundOpt,IF(OR(A444=nper,payment>ROUND((1+rate)*H443,2)),ROUND((1+rate)*H443,2),payment),IF(OR(A444=nper,payment>(1+rate)*H443),(1+rate)*H443,payment))) ->  | F444: =IF(A444="","",IF(AND(A444=1,pmtType=1),0,IF(roundOpt,ROUND(rate*H443,2),rate*H443))) ->  | G444: =IF(A444="","",C444-F444+D444) ->  | H444: =IF(A444="","",H443-G444) -> 
A508: =IF(H507="","",IF(roundOpt,IF(OR(A507>=nper,ROUND(H507,2)<=0),"",A507+1),IF(OR(A507>=nper,H507<=0),"",A507+1))) ->  | B508: =IF(A508="","",IF(OR(periods_per_year=26,periods_per_year=52),IF(periods_per_year=26,IF(A508=1,fpdate,B507+14),IF(periods_per_year=52,IF(A508=1,fpdate,B507+7),"n/a")),IF(periods_per_year=24,DATE(YEAR(fpdate),MONTH(fpdate)+(A508-1)/2+IF(AND(DAY(fpdate)>=15,MOD(A508,2)=0),1,0),IF(MOD(A508,2)=0,IF(DAY(fpdate)>=15,DAY(fpdate)-14,DAY(fpdate)+14),DAY(fpdate))),IF(DAY(DATE(YEAR(fpdate),MONTH(fpdate)+(A508-1)*months_per_period,DAY(fpdate)))<>DAY(fpdate),DATE(YEAR(fpdate),MONTH(fpdate)+(A508-1)*months_per_period+1,0),DATE(YEAR(fpdate),MONTH(fpdate)+(A508-1)*months_per_period,DAY(fpdate)))))) ->  | C508: =IF(A508="","",IF(roundOpt,IF(OR(A508=nper,payment>ROUND((1+rate)*H507,2)),ROUND((1+rate)*H507,2),payment),IF(OR(A508=nper,payment>(1+rate)*H507),(1+rate)*H507,payment))) ->  | F508: =IF(A508="","",IF(AND(A508=1,pmtType=1),0,IF(roundOpt,ROUND(rate*H507,2),rate*H507))) ->  | G508: =IF(A508="","",C508-F508+D508) ->  | H508: =IF(A508="","",H507-G508) -> 
A572: =IF(H571="","",IF(roundOpt,IF(OR(A571>=nper,ROUND(H571,2)<=0),"",A571+1),IF(OR(A571>=nper,H571<=0),"",A571+1))) ->  | B572: =IF(A572="","",IF(OR(periods_per_year=26,periods_per_year=52),IF(periods_per_year=26,IF(A572=1,fpdate,B571+14),IF(periods_per_year=52,IF(A572=1,fpdate,B571+7),"n/a")),IF(periods_per_year=24,DATE(YEAR(fpdate),MONTH(fpdate)+(A572-1)/2+IF(AND(DAY(fpdate)>=15,MOD(A572,2)=0),1,0),IF(MOD(A572,2)=0,IF(DAY(fpdate)>=15,DAY(fpdate)-14,DAY(fpdate)+14),DAY(fpdate))),IF(DAY(DATE(YEAR(fpdate),MONTH(fpdate)+(A572-1)*months_per_period,DAY(fpdate)))<>DAY(fpdate),DATE(YEAR(fpdate),MONTH(fpdate)+(A572-1)*months_per_period+1,0),DATE(YEAR(fpdate),MONTH(fpdate)+(A572-1)*months_per_period,DAY(fpdate)))))) ->  | C572: =IF(A572="","",IF(roundOpt,IF(OR(A572=nper,payment>ROUND((1+rate)*H571,2)),ROUND((1+rate)*H571,2),payment),IF(OR(A572=nper,payment>(1+rate)*H571),(1+rate)*H571,payment))) ->  | F572: =IF(A572="","",IF(AND(A572=1,pmtType=1),0,IF(roundOpt,ROUND(rate*H571,2),rate*H571))) ->  | G572: =IF(A572="","",C572-F572+D572) ->  | H572: =IF(A572="","",H571-G572) -> 
A636: =IF(H635="","",IF(roundOpt,IF(OR(A635>=nper,ROUND(H635,2)<=0),"",A635+1),IF(OR(A635>=nper,H635<=0),"",A635+1))) ->  | B636: =IF(A636="","",IF(OR(periods_per_year=26,periods_per_year=52),IF(periods_per_year=26,IF(A636=1,fpdate,B635+14),IF(periods_per_year=52,IF(A636=1,fpdate,B635+7),"n/a")),IF(periods_per_year=24,DATE(YEAR(fpdate),MONTH(fpdate)+(A636-1)/2+IF(AND(DAY(fpdate)>=15,MOD(A636,2)=0),1,0),IF(MOD(A636,2)=0,IF(DAY(fpdate)>=15,DAY(fpdate)-14,DAY(fpdate)+14),DAY(fpdate))),IF(DAY(DATE(YEAR(fpdate),MONTH(fpdate)+(A636-1)*months_per_period,DAY(fpdate)))<>DAY(fpdate),DATE(YEAR(fpdate),MONTH(fpdate)+(A636-1)*months_per_period+1,0),DATE(YEAR(fpdate),MONTH(fpdate)+(A636-1)*months_per_period,DAY(fpdate)))))) ->  | C636: =IF(A636="","",IF(roundOpt,IF(OR(A636=nper,payment>ROUND((1+rate)*H635,2)),ROUND((1+rate)*H635,2),payment),IF(OR(A636=nper,payment>(1+rate)*H635),(1+rate)*H635,payment))) ->  | F636: =IF(A636="","",IF(AND(A636=1,pmtType=1),0,IF(roundOpt,ROUND(rate*H635,2),rate*H635))) ->  | G636: =IF(A636="","",C636-F636+D636) ->  | H636: =IF(A636="","",H635-G636) -> 
A700: =IF(H699="","",IF(roundOpt,IF(OR(A699>=nper,ROUND(H699,2)<=0),"",A699+1),IF(OR(A699>=nper,H699<=0),"",A699+1))) ->  | B700: =IF(A700="","",IF(OR(periods_per_year=26,periods_per_year=52),IF(periods_per_year=26,IF(A700=1,fpdate,B699+14),IF(periods_per_year=52,IF(A700=1,fpdate,B699+7),"n/a")),IF(periods_per_year=24,DATE(YEAR(fpdate),MONTH(fpdate)+(A700-1)/2+IF(AND(DAY(fpdate)>=15,MOD(A700,2)=0),1,0),IF(MOD(A700,2)=0,IF(DAY(fpdate)>=15,DAY(fpdate)-14,DAY(fpdate)+14),DAY(fpdate))),IF(DAY(DATE(YEAR(fpdate),MONTH(fpdate)+(A700-1)*months_per_period,DAY(fpdate)))<>DAY(fpdate),DATE(YEAR(fpdate),MONTH(fpdate)+(A700-1)*months_per_period+1,0),DATE(YEAR(fpdate),MONTH(fpdate)+(A700-1)*months_per_period,DAY(fpdate)))))) ->  | C700: =IF(A700="","",IF(roundOpt,IF(OR(A700=nper,payment>ROUND((1+rate)*H699,2)),ROUND((1+rate)*H699,2),payment),IF(OR(A700=nper,payment>(1+rate)*H699),(1+rate)*H699,payment))) ->  | F700: =IF(A700="","",IF(AND(A700=1,pmtType=1),0,IF(roundOpt,ROUND(rate*H699,2),rate*H699))) ->  | G700: =IF(A700="","",C700-F700+D700) ->  | H700: =IF(A700="","",H699-G700) -> 
A764: =IF(H763="","",IF(roundOpt,IF(OR(A763>=nper,ROUND(H763,2)<=0),"",A763+1),IF(OR(A763>=nper,H763<=0),"",A763+1))) ->  | B764: =IF(A764="","",IF(OR(periods_per_year=26,periods_per_year=52),IF(periods_per_year=26,IF(A764=1,fpdate,B763+14),IF(periods_per_year=52,IF(A764=1,fpdate,B763+7),"n/a")),IF(periods_per_year=24,DATE(YEAR(fpdate),MONTH(fpdate)+(A764-1)/2+IF(AND(DAY(fpdate)>=15,MOD(A764,2)=0),1,0),IF(MOD(A764,2)=0,IF(DAY(fpdate)>=15,DAY(fpdate)-14,DAY(fpdate)+14),DAY(fpdate))),IF(DAY(DATE(YEAR(fpdate),MONTH(fpdate)+(A764-1)*months_per_period,DAY(fpdate)))<>DAY(fpdate),DATE(YEAR(fpdate),MONTH(fpdate)+(A764-1)*months_per_period+1,0),DATE(YEAR(fpdate),MONTH(fpdate)+(A764-1)*months_per_period,DAY(fpdate)))))) ->  | C764: =IF(A764="","",IF(roundOpt,IF(OR(A764=nper,payment>ROUND((1+rate)*H763,2)),ROUND((1+rate)*H763,2),payment),IF(OR(A764=nper,payment>(1+rate)*H763),(1+rate)*H763,payment))) ->  | F764: =IF(A764="","",IF(AND(A764=1,pmtType=1),0,IF(roundOpt,ROUND(rate*H763,2),rate*H763))) ->  | G764: =IF(A764="","",C764-F764+D764) ->  | H764: =IF(A764="","",H763-G764) -> 
A828: =IF(H827="","",IF(roundOpt,IF(OR(A827>=nper,ROUND(H827,2)<=0),"",A827+1),IF(OR(A827>=nper,H827<=0),"",A827+1))) ->  | B828: =IF(A828="","",IF(OR(periods_per_year=26,periods_per_year=52),IF(periods_per_year=26,IF(A828=1,fpdate,B827+14),IF(periods_per_year=52,IF(A828=1,fpdate,B827+7),"n/a")),IF(periods_per_year=24,DATE(YEAR(fpdate),MONTH(fpdate)+(A828-1)/2+IF(AND(DAY(fpdate)>=15,MOD(A828,2)=0),1,0),IF(MOD(A828,2)=0,IF(DAY(fpdate)>=15,DAY(fpdate)-14,DAY(fpdate)+14),DAY(fpdate))),IF(DAY(DATE(YEAR(fpdate),MONTH(fpdate)+(A828-1)*months_per_period,DAY(fpdate)))<>DAY(fpdate),DATE(YEAR(fpdate),MONTH(fpdate)+(A828-1)*months_per_period+1,0),DATE(YEAR(fpdate),MONTH(fpdate)+(A828-1)*months_per_period,DAY(fpdate)))))) ->  | C828: =IF(A828="","",IF(roundOpt,IF(OR(A828=nper,payment>ROUND((1+rate)*H827,2)),ROUND((1+rate)*H827,2),payment),IF(OR(A828=nper,payment>(1+rate)*H827),(1+rate)*H827,payment))) ->  | F828: =IF(A828="","",IF(AND(A828=1,pmtType=1),0,IF(roundOpt,ROUND(rate*H827,2),rate*H827))) ->  | G828: =IF(A828="","",C828-F828+D828) ->  | H828: =IF(A828="","",H827-G828) -> 
D840: End

Sheet Amortisation Schedule_Exist HL1 (hidden)
A1: Loan Amortisation Schedule : Exising Loan (Buffer %)
A4: Loan Information | F4: Summary | K4: Frequency
C5: Loan Amount | D5: ='Loan Serviceability Calculator'!E110 -> 0 | G5: Rate (per period) | H5: =IF(D9=D10,D6/D14,((1+D6/D14)^(D14/D13))-1) -> 0.0025 | K5: Annual
C6: Annual Interest Rate | D6: ='Loan Serviceability Calculator'!G110+BufferRate -> 0.03 | G6: Total Payments | H6: =SUM(F60:F839)+SUM(G60:G839) -> 0 | K6: Semi-Annual
C7: Term of Loan in Years | D7: ='Loan Serviceability Calculator'!F110/12 -> 0 | G7: Total Interest | H7: =SUM(F59:F839) -> 0 | K7: Quarterly
C8: First Payment Date | D8: =NOW() -> 2025-06-06T10:00:07.580 | G8: Est. Interest Savings | H8: =IF(AND(SUM(D60:D839)=0,roundOpt)," - ",(nper*(-PMT(rate,nper,loan_amount,,pmtType))-loan_amount)-H7) -> - | K8: Bi-Monthly
C9: Payment Frequency | D9: Monthly | H9: =IF(AND(NOT(H839=""),H839>0.004),"ERROR: Limit is "&OFFSET(A840,-1,0,1,1)&" payments",".") -> . | K9: Monthly
C10: Compound Period | D10: =D9 -> Monthly | H10: =IF(D14>D13,"Warning: negative amortization",".") -> . | K10: Semi-Monthly
C11: Payment Type | D11: End of Period | K11: Bi-Weekly
C12: Rounding | D12: On | K12: Weekly
C13: Periods Per Year | D13: =INDEX({1;2;4;6;12;24;26;52},MATCH('Amortisation Schedule_Exist HL1'!$D$9,$K$5:$K$12,0)) -> 12
C14: Compound Period | D14: =INDEX({1;2;4;6;12;24;26;52},MATCH('Amortisation Schedule_Exist HL1'!$D$10,$K$5:$K$12,0)) -> 12
C15: Payment Type | D15: =IF('Amortisation Schedule_Exist HL1'!$D$11="End of Period",0,1) -> 0
C16: Months Per Period | D16: =12/$D$13 -> 1
C17: Number of Periods | D17: =$D$7*$D$13 -> 0
C18: Rounding Option | D18: =(D12="On") -> TRUE
H19: [42]
C20: =D9&" Payment" -> Monthly Payment | D20: =IF(roundOpt,ROUND(-PMT(rate,nper,$D$5,,pmtType),2),-PMT(rate,nper,$D$5,,pmtType)) -> 
A22: Yearly Summary
B23: Year | C23: Payments | D23: Additional Payments | F23: Interest Paid | G23: Principal Paid | H23: Year-End Balance
H24: =loan_amount -> 0
B25: =YEAR(fpdate) -> 2025 | C25: =SUMIF($B$59:$B$840,"<="&DATE($B25,12,31),$C$59:$C$840)-SUM(C$24:C24) -> 0 | D25: =SUMIF($B$59:$B$840,"<="&DATE($B25,12,31),$D$59:$D$840)-SUM(D$24:D24) -> 0 | F25: =SUMIF($B$59:$B$840,"<="&DATE($B25,12,31),$F$59:$F$840)-SUM(F$24:F24) -> 0 | G25: =SUMIF($B$59:$B$840,"<="&DATE($B25,12,31),$G$59:$G$840)-SUM(G$24:G24) -> 0 | H25: =H24-G25 -> 0
B26: =B25+1 -> 2026 | C26: =SUMIF($B$59:$B$840,"<="&DATE($B26,12,31),$C$59:$C$840)-SUM(C$24:C25) -> 0 | D26: =SUMIF($B$59:$B$840,"<="&DATE($B26,12,31),$D$59:$D$840)-SUM(D$24:D25) -> 0 | F26: =SUMIF($B$59:$B$840,"<="&DATE($B26,12,31),$F$59:$F$840)-SUM(F$24:F25) -> 0 | G26: =SUMIF($B$59:$B$840,"<="&DATE($B26,12,31),$G$59:$G$840)-SUM(G$24:G25) -> 0 | H26: =H25-G26 -> 0
B27: =B26+1 -> 2027 | C27: =SUMIF($B$59:$B$840,"<="&DATE($B27,12,31),$C$59:$C$840)-SUM(C$24:C26) -> 0 | D27: =SUMIF($B$59:$B$840,"<="&DATE($B27,12,31),$D$59:$D$840)-SUM(D$24:D26) -> 0 | F27: =SUMIF($B$59:$B$840,"<="&DATE($B27,12,31),$F$59:$F$840)-SUM(F$24:F26) -> 0 | G27: =SUMIF($B$59:$B$840,"<="&DATE($B27,12,31),$G$59:$G$840)-SUM(G$24:G26) -> 0 | H27: =H26-G27 -> 0
B28: =B27+1 -> 2028 | C28: =SUMIF($B$59:$B$840,"<="&DATE($B28,12,31),$C$59:$C$840)-SUM(C$24:C27) -> 0 | D28: =SUMIF($B$59:$B$840,"<="&DATE($B28,12,31),$D$59:$D$840)-SUM(D$24:D27) -> 0 | F28: =SUMIF($B$59:$B$840,"<="&DATE($B28,12,31),$F$59:$F$840)-SUM(F$24:F27) -> 0 | G28: =SUMIF($B$59:$B$840,"<="&DATE($B28,12,31),$G$59:$G$840)-SUM(G$24:G27) -> 0 | H28: =H27-G28 -> 0
B29: =B28+1 -> 2029 | C29: =SUMIF($B$59:$B$840,"<="&DATE($B29,12,31),$C$59:$C$840)-SUM(C$24:C28) -> 0 | D29: =SUMIF($B$59:$B$840,"<="&DATE($B29,12,31),$D$59:$D$840)-SUM(D$24:D28) -> 0 | F29: =SUMIF($B$59:$B$840,"<="&DATE($B29,12,31),$F$59:$F$840)-SUM(F$24:F28) -> 0 | G29: =SUMIF($B$59:$B$840,"<="&DATE($B29,12,31),$G$59:$G$840)-SUM(G$24:G28) -> 0 | H29: =H28-G29 -> 0
B30: 2030 | C30: =SUMIF($B$59:$B$840,"<="&DATE($B30,12,31),$C$59:$C$840)-SUM(C$24:C29) -> 0 | D30: =SUMIF($B$59:$B$840,"<="&DATE($B30,12,31),$D$59:$D$840)-SUM(D$24:D29) -> 0 | F30: =SUMIF($B$59:$B$840,"<="&DATE($B30,12,31),$F$59:$F$840)-SUM(F$24:F29) -> 0 | G30: =SUMIF($B$59:$B$840,"<="&DATE($B30,12,31),$G$59:$G$840)-SUM(G$24:G29) -> 0 | H30: 0
B31: 2031 | C31: =SUMIF($B$59:$B$840,"<="&DATE($B31,12,31),$C$59:$C$840)-SUM(C$24:C30) -> 0 | D31: =SUMIF($B$59:$B$840,"<="&DATE($B31,12,31),$D$59:$D$840)-SUM(D$24:D30) -> 0 | F31: =SUMIF($B$59:$B$840,"<="&DATE($B31,12,31),$F$59:$F$840)-SUM(F$24:F30) -> 0 | G31: =SUMIF($B$59:$B$840,"<="&DATE($B31,12,31),$G$59:$G$840)-SUM(G$24:G30) -> 0 | H31: 0
B32: 2032 | C32: =SUMIF($B$59:$B$840,"<="&DATE($B32,12,31),$C$59:$C$840)-SUM(C$24:C31) -> 0 | D32: =SUMIF($B$59:$B$840,"<="&DATE($B32,12,31),$D$59:$D$840)-SUM(D$24:D31) -> 0 | F32: =SUMIF($B$59:$B$840,"<="&DATE($B32,12,31),$F$59:$F$840)-SUM(F$24:F31) -> 0 | G32: =SUMIF($B$59:$B$840,"<="&DATE($B32,12,31),$G$59:$G$840)-SUM(G$24:G31) -> 0 | H32: 0
B33: 2033 | C33: =SUMIF($B$59:$B$840,"<="&DATE($B33,12,31),$C$59:$C$840)-SUM(C$24:C32) -> 0 | D33: =SUMIF($B$59:$B$840,"<="&DATE($B33,12,31),$D$59:$D$840)-SUM(D$24:D32) -> 0 | F33: =SUMIF($B$59:$B$840,"<="&DATE($B33,12,31),$F$59:$F$840)-SUM(F$24:F32) -> 0 | G33: =SUMIF($B$59:$B$840,"<="&DATE($B33,12,31),$G$59:$G$840)-SUM(G$24:G32) -> 0 | H33: 0
B34: 2034 | C34: =SUMIF($B$59:$B$840,"<="&DATE($B34,12,31),$C$59:$C$840)-SUM(C$24:C33) -> 0 | D34: =SUMIF($B$59:$B$840,"<="&DATE($B34,12,31),$D$59:$D$840)-SUM(D$24:D33) -> 0 | F34: =SUMIF($B$59:$B$840,"<="&DATE($B34,12,31),$F$59:$F$840)-SUM(F$24:F33) -> 0 | G34: =SUMIF($B$59:$B$840,"<="&DATE($B34,12,31),$G$59:$G$840)-SUM(G$24:G33) -> 0 | H34: 0
B35: 2035 | C35: =SUMIF($B$59:$B$840,"<="&DATE($B35,12,31),$C$59:$C$840)-SUM(C$24:C34) -> 0 | D35: =SUMIF($B$59:$B$840,"<="&DATE($B35,12,31),$D$59:$D$840)-SUM(D$24:D34) -> 0 | F35: =SUMIF($B$59:$B$840,"<="&DATE($B35,12,31),$F$59:$F$840)-SUM(F$24:F34) -> 0 | G35: =SUMIF($B$59:$B$840,"<="&DATE($B35,12,31),$G$59:$G$840)-SUM(G$24:G34) -> 0 | H35: 0
B36: 2036 | C36: =SUMIF($B$59:$B$840,"<="&DATE($B36,12,31),$C$59:$C$840)-SUM(C$24:C35) -> 0 | D36: =SUMIF($B$59:$B$840,"<="&DATE($B36,12,31),$D$59:$D$840)-SUM(D$24:D35) -> 0 | F36: =SUMIF($B$59:$B$840,"<="&DATE($B36,12,31),$F$59:$F$840)-SUM(F$24:F35) -> 0 | G36: =SUMIF($B$59:$B$840,"<="&DATE($B36,12,31),$G$59:$G$840)-SUM(G$24:G35) -> 0 | H36: 0
B37: 2037 | C37: =SUMIF($B$59:$B$840,"<="&DATE($B37,12,31),$C$59:$C$840)-SUM(C$24:C36) -> 0 | D37: =SUMIF($B$59:$B$840,"<="&DATE($B37,12,31),$D$59:$D$840)-SUM(D$24:D36) -> 0 | F37: =SUMIF($B$59:$B$840,"<="&DATE($B37,12,31),$F$59:$F$840)-SUM(F$24:F36) -> 0 | G37: =SUMIF($B$59:$B$840,"<="&DATE($B37,12,31),$G$59:$G$840)-SUM(G$24:G36) -> 0 | H37: 0
B38: 2038 | C38: =SUMIF($B$59:$B$840,"<="&DATE($B38,12,31),$C$59:$C$840)-SUM(C$24:C37) -> 0 | D38: =SUMIF($B$59:$B$840,"<="&DATE($B38,12,31),$D$59:$D$840)-SUM(D$24:D37) -> 0 | F38: =SUMIF($B$59:$B$840,"<="&DATE($B38,12,31),$F$59:$F$840)-SUM(F$24:F37) -> 0 | G38: =SUMIF($B$59:$B$840,"<="&DATE($B38,12,31),$G$59:$G$840)-SUM(G$24:G37) -> 0 | H38: 0
B39: 2039 | C39: =SUMIF($B$59:$B$840,"<="&DATE($B39,12,31),$C$59:$C$840)-SUM(C$24:C38) -> 0 | D39: =SUMIF($B$59:$B$840,"<="&DATE($B39,12,31),$D$59:$D$840)-SUM(D$24:D38) -> 0 | F39: =SUMIF($B$59:$B$840,"<="&DATE($B39,12,31),$F$59:$F$840)-SUM(F$24:F38) -> 0 | G39: =SUMIF($B$59:$B$840,"<="&DATE($B39,12,31),$G$59:$G$840)-SUM(G$24:G38) -> 0 | H39: 0
B40: 2040 | C40: =SUMIF($B$59:$B$840,"<="&DATE($B40,12,31),$C$59:$C$840)-SUM(C$24:C39) -> 0 | D40: =SUMIF($B$59:$B$840,"<="&DATE($B40,12,31),$D$59:$D$840)-SUM(D$24:D39) -> 0 | F40: =SUMIF($B$59:$B$840,"<="&DATE($B40,12,31),$F$59:$F$840)-SUM(F$24:F39) -> 0 | G40: =SUMIF($B$59:$B$840,"<="&DATE($B40,12,31),$G$59:$G$840)-SUM(G$24:G39) -> 0 | H40: 0
B41: 2041 | C41: =SUMIF($B$59:$B$840,"<="&DATE($B41,12,31),$C$59:$C$840)-SUM(C$24:C40) -> 0 | D41: =SUMIF($B$59:$B$840,"<="&DATE($B41,12,31),$D$59:$D$840)-SUM(D$24:D40) -> 0 | F41: =SUMIF($B$59:$B$840,"<="&DATE($B41,12,31),$F$59:$F$840)-SUM(F$24:F40) -> 0 | G41: =SUMIF($B$59:$B$840,"<="&DATE($B41,12,31),$G$59:$G$840)-SUM(G$24:G40) -> 0 | H41: 0
B42: 2042 | C42: =SUMIF($B$59:$B$840,"<="&DATE($B42,12,31),$C$59:$C$840)-SUM(C$24:C41) -> 0 | D42: =SUMIF($B$59:$B$840,"<="&DATE($B42,12,31),$D$59:$D$840)-SUM(D$24:D41) -> 0 | F42: =SUMIF($B$59:$B$840,"<="&DATE($B42,12,31),$F$59:$F$840)-SUM(F$24:F41) -> 0 | G42: =SUMIF($B$59:$B$840,"<="&DATE($B42,12,31),$G$59:$G$840)-SUM(G$24:G41) -> 0 | H42: 0
B43: 2043 | C43: =SUMIF($B$59:$B$840,"<="&DATE($B43,12,31),$C$59:$C$840)-SUM(C$24:C42) -> 0 | D43: =SUMIF($B$59:$B$840,"<="&DATE($B43,12,31),$D$59:$D$840)-SUM(D$24:D42) -> 0 | F43: =SUMIF($B$59:$B$840,"<="&DATE($B43,12,31),$F$59:$F$840)-SUM(F$24:F42) -> 0 | G43: =SUMIF($B$59:$B$840,"<="&DATE($B43,12,31),$G$59:$G$840)-SUM(G$24:G42) -> 0 | H43: 0
B44: 2044 | C44: =SUMIF($B$59:$B$840,"<="&DATE($B44,12,31),$C$59:$C$840)-SUM(C$24:C43) -> 0 | D44: =SUMIF($B$59:$B$840,"<="&DATE($B44,12,31),$D$59:$D$840)-SUM(D$24:D43) -> 0 | F44: =SUMIF($B$59:$B$840,"<="&DATE($B44,12,31),$F$59:$F$840)-SUM(F$24:F43) -> 0 | G44: =SUMIF($B$59:$B$840,"<="&DATE($B44,12,31),$G$59:$G$840)-SUM(G$24:G43) -> 0 | H44: 0
B45: 2045 | C45: =SUMIF($B$59:$B$840,"<="&DATE($B45,12,31),$C$59:$C$840)-SUM(C$24:C44) -> 0 | D45: =SUMIF($B$59:$B$840,"<="&DATE($B45,12,31),$D$59:$D$840)-SUM(D$24:D44) -> 0 | F45: =SUMIF($B$59:$B$840,"<="&DATE($B45,12,31),$F$59:$F$840)-SUM(F$24:F44) -> 0 | G45: =SUMIF($B$59:$B$840,"<="&DATE($B45,12,31),$G$59:$G$840)-SUM(G$24:G44) -> 0 | H45: 0
B46: 2046 | C46: =SUMIF($B$59:$B$840,"<="&DATE($B46,12,31),$C$59:$C$840)-SUM(C$24:C45) -> 0 | D46: =SUMIF($B$59:$B$840,"<="&DATE($B46,12,31),$D$59:$D$840)-SUM(D$24:D45) -> 0 | F46: =SUMIF($B$59:$B$840,"<="&DATE($B46,12,31),$F$59:$F$840)-SUM(F$24:F45) -> 0 | G46: =SUMIF($B$59:$B$840,"<="&DATE($B46,12,31),$G$59:$G$840)-SUM(G$24:G45) -> 0 | H46: 0
B47: 2047 | C47: =SUMIF($B$59:$B$840,"<="&DATE($B47,12,31),$C$59:$C$840)-SUM(C$24:C46) -> 0 | D47: =SUMIF($B$59:$B$840,"<="&DATE($B47,12,31),$D$59:$D$840)-SUM(D$24:D46) -> 0 | F47: =SUMIF($B$59:$B$840,"<="&DATE($B47,12,31),$F$59:$F$840)-SUM(F$24:F46) -> 0 | G47: =SUMIF($B$59:$B$840,"<="&DATE($B47,12,31),$G$59:$G$840)-SUM(G$24:G46) -> 0 | H47: 0
B48: 2048 | C48: =SUMIF($B$59:$B$840,"<="&DATE($B48,12,31),$C$59:$C$840)-SUM(C$24:C47) -> 0 | D48: =SUMIF($B$59:$B$840,"<="&DATE($B48,12,31),$D$59:$D$840)-SUM(D$24:D47) -> 0 | F48: =SUMIF($B$59:$B$840,"<="&DATE($B48,12,31),$F$59:$F$840)-SUM(F$24:F47) -> 0 | G48: =SUMIF($B$59:$B$840,"<="&DATE($B48,12,31),$G$59:$G$840)-SUM(G$24:G47) -> 0 | H48: 0
B49: 2049 | C49: =SUMIF($B$59:$B$840,"<="&DATE($B49,12,31),$C$59:$C$840)-SUM(C$24:C48) -> 0 | D49: =SUMIF($B$59:$B$840,"<="&DATE($B49,12,31),$D$59:$D$840)-SUM(D$24:D48) -> 0 | F49: =SUMIF($B$59:$B$840,"<="&DATE($B49,12,31),$F$59:$F$840)-SUM(F$24:F48) -> 0 | G49: =SUMIF($B$59:$B$840,"<="&DATE($B49,12,31),$G$59:$G$840)-SUM(G$24:G48) -> 0 | H49: 0
B50: 2050 | C50: =SUMIF($B$59:$B$840,"<="&DATE($B50,12,31),$C$59:$C$840)-SUM(C$24:C49) -> 0 | D50: =SUMIF($B$59:$B$840,"<="&DATE($B50,12,31),$D$59:$D$840)-SUM(D$24:D49) -> 0 | F50: =SUMIF($B$59:$B$840,"<="&DATE($B50,12,31),$F$59:$F$840)-SUM(F$24:F49) -> 0 | G50: =SUMIF($B$59:$B$840,"<="&DATE($B50,12,31),$G$59:$G$840)-SUM(G$24:G49) -> 0 | H50: 0
B51: 2051 | C51: =SUMIF($B$59:$B$840,"<="&DATE($B51,12,31),$C$59:$C$840)-SUM(C$24:C50) -> 0 | D51: =SUMIF($B$59:$B$840,"<="&DATE($B51,12,31),$D$59:$D$840)-SUM(D$24:D50) -> 0 | F51: =SUMIF($B$59:$B$840,"<="&DATE($B51,12,31),$F$59:$F$840)-SUM(F$24:F50) -> 0 | G51: =SUMIF($B$59:$B$840,"<="&DATE($B51,12,31),$G$59:$G$840)-SUM(G$24:G50) -> 0 | H51: 0
B52: 2052 | C52: =SUMIF($B$59:$B$840,"<="&DATE($B52,12,31),$C$59:$C$840)-SUM(C$24:C51) -> 0 | D52: =SUMIF($B$59:$B$840,"<="&DATE($B52,12,31),$D$59:$D$840)-SUM(D$24:D51) -> 0 | F52: =SUMIF($B$59:$B$840,"<="&DATE($B52,12,31),$F$59:$F$840)-SUM(F$24:F51) -> 0 | G52: =SUMIF($B$59:$B$840,"<="&DATE($B52,12,31),$G$59:$G$840)-SUM(G$24:G51) -> 0 | H52: 0
B53: 2053 | C53: =SUMIF($B$59:$B$840,"<="&DATE($B53,12,31),$C$59:$C$840)-SUM(C$24:C52) -> 0 | D53: =SUMIF($B$59:$B$840,"<="&DATE($B53,12,31),$D$59:$D$840)-SUM(D$24:D52) -> 0 | F53: =SUMIF($B$59:$B$840,"<="&DATE($B53,12,31),$F$59:$F$840)-SUM(F$24:F52) -> 0 | G53: =SUMIF($B$59:$B$840,"<="&DATE($B53,12,31),$G$59:$G$840)-SUM(G$24:G52) -> 0 | H53: 0
B54: 2054 | C54: =SUMIF($B$59:$B$840,"<="&DATE($B54,12,31),$C$59:$C$840)-SUM(C$24:C53) -> 0 | D54: =SUMIF($B$59:$B$840,"<="&DATE($B54,12,31),$D$59:$D$840)-SUM(D$24:D53) -> 0 | F54: =SUMIF($B$59:$B$840,"<="&DATE($B54,12,31),$F$59:$F$840)-SUM(F$24:F53) -> 0 | G54: =SUMIF($B$59:$B$840,"<="&DATE($B54,12,31),$G$59:$G$840)-SUM(G$24:G53) -> 0 | H54: 0
B55: 2055 | C55: =SUMIF($B$59:$B$840,"<="&DATE($B55,12,31),$C$59:$C$840)-SUM(C$24:C54) -> 0 | D55: =SUMIF($B$59:$B$840,"<="&DATE($B55,12,31),$D$59:$D$840)-SUM(D$24:D54) -> 0 | F55: =SUMIF($B$59:$B$840,"<="&DATE($B55,12,31),$F$59:$F$840)-SUM(F$24:F54) -> 0 | G55: =SUMIF($B$59:$B$840,"<="&DATE($B55,12,31),$G$59:$G$840)-SUM(G$24:G54) -> 0 | H55: 0
A57: Amortisation Schedule
A58: No. | B58: Due Date | C58: Payment Due | D58: Additional Payment | F58: Interest | G58: Principal | H58: Balance
H59: =$D$5 -> 0
A60: =IF(H59="","",IF(roundOpt,IF(OR(A59>=nper,ROUND(H59,2)<=0),"",A59+1),IF(OR(A59>=nper,H59<=0),"",A59+1))) ->  | B60: =IF(A60="","",IF(OR(periods_per_year=26,periods_per_year=52),IF(periods_per_year=26,IF(A60=1,fpdate,B59+14),IF(periods_per_year=52,IF(A60=1,fpdate,B59+7),"n/a")),IF(periods_per_year=24,DATE(YEAR(fpdate),MONTH(fpdate)+(A60-1)/2+IF(AND(DAY(fpdate)>=15,MOD(A60,2)=0),1,0),IF(MOD(A60,2)=0,IF(DAY(fpdate)>=15,DAY(fpdate)-14,DAY(fpdate)+14),DAY(fpdate))),IF(DAY(DATE(YEAR(fpdate),MONTH(fpdate)+(A60-1)*months_per_period,DAY(fpdate)))<>DAY(fpdate),DATE(YEAR(fpdate),MONTH(fpdate)+(A60-1)*months_per_period+1,0),DATE(YEAR(fpdate),MONTH(fpdate)+(A60-1)*months_per_period,DAY(fpdate)))))) ->  | C60: =IF(A60="","",IF(roundOpt,IF(OR(A60=nper,payment>ROUND((1+rate)*H59,2)),ROUND((1+rate)*H59,2),payment),IF(OR(A60=nper,payment>(1+rate)*H59),(1+rate)*H59,payment))) ->  | F60: =IF(A60="","",IF(AND(A60=1,pmtType=1),0,IF(roundOpt,ROUND(rate*H59,2),rate*H59))) ->  | G60: =IF(A60="","",C60-F60+D60) ->  | H60: =IF(A60="","",H59-G60) -> 
A124: =IF(H123="","",IF(roundOpt,IF(OR(A123>=nper,ROUND(H123,2)<=0),"",A123+1),IF(OR(A123>=nper,H123<=0),"",A123+1))) ->  | B124: =IF(A124="","",IF(OR(periods_per_year=26,periods_per_year=52),IF(periods_per_year=26,IF(A124=1,fpdate,B123+14),IF(periods_per_year=52,IF(A124=1,fpdate,B123+7),"n/a")),IF(periods_per_year=24,DATE(YEAR(fpdate),MONTH(fpdate)+(A124-1)/2+IF(AND(DAY(fpdate)>=15,MOD(A124,2)=0),1,0),IF(MOD(A124,2)=0,IF(DAY(fpdate)>=15,DAY(fpdate)-14,DAY(fpdate)+14),DAY(fpdate))),IF(DAY(DATE(YEAR(fpdate),MONTH(fpdate)+(A124-1)*months_per_period,DAY(fpdate)))<>DAY(fpdate),DATE(YEAR(fpdate),MONTH(fpdate)+(A124-1)*months_per_period+1,0),DATE(YEAR(fpdate),MONTH(fpdate)+(A124-1)*months_per_period,DAY(fpdate)))))) ->  | C124: =IF(A124="","",IF(roundOpt,IF(OR(A124=nper,payment>ROUND((1+rate)*H123,2)),ROUND((1+rate)*H123,2),payment),IF(OR(A124=nper,payment>(1+rate)*H123),(1+rate)*H123,payment))) ->  | F124: =IF(A124="","",IF(AND(A124=1,pmtType=1),0,IF(roundOpt,ROUND(rate*H123,2),rate*H123))) ->  | G124: =IF(A124="","",C124-F124+D124) ->  | H124: =IF(A124="","",H123-G124) -> 
A188: =IF(H187="","",IF(roundOpt,IF(OR(A187>=nper,ROUND(H187,2)<=0),"",A187+1),IF(OR(A187>=nper,H187<=0),"",A187+1))) ->  | B188: =IF(A188="","",IF(OR(periods_per_year=26,periods_per_year=52),IF(periods_per_year=26,IF(A188=1,fpdate,B187+14),IF(periods_per_year=52,IF(A188=1,fpdate,B187+7),"n/a")),IF(periods_per_year=24,DATE(YEAR(fpdate),MONTH(fpdate)+(A188-1)/2+IF(AND(DAY(fpdate)>=15,MOD(A188,2)=0),1,0),IF(MOD(A188,2)=0,IF(DAY(fpdate)>=15,DAY(fpdate)-14,DAY(fpdate)+14),DAY(fpdate))),IF(DAY(DATE(YEAR(fpdate),MONTH(fpdate)+(A188-1)*months_per_period,DAY(fpdate)))<>DAY(fpdate),DATE(YEAR(fpdate),MONTH(fpdate)+(A188-1)*months_per_period+1,0),DATE(YEAR(fpdate),MONTH(fpdate)+(A188-1)*months_per_period,DAY(fpdate)))))) ->  | C188: =IF(A188="","",IF(roundOpt,IF(OR(A188=nper,payment>ROUND((1+rate)*H187,2)),ROUND((1+rate)*H187,2),payment),IF(OR(A188=nper,payment>(1+rate)*H187),(1+rate)*H187,payment))) ->  | F188: =IF(A188="","",IF(AND(A188=1,pmtType=1),0,IF(roundOpt,ROUND(rate*H187,2),rate*H187))) ->  | G188: =IF(A188="","",C188-F188+D188) ->  | H188: =IF(A188="","",H187-G188) -> 
A252: =IF(H251="","",IF(roundOpt,IF(OR(A251>=nper,ROUND(H251,2)<=0),"",A251+1),IF(OR(A251>=nper,H251<=0),"",A251+1))) ->  | B252: =IF(A252="","",IF(OR(periods_per_year=26,periods_per_year=52),IF(periods_per_year=26,IF(A252=1,fpdate,B251+14),IF(periods_per_year=52,IF(A252=1,fpdate,B251+7),"n/a")),IF(periods_per_year=24,DATE(YEAR(fpdate),MONTH(fpdate)+(A252-1)/2+IF(AND(DAY(fpdate)>=15,MOD(A252,2)=0),1,0),IF(MOD(A252,2)=0,IF(DAY(fpdate)>=15,DAY(fpdate)-14,DAY(fpdate)+14),DAY(fpdate))),IF(DAY(DATE(YEAR(fpdate),MONTH(fpdate)+(A252-1)*months_per_period,DAY(fpdate)))<>DAY(fpdate),DATE(YEAR(fpdate),MONTH(fpdate)+(A252-1)*months_per_period+1,0),DATE(YEAR(fpdate),MONTH(fpdate)+(A252-1)*months_per_period,DAY(fpdate)))))) ->  | C252: =IF(A252="","",IF(roundOpt,IF(OR(A252=nper,payment>ROUND((1+rate)*H251,2)),ROUND((1+rate)*H251,2),payment),IF(OR(A252=nper,payment>(1+rate)*H251),(1+rate)*H251,payment))) ->  | F252: =IF(A252="","",IF(AND(A252=1,pmtType=1),0,IF(roundOpt,ROUND(rate*H251,2),rate*H251))) ->  | G252: =IF(A252="","",C252-F252+D252) ->  | H252: =IF(A252="","",H251-G252) -> 
A316: =IF(H315="","",IF(roundOpt,IF(OR(A315>=nper,ROUND(H315,2)<=0),"",A315+1),IF(OR(A315>=nper,H315<=0),"",A315+1))) ->  | B316: =IF(A316="","",IF(OR(periods_per_year=26,periods_per_year=52),IF(periods_per_year=26,IF(A316=1,fpdate,B315+14),IF(periods_per_year=52,IF(A316=1,fpdate,B315+7),"n/a")),IF(periods_per_year=24,DATE(YEAR(fpdate),MONTH(fpdate)+(A316-1)/2+IF(AND(DAY(fpdate)>=15,MOD(A316,2)=0),1,0),IF(MOD(A316,2)=0,IF(DAY(fpdate)>=15,DAY(fpdate)-14,DAY(fpdate)+14),DAY(fpdate))),IF(DAY(DATE(YEAR(fpdate),MONTH(fpdate)+(A316-1)*months_per_period,DAY(fpdate)))<>DAY(fpdate),DATE(YEAR(fpdate),MONTH(fpdate)+(A316-1)*months_per_period+1,0),DATE(YEAR(fpdate),MONTH(fpdate)+(A316-1)*months_per_period,DAY(fpdate)))))) ->  | C316: =IF(A316="","",IF(roundOpt,IF(OR(A316=nper,payment>ROUND((1+rate)*H315,2)),ROUND((1+rate)*H315,2),payment),IF(OR(A316=nper,payment>(1+rate)*H315),(1+rate)*H315,payment))) ->  | F316: =IF(A316="","",IF(AND(A316=1,pmtType=1),0,IF(roundOpt,ROUND(rate*H315,2),rate*H315))) ->  | G316: =IF(A316="","",C316-F316+D316) ->  | H316: =IF(A316="","",H315-G316) -> 
A380: =IF(H379="","",IF(roundOpt,IF(OR(A379>=nper,ROUND(H379,2)<=0),"",A379+1),IF(OR(A379>=nper,H379<=0),"",A379+1))) ->  | B380: =IF(A380="","",IF(OR(periods_per_year=26,periods_per_year=52),IF(periods_per_year=26,IF(A380=1,fpdate,B379+14),IF(periods_per_year=52,IF(A380=1,fpdate,B379+7),"n/a")),IF(periods_per_year=24,DATE(YEAR(fpdate),MONTH(fpdate)+(A380-1)/2+IF(AND(DAY(fpdate)>=15,MOD(A380,2)=0),1,0),IF(MOD(A380,2)=0,IF(DAY(fpdate)>=15,DAY(fpdate)-14,DAY(fpdate)+14),DAY(fpdate))),IF(DAY(DATE(YEAR(fpdate),MONTH(fpdate)+(A380-1)*months_per_period,DAY(fpdate)))<>DAY(fpdate),DATE(YEAR(fpdate),MONTH(fpdate)+(A380-1)*months_per_period+1,0),DATE(YEAR(fpdate),MONTH(fpdate)+(A380-1)*months_per_period,DAY(fpdate)))))) ->  | C380: =IF(A380="","",IF(roundOpt,IF(OR(A380=nper,payment>ROUND((1+rate)*H379,2)),ROUND((1+rate)*H379,2),payment),IF(OR(A380=nper,payment>(1+rate)*H379),(1+rate)*H379,payment))) ->  | F380: =IF(A380="","",IF(AND(A380=1,pmtType=1),0,IF(roundOpt,ROUND(rate*H379,2),rate*H379))) ->  | G380: =IF(A380="","",C380-F380+D380) ->  | H380: =IF(A380="","",H379-G380) -> 
A444: =IF(H443="","",IF(roundOpt,IF(OR(A443>=nper,ROUND(H443,2)<=0),"",A443+1),IF(OR(A443>=nper,H443<=0),"",A443+1))) ->  | B444: =IF(A444="","",IF(OR(periods_per_year=26,periods_per_year=52),IF(periods_per_year=26,IF(A444=1,fpdate,B443+14),IF(periods_per_year=52,IF(A444=1,fpdate,B443+7),"n/a")),IF(periods_per_year=24,DATE(YEAR(fpdate),MONTH(fpdate)+(A444-1)/2+IF(AND(DAY(fpdate)>=15,MOD(A444,2)=0),1,0),IF(MOD(A444,2)=0,IF(DAY(fpdate)>=15,DAY(fpdate)-14,DAY(fpdate)+14),DAY(fpdate))),IF(DAY(DATE(YEAR(fpdate),MONTH(fpdate)+(A444-1)*months_per_period,DAY(fpdate)))<>DAY(fpdate),DATE(YEAR(fpdate),MONTH(fpdate)+(A444-1)*months_per_period+1,0),DATE(YEAR(fpdate),MONTH(fpdate)+(A444-1)*months_per_period,DAY(fpdate)))))) ->  | C444: =IF(A444="","",IF(roundOpt,IF(OR(A444=nper,payment>ROUND((1+rate)*H443,2)),ROUND((1+rate)*H443,2),payment),IF(OR(A444=nper,payment>(1+rate)*H443),(1+rate)*H443,payment))) ->  | F444: =IF(A444="","",IF(AND(A444=1,pmtType=1),0,IF(roundOpt,ROUND(rate*H443,2),rate*H443))) ->  | G444: =IF(A444="","",C444-F444+D444) ->  | H444: =IF(A444="","",H443-G444) -> 
A508: =IF(H507="","",IF(roundOpt,IF(OR(A507>=nper,ROUND(H507,2)<=0),"",A507+1),IF(OR(A507>=nper,H507<=0),"",A507+1))) ->  | B508: =IF(A508="","",IF(OR(periods_per_year=26,periods_per_year=52),IF(periods_per_year=26,IF(A508=1,fpdate,B507+14),IF(periods_per_year=52,IF(A508=1,fpdate,B507+7),"n/a")),IF(periods_per_year=24,DATE(YEAR(fpdate),MONTH(fpdate)+(A508-1)/2+IF(AND(DAY(fpdate)>=15,MOD(A508,2)=0),1,0),IF(MOD(A508,2)=0,IF(DAY(fpdate)>=15,DAY(fpdate)-14,DAY(fpdate)+14),DAY(fpdate))),IF(DAY(DATE(YEAR(fpdate),MONTH(fpdate)+(A508-1)*months_per_period,DAY(fpdate)))<>DAY(fpdate),DATE(YEAR(fpdate),MONTH(fpdate)+(A508-1)*months_per_period+1,0),DATE(YEAR(fpdate),MONTH(fpdate)+(A508-1)*months_per_period,DAY(fpdate)))))) ->  | C508: =IF(A508="","",IF(roundOpt,IF(OR(A508=nper,payment>ROUND((1+rate)*H507,2)),ROUND((1+rate)*H507,2),payment),IF(OR(A508=nper,payment>(1+rate)*H507),(1+rate)*H507,payment))) ->  | F508: =IF(A508="","",IF(AND(A508=1,pmtType=1),0,IF(roundOpt,ROUND(rate*H507,2),rate*H507))) ->  | G508: =IF(A508="","",C508-F508+D508) ->  | H508: =IF(A508="","",H507-G508) -> 
A572: =IF(H571="","",IF(roundOpt,IF(OR(A571>=nper,ROUND(H571,2)<=0),"",A571+1),IF(OR(A571>=nper,H571<=0),"",A571+1))) ->  | B572: =IF(A572="","",IF(OR(periods_per_year=26,periods_per_year=52),IF(periods_per_year=26,IF(A572=1,fpdate,B571+14),IF(periods_per_year=52,IF(A572=1,fpdate,B571+7),"n/a")),IF(periods_per_year=24,DATE(YEAR(fpdate),MONTH(fpdate)+(A572-1)/2+IF(AND(DAY(fpdate)>=15,MOD(A572,2)=0),1,0),IF(MOD(A572,2)=0,IF(DAY(fpdate)>=15,DAY(fpdate)-14,DAY(fpdate)+14),DAY(fpdate))),IF(DAY(DATE(YEAR(fpdate),MONTH(fpdate)+(A572-1)*months_per_period,DAY(fpdate)))<>DAY(fpdate),DATE(YEAR(fpdate),MONTH(fpdate)+(A572-1)*months_per_period+1,0),DATE(YEAR(fpdate),MONTH(fpdate)+(A572-1)*months_per_period,DAY(fpdate)))))) ->  | C572: =IF(A572="","",IF(roundOpt,IF(OR(A572=nper,payment>ROUND((1+rate)*H571,2)),ROUND((1+rate)*H571,2),payment),IF(OR(A572=nper,payment>(1+rate)*H571),(1+rate)*H571,payment))) ->  | F572: =IF(A572="","",IF(AND(A572=1,pmtType=1),0,IF(roundOpt,ROUND(rate*H571,2),rate*H571))) ->  | G572: =IF(A572="","",C572-F572+D572) ->  | H572: =IF(A572="","",H571-G572) -> 
A636: =IF(H635="","",IF(roundOpt,IF(OR(A635>=nper,ROUND(H635,2)<=0),"",A635+1),IF(OR(A635>=nper,H635<=0),"",A635+1))) ->  | B636: =IF(A636="","",IF(OR(periods_per_year=26,periods_per_year=52),IF(periods_per_year=26,IF(A636=1,fpdate,B635+14),IF(periods_per_year=52,IF(A636=1,fpdate,B635+7),"n/a")),IF(periods_per_year=24,DATE(YEAR(fpdate),MONTH(fpdate)+(A636-1)/2+IF(AND(DAY(fpdate)>=15,MOD(A636,2)=0),1,0),IF(MOD(A636,2)=0,IF(DAY(fpdate)>=15,DAY(fpdate)-14,DAY(fpdate)+14),DAY(fpdate))),IF(DAY(DATE(YEAR(fpdate),MONTH(fpdate)+(A636-1)*months_per_period,DAY(fpdate)))<>DAY(fpdate),DATE(YEAR(fpdate),MONTH(fpdate)+(A636-1)*months_per_period+1,0),DATE(YEAR(fpdate),MONTH(fpdate)+(A636-1)*months_per_period,DAY(fpdate)))))) ->  | C636: =IF(A636="","",IF(roundOpt,IF(OR(A636=nper,payment>ROUND((1+rate)*H635,2)),ROUND((1+rate)*H635,2),payment),IF(OR(A636=nper,payment>(1+rate)*H635),(1+rate)*H635,payment))) ->  | F636: =IF(A636="","",IF(AND(A636=1,pmtType=1),0,IF(roundOpt,ROUND(rate*H635,2),rate*H635))) ->  | G636: =IF(A636="","",C636-F636+D636) ->  | H636: =IF(A636="","",H635-G636) -> 
A700: =IF(H699="","",IF(roundOpt,IF(OR(A699>=nper,ROUND(H699,2)<=0),"",A699+1),IF(OR(A699>=nper,H699<=0),"",A699+1))) ->  | B700: =IF(A700="","",IF(OR(periods_per_year=26,periods_per_year=52),IF(periods_per_year=26,IF(A700=1,fpdate,B699+14),IF(periods_per_year=52,IF(A700=1,fpdate,B699+7),"n/a")),IF(periods_per_year=24,DATE(YEAR(fpdate),MONTH(fpdate)+(A700-1)/2+IF(AND(DAY(fpdate)>=15,MOD(A700,2)=0),1,0),IF(MOD(A700,2)=0,IF(DAY(fpdate)>=15,DAY(fpdate)-14,DAY(fpdate)+14),DAY(fpdate))),IF(DAY(DATE(YEAR(fpdate),MONTH(fpdate)+(A700-1)*months_per_period,DAY(fpdate)))<>DAY(fpdate),DATE(YEAR(fpdate),MONTH(fpdate)+(A700-1)*months_per_period+1,0),DATE(YEAR(fpdate),MONTH(fpdate)+(A700-1)*months_per_period,DAY(fpdate)))))) ->  | C700: =IF(A700="","",IF(roundOpt,IF(OR(A700=nper,payment>ROUND((1+rate)*H699,2)),ROUND((1+rate)*H699,2),payment),IF(OR(A700=nper,payment>(1+rate)*H699),(1+rate)*H699,payment))) ->  | F700: =IF(A700="","",IF(AND(A700=1,pmtType=1),0,IF(roundOpt,ROUND(rate*H699,2),rate*H699))) ->  | G700: =IF(A700="","",C700-F700+D700) ->  | H700: =IF(A700="","",H699-G700) -> 
A764: =IF(H763="","",IF(roundOpt,IF(OR(A763>=nper,ROUND(H763,2)<=0),"",A763+1),IF(OR(A763>=nper,H763<=0),"",A763+1))) ->  | B764: =IF(A764="","",IF(OR(periods_per_year=26,periods_per_year=52),IF(periods_per_year=26,IF(A764=1,fpdate,B763+14),IF(periods_per_year=52,IF(A764=1,fpdate,B763+7),"n/a")),IF(periods_per_year=24,DATE(YEAR(fpdate),MONTH(fpdate)+(A764-1)/2+IF(AND(DAY(fpdate)>=15,MOD(A764,2)=0),1,0),IF(MOD(A764,2)=0,IF(DAY(fpdate)>=15,DAY(fpdate)-14,DAY(fpdate)+14),DAY(fpdate))),IF(DAY(DATE(YEAR(fpdate),MONTH(fpdate)+(A764-1)*months_per_period,DAY(fpdate)))<>DAY(fpdate),DATE(YEAR(fpdate),MONTH(fpdate)+(A764-1)*months_per_period+1,0),DATE(YEAR(fpdate),MONTH(fpdate)+(A764-1)*months_per_period,DAY(fpdate)))))) ->  | C764: =IF(A764="","",IF(roundOpt,IF(OR(A764=nper,payment>ROUND((1+rate)*H763,2)),ROUND((1+rate)*H763,2),payment),IF(OR(A764=nper,payment>(1+rate)*H763),(1+rate)*H763,payment))) ->  | F764: =IF(A764="","",IF(AND(A764=1,pmtType=1),0,IF(roundOpt,ROUND(rate*H763,2),rate*H763))) ->  | G764: =IF(A764="","",C764-F764+D764) ->  | H764: =IF(A764="","",H763-G764) -> 
A828: =IF(H827="","",IF(roundOpt,IF(OR(A827>=nper,ROUND(H827,2)<=0),"",A827+1),IF(OR(A827>=nper,H827<=0),"",A827+1))) ->  | B828: =IF(A828="","",IF(OR(periods_per_year=26,periods_per_year=52),IF(periods_per_year=26,IF(A828=1,fpdate,B827+14),IF(periods_per_year=52,IF(A828=1,fpdate,B827+7),"n/a")),IF(periods_per_year=24,DATE(YEAR(fpdate),MONTH(fpdate)+(A828-1)/2+IF(AND(DAY(fpdate)>=15,MOD(A828,2)=0),1,0),IF(MOD(A828,2)=0,IF(DAY(fpdate)>=15,DAY(fpdate)-14,DAY(fpdate)+14),DAY(fpdate))),IF(DAY(DATE(YEAR(fpdate),MONTH(fpdate)+(A828-1)*months_per_period,DAY(fpdate)))<>DAY(fpdate),DATE(YEAR(fpdate),MONTH(fpdate)+(A828-1)*months_per_period+1,0),DATE(YEAR(fpdate),MONTH(fpdate)+(A828-1)*months_per_period,DAY(fpdate)))))) ->  | C828: =IF(A828="","",IF(roundOpt,IF(OR(A828=nper,payment>ROUND((1+rate)*H827,2)),ROUND((1+rate)*H827,2),payment),IF(OR(A828=nper,payment>(1+rate)*H827),(1+rate)*H827,payment))) ->  | F828: =IF(A828="","",IF(AND(A828=1,pmtType=1),0,IF(roundOpt,ROUND(rate*H827,2),rate*H827))) ->  | G828: =IF(A828="","",C828-F828+D828) ->  | H828: =IF(A828="","",H827-G828) -> 
D840: End

Sheet Amortisation Schedule_Exist HL2 (hidden)
A1: Loan Amortisation Schedule : Exising Loan (Buffer %)
A4: Loan Information | F4: Summary | K4: Frequency
C5: Loan Amount | D5: ='Loan Serviceability Calculator'!E111 -> 0 | G5: Rate (per period) | H5: =IF(D9=D10,D6/D14,((1+D6/D14)^(D14/D13))-1) -> 0.0025 | K5: Annual
C6: Annual Interest Rate | D6: ='Loan Serviceability Calculator'!G111+BufferRate -> 0.03 | G6: Total Payments | H6: =SUM(F60:F839)+SUM(G60:G839) -> 0 | K6: Semi-Annual
C7: Term of Loan in Years | D7: ='Loan Serviceability Calculator'!F111/12 -> 0 | G7: Total Interest | H7: =SUM(F59:F839) -> 0 | K7: Quarterly
C8: First Payment Date | D8: =NOW() -> 2025-06-06T10:00:07.580 | G8: Est. Interest Savings | H8: =IF(AND(SUM(D60:D839)=0,roundOpt)," - ",(nper*(-PMT(rate,nper,loan_amount,,pmtType))-loan_amount)-H7) -> - | K8: Bi-Monthly
C9: Payment Frequency | D9: Monthly | H9: =IF(AND(NOT(H839=""),H839>0.004),"ERROR: Limit is "&OFFSET(A840,-1,0,1,1)&" payments",".") -> . | K9: Monthly
C10: Compound Period | D10: =D9 -> Monthly | H10: =IF(D14>D13,"Warning: negative amortization",".") -> . | K10: Semi-Monthly
C11: Payment Type | D11: End of Period | K11: Bi-Weekly
C12: Rounding | D12: On | K12: Weekly
C13: Periods Per Year | D13: =INDEX({1;2;4;6;12;24;26;52},MATCH('Amortisation Schedule_Exist HL2'!$D$9,$K$5:$K$12,0)) -> 12
C14: Compound Period | D14: =INDEX({1;2;4;6;12;24;26;52},MATCH('Amortisation Schedule_Exist HL2'!$D$10,$K$5:$K$12,0)) -> 12
C15: Payment Type | D15: =IF('Amortisation Schedule_Exist HL2'!$D$11="End of Period",0,1) -> 0
C16: Months Per Period | D16: =12/$D$13 -> 1
C17: Number of Periods | D17: =$D$7*$D$13 -> 0
C18: Rounding Option | D18: =(D12="On") -> TRUE
H19: [42]
C20: =D9&" Payment" -> Monthly Payment | D20: =IF(roundOpt,ROUND(-PMT(rate,nper,$D$5,,pmtType),2),-PMT(rate,nper,$D$5,,pmtType)) -> 
A22: Yearly Summary
B23: Year | C23: Payments | D23: Additional Payments | F23: Interest Paid | G23: Principal Paid | H23: Year-End Balance
H24: =loan_amount -> 0
B25: =YEAR(fpdate) -> 2025 | C25: =SUMIF($B$59:$B$840,"<="&DATE($B25,12,31),$C$59:$C$840)-SUM(C$24:C24) -> 0 | D25: =SUMIF($B$59:$B$840,"<="&DATE($B25,12,31),$D$59:$D$840)-SUM(D$24:D24) -> 0 | F25: =SUMIF($B$59:$B$840,"<="&DATE($B25,12,31),$F$59:$F$840)-SUM(F$24:F24) -> 0 | G25: =SUMIF($B$59:$B$840,"<="&DATE($B25,12,31),$G$59:$G$840)-SUM(G$24:G24) -> 0 | H25: =H24-G25 -> 0
B26: =B25+1 -> 2026 | C26: =SUMIF($B$59:$B$840,"<="&DATE($B26,12,31),$C$59:$C$840)-SUM(C$24:C25) -> 0 | D26: =SUMIF($B$59:$B$840,"<="&DATE($B26,12,31),$D$59:$D$840)-SUM(D$24:D25) -> 0 | F26: =SUMIF($B$59:$B$840,"<="&DATE($B26,12,31),$F$59:$F$840)-SUM(F$24:F25) -> 0 | G26: =SUMIF($B$59:$B$840,"<="&DATE($B26,12,31),$G$59:$G$840)-SUM(G$24:G25) -> 0 | H26: =H25-G26 -> 0
B27: =B26+1 -> 2027 | C27: =SUMIF($B$59:$B$840,"<="&DATE($B27,12,31),$C$59:$C$840)-SUM(C$24:C26) -> 0 | D27: =SUMIF($B$59:$B$840,"<="&DATE($B27,12,31),$D$59:$D$840)-SUM(D$24:D26) -> 0 | F27: =SUMIF($B$59:$B$840,"<="&DATE($B27,12,31),$F$59:$F$840)-SUM(F$24:F26) -> 0 | G27: =SUMIF($B$59:$B$840,"<="&DATE($B27,12,31),$G$59:$G$840)-SUM(G$24:G26) -> 0 | H27: =H26-G27 -> 0
B28: =B27+1 -> 2028 | C28: =SUMIF($B$59:$B$840,"<="&DATE($B28,12,31),$C$59:$C$840)-SUM(C$24:C27) -> 0 | D28: =SUMIF($B$59:$B$840,"<="&DATE($B28,12,31),$D$59:$D$840)-SUM(D$24:D27) -> 0 | F28: =SUMIF($B$59:$B$840,"<="&DATE($B28,12,31),$F$59:$F$840)-SUM(F$24:F27) -> 0 | G28: =SUMIF($B$59:$B$840,"<="&DATE($B28,12,31),$G$59:$G$840)-SUM(G$24:G27) -> 0 | H28: =H27-G28 -> 0
B29: =B28+1 -> 2029 | C29: =SUMIF($B$59:$B$840,"<="&DATE($B29,12,31),$C$59:$C$840)-SUM(C$24:C28) -> 0 | D29: =SUMIF($B$59:$B$840,"<="&DATE($B29,12,31),$D$59:$D$840)-SUM(D$24:D28) -> 0 | F29: =SUMIF($B$59:$B$840,"<="&DATE($B29,12,31),$F$59:$F$840)-SUM(F$24:F28) -> 0 | G29: =SUMIF($B$59:$B$840,"<="&DATE($B29,12,31),$G$59:$G$840)-SUM(G$24:G28) -> 0 | H29: =H28-G29 -> 0
B30: 2030 | C30: =SUMIF($B$59:$B$840,"<="&DATE($B30,12,31),$C$59:$C$840)-SUM(C$24:C29) -> 0 | D30: =SUMIF($B$59:$B$840,"<="&DATE($B30,12,31),$D$59:$D$840)-SUM(D$24:D29) -> 0 | F30: =SUMIF($B$59:$B$840,"<="&DATE($B30,12,31),$F$59:$F$840)-SUM(F$24:F29) -> 0 | G30: =SUMIF($B$59:$B$840,"<="&DATE($B30,12,31),$G$59:$G$840)-SUM(G$24:G29) -> 0 | H30: 0
B31: 2031 | C31: =SUMIF($B$59:$B$840,"<="&DATE($B31,12,31),$C$59:$C$840)-SUM(C$24:C30) -> 0 | D31: =SUMIF($B$59:$B$840,"<="&DATE($B31,12,31),$D$59:$D$840)-SUM(D$24:D30) -> 0 | F31: =SUMIF($B$59:$B$840,"<="&DATE($B31,12,31),$F$59:$F$840)-SUM(F$24:F30) -> 0 | G31: =SUMIF($B$59:$B$840,"<="&DATE($B31,12,31),$G$59:$G$840)-SUM(G$24:G30) -> 0 | H31: 0
B32: 2032 | C32: =SUMIF($B$59:$B$840,"<="&DATE($B32,12,31),$C$59:$C$840)-SUM(C$24:C31) -> 0 | D32: =SUMIF($B$59:$B$840,"<="&DATE($B32,12,31),$D$59:$D$840)-SUM(D$24:D31) -> 0 | F32: =SUMIF($B$59:$B$840,"<="&DATE($B32,12,31),$F$59:$F$840)-SUM(F$24:F31) -> 0 | G32: =SUMIF($B$59:$B$840,"<="&DATE($B32,12,31),$G$59:$G$840)-SUM(G$24:G31) -> 0 | H32: 0
B33: 2033 | C33: =SUMIF($B$59:$B$840,"<="&DATE($B33,12,31),$C$59:$C$840)-SUM(C$24:C32) -> 0 | D33: =SUMIF($B$59:$B$840,"<="&DATE($B33,12,31),$D$59:$D$840)-SUM(D$24:D32) -> 0 | F33: =SUMIF($B$59:$B$840,"<="&DATE($B33,12,31),$F$59:$F$840)-SUM(F$24:F32) -> 0 | G33: =SUMIF($B$59:$B$840,"<="&DATE($B33,12,31),$G$59:$G$840)-SUM(G$24:G32) -> 0 | H33: 0
B34: 2034 | C34: =SUMIF($B$59:$B$840,"<="&DATE($B34,12,31),$C$59:$C$840)-SUM(C$24:C33) -> 0 | D34: =SUMIF($B$59:$B$840,"<="&DATE($B34,12,31),$D$59:$D$840)-SUM(D$24:D33) -> 0 | F34: =SUMIF($B$59:$B$840,"<="&DATE($B34,12,31),$F$59:$F$840)-SUM(F$24:F33) -> 0 | G34: =SUMIF($B$59:$B$840,"<="&DATE($B34,12,31),$G$59:$G$840)-SUM(G$24:G33) -> 0 | H34: 0
B35: 2035 | C35: =SUMIF($B$59:$B$840,"<="&DATE($B35,12,31),$C$59:$C$840)-SUM(C$24:C34) -> 0 | D35: =SUMIF($B$59:$B$840,"<="&DATE($B35,12,31),$D$59:$D$840)-SUM(D$24:D34) -> 0 | F35: =SUMIF($B$59:$B$840,"<="&DATE($B35,12,31),$F$59:$F$840)-SUM(F$24:F34) -> 0 | G35: =SUMIF($B$59:$B$840,"<="&DATE($B35,12,31),$G$59:$G$840)-SUM(G$24:G34) -> 0 | H35: 0
B36: 2036 | C36: =SUMIF($B$59:$B$840,"<="&DATE($B36,12,31),$C$59:$C$840)-SUM(C$24:C35) -> 0 | D36: =SUMIF($B$59:$B$840,"<="&DATE($B36,12,31),$D$59:$D$840)-SUM(D$24:D35) -> 0 | F36: =SUMIF($B$59:$B$840,"<="&DATE($B36,12,31),$F$59:$F$840)-SUM(F$24:F35) -> 0 | G36: =SUMIF($B$59:$B$840,"<="&DATE($B36,12,31),$G$59:$G$840)-SUM(G$24:G35) -> 0 | H36: 0
B37: 2037 | C37: =SUMIF($B$59:$B$840,"<="&DATE($B37,12,31),$C$59:$C$840)-SUM(C$24:C36) -> 0 | D37: =SUMIF($B$59:$B$840,"<="&DATE($B37,12,31),$D$59:$D$840)-SUM(D$24:D36) -> 0 | F37: =SUMIF($B$59:$B$840,"<="&DATE($B37,12,31),$F$59:$F$840)-SUM(F$24:F36) -> 0 | G37: =SUMIF($B$59:$B$840,"<="&DATE($B37,12,31),$G$59:$G$840)-SUM(G$24:G36) -> 0 | H37: 0
B38: 2038 | C38: =SUMIF($B$59:$B$840,"<="&DATE($B38,12,31),$C$59:$C$840)-SUM(C$24:C37) -> 0 | D38: =SUMIF($B$59:$B$840,"<="&DATE($B38,12,31),$D$59:$D$840)-SUM(D$24:D37) -> 0 | F38: =SUMIF($B$59:$B$840,"<="&DATE($B38,12,31),$F$59:$F$840)-SUM(F$24:F37) -> 0 | G38: =SUMIF($B$59:$B$840,"<="&DATE($B38,12,31),$G$59:$G$840)-SUM(G$24:G37) -> 0 | H38: 0
B39: 2039 | C39: =SUMIF($B$59:$B$840,"<="&DATE($B39,12,31),$C$59:$C$840)-SUM(C$24:C38) -> 0 | D39: =SUMIF($B$59:$B$840,"<="&DATE($B39,12,31),$D$59:$D$840)-SUM(D$24:D38) -> 0 | F39: =SUMIF($B$59:$B$840,"<="&DATE($B39,12,31),$F$59:$F$840)-SUM(F$24:F38) -> 0 | G39: =SUMIF($B$59:$B$840,"<="&DATE($B39,12,31),$G$59:$G$840)-SUM(G$24:G38) -> 0 | H39: 0
B40: 2040 | C40: =SUMIF($B$59:$B$840,"<="&DATE($B40,12,31),$C$59:$C$840)-SUM(C$24:C39) -> 0 | D40: =SUMIF($B$59:$B$840,"<="&DATE($B40,12,31),$D$59:$D$840)-SUM(D$24:D39) -> 0 | F40: =SUMIF($B$59:$B$840,"<="&DATE($B40,12,31),$F$59:$F$840)-SUM(F$24:F39) -> 0 | G40: =SUMIF($B$59:$B$840,"<="&DATE($B40,12,31),$G$59:$G$840)-SUM(G$24:G39) -> 0 | H40: 0
B41: 2041 | C41: =SUMIF($B$59:$B$840,"<="&DATE($B41,12,31),$C$59:$C$840)-SUM(C$24:C40) -> 0 | D41: =SUMIF($B$59:$B$840,"<="&DATE($B41,12,31),$D$59:$D$840)-SUM(D$24:D40) -> 0 | F41: =SUMIF($B$59:$B$840,"<="&DATE($B41,12,31),$F$59:$F$840)-SUM(F$24:F40) -> 0 | G41: =SUMIF($B$59:$B$840,"<="&DATE($B41,12,31),$G$59:$G$840)-SUM(G$24:G40) -> 0 | H41: 0
B42: 2042 | C42: =SUMIF($B$59:$B$840,"<="&DATE($B42,12,31),$C$59:$C$840)-SUM(C$24:C41) -> 0 | D42: =SUMIF($B$59:$B$840,"<="&DATE($B42,12,31),$D$59:$D$840)-SUM(D$24:D41) -> 0 | F42: =SUMIF($B$59:$B$840,"<="&DATE($B42,12,31),$F$59:$F$840)-SUM(F$24:F41) -> 0 | G42: =SUMIF($B$59:$B$840,"<="&DATE($B42,12,31),$G$59:$G$840)-SUM(G$24:G41) -> 0 | H42: 0
B43: 2043 | C43: =SUMIF($B$59:$B$840,"<="&DATE($B43,12,31),$C$59:$C$840)-SUM(C$24:C42) -> 0 | D43: =SUMIF($B$59:$B$840,"<="&DATE($B43,12,31),$D$59:$D$840)-SUM(D$24:D42) -> 0 | F43: =SUMIF($B$59:$B$840,"<="&DATE($B43,12,31),$F$59:$F$840)-SUM(F$24:F42) -> 0 | G43: =SUMIF($B$59:$B$840,"<="&DATE($B43,12,31),$G$59:$G$840)-SUM(G$24:G42) -> 0 | H43: 0
B44: 2044 | C44: =SUMIF($B$59:$B$840,"<="&DATE($B44,12,31),$C$59:$C$840)-SUM(C$24:C43) -> 0 | D44: =SUMIF($B$59:$B$840,"<="&DATE($B44,12,31),$D$59:$D$840)-SUM(D$24:D43) -> 0 | F44: =SUMIF($B$59:$B$840,"<="&DATE($B44,12,31),$F$59:$F$840)-SUM(F$24:F43) -> 0 | G44: =SUMIF($B$59:$B$840,"<="&DATE($B44,12,31),$G$59:$G$840)-SUM(G$24:G43) -> 0 | H44: 0
B45: 2045 | C45: =SUMIF($B$59:$B$840,"<="&DATE($B45,12,31),$C$59:$C$840)-SUM(C$24:C44) -> 0 | D45: =SUMIF($B$59:$B$840,"<="&DATE($B45,12,31),$D$59:$D$840)-SUM(D$24:D44) -> 0 | F45: =SUMIF($B$59:$B$840,"<="&DATE($B45,12,31),$F$59:$F$840)-SUM(F$24:F44) -> 0 | G45: =SUMIF($B$59:$B$840,"<="&DATE($B45,12,31),$G$59:$G$840)-SUM(G$24:G44) -> 0 | H45: 0
B46: 2046 | C46: =SUMIF($B$59:$B$840,"<="&DATE($B46,12,31),$C$59:$C$840)-SUM(C$24:C45) -> 0 | D46: =SUMIF($B$59:$B$840,"<="&DATE($B46,12,31),$D$59:$D$840)-SUM(D$24:D45) -> 0 | F46: =SUMIF($B$59:$B$840,"<="&DATE($B46,12,31),$F$59:$F$840)-SUM(F$24:F45) -> 0 | G46: =SUMIF($B$59:$B$840,"<="&DATE($B46,12,31),$G$59:$G$840)-SUM(G$24:G45) -> 0 | H46: 0
B47: 2047 | C47: =SUMIF($B$59:$B$840,"<="&DATE($B47,12,31),$C$59:$C$840)-SUM(C$24:C46) -> 0 | D47: =SUMIF($B$59:$B$840,"<="&DATE($B47,12,31),$D$59:$D$840)-SUM(D$24:D46) -> 0 | F47: =SUMIF($B$59:$B$840,"<="&DATE($B47,12,31),$F$59:$F$840)-SUM(F$24:F46) -> 0 | G47: =SUMIF($B$59:$B$840,"<="&DATE($B47,12,31),$G$59:$G$840)-SUM(G$24:G46) -> 0 | H47: 0
B48: 2048 | C48: =SUMIF($B$59:$B$840,"<="&DATE($B48,12,31),$C$59:$C$840)-SUM(C$24:C47) -> 0 | D48: =SUMIF($B$59:$B$840,"<="&DATE($B48,12,31),$D$59:$D$840)-SUM(D$24:D47) -> 0 | F48: =SUMIF($B$59:$B$840,"<="&DATE($B48,12,31),$F$59:$F$840)-SUM(F$24:F47) -> 0 | G48: =SUMIF($B$59:$B$840,"<="&DATE($B48,12,31),$G$59:$G$840)-SUM(G$24:G47) -> 0 | H48: 0
B49: 2049 | C49: =SUMIF($B$59:$B$840,"<="&DATE($B49,12,31),$C$59:$C$840)-SUM(C$24:C48) -> 0 | D49: =SUMIF($B$59:$B$840,"<="&DATE($B49,12,31),$D$59:$D$840)-SUM(D$24:D48) -> 0 | F49: =SUMIF($B$59:$B$840,"<="&DATE($B49,12,31),$F$59:$F$840)-SUM(F$24:F48) -> 0 | G49: =SUMIF($B$59:$B$840,"<="&DATE($B49,12,31),$G$59:$G$840)-SUM(G$24:G48) -> 0 | H49: 0
B50: 2050 | C50: =SUMIF($B$59:$B$840,"<="&DATE($B50,12,31),$C$59:$C$840)-SUM(C$24:C49) -> 0 | D50: =SUMIF($B$59:$B$840,"<="&DATE($B50,12,31),$D$59:$D$840)-SUM(D$24:D49) -> 0 | F50: =SUMIF($B$59:$B$840,"<="&DATE($B50,12,31),$F$59:$F$840)-SUM(F$24:F49) -> 0 | G50: =SUMIF($B$59:$B$840,"<="&DATE($B50,12,31),$G$59:$G$840)-SUM(G$24:G49) -> 0 | H50: 0
B51: 2051 | C51: =SUMIF($B$59:$B$840,"<="&DATE($B51,12,31),$C$59:$C$840)-SUM(C$24:C50) -> 0 | D51: =SUMIF($B$59:$B$840,"<="&DATE($B51,12,31),$D$59:$D$840)-SUM(D$24:D50) -> 0 | F51: =SUMIF($B$59:$B$840,"<="&DATE($B51,12,31),$F$59:$F$840)-SUM(F$24:F50) -> 0 | G51: =SUMIF($B$59:$B$840,"<="&DATE($B51,12,31),$G$59:$G$840)-SUM(G$24:G50) -> 0 | H51: 0
B52: 2052 | C52: =SUMIF($B$59:$B$840,"<="&DATE($B52,12,31),$C$59:$C$840)-SUM(C$24:C51) -> 0 | D52: =SUMIF($B$59:$B$840,"<="&DATE($B52,12,31),$D$59:$D$840)-SUM(D$24:D51) -> 0 | F52: =SUMIF($B$59:$B$840,"<="&DATE($B52,12,31),$F$59:$F$840)-SUM(F$24:F51) -> 0 | G52: =SUMIF($B$59:$B$840,"<="&DATE($B52,12,31),$G$59:$G$840)-SUM(G$24:G51) -> 0 | H52: 0
B53: 2053 | C53: =SUMIF($B$59:$B$840,"<="&DATE($B53,12,31),$C$59:$C$840)-SUM(C$24:C52) -> 0 | D53: =SUMIF($B$59:$B$840,"<="&DATE($B53,12,31),$D$59:$D$840)-SUM(D$24:D52) -> 0 | F53: =SUMIF($B$59:$B$840,"<="&DATE($B53,12,31),$F$59:$F$840)-SUM(F$24:F52) -> 0 | G53: =SUMIF($B$59:$B$840,"<="&DATE($B53,12,31),$G$59:$G$840)-SUM(G$24:G52) -> 0 | H53: 0
B54: 2054 | C54: =SUMIF($B$59:$B$840,"<="&DATE($B54,12,31),$C$59:$C$840)-SUM(C$24:C53) -> 0 | D54: =SUMIF($B$59:$B$840,"<="&DATE($B54,12,31),$D$59:$D$840)-SUM(D$24:D53) -> 0 | F54: =SUMIF($B$59:$B$840,"<="&DATE($B54,12,31),$F$59:$F$840)-SUM(F$24:F53) -> 0 | G54: =SUMIF($B$59:$B$840,"<="&DATE($B54,12,31),$G$59:$G$840)-SUM(G$24:G53) -> 0 | H54: 0
B55: 2055 | C55: =SUMIF($B$59:$B$840,"<="&DATE($B55,12,31),$C$59:$C$840)-SUM(C$24:C54) -> 0 | D55: =SUMIF($B$59:$B$840,"<="&DATE($B55,12,31),$D$59:$D$840)-SUM(D$24:D54) -> 0 | F55: =SUMIF($B$59:$B$840,"<="&DATE($B55,12,31),$F$59:$F$840)-SUM(F$24:F54) -> 0 | G55: =SUMIF($B$59:$B$840,"<="&DATE($B55,12,31),$G$59:$G$840)-SUM(G$24:G54) -> 0 | H55: 0
A57: Amortisation Schedule
A58: No. | B58: Due Date | C58: Payment Due | D58: Additional Payment | F58: Interest | G58: Principal | H58: Balance
H59: =$D$5 -> 0
A60: =IF(H59="","",IF(roundOpt,IF(OR(A59>=nper,ROUND(H59,2)<=0),"",A59+1),IF(OR(A59>=nper,H59<=0),"",A59+1))) ->  | B60: =IF(A60="","",IF(OR(periods_per_year=26,periods_per_year=52),IF(periods_per_year=26,IF(A60=1,fpdate,B59+14),IF(periods_per_year=52,IF(A60=1,fpdate,B59+7),"n/a")),IF(periods_per_year=24,DATE(YEAR(fpdate),MONTH(fpdate)+(A60-1)/2+IF(AND(DAY(fpdate)>=15,MOD(A60,2)=0),1,0),IF(MOD(A60,2)=0,IF(DAY(fpdate)>=15,DAY(fpdate)-14,DAY(fpdate)+14),DAY(fpdate))),IF(DAY(DATE(YEAR(fpdate),MONTH(fpdate)+(A60-1)*months_per_period,DAY(fpdate)))<>DAY(fpdate),DATE(YEAR(fpdate),MONTH(fpdate)+(A60-1)*months_per_period+1,0),DATE(YEAR(fpdate),MONTH(fpdate)+(A60-1)*months_per_period,DAY(fpdate)))))) ->  | C60: =IF(A60="","",IF(roundOpt,IF(OR(A60=nper,payment>ROUND((1+rate)*H59,2)),ROUND((1+rate)*H59,2),payment),IF(OR(A60=nper,payment>(1+rate)*H59),(1+rate)*H59,payment))) ->  | F60: =IF(A60="","",IF(AND(A60=1,pmtType=1),0,IF(roundOpt,ROUND(rate*H59,2),rate*H59))) ->  | G60: =IF(A60="","",C60-F60+D60) ->  | H60: =IF(A60="","",H59-G60) -> 
A124: =IF(H123="","",IF(roundOpt,IF(OR(A123>=nper,ROUND(H123,2)<=0),"",A123+1),IF(OR(A123>=nper,H123<=0),"",A123+1))) ->  | B124: =IF(A124="","",IF(OR(periods_per_year=26,periods_per_year=52),IF(periods_per_year=26,IF(A124=1,fpdate,B123+14),IF(periods_per_year=52,IF(A124=1,fpdate,B123+7),"n/a")),IF(periods_per_year=24,DATE(YEAR(fpdate),MONTH(fpdate)+(A124-1)/2+IF(AND(DAY(fpdate)>=15,MOD(A124,2)=0),1,0),IF(MOD(A124,2)=0,IF(DAY(fpdate)>=15,DAY(fpdate)-14,DAY(fpdate)+14),DAY(fpdate))),IF(DAY(DATE(YEAR(fpdate),MONTH(fpdate)+(A124-1)*months_per_period,DAY(fpdate)))<>DAY(fpdate),DATE(YEAR(fpdate),MONTH(fpdate)+(A124-1)*months_per_period+1,0),DATE(YEAR(fpdate),MONTH(fpdate)+(A124-1)*months_per_period,DAY(fpdate)))))) ->  | C124: =IF(A124="","",IF(roundOpt,IF(OR(A124=nper,payment>ROUND((1+rate)*H123,2)),ROUND((1+rate)*H123,2),payment),IF(OR(A124=nper,payment>(1+rate)*H123),(1+rate)*H123,payment))) ->  | F124: =IF(A124="","",IF(AND(A124=1,pmtType=1),0,IF(roundOpt,ROUND(rate*H123,2),rate*H123))) ->  | G124: =IF(A124="","",C124-F124+D124) ->  | H124: =IF(A124="","",H123-G124) -> 
A188: =IF(H187="","",IF(roundOpt,IF(OR(A187>=nper,ROUND(H187,2)<=0),"",A187+1),IF(OR(A187>=nper,H187<=0),"",A187+1))) ->  | B188: =IF(A188="","",IF(OR(periods_per_year=26,periods_per_year=52),IF(periods_per_year=26,IF(A188=1,fpdate,B187+14),IF(periods_per_year=52,IF(A188=1,fpdate,B187+7),"n/a")),IF(periods_per_year=24,DATE(YEAR(fpdate),MONTH(fpdate)+(A188-1)/2+IF(AND(DAY(fpdate)>=15,MOD(A188,2)=0),1,0),IF(MOD(A188,2)=0,IF(DAY(fpdate)>=15,DAY(fpdate)-14,DAY(fpdate)+14),DAY(fpdate))),IF(DAY(DATE(YEAR(fpdate),MONTH(fpdate)+(A188-1)*months_per_period,DAY(fpdate)))<>DAY(fpdate),DATE(YEAR(fpdate),MONTH(fpdate)+(A188-1)*months_per_period+1,0),DATE(YEAR(fpdate),MONTH(fpdate)+(A188-1)*months_per_period,DAY(fpdate)))))) ->  | C188: =IF(A188="","",IF(roundOpt,IF(OR(A188=nper,payment>ROUND((1+rate)*H187,2)),ROUND((1+rate)*H187,2),payment),IF(OR(A188=nper,payment>(1+rate)*H187),(1+rate)*H187,payment))) ->  | F188: =IF(A188="","",IF(AND(A188=1,pmtType=1),0,IF(roundOpt,ROUND(rate*H187,2),rate*H187))) ->  | G188: =IF(A188="","",C188-F188+D188) ->  | H188: =IF(A188="","",H187-G188) -> 
A252: =IF(H251="","",IF(roundOpt,IF(OR(A251>=nper,ROUND(H251,2)<=0),"",A251+1),IF(OR(A251>=nper,H251<=0),"",A251+1))) ->  | B252: =IF(A252="","",IF(OR(periods_per_year=26,periods_per_year=52),IF(periods_per_year=26,IF(A252=1,fpdate,B251+14),IF(periods_per_year=52,IF(A252=1,fpdate,B251+7),"n/a")),IF(periods_per_year=24,DATE(YEAR(fpdate),MONTH(fpdate)+(A252-1)/2+IF(AND(DAY(fpdate)>=15,MOD(A252,2)=0),1,0),IF(MOD(A252,2)=0,IF(DAY(fpdate)>=15,DAY(fpdate)-14,DAY(fpdate)+14),DAY(fpdate))),IF(DAY(DATE(YEAR(fpdate),MONTH(fpdate)+(A252-1)*months_per_period,DAY(fpdate)))<>DAY(fpdate),DATE(YEAR(fpdate),MONTH(fpdate)+(A252-1)*months_per_period+1,0),DATE(YEAR(fpdate),MONTH(fpdate)+(A252-1)*months_per_period,DAY(fpdate)))))) ->  | C252: =IF(A252="","",IF(roundOpt,IF(OR(A252=nper,payment>ROUND((1+rate)*H251,2)),ROUND((1+rate)*H251,2),payment),IF(OR(A252=nper,payment>(1+rate)*H251),(1+rate)*H251,payment))) ->  | F252: =IF(A252="","",IF(AND(A252=1,pmtType=1),0,IF(roundOpt,ROUND(rate*H251,2),rate*H251))) ->  | G252: =IF(A252="","",C252-F252+D252) ->  | H252: =IF(A252="","",H251-G252) -> 
A316: =IF(H315="","",IF(roundOpt,IF(OR(A315>=nper,ROUND(H315,2)<=0),"",A315+1),IF(OR(A315>=nper,H315<=0),"",A315+1))) ->  | B316: =IF(A316="","",IF(OR(periods_per_year=26,periods_per_year=52),IF(periods_per_year=26,IF(A316=1,fpdate,B315+14),IF(periods_per_year=52,IF(A316=1,fpdate,B315+7),"n/a")),IF(periods_per_year=24,DATE(YEAR(fpdate),MONTH(fpdate)+(A316-1)/2+IF(AND(DAY(fpdate)>=15,MOD(A316,2)=0),1,0),IF(MOD(A316,2)=0,IF(DAY(fpdate)>=15,DAY(fpdate)-14,DAY(fpdate)+14),DAY(fpdate))),IF(DAY(DATE(YEAR(fpdate),MONTH(fpdate)+(A316-1)*months_per_period,DAY(fpdate)))<>DAY(fpdate),DATE(YEAR(fpdate),MONTH(fpdate)+(A316-1)*months_per_period+1,0),DATE(YEAR(fpdate),MONTH(fpdate)+(A316-1)*months_per_period,DAY(fpdate)))))) ->  | C316: =IF(A316="","",IF(roundOpt,IF(OR(A316=nper,payment>ROUND((1+rate)*H315,2)),ROUND((1+rate)*H315,2),payment),IF(OR(A316=nper,payment>(1+rate)*H315),(1+rate)*H315,payment))) ->  | F316: =IF(A316="","",IF(AND(A316=1,pmtType=1),0,IF(roundOpt,ROUND(rate*H315,2),rate*H315))) ->  | G316: =IF(A316="","",C316-F316+D316) ->  | H316: =IF(A316="","",H315-G316) -> 
A380: =IF(H379="","",IF(roundOpt,IF(OR(A379>=nper,ROUND(H379,2)<=0),"",A379+1),IF(OR(A379>=nper,H379<=0),"",A379+1))) ->  | B380: =IF(A380="","",IF(OR(periods_per_year=26,periods_per_year=52),IF(periods_per_year=26,IF(A380=1,fpdate,B379+14),IF(periods_per_year=52,IF(A380=1,fpdate,B379+7),"n/a")),IF(periods_per_year=24,DATE(YEAR(fpdate),MONTH(fpdate)+(A380-1)/2+IF(AND(DAY(fpdate)>=15,MOD(A380,2)=0),1,0),IF(MOD(A380,2)=0,IF(DAY(fpdate)>=15,DAY(fpdate)-14,DAY(fpdate)+14),DAY(fpdate))),IF(DAY(DATE(YEAR(fpdate),MONTH(fpdate)+(A380-1)*months_per_period,DAY(fpdate)))<>DAY(fpdate),DATE(YEAR(fpdate),MONTH(fpdate)+(A380-1)*months_per_period+1,0),DATE(YEAR(fpdate),MONTH(fpdate)+(A380-1)*months_per_period,DAY(fpdate)))))) ->  | C380: =IF(A380="","",IF(roundOpt,IF(OR(A380=nper,payment>ROUND((1+rate)*H379,2)),ROUND((1+rate)*H379,2),payment),IF(OR(A380=nper,payment>(1+rate)*H379),(1+rate)*H379,payment))) ->  | F380: =IF(A380="","",IF(AND(A380=1,pmtType=1),0,IF(roundOpt,ROUND(rate*H379,2),rate*H379))) ->  | G380: =IF(A380="","",C380-F380+D380) ->  | H380: =IF(A380="","",H379-G380) -> 
A444: =IF(H443="","",IF(roundOpt,IF(OR(A443>=nper,ROUND(H443,2)<=0),"",A443+1),IF(OR(A443>=nper,H443<=0),"",A443+1))) ->  | B444: =IF(A444="","",IF(OR(periods_per_year=26,periods_per_year=52),IF(periods_per_year=26,IF(A444=1,fpdate,B443+14),IF(periods_per_year=52,IF(A444=1,fpdate,B443+7),"n/a")),IF(periods_per_year=24,DATE(YEAR(fpdate),MONTH(fpdate)+(A444-1)/2+IF(AND(DAY(fpdate)>=15,MOD(A444,2)=0),1,0),IF(MOD(A444,2)=0,IF(DAY(fpdate)>=15,DAY(fpdate)-14,DAY(fpdate)+14),DAY(fpdate))),IF(DAY(DATE(YEAR(fpdate),MONTH(fpdate)+(A444-1)*months_per_period,DAY(fpdate)))<>DAY(fpdate),DATE(YEAR(fpdate),MONTH(fpdate)+(A444-1)*months_per_period+1,0),DATE(YEAR(fpdate),MONTH(fpdate)+(A444-1)*months_per_period,DAY(fpdate)))))) ->  | C444: =IF(A444="","",IF(roundOpt,IF(OR(A444=nper,payment>ROUND((1+rate)*H443,2)),ROUND((1+rate)*H443,2),payment),IF(OR(A444=nper,payment>(1+rate)*H443),(1+rate)*H443,payment))) ->  | F444: =IF(A444="","",IF(AND(A444=1,pmtType=1),0,IF(roundOpt,ROUND(rate*H443,2),rate*H443))) ->  | G444: =IF(A444="","",C444-F444+D444) ->  | H444: =IF(A444="","",H443-G444) -> 
A508: =IF(H507="","",IF(roundOpt,IF(OR(A507>=nper,ROUND(H507,2)<=0),"",A507+1),IF(OR(A507>=nper,H507<=0),"",A507+1))) ->  | B508: =IF(A508="","",IF(OR(periods_per_year=26,periods_per_year=52),IF(periods_per_year=26,IF(A508=1,fpdate,B507+14),IF(periods_per_year=52,IF(A508=1,fpdate,B507+7),"n/a")),IF(periods_per_year=24,DATE(YEAR(fpdate),MONTH(fpdate)+(A508-1)/2+IF(AND(DAY(fpdate)>=15,MOD(A508,2)=0),1,0),IF(MOD(A508,2)=0,IF(DAY(fpdate)>=15,DAY(fpdate)-14,DAY(fpdate)+14),DAY(fpdate))),IF(DAY(DATE(YEAR(fpdate),MONTH(fpdate)+(A508-1)*months_per_period,DAY(fpdate)))<>DAY(fpdate),DATE(YEAR(fpdate),MONTH(fpdate)+(A508-1)*months_per_period+1,0),DATE(YEAR(fpdate),MONTH(fpdate)+(A508-1)*months_per_period,DAY(fpdate)))))) ->  | C508: =IF(A508="","",IF(roundOpt,IF(OR(A508=nper,payment>ROUND((1+rate)*H507,2)),ROUND((1+rate)*H507,2),payment),IF(OR(A508=nper,payment>(1+rate)*H507),(1+rate)*H507,payment))) ->  | F508: =IF(A508="","",IF(AND(A508=1,pmtType=1),0,IF(roundOpt,ROUND(rate*H507,2),rate*H507))) ->  | G508: =IF(A508="","",C508-F508+D508) ->  | H508: =IF(A508="","",H507-G508) -> 
A572: =IF(H571="","",IF(roundOpt,IF(OR(A571>=nper,ROUND(H571,2)<=0),"",A571+1),IF(OR(A571>=nper,H571<=0),"",A571+1))) ->  | B572: =IF(A572="","",IF(OR(periods_per_year=26,periods_per_year=52),IF(periods_per_year=26,IF(A572=1,fpdate,B571+14),IF(periods_per_year=52,IF(A572=1,fpdate,B571+7),"n/a")),IF(periods_per_year=24,DATE(YEAR(fpdate),MONTH(fpdate)+(A572-1)/2+IF(AND(DAY(fpdate)>=15,MOD(A572,2)=0),1,0),IF(MOD(A572,2)=0,IF(DAY(fpdate)>=15,DAY(fpdate)-14,DAY(fpdate)+14),DAY(fpdate))),IF(DAY(DATE(YEAR(fpdate),MONTH(fpdate)+(A572-1)*months_per_period,DAY(fpdate)))<>DAY(fpdate),DATE(YEAR(fpdate),MONTH(fpdate)+(A572-1)*months_per_period+1,0),DATE(YEAR(fpdate),MONTH(fpdate)+(A572-1)*months_per_period,DAY(fpdate)))))) ->  | C572: =IF(A572="","",IF(roundOpt,IF(OR(A572=nper,payment>ROUND((1+rate)*H571,2)),ROUND((1+rate)*H571,2),payment),IF(OR(A572=nper,payment>(1+rate)*H571),(1+rate)*H571,payment))) ->  | F572: =IF(A572="","",IF(AND(A572=1,pmtType=1),0,IF(roundOpt,ROUND(rate*H571,2),rate*H571))) ->  | G572: =IF(A572="","",C572-F572+D572) ->  | H572: =IF(A572="","",H571-G572) -> 
